Workbook

Sheet --READ ME FIRST--

Sheet Buttons
AH1: AIJ_Fields | AI1: =rngAIJ_Fields -> AIJ_Fields
AH2: EXPTIME | AI2: =AH2 -> EXPTIME
AH3: JD_SOBS | AI3: JD_SOBS
AH4: JD_UTC | AI4: JD_UTC
AH5: Label | AI5: Label
AH6: N_Sky_Pixels_T1 | AI6: N_Sky_Pixels_T1
AH7: N_Src_Pixels_T1 | AI7: N_Src_Pixels_T1
AH8: Sky/Pixel_T1 | AI8: Sky/Pixel_T1
AH9: Sky_Rad(Max) | AI9: Sky_Rad(Max)
AH10: Sky_Rad(Min) | AI10: Sky_Rad(Min)
AH11: slice | AI11: slice
AH12: Source_Radius | AI12: Source_Radius
AH13: Source_SNR_C2 | AI13: Source_SNR_C2
AH14: Source_SNR_T1 | AI14: Source_SNR_T1
AH15: Source-Sky_C2 | AI15: Source-Sky_C2
AH16: Source-Sky_T1 | AI16: Source-Sky_T1
AI17: AIRMASS

Sheet ObsvEqmt
B1: Observer & Equipment Details | F1: Red - Required, Blue - Optional
B3: Observer Details
B4: BAAVSS Observer Code | C4: UOL
B5: AAVSO Observer Code
B6: Observer Name | C6: University of Louisville, KY
B8: Location Details
B9: Location Code | C9: No longer used
C10: Deg | D10: Min | E10: Sec | F10: Hem
B11: Latitude | C11: 38 | D11: 20 | E11: 41 | F11: N
B12: Longitude | C12: 85 | D12: 31 | E12: 42 | F12: W
B13: Height (m) | C13: 230
B15: Telescope Details
B16: Telescope Short Description | C16: RC 0.6m f/8
B17: Description | C17: RC Optical Systems UofL MORC24
B18: Aperture (mm) | C18: 610
B19: Focal Length (mm) | C19: 4900
B21: Camera Details
B22: Observation Method | C22: CCD
B23: Camera | C23: U16M
B24: Pixel Size (arcsec) | C24: 0.38 | D24: 0.38
B25: Gain (e-/ADU) | C25: 1.25
B26: Dark Current (e-/pixel) | C26: 0.2
B27: Readout Noise (e-/pixel) | C27: 9
B29: Spreadsheet
B30: Version | C30: =INDIRECT("'Version Log'!"&"A"&COUNTA('Version Log'!A:A)) -> 2.12
B31: Release Date | C31: Ref Version log

Sheet Results
B1: Observation Summary | E1: Red - Required, Blue - Optional, Green - Calculated/Automated | W1: Filter | X1: Explanation
W2: CV | X2: Clear (unfiltered) V-band comp star mag (more common than CR)
B3: Chart | C3: AAVSO WASP-12b | D3: Star Aperture | E3: 17 | G3: Airmass | K3: Red Warning Limit (Used in Data Checks) | W3: CR | X3: Clear (unfiltered) R-band comp star mag
B4: Filter | C4: V | D4: Sky Annulus Inner Radius | E4: 30 | G4: Observations per Block Average | I4: 5 | K4: Max Calc - Quoted Difference | N4: 0.05 | W4: U | X4: Johnson U
B5: Photometry Time Stamp | C5: Start Exposure | D5: Sky Annulus Outer Radius | E5: 45 | G5: Julian Date Offset | I5: 2453000 | K5: Comment | W5: B | X5: Johnson B
B6: Timing Error | C6: 1 | W6: V | X6: Johnson V
W7: R | X7: Cousins R
B8: Star Data & Summary Calculations | D8: (Individual Variable Measurements to Right) | W8: I | X8: Cousins I
C9: User Input | H9: Results | L9: Data Checks (Cells Turn Red when Limit Exceeded) | R9: Individual Variable Measurements | W9: J | X9: NIR 1.2 micron
C10: Star | D10: AIP4WIN | E10: Include in | F10: Reference | H10: Average | I10: Average | J10: Std Dev | K10: Average | L10: Calc - Quoted | M10: Min | N10: Max | O10: Magnitude | R10: Date | S10: Julian | T10: Magnitude | U10: Error | W10: H | X10: NIR 1.6 micron
B11: Type | C11: Designation | D11: Star | E11: Analysis | F11: Magnitude | G11: Error | H11: Magnitude | I11: Error | J11: Magnitude | K11: Weight | L11: Difference | M11: Magnitude | N11: Magnitude | O11: Check | R11: /Time | S11: Date | W11: K | X11: NIR 2.2 micron
B12: AAVSO Results | C12: =oVariableID -> WASP-12b | D12: =D13 -> Var | H12: =AVERAGE(CalcAAVSO!$AX$7:$AX$236) -> 11.75073337 | I12: =AVERAGE(CalcAAVSO!$AY$7:$AY$236) -> 0.03192509318 | J12: =STDEV(CalcAAVSO!$AX$7:$AX$236) -> 0.008128769281 | M12: =MAX(CalcAAVSO!$AX$7:$AX$236) -> 11.76817518 | N12: =MIN(CalcAAVSO!$AX$7:$AX$236) -> 11.73135034 | Q12: Average | R12: N/A | S12: N/A | T12: =Calculation!$AX5 -> 11.68293704 | U12: =Calculation!$AY5 -> 0.04107503831 | W12: VG | X12: Corrected Green Channel to Johnson V
B13: BAAVSS Results | C13: WASP-12b | D13: Var | H13: =AVERAGE(Calculation!$AX$7:$AX$236) -> 11.68293704 | I13: =AVERAGE(Calculation!$AY$7:$AY$236) -> 0.04107503831 | J13: =STDEV(Calculation!$AX$7:$AX$236) -> 0.008774845415 | K13: =AVERAGE(Calculation!$Z$7:$Z$236) -> 0 | L13: =$H$13-$F$13 -> 11.68293704 | M13: =MAX(Calculation!$AX$7:$AX$236) -> 11.70135014 | N13: =MIN(Calculation!$AX$7:$AX$236) -> 11.66313845 | O13: =IF(ABS($L$13)>oMagTol,"WARNING","OK") -> WARNING | Q13: Std Dev | R13: N/A | S13: N/A | T13: =Calculation!$AX6 -> 0.008774845415 | U13: =Calculation!$AY6 -> 0.0003932535546 | W13: TR | X13: Red Filter (tricolour)
B14: Comparison | C14: 000-BKG-164 | D14: C1 | E14: Check | F14: 9.452 | H14: =AVERAGE(Calculation!$AZ$7:$AZ$236) -> 9.555723878 | I14: =AVERAGE(Calculation!$BA$7:$BA$236) -> 0.04104722945 | J14: =STDEV(Calculation!$AZ$7:$AZ$236) -> 0.001698331627 | K14: =AVERAGE(Calculation!$AC$7:$AC$236) -> 0.3952829702 | L14: =$H$14-$F$14 -> 0.1037238784 | M14: =MAX(Calculation!$AZ$7:$AZ$236) -> 9.560098804 | N14: =MIN(Calculation!$AZ$7:$AZ$236) -> 9.551166933 | O14: =IF(ABS($L$14)>oMagTol,"WARNING","OK") -> WARNING | R14: =Calculation!C7+Calculation!D7 -> 2013-01-27T00:20:52.627 | S14: =Calculation!F7 -> 3319.514498 | T14: =Calculation!$AX7 -> 11.66313845 | U14: =Calculation!$AY7 -> 0.0429565016 | W14: TG | X14: Green Filter (tricolour)
B15: Comparison | C15: 000-BKG-165 | D15: C2 | E15: Yes | F15: 9.747 | H15: =AVERAGE(Calculation!$BB$7:$BB$236) -> 9.738800079 | I15: =AVERAGE(Calculation!$BC$7:$BC$236) -> 0.04104767541 | J15: =STDEV(Calculation!$BB$7:$BB$236) -> 0.004287340992 | K15: =AVERAGE(Calculation!$AF$7:$AF$236) -> 0.3234802186 | L15: =$H$15-$F$15 -> -0.008199920611 | M15: =MAX(Calculation!$BB$7:$BB$236) -> 9.755609864 | N15: =MIN(Calculation!$BB$7:$BB$236) -> 9.728610569 | O15: =IF(ABS($L$15)>oMagTol,"WARNING","OK") -> OK | R15: =Calculation!C8+Calculation!D8 -> 2013-01-27T00:22:51.773 | S15: =Calculation!F8 -> 3319.515877 | T15: =Calculation!$AX8 -> 11.66851254 | U15: =Calculation!$AY8 -> 0.04238250103 | W15: TB | X15: Blue Filter (tricolour)
B16: Comparison | C16: 000-BKG-166 | D16: C3 | E16: Yes | F16: 10.568 | H16: =AVERAGE(Calculation!$BD$7:$BD$236) -> 10.46378453 | I16: =AVERAGE(Calculation!$BE$7:$BE$236) -> 0.0410509401 | J16: =STDEV(Calculation!$BD$7:$BD$236) -> 0.003128670074 | K16: =AVERAGE(Calculation!$AI$7:$AI$236) -> 0.1393631041 | L16: =$H$16-$F$16 -> -0.1042154663 | M16: =MAX(Calculation!$BD$7:$BD$236) -> 10.47033991 | N16: =MIN(Calculation!$BD$7:$BD$236) -> 10.45120155 | O16: =IF(ABS($L$16)>oMagTol,"WARNING","OK") -> WARNING | R16: =Calculation!C9+Calculation!D9 -> 2013-01-27T00:24:50.918 | S16: =Calculation!F9 -> 3319.517256 | T16: =Calculation!$AX9 -> 11.66438082 | U16: =Calculation!$AY9 -> 0.0431278274 | W16: SU | X16: Sloan U
B17: Comparison | C17: 000-BKG-420 | D17: C4 | E17: Yes | F17: 10.984 | H17: =AVERAGE(Calculation!$BF$7:$BF$236) -> 10.79079368 | I17: =AVERAGE(Calculation!$BG$7:$BG$236) -> 0.04105388956 | J17: =STDEV(Calculation!$BF$7:$BF$236) -> 0.002551225116 | K17: =AVERAGE(Calculation!$AL$7:$AL$236) -> 0.09217499107 | L17: =$H$17-$F$17 -> -0.1932063182 | M17: =MAX(Calculation!$BF$7:$BF$236) -> 10.79675598 | N17: =MIN(Calculation!$BF$7:$BF$236) -> 10.78291311 | O17: =IF(ABS($L$17)>oMagTol,"WARNING","OK") -> WARNING | R17: =Calculation!C10+Calculation!D10 -> 2013-01-27T00:26:50.064 | S17: =Calculation!F10 -> 3319.518635 | T17: =Calculation!$AX10 -> 11.66331491 | U17: =Calculation!$AY10 -> 0.04291706931 | W17: SG | X17: Sloan G
B18: Comparison | C18: 000-BKG-421 | D18: C5 | E18: Yes | F18: 11.697 | H18: =AVERAGE(Calculation!$BH$7:$BH$236) -> 11.5382926 | I18: =AVERAGE(Calculation!$BI$7:$BI$236) -> 0.04106976476 | J18: =STDEV(Calculation!$BH$7:$BH$236) -> 0.004369152503 | K18: =AVERAGE(Calculation!$AO$7:$AO$236) -> 0.03287177845 | L18: =$H$18-$F$18 -> -0.1587074014 | M18: =MAX(Calculation!$BH$7:$BH$236) -> 11.54755973 | N18: =MIN(Calculation!$BH$7:$BH$236) -> 11.52691675 | O18: =IF(ABS($L$18)>oMagTol,"WARNING","OK") -> WARNING | R18: =Calculation!C11+Calculation!D11 -> 2013-01-27T00:28:49.210 | S18: =Calculation!F11 -> 3319.520014 | T18: =Calculation!$AX11 -> 11.66990187 | U18: =Calculation!$AY11 -> 0.04197987397 | W18: SR | X18: Sloan R
B19: Comparison | C19: 000-BKG-167 | D19: C6 | E19: Yes | F19: 12.285 | H19: =AVERAGE(Calculation!$BJ$7:$BJ$236) -> 12.25699601 | I19: =AVERAGE(Calculation!$BK$7:$BK$236) -> 0.04111741172 | J19: =STDEV(Calculation!$BJ$7:$BJ$236) -> 0.004207470709 | K19: =AVERAGE(Calculation!$AR$7:$AR$236) -> 0.01127414728 | L19: =$H$19-$F$19 -> -0.0280039862 | M19: =MAX(Calculation!$BJ$7:$BJ$236) -> 12.270133 | N19: =MIN(Calculation!$BJ$7:$BJ$236) -> 12.24120179 | O19: =IF(ABS($L$19)>oMagTol,"WARNING","OK") -> OK | R19: =Calculation!C12+Calculation!D12 -> 2013-01-27T00:30:48.355 | S19: =Calculation!F12 -> 3319.521393 | T19: =Calculation!$AX12 -> 11.66894631 | U19: =Calculation!$AY12 -> 0.0422735804 | W19: SI | X19: Sloan I
B20: Comparison | C20: 000-BKG-168 | D20: C7 | E20: Yes | F20: 12.782 | H20: =AVERAGE(Calculation!$BL$7:$BL$236) -> 12.69630732 | I20: =AVERAGE(Calculation!$BM$7:$BM$236) -> 0.04119225838 | J20: =STDEV(Calculation!$BL$7:$BL$236) -> 0.004639316813 | K20: =AVERAGE(Calculation!$AU$7:$AU$236) -> 0.005552790295 | L20: =$H$20-$F$20 -> -0.08569268268 | M20: =MAX(Calculation!$BL$7:$BL$236) -> 12.70736214 | N20: =MIN(Calculation!$BL$7:$BL$236) -> 12.68346085 | O20: =IF(ABS($L$20)>oMagTol,"WARNING","OK") -> WARNING | R20: =Calculation!C13+Calculation!D13 -> 2013-01-27T00:32:47.587 | S20: =Calculation!F13 -> 3319.522773 | T20: =Calculation!$AX13 -> 11.66898466 | U20: =Calculation!$AY13 -> 0.04189627857 | W20: SZ | X20: Sloan Z
B21: Comparison | R21: =Calculation!C14+Calculation!D14 -> 2013-01-27T00:34:46.733 | S21: =Calculation!F14 -> 3319.524152 | T21: =Calculation!$AX14 -> 11.67910968 | U21: =Calculation!$AY14 -> 0.04126857175
B22: Comparison | R22: =Calculation!C15+Calculation!D15 -> 2013-01-27T00:36:45.878 | S22: =Calculation!F15 -> 3319.525531 | T22: =Calculation!$AX15 -> 11.67769076 | U22: =Calculation!$AY15 -> 0.04141764825
B23: Comparison | R23: =Calculation!C16+Calculation!D16 -> 2013-01-27T00:38:45.024 | S23: =Calculation!F16 -> 3319.52691 | T23: =Calculation!$AX16 -> 11.67781143 | U23: =Calculation!$AY16 -> 0.04132875331
B24: Comparison | R24: =Calculation!C17+Calculation!D17 -> 2013-01-27T00:40:44.170 | S24: =Calculation!F17 -> 3319.528289 | T24: =Calculation!$AX17 -> 11.67414718 | U24: =Calculation!$AY17 -> 0.04146868741
B25: Comparison | R25: =Calculation!C18+Calculation!D18 -> 2013-01-27T00:42:43.315 | S25: =Calculation!F18 -> 3319.529668 | T25: =Calculation!$AX18 -> 11.68021932 | U25: =Calculation!$AY18 -> 0.04128780081
B26: Comparison | R26: =Calculation!C19+Calculation!D19 -> 2013-01-27T00:44:42.547 | S26: =Calculation!F19 -> 3319.531048 | T26: =Calculation!$AX19 -> 11.67598596 | U26: =Calculation!$AY19 -> 0.04163414928
B27: Comparison | R27: =Calculation!C20+Calculation!D20 -> 2013-01-27T00:46:41.693 | S27: =Calculation!F20 -> 3319.532427 | T27: =Calculation!$AX20 -> 11.67901226 | U27: =Calculation!$AY20 -> 0.04111967775
B28: Comparison | R28: =Calculation!C21+Calculation!D21 -> 2013-01-27T00:48:40.838 | S28: =Calculation!F21 -> 3319.533806 | T28: =Calculation!$AX21 -> 11.67678198 | U28: =Calculation!$AY21 -> 0.04121372946
B29: Comparison | R29: =Calculation!C22+Calculation!D22 -> 2013-01-27T00:50:39.984 | S29: =Calculation!F22 -> 3319.535185 | T29: =Calculation!$AX22 -> 11.67810682 | U29: =Calculation!$AY22 -> 0.0416033482
B30: Comparison | R30: =Calculation!C23+Calculation!D23 -> 2013-01-27T00:52:39.130 | S30: =Calculation!F23 -> 3319.536564 | T30: =Calculation!$AX23 -> 11.6801094 | U30: =Calculation!$AY23 -> 0.0413190295
B31: Comparison | R31: =Calculation!C24+Calculation!D24 -> 2013-01-27T00:54:38.275 | S31: =Calculation!F24 -> 3319.537943 | T31: =Calculation!$AX24 -> 11.6796921 | U31: =Calculation!$AY24 -> 0.04125627852
B32: Comparison | R32: =Calculation!C25+Calculation!D25 -> 2013-01-27T00:56:37.421 | S32: =Calculation!F25 -> 3319.539322 | T32: =Calculation!$AX25 -> 11.67928578 | U32: =Calculation!$AY25 -> 0.04135601119
B33: Comparison | R33: =Calculation!C26+Calculation!D26 -> 2013-01-27T00:58:36.653 | S33: =Calculation!F26 -> 3319.540702 | T33: =Calculation!$AX26 -> 11.68328584 | U33: =Calculation!$AY26 -> 0.04127649575
B34: Comparison | R34: =Calculation!C27+Calculation!D27 -> 2013-01-27T01:00:35.798 | S34: =Calculation!F27 -> 3319.542081 | T34: =Calculation!$AX27 -> 11.6809849 | U34: =Calculation!$AY27 -> 0.04115411519
B35: Comparison | R35: =Calculation!C28+Calculation!D28 -> 2013-01-27T01:02:34.944 | S35: =Calculation!F28 -> 3319.54346 | T35: =Calculation!$AX28 -> 11.6810988 | U35: =Calculation!$AY28 -> 0.04136386364
B36: Comparison | R36: =Calculation!C29+Calculation!D29 -> 2013-01-27T01:04:34.090 | S36: =Calculation!F29 -> 3319.544839 | T36: =Calculation!$AX29 -> 11.68021113 | U36: =Calculation!$AY29 -> 0.04131149641
B37: Comparison | R37: =Calculation!C30+Calculation!D30 -> 2013-01-27T01:06:33.235 | S37: =Calculation!F30 -> 3319.546218 | T37: =Calculation!$AX30 -> 11.67793403 | U37: =Calculation!$AY30 -> 0.04139404518
B38: Comparison | R38: =Calculation!C31+Calculation!D31 -> 2013-01-27T01:08:32.381 | S38: =Calculation!F31 -> 3319.547597 | T38: =Calculation!$AX31 -> 11.67897299 | U38: =Calculation!$AY31 -> 0.04144068932
B39: Comparison | R39: =Calculation!C32+Calculation!D32 -> 2013-01-27T01:10:31.526 | S39: =Calculation!F32 -> 3319.548976 | T39: =Calculation!$AX32 -> 11.67417817 | U39: =Calculation!$AY32 -> 0.04111143101
B40: Comparison | R40: =Calculation!C33+Calculation!D33 -> 2013-01-27T01:12:30.758 | S40: =Calculation!F33 -> 3319.550356 | T40: =Calculation!$AX33 -> 11.67802208 | U40: =Calculation!$AY33 -> 0.04117772066
B41: Comparison | R41: =Calculation!C34+Calculation!D34 -> 2013-01-27T01:14:29.904 | S41: =Calculation!F34 -> 3319.551735 | T41: =Calculation!$AX34 -> 11.67626827 | U41: =Calculation!$AY34 -> 0.04137545287
B42: Comparison | R42: =Calculation!C35+Calculation!D35 -> 2013-01-27T01:16:29.050 | S42: =Calculation!F35 -> 3319.553114 | T42: =Calculation!$AX35 -> 11.67683784 | U42: =Calculation!$AY35 -> 0.04135838118
B43: Comparison | R43: =Calculation!C36+Calculation!D36 -> 2013-01-27T01:18:28.195 | S43: =Calculation!F36 -> 3319.554493 | T43: =Calculation!$AX36 -> 11.67610559 | U43: =Calculation!$AY36 -> 0.04144833723
B44: Comparison | R44: =Calculation!C37+Calculation!D37 -> 2013-01-27T01:20:27.341 | S44: =Calculation!F37 -> 3319.555872 | T44: =Calculation!$AX37 -> 11.67547845 | U44: =Calculation!$AY37 -> 0.04150525067
B45: Comparison | R45: =Calculation!C38+Calculation!D38 -> 2013-01-27T01:22:26.486 | S45: =Calculation!F38 -> 3319.557251 | T45: =Calculation!$AX38 -> 11.67896637 | U45: =Calculation!$AY38 -> 0.04123001298
B46: Comparison | R46: =Calculation!C39+Calculation!D39 -> 2013-01-27T01:24:25.632 | S46: =Calculation!F39 -> 3319.55863 | T46: =Calculation!$AX39 -> 11.67573314 | U46: =Calculation!$AY39 -> 0.04092302332
B47: Comparison | R47: =Calculation!C40+Calculation!D40 -> 2013-01-27T01:26:24.778 | S47: =Calculation!F40 -> 3319.560009 | T47: =Calculation!$AX40 -> 11.67595201 | U47: =Calculation!$AY40 -> 0.0411074365
R48: =Calculation!C41+Calculation!D41 -> 2013-01-27T01:28:24.010 | S48: =Calculation!F41 -> 3319.561389 | T48: =Calculation!$AX41 -> 11.68147712 | U48: =Calculation!$AY41 -> 0.04104535816
R49: =Calculation!C42+Calculation!D42 -> 2013-01-27T01:30:23.155 | S49: =Calculation!F42 -> 3319.562768 | T49: =Calculation!$AX42 -> 11.67373818 | U49: =Calculation!$AY42 -> 0.04120882936
R50: =Calculation!C43+Calculation!D43 -> 2013-01-27T01:32:22.301 | S50: =Calculation!F43 -> 3319.564147 | T50: =Calculation!$AX43 -> 11.67515604 | U50: =Calculation!$AY43 -> 0.04123260046
R51: =Calculation!C44+Calculation!D44 -> 2013-01-27T01:34:21.446 | S51: =Calculation!F44 -> 3319.565526 | T51: =Calculation!$AX44 -> 11.67394679 | U51: =Calculation!$AY44 -> 0.04085154503
R52: =Calculation!C45+Calculation!D45 -> 2013-01-27T01:36:20.592 | S52: =Calculation!F45 -> 3319.566905 | T52: =Calculation!$AX45 -> 11.67542644 | U52: =Calculation!$AY45 -> 0.04105983674
R53: =Calculation!C46+Calculation!D46 -> 2013-01-27T01:38:19.738 | S53: =Calculation!F46 -> 3319.568284 | T53: =Calculation!$AX46 -> 11.67276902 | U53: =Calculation!$AY46 -> 0.04123846311
R54: =Calculation!C47+Calculation!D47 -> 2013-01-27T01:40:18.883 | S54: =Calculation!F47 -> 3319.569663 | T54: =Calculation!$AX47 -> 11.67088979 | U54: =Calculation!$AY47 -> 0.04125295558
R55: =Calculation!C48+Calculation!D48 -> 2013-01-27T01:42:18.115 | S55: =Calculation!F48 -> 3319.571043 | T55: =Calculation!$AX48 -> 11.67015953 | U55: =Calculation!$AY48 -> 0.04117255315
R56: =Calculation!C49+Calculation!D49 -> 2013-01-27T01:44:17.261 | S56: =Calculation!F49 -> 3319.572422 | T56: =Calculation!$AX49 -> 11.67257687 | U56: =Calculation!$AY49 -> 0.04098814914
R57: =Calculation!C50+Calculation!D50 -> 2013-01-27T01:46:16.406 | S57: =Calculation!F50 -> 3319.573801 | T57: =Calculation!$AX50 -> 11.67408849 | U57: =Calculation!$AY50 -> 0.04116701847
R58: =Calculation!C51+Calculation!D51 -> 2013-01-27T01:48:15.552 | S58: =Calculation!F51 -> 3319.57518 | T58: =Calculation!$AX51 -> 11.67057716 | U58: =Calculation!$AY51 -> 0.04119831203
R59: =Calculation!C52+Calculation!D52 -> 2013-01-27T01:50:14.698 | S59: =Calculation!F52 -> 3319.576559 | T59: =Calculation!$AX52 -> 11.67304002 | U59: =Calculation!$AY52 -> 0.04108841378
R60: =Calculation!C53+Calculation!D53 -> 2013-01-27T01:52:13.843 | S60: =Calculation!F53 -> 3319.577938 | T60: =Calculation!$AX53 -> 11.67492612 | U60: =Calculation!$AY53 -> 0.0410244233
R61: =Calculation!C54+Calculation!D54 -> 2013-01-27T01:54:12.989 | S61: =Calculation!F54 -> 3319.579317 | T61: =Calculation!$AX54 -> 11.67514689 | U61: =Calculation!$AY54 -> 0.04108800948
R62: =Calculation!C55+Calculation!D55 -> 2013-01-27T01:56:12.221 | S62: =Calculation!F55 -> 3319.580697 | T62: =Calculation!$AX55 -> 11.67450615 | U62: =Calculation!$AY55 -> 0.04091742209
R63: =Calculation!C56+Calculation!D56 -> 2013-01-27T01:58:11.366 | S63: =Calculation!F56 -> 3319.582076 | T63: =Calculation!$AX56 -> 11.67625477 | U63: =Calculation!$AY56 -> 0.04115404278
R64: =Calculation!C57+Calculation!D57 -> 2013-01-27T02:00:10.512 | S64: =Calculation!F57 -> 3319.583455 | T64: =Calculation!$AX57 -> 11.67981147 | U64: =Calculation!$AY57 -> 0.041139505
R65: =Calculation!C58+Calculation!D58 -> 2013-01-27T02:02:09.658 | S65: =Calculation!F58 -> 3319.584834 | T65: =Calculation!$AX58 -> 11.67950518 | U65: =Calculation!$AY58 -> 0.04085735647
R66: =Calculation!C59+Calculation!D59 -> 2013-01-27T02:04:08.890 | S66: =Calculation!F59 -> 3319.586214 | T66: =Calculation!$AX59 -> 11.68216287 | U66: =Calculation!$AY59 -> 0.04115379998
R67: =Calculation!C60+Calculation!D60 -> 2013-01-27T02:06:08.035 | S67: =Calculation!F60 -> 3319.587593 | T67: =Calculation!$AX60 -> 11.68357641 | U67: =Calculation!$AY60 -> 0.04113734457
R68: =Calculation!C61+Calculation!D61 -> 2013-01-27T02:08:07.181 | S68: =Calculation!F61 -> 3319.588972 | T68: =Calculation!$AX61 -> 11.68380148 | U68: =Calculation!$AY61 -> 0.04091114027
R69: =Calculation!C62+Calculation!D62 -> 2013-01-27T02:10:06.413 | S69: =Calculation!F62 -> 3319.590352 | T69: =Calculation!$AX62 -> 11.68574247 | U69: =Calculation!$AY62 -> 0.04118998968
R70: =Calculation!C63+Calculation!D63 -> 2013-01-27T02:12:05.558 | S70: =Calculation!F63 -> 3319.591731 | T70: =Calculation!$AX63 -> 11.68351153 | U70: =Calculation!$AY63 -> 0.04121005275
R71: =Calculation!C64+Calculation!D64 -> 2013-01-27T02:14:04.704 | S71: =Calculation!F64 -> 3319.59311 | T71: =Calculation!$AX64 -> 11.68603337 | U71: =Calculation!$AY64 -> 0.04111556237
R72: =Calculation!C65+Calculation!D65 -> 2013-01-27T02:16:03.850 | S72: =Calculation!F65 -> 3319.594489 | T72: =Calculation!$AX65 -> 11.68919037 | U72: =Calculation!$AY65 -> 0.04112837606
R73: =Calculation!C66+Calculation!D66 -> 2013-01-27T02:18:02.995 | S73: =Calculation!F66 -> 3319.595868 | T73: =Calculation!$AX66 -> 11.68595095 | U73: =Calculation!$AY66 -> 0.04103722792
R74: =Calculation!C67+Calculation!D67 -> 2013-01-27T02:20:02.141 | S74: =Calculation!F67 -> 3319.597247 | T74: =Calculation!$AX67 -> 11.68721146 | U74: =Calculation!$AY67 -> 0.04105611743
R75: =Calculation!C68+Calculation!D68 -> 2013-01-27T02:22:01.286 | S75: =Calculation!F68 -> 3319.598626 | T75: =Calculation!$AX68 -> 11.69074748 | U75: =Calculation!$AY68 -> 0.04114496845
R76: =Calculation!C69+Calculation!D69 -> 2013-01-27T02:24:00.518 | S76: =Calculation!F69 -> 3319.600006 | T76: =Calculation!$AX69 -> 11.6894156 | U76: =Calculation!$AY69 -> 0.040855441
R77: =Calculation!C70+Calculation!D70 -> 2013-01-27T02:25:59.664 | S77: =Calculation!F70 -> 3319.601385 | T77: =Calculation!$AX70 -> 11.68944234 | U77: =Calculation!$AY70 -> 0.04103581649
R78: =Calculation!C71+Calculation!D71 -> 2013-01-27T02:27:58.810 | S78: =Calculation!F71 -> 3319.602764 | T78: =Calculation!$AX71 -> 11.68919847 | U78: =Calculation!$AY71 -> 0.04117340839
R79: =Calculation!C72+Calculation!D72 -> 2013-01-27T02:29:57.955 | S79: =Calculation!F72 -> 3319.604143 | T79: =Calculation!$AX72 -> 11.6906964 | U79: =Calculation!$AY72 -> 0.0410470592
R80: =Calculation!C73+Calculation!D73 -> 2013-01-27T02:31:57.101 | S80: =Calculation!F73 -> 3319.605522 | T80: =Calculation!$AX73 -> 11.68940728 | U80: =Calculation!$AY73 -> 0.04114128444
R81: =Calculation!C74+Calculation!D74 -> 2013-01-27T02:33:56.333 | S81: =Calculation!F74 -> 3319.606902 | T81: =Calculation!$AX74 -> 11.69108064 | U81: =Calculation!$AY74 -> 0.04106954792
R82: =Calculation!C75+Calculation!D75 -> 2013-01-27T02:35:55.478 | S82: =Calculation!F75 -> 3319.608281 | T82: =Calculation!$AX75 -> 11.68966693 | U82: =Calculation!$AY75 -> 0.04106944592
R83: =Calculation!C76+Calculation!D76 -> 2013-01-27T02:37:54.624 | S83: =Calculation!F76 -> 3319.60966 | T83: =Calculation!$AX76 -> 11.68707831 | U83: =Calculation!$AY76 -> 0.04115731627
R84: =Calculation!C77+Calculation!D77 -> 2013-01-27T02:39:53.770 | S84: =Calculation!F77 -> 3319.611039 | T84: =Calculation!$AX77 -> 11.69286087 | U84: =Calculation!$AY77 -> 0.04129793681
R85: =Calculation!C78+Calculation!D78 -> 2013-01-27T02:41:52.915 | S85: =Calculation!F78 -> 3319.612418 | T85: =Calculation!$AX78 -> 11.6895231 | U85: =Calculation!$AY78 -> 0.04101888647
R86: =Calculation!C79+Calculation!D79 -> 2013-01-27T02:43:52.061 | S86: =Calculation!F79 -> 3319.613797 | T86: =Calculation!$AX79 -> 11.69103796 | U86: =Calculation!$AY79 -> 0.04120033119
R87: =Calculation!C80+Calculation!D80 -> 2013-01-27T02:45:51.206 | S87: =Calculation!F80 -> 3319.615176 | T87: =Calculation!$AX80 -> 11.69643891 | U87: =Calculation!$AY80 -> 0.04148713114
R88: =Calculation!C81+Calculation!D81 -> 2013-01-27T02:47:50.352 | S88: =Calculation!F81 -> 3319.616555 | T88: =Calculation!$AX81 -> 11.69339948 | U88: =Calculation!$AY81 -> 0.04094480699
R89: =Calculation!C82+Calculation!D82 -> 2013-01-27T02:49:49.584 | S89: =Calculation!F82 -> 3319.617935 | T89: =Calculation!$AX82 -> 11.69045418 | U89: =Calculation!$AY82 -> 0.04077861973
R90: =Calculation!C83+Calculation!D83 -> 2013-01-27T02:51:48.730 | S90: =Calculation!F83 -> 3319.619314 | T90: =Calculation!$AX83 -> 11.6918045 | U90: =Calculation!$AY83 -> 0.04116036493
R91: =Calculation!C84+Calculation!D84 -> 2013-01-27T02:53:47.875 | S91: =Calculation!F84 -> 3319.620693 | T91: =Calculation!$AX84 -> 11.69161015 | U91: =Calculation!$AY84 -> 0.04096624691
R92: =Calculation!C85+Calculation!D85 -> 2013-01-27T02:55:47.021 | S92: =Calculation!F85 -> 3319.622072 | T92: =Calculation!$AX85 -> 11.69511816 | U92: =Calculation!$AY85 -> 0.04110842239
R93: =Calculation!C86+Calculation!D86 -> 2013-01-27T02:57:46.166 | S93: =Calculation!F86 -> 3319.623451 | T93: =Calculation!$AX86 -> 11.69315084 | U93: =Calculation!$AY86 -> 0.04095052274
R94: =Calculation!C87+Calculation!D87 -> 2013-01-27T02:59:45.312 | S94: =Calculation!F87 -> 3319.62483 | T94: =Calculation!$AX87 -> 11.69485697 | U94: =Calculation!$AY87 -> 0.04090896248
R95: =Calculation!C88+Calculation!D88 -> 2013-01-27T03:01:44.458 | S95: =Calculation!F88 -> 3319.626209 | T95: =Calculation!$AX88 -> 11.69479126 | U95: =Calculation!$AY88 -> 0.04121674327
R96: =Calculation!C89+Calculation!D89 -> 2013-01-27T03:03:43.690 | S96: =Calculation!F89 -> 3319.627589 | T96: =Calculation!$AX89 -> 11.69358774 | U96: =Calculation!$AY89 -> 0.04081084346
R97: =Calculation!C90+Calculation!D90 -> 2013-01-27T03:05:42.835 | S97: =Calculation!F90 -> 3319.628968 | T97: =Calculation!$AX90 -> 11.69347408 | U97: =Calculation!$AY90 -> 0.04091587107
R98: =Calculation!C91+Calculation!D91 -> 2013-01-27T03:07:41.981 | S98: =Calculation!F91 -> 3319.630347 | T98: =Calculation!$AX91 -> 11.69176969 | U98: =Calculation!$AY91 -> 0.04084164873
R99: =Calculation!C92+Calculation!D92 -> 2013-01-27T03:09:41.126 | S99: =Calculation!F92 -> 3319.631726 | T99: =Calculation!$AX92 -> 11.69269891 | U99: =Calculation!$AY92 -> 0.04113215022
R100: =Calculation!C93+Calculation!D93 -> 2013-01-27T03:11:40.272 | S100: =Calculation!F93 -> 3319.633105 | T100: =Calculation!$AX93 -> 11.69310519 | U100: =Calculation!$AY93 -> 0.04144009454
R101: =Calculation!C94+Calculation!D94 -> 2013-01-27T03:13:39.418 | S101: =Calculation!F94 -> 3319.634484 | T101: =Calculation!$AX94 -> 11.69583987 | U101: =Calculation!$AY94 -> 0.04117790811
R102: =Calculation!C95+Calculation!D95 -> 2013-01-27T03:15:38.650 | S102: =Calculation!F95 -> 3319.635864 | T102: =Calculation!$AX95 -> 11.69345726 | U102: =Calculation!$AY95 -> 0.04131518206
R103: =Calculation!C96+Calculation!D96 -> 2013-01-27T03:17:37.795 | S103: =Calculation!F96 -> 3319.637243 | T103: =Calculation!$AX96 -> 11.69947236 | U103: =Calculation!$AY96 -> 0.04102760725
R104: =Calculation!C97+Calculation!D97 -> 2013-01-27T03:19:36.941 | S104: =Calculation!F97 -> 3319.638622 | T104: =Calculation!$AX97 -> 11.69890874 | U104: =Calculation!$AY97 -> 0.04120082533
R105: =Calculation!C98+Calculation!D98 -> 2013-01-27T03:21:36.086 | S105: =Calculation!F98 -> 3319.640001 | T105: =Calculation!$AX98 -> 11.69754397 | U105: =Calculation!$AY98 -> 0.04129326038
R106: =Calculation!C99+Calculation!D99 -> 2013-01-27T03:23:35.232 | S106: =Calculation!F99 -> 3319.64138 | T106: =Calculation!$AX99 -> 11.6977863 | U106: =Calculation!$AY99 -> 0.04105214376
R107: =Calculation!C100+Calculation!D100 -> 2013-01-27T03:25:34.378 | S107: =Calculation!F100 -> 3319.642759 | T107: =Calculation!$AX100 -> 11.70130523 | U107: =Calculation!$AY100 -> 0.04088074017
R108: =Calculation!C101+Calculation!D101 -> 2013-01-27T03:27:33.523 | S108: =Calculation!F101 -> 3319.644138 | T108: =Calculation!$AX101 -> 11.69990708 | U108: =Calculation!$AY101 -> 0.04123551466
R109: =Calculation!C102+Calculation!D102 -> 2013-01-27T03:29:32.755 | S109: =Calculation!F102 -> 3319.645518 | T109: =Calculation!$AX102 -> 11.69944443 | U109: =Calculation!$AY102 -> 0.04102425796
R110: =Calculation!C103+Calculation!D103 -> 2013-01-27T03:31:31.901 | S110: =Calculation!F103 -> 3319.646897 | T110: =Calculation!$AX103 -> 11.69719829 | U110: =Calculation!$AY103 -> 0.04146717501
R111: =Calculation!C104+Calculation!D104 -> 2013-01-27T03:33:31.046 | S111: =Calculation!F104 -> 3319.648276 | T111: =Calculation!$AX104 -> 11.6944695 | U111: =Calculation!$AY104 -> 0.04226397435
R112: =Calculation!C105+Calculation!D105 -> 2013-01-27T03:35:30.192 | S112: =Calculation!F105 -> 3319.649655 | T112: =Calculation!$AX105 -> 11.69798443 | U112: =Calculation!$AY105 -> 0.0408564483
R113: =Calculation!C106+Calculation!D106 -> 2013-01-27T03:37:29.338 | S113: =Calculation!F106 -> 3319.651034 | T113: =Calculation!$AX106 -> 11.697311 | U113: =Calculation!$AY106 -> 0.04120922487
R114: =Calculation!C107+Calculation!D107 -> 2013-01-27T03:39:28.483 | S114: =Calculation!F107 -> 3319.652413 | T114: =Calculation!$AX107 -> 11.69630662 | U114: =Calculation!$AY107 -> 0.04147181726
R115: =Calculation!C108+Calculation!D108 -> 2013-01-27T03:41:27.629 | S115: =Calculation!F108 -> 3319.653792 | T115: =Calculation!$AX108 -> 11.69862479 | U115: =Calculation!$AY108 -> 0.04135463149
R116: =Calculation!C109+Calculation!D109 -> 2013-01-27T03:43:26.774 | S116: =Calculation!F109 -> 3319.655171 | T116: =Calculation!$AX109 -> 11.69919085 | U116: =Calculation!$AY109 -> 0.04133040777
R117: =Calculation!C110+Calculation!D110 -> 2013-01-27T03:45:26.006 | S117: =Calculation!F110 -> 3319.656551 | T117: =Calculation!$AX110 -> 11.6949742 | U117: =Calculation!$AY110 -> 0.04127244902
R118: =Calculation!C111+Calculation!D111 -> 2013-01-27T03:47:25.152 | S118: =Calculation!F111 -> 3319.65793 | T118: =Calculation!$AX111 -> 11.69899056 | U118: =Calculation!$AY111 -> 0.04109202396
R119: =Calculation!C112+Calculation!D112 -> 2013-01-27T03:49:24.298 | S119: =Calculation!F112 -> 3319.659309 | T119: =Calculation!$AX112 -> 11.69651234 | U119: =Calculation!$AY112 -> 0.04126107791
R120: =Calculation!C113+Calculation!D113 -> 2013-01-27T03:51:23.443 | S120: =Calculation!F113 -> 3319.660688 | T120: =Calculation!$AX113 -> 11.70135014 | U120: =Calculation!$AY113 -> 0.04121963764
R121: =Calculation!C114+Calculation!D114 -> 2013-01-27T03:53:22.589 | S121: =Calculation!F114 -> 3319.662067 | T121: =Calculation!$AX114 -> 11.70017294 | U121: =Calculation!$AY114 -> 0.04096496339
R122: =Calculation!C115+Calculation!D115 -> 2013-01-27T03:55:21.734 | S122: =Calculation!F115 -> 3319.663446 | T122: =Calculation!$AX115 -> 11.6980862 | U122: =Calculation!$AY115 -> 0.04124720883
R123: =Calculation!C116+Calculation!D116 -> 2013-01-27T03:57:20.880 | S123: =Calculation!F116 -> 3319.664825 | T123: =Calculation!$AX116 -> 11.69948035 | U123: =Calculation!$AY116 -> 0.04105300904
R124: =Calculation!C117+Calculation!D117 -> 2013-01-27T03:59:20.026 | S124: =Calculation!F117 -> 3319.666204 | T124: =Calculation!$AX117 -> 11.69681536 | U124: =Calculation!$AY117 -> 0.04056732577
R125: =Calculation!C118+Calculation!D118 -> 2013-01-27T04:01:19.258 | S125: =Calculation!F118 -> 3319.667584 | T125: =Calculation!$AX118 -> 11.69621935 | U125: =Calculation!$AY118 -> 0.04156709793
R126: =Calculation!C119+Calculation!D119 -> 2013-01-27T04:03:18.403 | S126: =Calculation!F119 -> 3319.668963 | T126: =Calculation!$AX119 -> 11.69939785 | U126: =Calculation!$AY119 -> 0.04128426117
R127: =Calculation!C120+Calculation!D120 -> 2013-01-27T04:05:17.549 | S127: =Calculation!F120 -> 3319.670342 | T127: =Calculation!$AX120 -> 11.69855166 | U127: =Calculation!$AY120 -> 0.04154471092
R128: =Calculation!C121+Calculation!D121 -> 2013-01-27T04:07:16.694 | S128: =Calculation!F121 -> 3319.671721 | T128: =Calculation!$AX121 -> 11.69660096 | U128: =Calculation!$AY121 -> 0.04110122605
R129: =Calculation!C122+Calculation!D122 -> 2013-01-27T04:09:15.840 | S129: =Calculation!F122 -> 3319.6731 | T129: =Calculation!$AX122 -> 11.69568899 | U129: =Calculation!$AY122 -> 0.04130085153
R130: =Calculation!C123+Calculation!D123 -> 2013-01-27T04:11:14.986 | S130: =Calculation!F123 -> 3319.674479 | T130: =Calculation!$AX123 -> 11.69709118 | U130: =Calculation!$AY123 -> 0.04110331488
R131: =Calculation!C124+Calculation!D124 -> 2013-01-27T04:13:14.131 | S131: =Calculation!F124 -> 3319.675858 | T131: =Calculation!$AX124 -> 11.69448771 | U131: =Calculation!$AY124 -> 0.0412075478
R132: =Calculation!C125+Calculation!D125 -> 2013-01-27T04:15:13.363 | S132: =Calculation!F125 -> 3319.677238 | T132: =Calculation!$AX125 -> 11.69848223 | U132: =Calculation!$AY125 -> 0.04113679403
R133: =Calculation!C126+Calculation!D126 -> 2013-01-27T04:17:12.509 | S133: =Calculation!F126 -> 3319.678617 | T133: =Calculation!$AX126 -> 11.69477904 | U133: =Calculation!$AY126 -> 0.0412924693
R134: =Calculation!C127+Calculation!D127 -> 2013-01-27T04:19:11.654 | S134: =Calculation!F127 -> 3319.679996 | T134: =Calculation!$AX127 -> 11.70017911 | U134: =Calculation!$AY127 -> 0.04110673381
R135: =Calculation!C128+Calculation!D128 -> 2013-01-27T04:21:10.800 | S135: =Calculation!F128 -> 3319.681375 | T135: =Calculation!$AX128 -> 11.69414069 | U135: =Calculation!$AY128 -> 0.0411837252
R136: =Calculation!C129+Calculation!D129 -> 2013-01-27T04:23:09.946 | S136: =Calculation!F129 -> 3319.682754 | T136: =Calculation!$AX129 -> 11.69582787 | U136: =Calculation!$AY129 -> 0.0410651435
R137: =Calculation!C130+Calculation!D130 -> 2013-01-27T04:25:09.091 | S137: =Calculation!F130 -> 3319.684133 | T137: =Calculation!$AX130 -> 11.6948849 | U137: =Calculation!$AY130 -> 0.04122847493
R138: =Calculation!C131+Calculation!D131 -> 2013-01-27T04:27:08.237 | S138: =Calculation!F131 -> 3319.685512 | T138: =Calculation!$AX131 -> 11.69384595 | U138: =Calculation!$AY131 -> 0.04115307468
R139: =Calculation!C132+Calculation!D132 -> 2013-01-27T04:29:07.469 | S139: =Calculation!F132 -> 3319.686892 | T139: =Calculation!$AX132 -> 11.69429047 | U139: =Calculation!$AY132 -> 0.0414719753
R140: =Calculation!C133+Calculation!D133 -> 2013-01-27T04:31:06.614 | S140: =Calculation!F133 -> 3319.688271 | T140: =Calculation!$AX133 -> 11.69417177 | U140: =Calculation!$AY133 -> 0.04117441406
R141: =Calculation!C134+Calculation!D134 -> 2013-01-27T04:33:05.760 | S141: =Calculation!F134 -> 3319.68965 | T141: =Calculation!$AX134 -> 11.68972592 | U141: =Calculation!$AY134 -> 0.04107702689
R142: =Calculation!C135+Calculation!D135 -> 2013-01-27T04:35:04.906 | S142: =Calculation!F135 -> 3319.691029 | T142: =Calculation!$AX135 -> 11.69040836 | U142: =Calculation!$AY135 -> 0.04134660564
R143: =Calculation!C136+Calculation!D136 -> 2013-01-27T04:37:04.051 | S143: =Calculation!F136 -> 3319.692408 | T143: =Calculation!$AX136 -> 11.68708073 | U143: =Calculation!$AY136 -> 0.04141489967
R144: =Calculation!C137+Calculation!D137 -> 2013-01-27T04:39:03.283 | S144: =Calculation!F137 -> 3319.693788 | T144: =Calculation!$AX137 -> 11.68503375 | U144: =Calculation!$AY137 -> 0.04133020714
R145: =Calculation!C138+Calculation!D138 -> 2013-01-27T04:41:02.429 | S145: =Calculation!F138 -> 3319.695167 | T145: =Calculation!$AX138 -> 11.68356567 | U145: =Calculation!$AY138 -> 0.04116504671
R146: =Calculation!C139+Calculation!D139 -> 2013-01-27T04:43:01.574 | S146: =Calculation!F139 -> 3319.696546 | T146: =Calculation!$AX139 -> 11.68678727 | U146: =Calculation!$AY139 -> 0.0410688798
R147: =Calculation!C140+Calculation!D140 -> 2013-01-27T04:45:00.720 | S147: =Calculation!F140 -> 3319.697925 | T147: =Calculation!$AX140 -> 11.68500814 | U147: =Calculation!$AY140 -> 0.04109620294
R148: =Calculation!C141+Calculation!D141 -> 2013-01-27T04:46:59.866 | S148: =Calculation!F141 -> 3319.699304 | T148: =Calculation!$AX141 -> 11.68344556 | U148: =Calculation!$AY141 -> 0.04136003481
R149: =Calculation!C142+Calculation!D142 -> 2013-01-27T04:48:59.011 | S149: =Calculation!F142 -> 3319.700683 | T149: =Calculation!$AX142 -> 11.6792728 | U149: =Calculation!$AY142 -> 0.04120536804
R150: =Calculation!C143+Calculation!D143 -> 2013-01-27T04:50:58.243 | S150: =Calculation!F143 -> 3319.702063 | T150: =Calculation!$AX143 -> 11.68183417 | U150: =Calculation!$AY143 -> 0.04111876727
R151: =Calculation!C144+Calculation!D144 -> 2013-01-27T04:52:57.389 | S151: =Calculation!F144 -> 3319.703442 | T151: =Calculation!$AX144 -> 11.67941478 | U151: =Calculation!$AY144 -> 0.04124427829
R152: =Calculation!C145+Calculation!D145 -> 2013-01-27T04:54:56.534 | S152: =Calculation!F145 -> 3319.704821 | T152: =Calculation!$AX145 -> 11.68205981 | U152: =Calculation!$AY145 -> 0.04142640954
R153: =Calculation!C146+Calculation!D146 -> 2013-01-27T04:56:55.680 | S153: =Calculation!F146 -> 3319.7062 | T153: =Calculation!$AX146 -> 11.68090682 | U153: =Calculation!$AY146 -> 0.04140348044
R154: =Calculation!C147+Calculation!D147 -> 2013-01-27T04:58:54.826 | S154: =Calculation!F147 -> 3319.707579 | T154: =Calculation!$AX147 -> 11.6817326 | U154: =Calculation!$AY147 -> 0.04071988185
R155: =Calculation!C148+Calculation!D148 -> 2013-01-27T05:00:53.971 | S155: =Calculation!F148 -> 3319.708958 | T155: =Calculation!$AX148 -> 11.68533219 | U155: =Calculation!$AY148 -> 0.04132860209
R156: =Calculation!C149+Calculation!D149 -> 2013-01-27T05:02:53.117 | S156: =Calculation!F149 -> 3319.710337 | T156: =Calculation!$AX149 -> 11.6806685 | U156: =Calculation!$AY149 -> 0.04129227885
R157: =Calculation!C150+Calculation!D150 -> 2013-01-27T05:04:52.349 | S157: =Calculation!F150 -> 3319.711717 | T157: =Calculation!$AX150 -> 11.68121351 | U157: =Calculation!$AY150 -> 0.04079713865
R158: =Calculation!C151+Calculation!D151 -> 2013-01-27T05:06:51.494 | S158: =Calculation!F151 -> 3319.713096 | T158: =Calculation!$AX151 -> 11.68354116 | U158: =Calculation!$AY151 -> 0.04096115164
R159: =Calculation!C152+Calculation!D152 -> 2013-01-27T05:08:50.640 | S159: =Calculation!F152 -> 3319.714475 | T159: =Calculation!$AX152 -> 11.67972514 | U159: =Calculation!$AY152 -> 0.041297247
R160: =Calculation!C153+Calculation!D153 -> 2013-01-27T05:10:49.786 | S160: =Calculation!F153 -> 3319.715854 | T160: =Calculation!$AX153 -> 11.68101713 | U160: =Calculation!$AY153 -> 0.04112652263
R161: =Calculation!C154+Calculation!D154 -> 2013-01-27T05:12:48.931 | S161: =Calculation!F154 -> 3319.717233 | T161: =Calculation!$AX154 -> 11.67792195 | U161: =Calculation!$AY154 -> 0.04070340965
R162: =Calculation!C155+Calculation!D155 -> 2013-01-27T05:14:48.077 | S162: =Calculation!F155 -> 3319.718612 | T162: =Calculation!$AX155 -> 11.67912058 | U162: =Calculation!$AY155 -> 0.04095809455
R163: =Calculation!C156+Calculation!D156 -> 2013-01-27T05:16:47.309 | S163: =Calculation!F156 -> 3319.719992 | T163: =Calculation!$AX156 -> 11.68067577 | U163: =Calculation!$AY156 -> 0.04068704
R164: =Calculation!C157+Calculation!D157 -> 2013-01-27T05:18:46.454 | S164: =Calculation!F157 -> 3319.721371 | T164: =Calculation!$AX157 -> 11.67891526 | U164: =Calculation!$AY157 -> 0.04075990487
R165: =Calculation!C158+Calculation!D158 -> 2013-01-27T05:20:45.600 | S165: =Calculation!F158 -> 3319.72275 | T165: =Calculation!$AX158 -> 11.67936456 | U165: =Calculation!$AY158 -> 0.04068417686
R166: =Calculation!C159+Calculation!D159 -> 2013-01-27T05:22:44.746 | S166: =Calculation!F159 -> 3319.724129 | T166: =Calculation!$AX159 -> 11.67946643 | U166: =Calculation!$AY159 -> 0.04112856159
R167: =Calculation!C160+Calculation!D160 -> 2013-01-27T05:24:43.891 | S167: =Calculation!F160 -> 3319.725508 | T167: =Calculation!$AX160 -> 11.67756762 | U167: =Calculation!$AY160 -> 0.04097348754
R168: =Calculation!C161+Calculation!D161 -> 2013-01-27T05:26:43.037 | S168: =Calculation!F161 -> 3319.726887 | T168: =Calculation!$AX161 -> 11.68272867 | U168: =Calculation!$AY161 -> 0.04085553067
R169: =Calculation!C162+Calculation!D162 -> 2013-01-27T05:28:42.182 | S169: =Calculation!F162 -> 3319.728266 | T169: =Calculation!$AX162 -> 11.67672174 | U169: =Calculation!$AY162 -> 0.04069358352
R170: =Calculation!C163+Calculation!D163 -> 2013-01-27T05:30:41.328 | S170: =Calculation!F163 -> 3319.729645 | T170: =Calculation!$AX163 -> 11.6817628 | U170: =Calculation!$AY163 -> 0.04073856902
R171: =Calculation!C164+Calculation!D164 -> 2013-01-27T05:32:40.474 | S171: =Calculation!F164 -> 3319.731024 | T171: =Calculation!$AX164 -> 11.68007749 | U171: =Calculation!$AY164 -> 0.0405892992
R172: =Calculation!C165+Calculation!D165 -> 2013-01-27T05:34:39.706 | S172: =Calculation!F165 -> 3319.732404 | T172: =Calculation!$AX165 -> 11.67677836 | U172: =Calculation!$AY165 -> 0.04086488411
R173: =Calculation!C166+Calculation!D166 -> 2013-01-27T05:36:38.851 | S173: =Calculation!F166 -> 3319.733783 | T173: =Calculation!$AX166 -> 11.67655744 | U173: =Calculation!$AY166 -> 0.04067508311
R174: =Calculation!C167+Calculation!D167 -> 2013-01-27T05:38:37.997 | S174: =Calculation!F167 -> 3319.735162 | T174: =Calculation!$AX167 -> 11.67911431 | U174: =Calculation!$AY167 -> 0.04110160228
R175: =Calculation!C168+Calculation!D168 -> 2013-01-27T05:40:37.142 | S175: =Calculation!F168 -> 3319.736541 | T175: =Calculation!$AX168 -> 11.67643703 | U175: =Calculation!$AY168 -> 0.04065993654
R176: =Calculation!C169+Calculation!D169 -> 2013-01-27T05:42:36.288 | S176: =Calculation!F169 -> 3319.73792 | T176: =Calculation!$AX169 -> 11.67673574 | U176: =Calculation!$AY169 -> 0.04094966425
R177: =Calculation!C170+Calculation!D170 -> 2013-01-27T05:44:35.434 | S177: =Calculation!F170 -> 3319.739299 | T177: =Calculation!$AX170 -> 11.67708598 | U177: =Calculation!$AY170 -> 0.04083238224
R178: =Calculation!C171+Calculation!D171 -> 2013-01-27T05:46:34.579 | S178: =Calculation!F171 -> 3319.740678 | T178: =Calculation!$AX171 -> 11.67750514 | U178: =Calculation!$AY171 -> 0.04020582932
R179: =Calculation!C172+Calculation!D172 -> 2013-01-27T05:48:33.725 | S179: =Calculation!F172 -> 3319.742057 | T179: =Calculation!$AX172 -> 11.6779201 | U179: =Calculation!$AY172 -> 0.04049048086
R180: =Calculation!C173+Calculation!D173 -> 2013-01-27T05:50:32.957 | S180: =Calculation!F173 -> 3319.743437 | T180: =Calculation!$AX173 -> 11.6799848 | U180: =Calculation!$AY173 -> 0.04054619398
R181: =Calculation!C174+Calculation!D174 -> 2013-01-27T05:52:32.102 | S181: =Calculation!F174 -> 3319.744816 | T181: =Calculation!$AX174 -> 11.67745588 | U181: =Calculation!$AY174 -> 0.04074587886
R182: =Calculation!C175+Calculation!D175 -> 2013-01-27T05:54:31.248 | S182: =Calculation!F175 -> 3319.746195 | T182: =Calculation!$AX175 -> 11.67578373 | U182: =Calculation!$AY175 -> 0.04058314393
R183: =Calculation!C176+Calculation!D176 -> 2013-01-27T05:56:30.394 | S183: =Calculation!F176 -> 3319.747574 | T183: =Calculation!$AX176 -> 11.67948143 | U183: =Calculation!$AY176 -> 0.04071046032
R184: =Calculation!C177+Calculation!D177 -> 2013-01-27T05:58:29.626 | S184: =Calculation!F177 -> 3319.748954 | T184: =Calculation!$AX177 -> 11.68161826 | U184: =Calculation!$AY177 -> 0.04056123231
R185: =Calculation!C178+Calculation!D178 -> 2013-01-27T06:00:28.771 | S185: =Calculation!F178 -> 3319.750333 | T185: =Calculation!$AX178 -> 11.67754306 | U185: =Calculation!$AY178 -> 0.04068554003
R186: =Calculation!C179+Calculation!D179 -> 2013-01-27T06:02:27.917 | S186: =Calculation!F179 -> 3319.751712 | T186: =Calculation!$AX179 -> 11.67550342 | U186: =Calculation!$AY179 -> 0.04095456428
R187: =Calculation!C180+Calculation!D180 -> 2013-01-27T06:04:27.062 | S187: =Calculation!F180 -> 3319.753091 | T187: =Calculation!$AX180 -> 11.67738559 | U187: =Calculation!$AY180 -> 0.04073679718
R188: =Calculation!C181+Calculation!D181 -> 2013-01-27T06:06:26.208 | S188: =Calculation!F181 -> 3319.75447 | T188: =Calculation!$AX181 -> 11.67751662 | U188: =Calculation!$AY181 -> 0.04107060773
R189: =Calculation!C182+Calculation!D182 -> 2013-01-27T06:08:25.354 | S189: =Calculation!F182 -> 3319.755849 | T189: =Calculation!$AX182 -> 11.68075755 | U189: =Calculation!$AY182 -> 0.04078594734
R190: =Calculation!C183+Calculation!D183 -> 2013-01-27T06:10:24.586 | S190: =Calculation!F183 -> 3319.757229 | T190: =Calculation!$AX183 -> 11.67805988 | U190: =Calculation!$AY183 -> 0.04074521735
R191: =Calculation!C184+Calculation!D184 -> 2013-01-27T06:12:23.731 | S191: =Calculation!F184 -> 3319.758608 | T191: =Calculation!$AX184 -> 11.68016926 | U191: =Calculation!$AY184 -> 0.04065619671
R192: =Calculation!C185+Calculation!D185 -> 2013-01-27T06:14:22.877 | S192: =Calculation!F185 -> 3319.759987 | T192: =Calculation!$AX185 -> 11.6784569 | U192: =Calculation!$AY185 -> 0.04057315355
R193: =Calculation!C186+Calculation!D186 -> 2013-01-27T06:16:22.022 | S193: =Calculation!F186 -> 3319.761366 | T193: =Calculation!$AX186 -> 11.67602291 | U193: =Calculation!$AY186 -> 0.04089099528
R194: =Calculation!C187+Calculation!D187 -> 2013-01-27T06:18:21.168 | S194: =Calculation!F187 -> 3319.762745 | T194: =Calculation!$AX187 -> 11.68246718 | U194: =Calculation!$AY187 -> 0.04073776864
R195: =Calculation!C188+Calculation!D188 -> 2013-01-27T06:20:20.314 | S195: =Calculation!F188 -> 3319.764124 | T195: =Calculation!$AX188 -> 11.67933046 | U195: =Calculation!$AY188 -> 0.04078133814
R196: =Calculation!C189+Calculation!D189 -> 2013-01-27T06:22:19.546 | S196: =Calculation!F189 -> 3319.765504 | T196: =Calculation!$AX189 -> 11.67755286 | U196: =Calculation!$AY189 -> 0.04096819814
R197: =Calculation!C190+Calculation!D190 -> 2013-01-27T06:24:18.691 | S197: =Calculation!F190 -> 3319.766883 | T197: =Calculation!$AX190 -> 11.68125891 | U197: =Calculation!$AY190 -> 0.04023828558
R198: =Calculation!C191+Calculation!D191 -> 2013-01-27T06:26:17.837 | S198: =Calculation!F191 -> 3319.768262 | T198: =Calculation!$AX191 -> 11.68316593 | U198: =Calculation!$AY191 -> 0.04073771621
R199: =Calculation!C192+Calculation!D192 -> 2013-01-27T06:28:16.982 | S199: =Calculation!F192 -> 3319.769641 | T199: =Calculation!$AX192 -> 11.67878954 | U199: =Calculation!$AY192 -> 0.04092177455
R200: =Calculation!C193+Calculation!D193 -> 2013-01-27T06:30:16.128 | S200: =Calculation!F193 -> 3319.77102 | T200: =Calculation!$AX193 -> 11.67690734 | U200: =Calculation!$AY193 -> 0.04033688217
... 43 more rows

Sheet Calculation
B1: Image Data | X1: Intermediate Calculations | AV1: Zero Point Calculations | AX1: Final Derived Calculations | BN1: Block Average Calculations
AA2: Include | AB2: =IF(OR(Results!$E$14="Yes",Results!$E$14="Check"),1,0) -> 1 | AD2: Include | AE2: =IF(OR(Results!$E$15="Yes",Results!$E$15="Check"),1,0) -> 1 | AG2: Include | AH2: =IF(OR(Results!$E$16="Yes",Results!$E$16="Check"),1,0) -> 1 | AJ2: Include | AK2: =IF(OR(Results!$E$17="Yes",Results!$E$17="Check"),1,0) -> 1 | AM2: Include | AN2: =IF(OR(Results!$E$18="Yes",Results!$E$18="Check"),1,0) -> 1 | AP2: Include | AQ2: =IF(OR(Results!$E$19="Yes",Results!$E$19="Check"),1,0) -> 1 | AS2: Include | AT2: =IF(OR(Results!$E$20="Yes",Results!$E$20="Check"),1,0) -> 1 | AV2: Comparisons | AW2: =SUM($X$2:$AU$2) -> 7
G3: Exposure | H3: Var | J3: C1 | L3: C2 | N3: C3 | P3: C4 | R3: C5 | T3: C6 | V3: C7 | X3: Var | AA3: C1 | AD3: C2 | AG3: C3 | AJ3: C4 | AM3: C5 | AP3: C6 | AS3: C7 | AX3: Var | AZ3: C1 | BB3: C2 | BD3: C3 | BF3: C4 | BH3: C5 | BJ3: C6 | BL3: C7 | BN3: Var
B4: Image Name | C4: Date | D4: Time | E4: Julian Date | F4: ="JD-"&oJDOffset -> JD-2453000 | G4: Length | H4: InstMag | I4: Error | J4: InstMag | K4: Error | L4: InstMag | M4: Error | N4: InstMag | O4: Error | P4: InstMag | Q4: Error | R4: InstMag | S4: Error | T4: InstMag | U4: Error | V4: InstMag | W4: Error | X4: Magnitude | Y4: 1/SumSqErr | Z4: Weight | AA4: Magnitude | AB4: 1/SumSqErr | AC4: Weight | AD4: Magnitude | AE4: 1/SumSqErr | AF4: Weight | AG4: Magnitude | AH4: 1/SumSqErr | AI4: Weight | AJ4: Magnitude | AK4: 1/SumSqErr | AL4: Weight | AM4: Magnitude | AN4: 1/SumSqErr | AO4: Weight | AP4: Magnitude | AQ4: 1/SumSqErr | AR4: Weight | AS4: Magnitude | AT4: 1/SumSqErr | AU4: Weight | AV4: Wt Mean ZP Mag | AW4: Wt ZP Std Err | AX4: Magnitude | AY4: Error | AZ4: Magnitude | BA4: Error | BB4: Magnitude | BC4: Error | BD4: Magnitude | BE4: Error | BF4: Magnitude | BG4: Error | BH4: Magnitude | BI4: Error | BJ4: Magnitude | BK4: Error | BL4: Magnitude | BM4: Error | BN4: Julian Date | BO4: Magnitude | BP4: Error
A5: Mean | B5: =IF(ISERROR(AVERAGE(B7:B236)),"Not Calc",AVERAGE(B7:B236)) -> Not Calc | C5: 2013-01-27 | D5: 04:08:16.295 | E5: 2456319.672 | F5: 3319.672411 | G5: 100 | H5: -10.13125511 | I5: 0.001556649994 | J5: -12.25846828 | K5: 0.0004052661237 | L5: -12.07539208 | M5: 0.0004480062817 | N5: -11.35040762 | O5: 0.0006832419677 | P5: -11.02339847 | Q5: 0.0008407371641 | R5: -10.27589956 | S5: 0.001412152523 | T5: -9.557196142 | U5: 0.00241844918 | V5: -9.117884838 | W5: 0.003450872073 | X5: Not Calc | Y5: Not Calc | Z5: 0 | AA5: 21.71046828 | AB5: 6132622.977 | AC5: 0.3952829702 | AD5: 21.82239208 | AE5: 5019907.267 | AF5: 0.3234802186 | AG5: 21.91840762 | AH5: =IF(ISERROR(AVERAGE(AH7:AH236)),"Not Calc",AVERAGE(AH7:AH236)) -> 2170191.855 | AI5: 0.1393631041 | AJ5: 22.00739847 | AK5: 1437534.452 | AL5: 0.09217499107 | AM5: 21.97289956 | AN5: 514792.5951 | AO5: 0.03287177845 | AP5: 21.84219614 | AQ5: 177102.8164 | AR5: 0.01127414728 | AS5: 21.89988484 | AT5: 87322.61344 | AU5: 0.005552790295 | AV5: 21.81419216 | AW5: 0.04104522241 | AX5: 11.68293704 | AY5: 0.04107503831 | AZ5: 9.555723878 | BA5: 0.04104722945 | BB5: 9.738800079 | BC5: 0.04104767541 | BD5: 10.46378453 | BE5: 0.0410509401 | BF5: 10.79079368 | BG5: 0.04105388956 | BH5: 11.5382926 | BI5: 0.04106976476 | BJ5: 12.25699601 | BK5: 0.04111741172 | BL5: 12.69630732 | BM5: 0.04119225838 | BN5: Not Calc | BO5: Not Calc | BP5: Not Calc
A6: StDev | B6: =IF(ISERROR(STDEV(B7:B236)),"Not Calc",STDEV(B7:B236)) -> Not Calc | C6: 00:00:00 | D6: 02:12:08.773 | E6: 0.09176820185 | F6: 0.09176820185 | G6: 0 | H6: 0.06416626186 | I6: 0.0001498543949 | J6: 0.06720679461 | K6: 2.05030883e-05 | L6: 0.06430080786 | M6: 2.317256815e-05 | N6: 0.06873609111 | O6: 4.673431728e-05 | P6: 0.06650344626 | Q6: 6.374524319e-05 | R6: 0.06421536266 | S6: 0.00013694484 | T6: 0.06780980598 | U6: 0.0002731578732 | V6: 0.06638049754 | W6: 0.0004094699457 | X6: Not Calc | Y6: Not Calc | Z6: 0 | AA6: 0.06720679461 | AB6: 580891.4208 | AC6: 0.00645796685 | AD6: 0.06430080786 | AE6: 485534.5976 | AF6: 0.004247182242 | AG6: 0.06873609111 | AH6: =IF(ISERROR(STDEV(AH7:AH236)),"Not Calc",STDEV(AH7:AH236)) -> 274401.9943 | AI6: 0.002821337382 | AJ6: 0.06650344626 | AK6: 201514.2958 | AL6: 0.003307576493 | AM6: 0.06421536266 | AN6: 92787.6848 | AO6: 0.002647665599 | AP6: 0.06780980598 | AQ6: 36785.25101 | AR6: 0.001231301944 | AS6: 0.06638049754 | AT6: 19184.976 | AU6: 0.0006795245696 | AV6: 0.06784267814 | AW6: 0.0003970300141 | AX6: 0.008774845415 | AY6: 0.0003932535546 | AZ6: 0.001698331627 | BA6: 0.0003968989483 | BB6: 0.004287340992 | BC6: 0.0003968653661 | BD6: 0.003128670074 | BE6: 0.0003965150445 | BF6: 0.002551225116 | BG6: 0.0003961680768 | BH6: 0.004369152503 | BI6: 0.0003939214333 | BJ6: 0.004207470709 | BK6: 0.0003866789476 | BL6: 0.004639316813 | BM6: 0.0003756968651 | BN6: =IF(ISERROR(STDEV(BN7:BN236)),"Not Calc",STDEV(BN7:BN236)) -> Not Calc | BO6: Not Calc | BP6: Not Calc
B7: WASP-12b_00040_bdf.fits | C7: 2013-01-27 | D7: 00:20:52.627 | E7: 2456319.514 | F7: =E7-oJDOffset -> 3319.514498 | G7: 100 | H7: -10.17145239 | I7: 0.001446734349 | J7: -12.27596243 | K7: 0.0003955584332 | L7: -12.08571382 | M7: 0.0004378997197 | N7: -11.38338928 | O7: 0.000652635263 | P7: -11.04696933 | Q7: 0.0008030943262 | R7: -10.3005741 | S7: 0.001317502991 | T7: -9.59338904 | U7: 0.002229292817 | V7: -9.151129982 | W7: 0.003161406956 | X7: Blank | Y7: Blank | Z7: 0 | AA7: =(Results!$F$14-$J7)*$AB$2 -> 21.72796243 | AB7: =(1/SUMSQ(Results!$G$14,$K7))*$AB$2 -> 6391145.488 | AC7: =$AB7/SUM($AB7,$AE7,$AH7,$AK7,$AN7,$AQ7,$AT7) -> 0.3901382916 | AD7: =(Results!$F$15-$L7)*$AE$2 -> 21.83271382 | AE7: =(1/SUMSQ(Results!$G$15,$M7))*$AE$2 -> 5214956.205 | AF7: =$AE7/SUM($AB7,$AE7,$AH7,$AK7,$AN7,$AQ7,$AT7) -> 0.3183395071 | AG7: =(Results!$F$16-$N7)*$AH$2 -> 21.95138928 | AH7: =(1/SUMSQ(Results!$G$16,$O7))*$AH$2 -> 2347788.27 | AI7: =$AH7/SUM($AB7,$AE7,$AH7,$AK7,$AN7,$AQ7,$AT7) -> 0.143317361 | AJ7: =(Results!$F$17-$P7)*$AK$2 -> 22.03096933 | AK7: =(1/SUMSQ(Results!$G$17,$Q7))*$AK$2 -> 1550482.557 | AL7: =$AK7/SUM($AB7,$AE7,$AH7,$AK7,$AN7,$AQ7,$AT7) -> 0.09464697948 | AM7: =(Results!$F$18-$R7)*$AN$2 -> 21.9975741 | AN7: =(1/SUMSQ(Results!$G$18,$S7))*$AN$2 -> 576098.5472 | AO7: =$AN7/SUM($AB7,$AE7,$AH7,$AK7,$AN7,$AQ7,$AT7) -> 0.03516710791 | AP7: =(Results!$F$19-$T7)*$AQ$2 -> 21.87838904 | AQ7: =(1/SUMSQ(Results!$G$19,$U7))*$AQ$2 -> 201217.5082 | AR7: =$AQ7/SUM($AB7,$AE7,$AH7,$AK7,$AN7,$AQ7,$AT7) -> 0.01228303362 | AS7: =(Results!$F$20-$V7)*$AT$2 -> 21.93312998 | AT7: =(1/SUMSQ(Results!$G$20,$W7))*$AT$2 -> 100055.0909 | AU7: =$AT7/SUM($AB7,$AE7,$AH7,$AK7,$AN7,$AQ7,$AT7) -> 0.006107719238 | AV7: =SUM($AA7*$AC7,$AD7*$AF7,$AG7*$AI7,$AJ7*$AL7,$AM7*$AO7,$AP7*$AR7,$AS7*$AU7) -> 21.83459083 | AW7: =IF($AW$2>1,SQRT(SUM((($AA7-$AV7)^2)*$AC7,(($AD7-$AV7)^2)*$AF7,(($AG7-$AV7)^2)*$AI7,(($AJ7-$AV7)^2)*$AL7,(($AM7-$AV7)^2)*$AO7,(($AP7-$AV7)^2)*$AR7,(($AS7-$AV7)^2)*$AU7)/(IF($AW$2=1,1,$AW$2-1))),1/SQRT(SUM($AB7,$AE7,$AH7,$AK7,$AN7,$AQ7,$AT7))) -> 0.04293213236 | AX7: =$H7+$AV7 -> 11.66313845 | AY7: =SQRT(SUMSQ($I7,$AW7)) -> 0.0429565016 | AZ7: =$J7+$AV7 -> 9.558628402 | BA7: =SQRT(SUMSQ($K7,$AW7)) -> 0.04293395458 | BB7: =$L7+$AV7 -> 9.748877018 | BC7: =SQRT(SUMSQ($M7,$AW7)) -> 0.04293436555 | BD7: =$N7+$AV7 -> 10.45120155 | BE7: =SQRT(SUMSQ($O7,$AW7)) -> 0.04293709261 | BF7: =$P7+$AV7 -> 10.7876215 | BG7: =SQRT(SUMSQ($Q7,$AW7)) -> 0.0429396431 | BH7: =$R7+$AV7 -> 11.53401673 | BI7: =SQRT(SUMSQ($S7,$AW7)) -> 0.0429523434 | BJ7: =$T7+$AV7 -> 12.24120179 | BK7: =SQRT(SUMSQ($U7,$AW7)) -> 0.0429899725 | BL7: =$V7+$AV7 -> 12.68346085 | BM7: =SQRT(SUMSQ($W7,$AW7)) -> 0.04304837376 | BN7: =IF(MOD(ROW($BN7)-7,oBlockAvg)=0,AVERAGE(INDIRECT(ADDRESS((INT((ROW($BN7)-7)/oBlockAvg)*oBlockAvg)+7,COLUMN(Calculation!JDGraph))&":"&ADDRESS(((INT((ROW($BN7)-7)/oBlockAvg)+1)*oBlockAvg)+6,COLUMN(Calculation!JDGraph)))),#N/A) -> 3319.517256 | BO7: =IF(MOD(ROW($BO7)-7,oBlockAvg)=0,AVERAGE(INDIRECT(ADDRESS((INT((ROW($BO7)-7)/oBlockAvg)*oBlockAvg)+7,50)&":"&ADDRESS(((INT((ROW($BO7)-7)/oBlockAvg)+1)*oBlockAvg)+6,50))),#N/A) -> 11.66584972 | BP7: =IF(MOD(ROW($BP7)-7,oBlockAvg)=0,STDEV(INDIRECT(ADDRESS((INT((ROW($BP7)-7)/oBlockAvg)*oBlockAvg)+7,50)&":"&ADDRESS(((INT((ROW($BP7)-7)/oBlockAvg)+1)*oBlockAvg)+6,50)))/SQRT(COUNT(INDIRECT(ADDRESS((INT((ROW($BP7)-7)/oBlockAvg)*oBlockAvg)+7,50)&":"&ADDRESS(((INT((ROW($BP7)-7)/oBlockAvg)+1)*oBlockAvg)+6,50)))),#N/A) -> 0.001404359113
B8: WASP-12b_00041_bdf.fits | C8: 2013-01-27 | D8: 00:22:51.773 | E8: 2456319.516 | F8: 3319.515877 | G8: 100 | H8: -10.15781286 | I8: 0.001456674486 | J8: -12.26843353 | K8: 0.0003971051142 | L8: -12.07994271 | M8: 0.000439500898 | N8: -11.37152136 | O8: 0.0006574833161 | P8: -11.0371985 | Q8: 0.0008065820824 | R8: -10.28951347 | S8: 0.001327537086 | T8: -9.577417435 | U8: 0.002246960914 | V8: -9.13468146 | W8: 0.003190831734 | X8: Blank | Y8: Blank | Z8: 0 | AA8: =(Results!$F$14-$J8)*$AB$2 -> 21.72043353 | AB8: =(1/SUMSQ(Results!$G$14,$K8))*$AB$2 -> 6341456.819 | AC8: =$AB8/SUM($AB8,$AE8,$AH8,$AK8,$AN8,$AQ8,$AT8) -> 0.3906621492 | AD8: =(Results!$F$15-$L8)*$AE$2 -> 21.82694271 | AE8: =(1/SUMSQ(Results!$G$15,$M8))*$AE$2 -> 5177027.435 | AF8: =$AE8/SUM($AB8,$AE8,$AH8,$AK8,$AN8,$AQ8,$AT8) -> 0.3189280826 | AG8: =(Results!$F$16-$N8)*$AH$2 -> 21.93952136 | AH8: =(1/SUMSQ(Results!$G$16,$O8))*$AH$2 -> 2313292.374 | AI8: =$AH8/SUM($AB8,$AE8,$AH8,$AK8,$AN8,$AQ8,$AT8) -> 0.1425091736 | AJ8: =(Results!$F$17-$P8)*$AK$2 -> 22.0211985 | AK8: =(1/SUMSQ(Results!$G$17,$Q8))*$AK$2 -> 1537102.608 | AL8: =$AK8/SUM($AB8,$AE8,$AH8,$AK8,$AN8,$AQ8,$AT8) -> 0.09469240673 | AM8: =(Results!$F$18-$R8)*$AN$2 -> 21.98651347 | AN8: =(1/SUMSQ(Results!$G$18,$S8))*$AN$2 -> 567422.6602 | AO8: =$AN8/SUM($AB8,$AE8,$AH8,$AK8,$AN8,$AQ8,$AT8) -> 0.03495577787 | AP8: =(Results!$F$19-$T8)*$AQ$2 -> 21.86241743 | AQ8: =(1/SUMSQ(Results!$G$19,$U8))*$AQ$2 -> 198065.5591 | AR8: =$AQ8/SUM($AB8,$AE8,$AH8,$AK8,$AN8,$AQ8,$AT8) -> 0.01220172576 | AS8: =(Results!$F$20-$V8)*$AT$2 -> 21.91668146 | AT8: =(1/SUMSQ(Results!$G$20,$W8))*$AT$2 -> 98218.25063 | AU8: =$AT8/SUM($AB8,$AE8,$AH8,$AK8,$AN8,$AQ8,$AT8) -> 0.006050684248 | AV8: =SUM($AA8*$AC8,$AD8*$AF8,$AG8*$AI8,$AJ8*$AL8,$AM8*$AO8,$AP8*$AR8,$AS8*$AU8) -> 21.8263254 | AW8: =IF($AW$2>1,SQRT(SUM((($AA8-$AV8)^2)*$AC8,(($AD8-$AV8)^2)*$AF8,(($AG8-$AV8)^2)*$AI8,(($AJ8-$AV8)^2)*$AL8,(($AM8-$AV8)^2)*$AO8,(($AP8-$AV8)^2)*$AR8,(($AS8-$AV8)^2)*$AU8)/(IF($AW$2=1,1,$AW$2-1))),1/SQRT(SUM($AB8,$AE8,$AH8,$AK8,$AN8,$AQ8,$AT8))) -> 0.04235746089 | AX8: =$H8+$AV8 -> 11.66851254 | AY8: =SQRT(SUMSQ($I8,$AW8)) -> 0.04238250103 | AZ8: =$J8+$AV8 -> 9.557891864 | BA8: =SQRT(SUMSQ($K8,$AW8)) -> 0.0423593223 | BB8: =$L8+$AV8 -> 9.74638269 | BC8: =SQRT(SUMSQ($M8,$AW8)) -> 0.04235974096 | BD8: =$N8+$AV8 -> 10.45480404 | BE8: =SQRT(SUMSQ($O8,$AW8)) -> 0.0423625634 | BF8: =$P8+$AV8 -> 10.7891269 | BG8: =SQRT(SUMSQ($Q8,$AW8)) -> 0.04236513977 | BH8: =$R8+$AV8 -> 11.53681193 | BI8: =SQRT(SUMSQ($S8,$AW8)) -> 0.04237825914 | BJ8: =$T8+$AV8 -> 12.24890796 | BK8: =SQRT(SUMSQ($U8,$AW8)) -> 0.04241701695 | BL8: =$V8+$AV8 -> 12.69164394 | BM8: =SQRT(SUMSQ($W8,$AW8)) -> 0.04247747521 | BN8: =IF(MOD(ROW($BN8)-7,oBlockAvg)=0,AVERAGE(INDIRECT(ADDRESS((INT((ROW($BN8)-7)/oBlockAvg)*oBlockAvg)+7,COLUMN(Calculation!JDGraph))&":"&ADDRESS(((INT((ROW($BN8)-7)/oBlockAvg)+1)*oBlockAvg)+6,COLUMN(Calculation!JDGraph)))),#N/A) -> 
B9: WASP-12b_00042_bdf.fits | C9: 2013-01-27 | D9: 00:24:50.918 | E9: 2456319.517 | F9: 3319.517256 | G9: 100 | H9: -10.17763075 | I9: 0.001429220435 | J9: -12.28191277 | K9: 0.0003940002616 | L9: -12.09480687 | M9: 0.0004352693858 | N9: -11.3886037 | O9: 0.0006487317938 | P9: -11.05538062 | Q9: 0.0007950726004 | R9: -10.3071228 | S9: 0.001305624145 | T9: -9.596880385 | U9: 0.002204964002 | V9: -9.15406797 | W9: 0.003126423954 | X9: Blank | Y9: Blank | Z9: 0 | AA9: =(Results!$F$14-$J9)*$AB$2 -> 21.73391277 | AB9: =(1/SUMSQ(Results!$G$14,$K9))*$AB$2 -> 6441796.183 | AC9: 0.3887005959 | AD9: =(Results!$F$15-$L9)*$AE$2 -> 21.84180687 | AE9: =(1/SUMSQ(Results!$G$15,$M9))*$AE$2 -> 5278174.63 | AF9: 0.3184871991 | AG9: =(Results!$F$16-$N9)*$AH$2 -> 21.9566037 | AH9: =(1/SUMSQ(Results!$G$16,$O9))*$AH$2 -> 2376126.918 | AI9: 0.1433764625 | AJ9: =(Results!$F$17-$P9)*$AK$2 -> 22.03938062 | AK9: =(1/SUMSQ(Results!$G$17,$Q9))*$AK$2 -> 1581926.953 | AL9: 0.09545411433 | AM9: =(Results!$F$18-$R9)*$AN$2 -> 22.0041228 | AN9: =(1/SUMSQ(Results!$G$18,$S9))*$AN$2 -> 586629.1699 | AO9: 0.03539744218 | AP9: =(Results!$F$19-$T9)*$AQ$2 -> 21.88188039 | AQ9: =(1/SUMSQ(Results!$G$19,$U9))*$AQ$2 -> 205682.3345 | AR9: 0.01241095553 | AS9: =(Results!$F$20-$V9)*$AT$2 -> 21.93606797 | AT9: =(1/SUMSQ(Results!$G$20,$W9))*$AT$2 -> 102306.7435 | AU9: 0.006173230419 | AV9: 21.84201157 | AW9: 0.04310413931 | AX9: 11.66438082 | AY9: 0.0431278274 | AZ9: 9.560098804 | BA9: 0.04310593998 | BB9: 9.747204705 | BC9: 0.04310633695 | BD9: 10.45340788 | BE9: 0.04310902085 | BF9: 10.78663096 | BG9: 0.0431114714 | BH9: 11.53488877 | BI9: 0.04312390845 | BJ9: 12.24513119 | BK9: 0.04316049921 | BL9: 12.6879436 | BM9: 0.04321737327 | BN9: =IF(MOD(ROW($BN9)-7,oBlockAvg)=0,AVERAGE(INDIRECT(ADDRESS((INT((ROW($BN9)-7)/oBlockAvg)*oBlockAvg)+7,COLUMN(Calculation!JDGraph))&":"&ADDRESS(((INT((ROW($BN9)-7)/oBlockAvg)+1)*oBlockAvg)+6,COLUMN(Calculation!JDGraph)))),#N/A) -> 
B10: WASP-12b_00043_bdf.fits | C10: 2013-01-27 | D10: 00:26:50.064 | E10: 2456319.519 | F10: 3319.518635 | G10: 100 | H10: -10.18019171 | I10: 0.001428046583 | J10: -12.28359055 | K10: 0.000393538609 | L10: -12.09759865 | M10: 0.0004348480551 | N10: -11.38854908 | O10: 0.0006496469136 | P10: -11.0563873 | Q10: 0.0007946570169 | R10: -10.30715703 | S10: 0.001308295149 | T10: -9.597751841 | U10: 0.002204791497 | V10: -9.154469945 | W10: 0.003132271299 | X10: Blank | Y10: Blank | Z10: 0 | AA10: =(Results!$F$14-$J10)*$AB$2 -> 21.73559055 | AB10: =(1/SUMSQ(Results!$G$14,$K10))*$AB$2 -> 6456918.541 | AC10: 0.389200257 | AD10: =(Results!$F$15-$L10)*$AE$2 -> 21.84459865 | AE10: =(1/SUMSQ(Results!$G$15,$M10))*$AE$2 -> 5288407.788 | AF10: 0.3187665536 | AG10: =(Results!$F$16-$N10)*$AH$2 -> 21.95654908 | AH10: =(1/SUMSQ(Results!$G$16,$O10))*$AH$2 -> 2369437.41 | AI10: 0.142821323 | AJ10: =(Results!$F$17-$P10)*$AK$2 -> 22.0403873 | AK10: =(1/SUMSQ(Results!$G$17,$Q10))*$AK$2 -> 1583581.993 | AL10: 0.09545273255 | AM10: =(Results!$F$18-$R10)*$AN$2 -> 22.00415703 | AN10: =(1/SUMSQ(Results!$G$18,$S10))*$AN$2 -> 584236.3012 | AO10: 0.0352157019 | AP10: =(Results!$F$19-$T10)*$AQ$2 -> 21.88275184 | AQ10: =(1/SUMSQ(Results!$G$19,$U10))*$AQ$2 -> 205714.5213 | AR10: 0.01239974518 | AS10: =(Results!$F$20-$V10)*$AT$2 -> 21.93646994 | AT10: =(1/SUMSQ(Results!$G$20,$W10))*$AT$2 -> 101925.1262 | AU10: 0.006143686816 | AV10: 21.84350662 | AW10: 0.04289330392 | AX10: 11.66331491 | AY10: 0.04291706931 | AZ10: 9.559916067 | BA10: 0.0428951092 | BB10: 9.74590797 | BC10: 0.04289550808 | BD10: 10.45495754 | BE10: 0.0428982233 | BF10: 10.78711932 | BG10: 0.04290066434 | BH10: 11.53634959 | BI10: 0.04291325153 | BJ10: 12.24575478 | BK10: 0.04294993162 | BL10: 12.68903668 | BM10: 0.04300751846 | BN10: =IF(MOD(ROW($BN10)-7,oBlockAvg)=0,AVERAGE(INDIRECT(ADDRESS((INT((ROW($BN10)-7)/oBlockAvg)*oBlockAvg)+7,COLUMN(Calculation!JDGraph))&":"&ADDRESS(((INT((ROW($BN10)-7)/oBlockAvg)+1)*oBlockAvg)+6,COLUMN(Calculation!JDGraph)))),#N/A) -> 
B11: WASP-12b_00044_bdf.fits | C11: 2013-01-27 | D11: 00:28:49.210 | E11: 2456319.52 | F11: 3319.520014 | G11: 100 | H11: -10.15840463 | I11: 0.001452793178 | J11: -12.27015926 | K11: 0.0003964171111 | L11: -12.08475703 | M11: 0.0004377244546 | N11: -11.37022778 | O11: 0.0006570436189 | P11: -11.03701845 | Q11: 0.0008046791184 | R11: -10.28895455 | S11: 0.001323838447 | T11: -9.577353989 | U11: 0.002246890129 | V11: -9.133151135 | W11: 0.003192850424 | X11: Blank | Y11: Blank | Z11: 0 | AA11: =(Results!$F$14-$J11)*$AB$2 -> 21.72215926 | AB11: =(1/SUMSQ(Results!$G$14,$K11))*$AB$2 -> 6363487.795 | AC11: 0.3901547957 | AD11: =(Results!$F$15-$L11)*$AE$2 -> 21.83175703 | AE11: =(1/SUMSQ(Results!$G$15,$M11))*$AE$2 -> 5219133.183 | AF11: 0.3199927315 | AG11: =(Results!$F$16-$N11)*$AH$2 -> 21.93822778 | AH11: =(1/SUMSQ(Results!$G$16,$O11))*$AH$2 -> 2316389.546 | AI11: 0.1420212499 | AJ11: =(Results!$F$17-$P11)*$AK$2 -> 22.02101845 | AK11: =(1/SUMSQ(Results!$G$17,$Q11))*$AK$2 -> 1544381.31 | AL11: 0.09468828948 | AM11: =(Results!$F$18-$R11)*$AN$2 -> 21.98595455 | AN11: =(1/SUMSQ(Results!$G$18,$S11))*$AN$2 -> 570597.7046 | AO11: 0.03498418447 | AP11: =(Results!$F$19-$T11)*$AQ$2 -> 21.86235399 | AQ11: =(1/SUMSQ(Results!$G$19,$U11))*$AQ$2 -> 198078.0388 | AR11: 0.01214445588 | AS11: =(Results!$F$20-$V11)*$AT$2 -> 21.91515113 | AT11: =(1/SUMSQ(Results!$G$20,$W11))*$AT$2 -> 98094.0923 | AU11: 0.00601429307 | AV11: 21.8283065 | AW11: 0.04195472811 | AX11: 11.66990187 | AY11: 0.04197987397 | AZ11: 9.558147236 | BA11: 0.04195660087 | BB11: 9.743549473 | BC11: 0.04195701149 | BD11: 10.45807871 | BE11: 0.0419598727 | BF11: 10.79128805 | BG11: 0.04196244415 | BH11: 11.53935195 | BI11: 0.04197560909 | BJ11: 12.25095251 | BK11: 0.04201485125 | BL11: 12.69515536 | BM11: 0.0420760443 | BN11: =IF(MOD(ROW($BN11)-7,oBlockAvg)=0,AVERAGE(INDIRECT(ADDRESS((INT((ROW($BN11)-7)/oBlockAvg)*oBlockAvg)+7,COLUMN(Calculation!JDGraph))&":"&ADDRESS(((INT((ROW($BN11)-7)/oBlockAvg)+1)*oBlockAvg)+6,COLUMN(Calculation!JDGraph)))),#N/A) -> 
B12: WASP-12b_00045_bdf.fits | C12: 2013-01-27 | D12: 00:30:48.355 | E12: 2456319.521 | F12: 3319.521393 | G12: 100 | H12: -10.16344338 | I12: 0.001445267048 | J12: -12.2726394 | K12: 0.0003957595324 | L12: -12.0901438 | M12: 0.000436249524 | N12: -11.37327037 | O12: 0.0006541058754 | P12: -11.04191372 | Q12: 0.0008002264538 | R12: -10.29349301 | S12: 0.001316172811 | T12: -9.57944238 | U12: 0.002234051425 | V12: -9.136109967 | W12: 0.00315941856 | X12: Blank | Y12: Blank | Z12: 0 | AA12: =(Results!$F$14-$J12)*$AB$2 -> 21.7246394 | AB12: =(1/SUMSQ(Results!$G$14,$K12))*$AB$2 -> 6384652.013 | AC12: 0.3889333269 | AD12: =(Results!$F$15-$L12)*$AE$2 -> 21.8371438 | AE12: =(1/SUMSQ(Results!$G$15,$M12))*$AE$2 -> 5254483.925 | AF12: 0.3200869694 | AG12: =(Results!$F$16-$N12)*$AH$2 -> 21.94127037 | AH12: =(1/SUMSQ(Results!$G$16,$O12))*$AH$2 -> 2337243.172 | AI12: 0.142377652 | AJ12: =(Results!$F$17-$P12)*$AK$2 -> 22.02591372 | AK12: =(1/SUMSQ(Results!$G$17,$Q12))*$AK$2 -> 1561615.79 | AL12: 0.09512882195 | AM12: =(Results!$F$18-$R12)*$AN$2 -> 21.99049301 | AN12: =(1/SUMSQ(Results!$G$18,$S12))*$AN$2 -> 577263.5952 | AO12: 0.03516511943 | AP12: =(Results!$F$19-$T12)*$AQ$2 -> 21.86444238 | AQ12: =(1/SUMSQ(Results!$G$19,$U12))*$AQ$2 -> 200361.2204 | AR12: 0.01220538815 | AS12: =(Results!$F$20-$V12)*$AT$2 -> 21.91810997 | AT12: =(1/SUMSQ(Results!$G$20,$W12))*$AT$2 -> 100181.0709 | AU12: 0.006102722141 | AV12: 21.83238969 | AW12: 0.04224886747 | AX12: 11.66894631 | AY12: 0.0422735804 | AZ12: 9.559750293 | BA12: 0.04225072104 | BB12: 9.742245891 | BC12: 0.04225111971 | BD12: 10.45911933 | BE12: 0.04225393067 | BF12: 10.79047597 | BG12: 0.04225644525 | BH12: 11.53889668 | BI12: 0.04226936377 | BJ12: 12.25294731 | BK12: 0.04230789275 | BL12: 12.69627973 | BM12: 0.04236683524 | BN12: =IF(MOD(ROW($BN12)-7,oBlockAvg)=0,AVERAGE(INDIRECT(ADDRESS((INT((ROW($BN12)-7)/oBlockAvg)*oBlockAvg)+7,COLUMN(Calculation!JDGraph))&":"&ADDRESS(((INT((ROW($BN12)-7)/oBlockAvg)+1)*oBlockAvg)+6,COLUMN(Calculation!JDGraph)))),#N/A) -> 3319.524152 | BO12: 11.67450857 | BP12: 0.002276595517
B13: WASP-12b_00046_bdf.fits | C13: 2013-01-27 | D13: 00:32:47.587 | E13: 2456319.523 | F13: 3319.522773 | G13: 100 | H13: -10.16218848 | I13: 0.001443248243 | J13: -12.27313411 | K13: 0.0003954518541 | L13: -12.08800633 | M13: 0.000436921648 | N13: -11.3719254 | O13: 0.0006551166612 | P13: -11.04089929 | Q13: 0.0008018134292 | R13: -10.2879606 | S13: 0.001321446469 | T13: -9.578598903 | U13: 0.002230172613 | V13: -9.136576884 | W13: 0.0031728331 | X13: Blank | Y13: Blank | Z13: 0 | AA13: =(Results!$F$14-$J13)*$AB$2 -> 21.72513411 | AB13: =(1/SUMSQ(Results!$G$14,$K13))*$AB$2 -> 6394590.938 | AC13: 0.3901172826 | AD13: =(Results!$F$15-$L13)*$AE$2 -> 21.83500633 | AE13: =(1/SUMSQ(Results!$G$15,$M13))*$AE$2 -> 5238330.235 | AF13: 0.3195768387 | AG13: =(Results!$F$16-$N13)*$AH$2 -> 21.9399254 | AH13: =(1/SUMSQ(Results!$G$16,$O13))*$AH$2 -> 2330036.426 | AI13: 0.1421494334 | AJ13: =(Results!$F$17-$P13)*$AK$2 -> 22.02489929 | AK13: =(1/SUMSQ(Results!$G$17,$Q13))*$AK$2 -> 1555440.306 | AL13: 0.09489334833 | AM13: =(Results!$F$18-$R13)*$AN$2 -> 21.9849606 | AN13: =(1/SUMSQ(Results!$G$18,$S13))*$AN$2 -> 572665.2763 | AO13: 0.03493681201 | AP13: =(Results!$F$19-$T13)*$AQ$2 -> 21.8635989 | AQ13: =(1/SUMSQ(Results!$G$19,$U13))*$AQ$2 -> 201058.7802 | AR13: 0.01226607077 | AS13: =(Results!$F$20-$V13)*$AT$2 -> 21.91857688 | AT13: =(1/SUMSQ(Results!$G$20,$W13))*$AT$2 -> 99335.74307 | AU13: 0.006060214098 | AV13: 21.83117314 | AW13: 0.04187141259 | AX13: 11.66898466 | AY13: 0.04189627857 | AZ13: 9.558039032 | BA13: 0.04187327996 | BB13: 9.743166813 | BC13: 0.04187369214 | BD13: 10.45924774 | BE13: 0.04187653723 | BF13: 10.79027385 | BG13: 0.04187908902 | BH13: 11.54321254 | BI13: 0.04189225959 | BJ13: 12.25257424 | BK13: 0.04193076272 | BL13: 12.69459626 | BM13: 0.04199145225 | BN13: =IF(MOD(ROW($BN13)-7,oBlockAvg)=0,AVERAGE(INDIRECT(ADDRESS((INT((ROW($BN13)-7)/oBlockAvg)*oBlockAvg)+7,COLUMN(Calculation!JDGraph))&":"&ADDRESS(((INT((ROW($BN13)-7)/oBlockAvg)+1)*oBlockAvg)+6,COLUMN(Calculation!JDGraph)))),#N/A) -> 
B14: WASP-12b_00047_bdf.fits | C14: 2013-01-27 | D14: 00:34:46.733 | E14: 2456319.524 | F14: 3319.524152 | G14: 100 | H14: -10.14259997 | I14: 0.001473859221 | J14: -12.26503732 | K14: 0.0003977892259 | L14: -12.07988094 | M14: 0.0004389422213 | N14: -11.35946732 | O14: 0.0006607050406 | P14: -11.0280563 | Q14: 0.00080930734 | R14: -10.28247596 | S14: 0.001330935417 | T14: -9.560263165 | U14: 0.002268976011 | V14: -9.123506964 | W14: 0.003210155913 | X14: Blank | Y14: Blank | Z14: 0 | AA14: =(Results!$F$14-$J14)*$AB$2 -> 21.71703732 | AB14: =(1/SUMSQ(Results!$G$14,$K14))*$AB$2 -> 6319663.697 | AC14: 0.3905066572 | AD14: =(Results!$F$15-$L14)*$AE$2 -> 21.82688094 | AE14: =(1/SUMSQ(Results!$G$15,$M14))*$AE$2 -> 5190214.251 | AF14: 0.3207153599 | AG14: =(Results!$F$16-$N14)*$AH$2 -> 21.92746732 | AH14: =(1/SUMSQ(Results!$G$16,$O14))*$AH$2 -> 2290787.264 | AI14: 0.1415530508 | AJ14: =(Results!$F$17-$P14)*$AK$2 -> 22.0120563 | AK14: =(1/SUMSQ(Results!$G$17,$Q14))*$AK$2 -> 1526767.974 | AL14: 0.09434252936 | AM14: =(Results!$F$18-$R14)*$AN$2 -> 21.97947596 | AN14: =(1/SUMSQ(Results!$G$18,$S14))*$AN$2 -> 564528.7132 | AO14: 0.03488353672 | AP14: =(Results!$F$19-$T14)*$AQ$2 -> 21.84526317 | AQ14: =(1/SUMSQ(Results!$G$19,$U14))*$AQ$2 -> 194240.6807 | AR14: 0.01200258156 | AS14: =(Results!$F$20-$V14)*$AT$2 -> 21.90550696 | AT14: =(1/SUMSQ(Results!$G$20,$W14))*$AT$2 -> 97039.32078 | AU14: 0.005996284389 | AV14: 21.82170965 | AW14: 0.04124224477 | AX14: 11.67910968 | AY14: 0.04126857175 | AZ14: 9.556672326 | BA14: 0.0412441631 | BB14: 9.741828708 | BC14: 0.04124458054 | BD14: 10.46224233 | BE14: 0.04124753671 | BF14: 10.79365335 | BG14: 0.04125018463 | BH14: 11.53923369 | BI14: 0.0412637146 | BJ14: 12.26144648 | BK14: 0.0413046124 | BL14: 12.69820269 | BM14: 0.04136698991 | BN14: =IF(MOD(ROW($BN14)-7,oBlockAvg)=0,AVERAGE(INDIRECT(ADDRESS((INT((ROW($BN14)-7)/oBlockAvg)*oBlockAvg)+7,COLUMN(Calculation!JDGraph))&":"&ADDRESS(((INT((ROW($BN14)-7)/oBlockAvg)+1)*oBlockAvg)+6,COLUMN(Calculation!JDGraph)))),#N/A) -> 
B15: WASP-12b_00048_bdf.fits | C15: 2013-01-27 | D15: 00:36:45.878 | E15: 2456319.526 | F15: 3319.525531 | G15: 100 | H15: -10.16478021 | I15: 0.001439798248 | J15: -12.28536474 | K15: 0.0003929054479 | L15: -12.10015171 | M15: 0.0004335496042 | N15: -11.37897063 | O15: 0.000651144629 | P15: -11.05059631 | Q15: 0.0007953124703 | R15: -10.30159209 | S15: 0.001308222408 | T15: -9.586636806 | U15: 0.0022154376 | V15: -9.14475533 | W15: 0.003135582211 | X15: Blank | Y15: Blank | Z15: 0 | AA15: =(Results!$F$14-$J15)*$AB$2 -> 21.73736474 | AB15: =(1/SUMSQ(Results!$G$14,$K15))*$AB$2 -> 6477745.759 | AC15: 0.3895883649 | AD15: =(Results!$F$15-$L15)*$AE$2 -> 21.84715171 | AE15: =(1/SUMSQ(Results!$G$15,$M15))*$AE$2 -> 5320132.049 | AF15: 0.3199664857 | AG15: =(Results!$F$16-$N15)*$AH$2 -> 21.94697063 | AH15: =(1/SUMSQ(Results!$G$16,$O15))*$AH$2 -> 2358549.931 | AI15: 0.1418492861 | AJ15: =(Results!$F$17-$P15)*$AK$2 -> 22.03459631 | AK15: =(1/SUMSQ(Results!$G$17,$Q15))*$AK$2 -> 1580972.864 | AL15: 0.0950837924 | AM15: =(Results!$F$18-$R15)*$AN$2 -> 21.99859209 | AN15: =(1/SUMSQ(Results!$G$18,$S15))*$AN$2 -> 584301.2727 | AO15: 0.03514138805 | AP15: =(Results!$F$19-$T15)*$AQ$2 -> 21.87163681 | AQ15: =(1/SUMSQ(Results!$G$19,$U15))*$AQ$2 -> 203742.1832 | AR15: 0.01225358126 | AS15: =(Results!$F$20-$V15)*$AT$2 -> 21.92675533 | AT15: =(1/SUMSQ(Results!$G$20,$W15))*$AT$2 -> 101709.9911 | AU15: 0.006117101626 | AV15: 21.84247097 | AW15: 0.04139261489 | AX15: 11.67769076 | AY15: 0.04141764825 | AZ15: 9.557106225 | BA15: 0.04139447961 | BB15: 9.742319262 | BC15: 0.04139488535 | BD15: 10.46350034 | BE15: 0.04139773614 | BF15: 10.79187466 | BG15: 0.04140025471 | BH15: 11.54087887 | BI15: 0.04141328306 | BJ15: 12.25583416 | BK15: 0.04145186041 | BL15: 12.69771564 | BM15: 0.04151120865 | BN15: =IF(MOD(ROW($BN15)-7,oBlockAvg)=0,AVERAGE(INDIRECT(ADDRESS((INT((ROW($BN15)-7)/oBlockAvg)*oBlockAvg)+7,COLUMN(Calculation!JDGraph))&":"&ADDRESS(((INT((ROW($BN15)-7)/oBlockAvg)+1)*oBlockAvg)+6,COLUMN(Calculation!JDGraph)))),#N/A) -> 
B16: WASP-12b_00049_bdf.fits | C16: 2013-01-27 | D16: 00:38:45.024 | E16: 2456319.527 | F16: 3319.52691 | G16: 100 | H16: -10.15926985 | I16: 0.001442142636 | J16: -12.27962577 | K16: 0.0003937444637 | L16: -12.09586177 | M16: 0.0004343957456 | N16: -11.37551464 | O16: 0.0006522597043 | P16: -11.04309616 | Q16: 0.000799185103 | R16: -10.29251929 | S16: 0.001310723551 | T16: -9.576014044 | U16: 0.002227070404 | V16: -9.138333192 | W16: 0.003159057038 | X16: Blank | Y16: Blank | Z16: 0 | AA16: =(Results!$F$14-$J16)*$AB$2 -> 21.73162577 | AB16: =(1/SUMSQ(Results!$G$14,$K16))*$AB$2 -> 6450168.785 | AC16: 0.389746001 | AD16: =(Results!$F$15-$L16)*$AE$2 -> 21.84286177 | AE16: =(1/SUMSQ(Results!$G$15,$M16))*$AE$2 -> 5299426.506 | AF16: 0.3202133707 | AG16: =(Results!$F$16-$N16)*$AH$2 -> 21.94351464 | AH16: =(1/SUMSQ(Results!$G$16,$O16))*$AH$2 -> 2350492.672 | AI16: 0.1420265345 | AJ16: =(Results!$F$17-$P16)*$AK$2 -> 22.02709616 | AK16: =(1/SUMSQ(Results!$G$17,$Q16))*$AK$2 -> 1565688.062 | AL16: 0.09460537875 | AM16: =(Results!$F$18-$R16)*$AN$2 -> 21.98951929 | AN16: =(1/SUMSQ(Results!$G$18,$S16))*$AN$2 -> 582073.455 | AO16: 0.0351712969 | AP16: =(Results!$F$19-$T16)*$AQ$2 -> 21.86101404 | AQ16: =(1/SUMSQ(Results!$G$19,$U16))*$AQ$2 -> 201619.302 | AR16: 0.01218267604 | AS16: =(Results!$F$20-$V16)*$AT$2 -> 21.92033319 | AT16: =(1/SUMSQ(Results!$G$20,$W16))*$AT$2 -> 100204.0016 | AU16: 0.006054742166 | AV16: 21.83708127 | AW16: 0.04130358429 | AX16: 11.67781143 | AY16: 0.04132875331 | AZ16: 9.557455501 | BA16: 0.04130546102 | BB16: 9.741219508 | BC16: 0.04130586853 | BD16: 10.46156663 | BE16: 0.04130873416 | BF16: 10.79398511 | BG16: 0.0413113153 | BH16: 11.54456198 | BI16: 0.04132437624 | BJ16: 12.26106723 | BK16: 0.04136358202 | BL16: 12.69874808 | BM16: 0.04142421655 | BN16: =IF(MOD(ROW($BN16)-7,oBlockAvg)=0,AVERAGE(INDIRECT(ADDRESS((INT((ROW($BN16)-7)/oBlockAvg)*oBlockAvg)+7,COLUMN(Calculation!JDGraph))&":"&ADDRESS(((INT((ROW($BN16)-7)/oBlockAvg)+1)*oBlockAvg)+6,COLUMN(Calculation!JDGraph)))),#N/A) -> 
B17: WASP-12b_00050_bdf.fits | C17: 2013-01-27 | D17: 00:40:44.170 | E17: 2456319.528 | F17: 3319.528289 | G17: 100 | H17: -10.16336715 | I17: 0.001438521622 | J17: -12.28014196 | K17: 0.0003935419043 | L17: -12.09565492 | M17: 0.0004344521864 | N17: -11.37408117 | O17: 0.0006525660877 | P17: -11.04625997 | Q17: 0.0007974141559 | R17: -10.29493133 | S17: 0.001311622405 | T17: -9.583511297 | U17: 0.002212104222 | V17: -9.13836 | W17: 0.003146730942 | X17: Blank | Y17: Blank | Z17: 0 | AA17: =(Results!$F$14-$J17)*$AB$2 -> 21.73214196 | AB17: =(1/SUMSQ(Results!$G$14,$K17))*$AB$2 -> 6456810.407 | AC17: 0.3898470528 | AD17: =(Results!$F$15-$L17)*$AE$2 -> 21.84265492 | AE17: =(1/SUMSQ(Results!$G$15,$M17))*$AE$2 -> 5298049.67 | AF17: 0.3198838001 | AG17: =(Results!$F$16-$N17)*$AH$2 -> 21.94208117 | AH17: =(1/SUMSQ(Results!$G$16,$O17))*$AH$2 -> 2348286.051 | AI17: 0.1417839984 | AJ17: =(Results!$F$17-$P17)*$AK$2 -> 22.03025997 | AK17: =(1/SUMSQ(Results!$G$17,$Q17))*$AK$2 -> 1572650.139 | AL17: 0.09495292308 | AM17: =(Results!$F$18-$R17)*$AN$2 -> 21.99193133 | AN17: =(1/SUMSQ(Results!$G$18,$S17))*$AN$2 -> 581275.9391 | AO17: 0.03509607646 | AP17: =(Results!$F$19-$T17)*$AQ$2 -> 21.8685113 | AQ17: =(1/SUMSQ(Results!$G$19,$U17))*$AQ$2 -> 204356.6764 | AR17: 0.01233857632 | AS17: =(Results!$F$20-$V17)*$AT$2 -> 21.92036 | AT17: =(1/SUMSQ(Results!$G$20,$W17))*$AT$2 -> 100990.5596 | AU17: 0.00609757288 | AV17: 21.83751433 | AW17: 0.04144372921 | AX17: 11.67414718 | AY17: 0.04146868741 | AZ17: 9.557372364 | BA17: 0.04144559767 | BB17: 9.74185941 | BC17: 0.04144600632 | BD17: 10.46343316 | BE17: 0.04144886649 | BF17: 10.79125436 | BG17: 0.04145139998 | BH17: 11.542583 | BI17: 0.04146447931 | BJ17: 12.25400303 | BK17: 0.04150272396 | BL17: 12.69915433 | BM17: 0.0415630197 | BN17: =IF(MOD(ROW($BN17)-7,oBlockAvg)=0,AVERAGE(INDIRECT(ADDRESS((INT((ROW($BN17)-7)/oBlockAvg)*oBlockAvg)+7,COLUMN(Calculation!JDGraph))&":"&ADDRESS(((INT((ROW($BN17)-7)/oBlockAvg)+1)*oBlockAvg)+6,COLUMN(Calculation!JDGraph)))),#N/A) -> 3319.531048 | BO17: 11.67722934 | BP17: 0.001080846527
B18: WASP-12b_00051_bdf.fits | C18: 2013-01-27 | D18: 00:42:43.315 | E18: 2456319.53 | F18: 3319.529668 | G18: 100 | H18: -10.1478056 | I18: 0.001446943547 | J18: -12.27151394 | K18: 0.000395240801 | L18: -12.08577185 | M18: 0.000436660439 | N18: -11.36251844 | O18: 0.0006562112231 | P18: -11.03657829 | Q18: 0.0007999700808 | R18: -10.28909326 | S18: 0.001313113801 | T18: -9.57004063 | U18: 0.002224290615 | V18: -9.127144925 | W18: 0.003167529543 | X18: Blank | Y18: Blank | Z18: 0 | AA18: =(Results!$F$14-$J18)*$AB$2 -> 21.72351394 | AB18: =(1/SUMSQ(Results!$G$14,$K18))*$AB$2 -> 6401422.006 | AC18: 0.390029609 | AD18: =(Results!$F$15-$L18)*$AE$2 -> 21.83277185 | AE18: =(1/SUMSQ(Results!$G$15,$M18))*$AE$2 -> 5244599.218 | AF18: 0.319546029 | AG18: =(Results!$F$16-$N18)*$AH$2 -> 21.93051844 | AH18: =(1/SUMSQ(Results!$G$16,$O18))*$AH$2 -> 2322269.896 | AI18: 0.1414926275 | AJ18: =(Results!$F$17-$P18)*$AK$2 -> 22.02057829 | AK18: =(1/SUMSQ(Results!$G$17,$Q18))*$AK$2 -> 1562616.878 | AL18: 0.09520804119 | AM18: =(Results!$F$18-$R18)*$AN$2 -> 21.98609326 | AN18: =(1/SUMSQ(Results!$G$18,$S18))*$AN$2 -> 579956.2968 | AO18: 0.03533591871 | AP18: =(Results!$F$19-$T18)*$AQ$2 -> 21.85504063 | AQ18: =(1/SUMSQ(Results!$G$19,$U18))*$AQ$2 -> 202123.5611 | AR18: 0.01231510334 | AS18: =(Results!$F$20-$V18)*$AT$2 -> 21.90914492 | AT18: =(1/SUMSQ(Results!$G$20,$W18))*$AT$2 -> 99668.66737 | AU18: 0.006072671248 | AV18: 21.82802492 | AW18: 0.04126243874 | AX18: 11.68021932 | AY18: 0.04128780081 | AZ18: 9.55651098 | BA18: 0.04126433164 | BB18: 9.742253067 | BC18: 0.04126474916 | BD18: 10.46550648 | BE18: 0.04126765639 | BF18: 10.79144663 | BG18: 0.04127019267 | BH18: 11.53893166 | BI18: 0.04128332737 | BJ18: 12.25798429 | BK18: 0.04132234649 | BL18: 12.70087999 | BM18: 0.04138383856 | BN18: =IF(MOD(ROW($BN18)-7,oBlockAvg)=0,AVERAGE(INDIRECT(ADDRESS((INT((ROW($BN18)-7)/oBlockAvg)*oBlockAvg)+7,COLUMN(Calculation!JDGraph))&":"&ADDRESS(((INT((ROW($BN18)-7)/oBlockAvg)+1)*oBlockAvg)+6,COLUMN(Calculation!JDGraph)))),#N/A) -> 
B19: WASP-12b_00052_bdf.fits | C19: 2013-01-27 | D19: 00:44:42.547 | E19: 2456319.531 | F19: 3319.531048 | G19: 100 | H19: -10.17989345 | I19: 0.001414456305 | J19: -12.29771886 | K19: 0.0003895548555 | L19: -12.113856 | M19: 0.0004296945873 | N19: -11.39410051 | O19: 0.0006439967795 | P19: -11.06325267 | Q19: 0.0007867759185 | R19: -10.31382312 | S19: 0.001289643063 | T19: -9.596546065 | U19: 0.002180569758 | V19: -9.157256268 | W19: 0.00308295754 | X19: Blank | Y19: Blank | Z19: 0 | AA19: =(Results!$F$14-$J19)*$AB$2 -> 21.74971886 | AB19: =(1/SUMSQ(Results!$G$14,$K19))*$AB$2 -> 6589656.191 | AC19: 0.3887904916 | AD19: =(Results!$F$15-$L19)*$AE$2 -> 21.860856 | AE19: =(1/SUMSQ(Results!$G$15,$M19))*$AE$2 -> 5416019.682 | AF19: 0.3195457993 | AG19: =(Results!$F$16-$N19)*$AH$2 -> 21.96210051 | AH19: =(1/SUMSQ(Results!$G$16,$O19))*$AH$2 -> 2411196.524 | AI19: 0.142260879 | AJ19: =(Results!$F$17-$P19)*$AK$2 -> 22.04725267 | AK19: =(1/SUMSQ(Results!$G$17,$Q19))*$AK$2 -> 1615466.226 | AL19: 0.09531269765 | AM19: =(Results!$F$18-$R19)*$AN$2 -> 22.01082312 | AN19: =(1/SUMSQ(Results!$G$18,$S19))*$AN$2 -> 601258.1098 | AO19: 0.03547429932 | AP19: =(Results!$F$19-$T19)*$AQ$2 -> 21.88154606 | AQ19: =(1/SUMSQ(Results!$G$19,$U19))*$AQ$2 -> 210310.052 | AR19: 0.01240831784 | AS19: =(Results!$F$20-$V19)*$AT$2 -> 21.93925627 | AT19: =(1/SUMSQ(Results!$G$20,$W19))*$AT$2 -> 105211.912 | AU19: 0.006207515204 | AV19: 21.85587942 | AW19: 0.04161011536 | AX19: 11.67598596 | AY19: 0.04163414928 | AZ19: 9.558160561 | BA19: 0.04161193883 | BB19: 9.742023413 | BC19: 0.04161233396 | BD19: 10.46177891 | BE19: 0.0416150986 | BF19: 10.79262674 | BG19: 0.04161755298 | BH19: 11.54205629 | BI19: 0.04163009583 | BJ19: 12.25933335 | BK19: 0.04166721234 | BL19: 12.69862315 | BM19: 0.04172416958 | BN19: =IF(MOD(ROW($BN19)-7,oBlockAvg)=0,AVERAGE(INDIRECT(ADDRESS((INT((ROW($BN19)-7)/oBlockAvg)*oBlockAvg)+7,COLUMN(Calculation!JDGraph))&":"&ADDRESS(((INT((ROW($BN19)-7)/oBlockAvg)+1)*oBlockAvg)+6,COLUMN(Calculation!JDGraph)))),#N/A) -> 
B20: WASP-12b_00053_bdf.fits | C20: 2013-01-27 | D20: 00:46:41.693 | E20: 2456319.532 | F20: 3319.532427 | G20: 100 | H20: -10.16373029 | I20: 0.0014286221 | J20: -12.2863722 | K20: 0.0003918662961 | L20: -12.10070197 | M20: 0.0004325693636 | N20: -11.37749415 | O20: 0.0006490908202 | P20: -11.05062253 | Q20: 0.0007926785884 | R20: -10.29936796 | S20: 0.001302058781 | T20: -9.582285784 | U20: 0.002200216575 | V20: -9.140666614 | W20: 0.003116674434 | X20: Blank | Y20: Blank | Z20: 0 | AA20: =(Results!$F$14-$J20)*$AB$2 -> 21.7383722 | AB20: =(1/SUMSQ(Results!$G$14,$K20))*$AB$2 -> 6512146.709 | AC20: 0.3894643226 | AD20: =(Results!$F$15-$L20)*$AE$2 -> 21.84770197 | AE20: =(1/SUMSQ(Results!$G$15,$M20))*$AE$2 -> 5344271.151 | AF20: 0.3196185585 | AG20: =(Results!$F$16-$N20)*$AH$2 -> 21.94549415 | AH20: =(1/SUMSQ(Results!$G$16,$O20))*$AH$2 -> 2373499.069 | AI20: 0.1419490759 | AJ20: =(Results!$F$17-$P20)*$AK$2 -> 22.03462253 | AK20: =(1/SUMSQ(Results!$G$17,$Q20))*$AK$2 -> 1591496.711 | AL20: 0.09518077773 | AM20: =(Results!$F$18-$R20)*$AN$2 -> 21.99636796 | AN20: =(1/SUMSQ(Results!$G$18,$S20))*$AN$2 -> 589846.2444 | AO20: 0.03527624273 | AP20: =(Results!$F$19-$T20)*$AQ$2 -> 21.86728578 | AQ20: =(1/SUMSQ(Results!$G$19,$U20))*$AQ$2 -> 206570.8972 | AR20: 0.01235414344 | AS20: =(Results!$F$20-$V20)*$AT$2 -> 21.92266661 | AT20: =(1/SUMSQ(Results!$G$20,$W20))*$AT$2 -> 102947.8125 | AU20: 0.006156879115 | AV20: 21.84274255 | AW20: 0.04109485293 | AX20: 11.67901226 | AY20: 0.04111967775 | AZ20: 9.556370347 | BA20: 0.04109672124 | BB20: 9.742040574 | BC20: 0.04109712951 | BD20: 10.46524839 | BE20: 0.04109997879 | BF20: 10.79212002 | BG20: 0.04110249721 | BH20: 11.54337459 | BI20: 0.04111547512 | BJ20: 12.26045676 | BK20: 0.04115371053 | BL20: 12.70207593 | BM20: 0.04121286931 | BN20: =IF(MOD(ROW($BN20)-7,oBlockAvg)=0,AVERAGE(INDIRECT(ADDRESS((INT((ROW($BN20)-7)/oBlockAvg)*oBlockAvg)+7,COLUMN(Calculation!JDGraph))&":"&ADDRESS(((INT((ROW($BN20)-7)/oBlockAvg)+1)*oBlockAvg)+6,COLUMN(Calculation!JDGraph)))),#N/A) -> 
B21: WASP-12b_00054_bdf.fits | C21: 2013-01-27 | D21: 00:48:40.838 | E21: 2456319.534 | F21: 3319.533806 | G21: 100 | H21: -10.16832863 | I21: 0.001424449593 | J21: -12.28909511 | K21: 0.0003911814436 | L21: -12.10169233 | M21: 0.0004323431768 | N21: -11.38146773 | O21: 0.0006481112358 | P21: -11.05335667 | Q21: 0.0007912612619 | R21: -10.30204935 | S21: 0.001297849893 | T21: -9.583835658 | U21: 0.0022023859 | V21: -9.148341301 | W21: 0.003112435971 | X21: Blank | Y21: Blank | Z21: 0 | AA21: =(Results!$F$14-$J21)*$AB$2 -> 21.74109511 | AB21: =(1/SUMSQ(Results!$G$14,$K21))*$AB$2 -> 6534968.67 | AC21: 0.3897800256 | AD21: =(Results!$F$15-$L21)*$AE$2 -> 21.84869233 | AE21: =(1/SUMSQ(Results!$G$15,$M21))*$AE$2 -> 5349864.486 | AF21: 0.3190941566 | AG21: =(Results!$F$16-$N21)*$AH$2 -> 21.94946773 | AH21: =(1/SUMSQ(Results!$G$16,$O21))*$AH$2 -> 2380679.317 | AI21: 0.1419962806 | AJ21: =(Results!$F$17-$P21)*$AK$2 -> 22.03735667 | AK21: =(1/SUMSQ(Results!$G$17,$Q21))*$AK$2 -> 1597203.272 | AL21: 0.09526563383 | AM21: =(Results!$F$18-$R21)*$AN$2 -> 21.99904935 | AN21: =(1/SUMSQ(Results!$G$18,$S21))*$AN$2 -> 593678.1544 | AO21: 0.03541009879 | AP21: =(Results!$F$19-$T21)*$AQ$2 -> 21.86883566 | AQ21: =(1/SUMSQ(Results!$G$19,$U21))*$AQ$2 -> 206164.1577 | AR21: 0.01229671858 | AS21: =(Results!$F$20-$V21)*$AT$2 -> 21.9303413 | AT21: =(1/SUMSQ(Results!$G$20,$W21))*$AT$2 -> 103228.3886 | AU21: 0.006157085978 | AV21: 21.84511061 | AW21: 0.04118910584 | AX21: 11.67678198 | AY21: 0.04121372946 | AZ21: 9.556015509 | BA21: 0.04119096336 | BB21: 9.743418284 | BC21: 0.04119137483 | BD21: 10.46364289 | BE21: 0.04119420454 | BF21: 10.79175394 | BG21: 0.04119670538 | BH21: 11.54306126 | BI21: 0.04120954809 | BJ21: 12.26127496 | BK21: 0.04124794472 | BL21: 12.69676931 | BM21: 0.04130653335 | BN21: =IF(MOD(ROW($BN21)-7,oBlockAvg)=0,AVERAGE(INDIRECT(ADDRESS((INT((ROW($BN21)-7)/oBlockAvg)*oBlockAvg)+7,COLUMN(Calculation!JDGraph))&":"&ADDRESS(((INT((ROW($BN21)-7)/oBlockAvg)+1)*oBlockAvg)+6,COLUMN(Calculation!JDGraph)))),#N/A) -> 
B22: WASP-12b_00055_bdf.fits | C22: 2013-01-27 | D22: 00:50:39.984 | E22: 2456319.535 | F22: 3319.535185 | G22: 100 | H22: -10.14347835 | I22: 0.00145178349 | J22: -12.26344693 | K22: 0.0003967041928 | L22: -12.08026698 | M22: 0.0004370438833 | N22: -11.35751346 | O22: 0.0006570897543 | P22: -11.03032113 | Q22: 0.0008013643291 | R22: -10.28065986 | S22: 0.001315588808 | T22: -9.563896478 | U22: 0.00222762331 | V22: -9.121430998 | W22: 0.003164026352 | X22: Blank | Y22: Blank | Z22: 0 | AA22: =(Results!$F$14-$J22)*$AB$2 -> 21.71544693 | AB22: =(1/SUMSQ(Results!$G$14,$K22))*$AB$2 -> 6354281.035 | AC22: 0.3888285616 | AD22: =(Results!$F$15-$L22)*$AE$2 -> 21.82726698 | AE22: =(1/SUMSQ(Results!$G$15,$M22))*$AE$2 -> 5235400.464 | AF22: 0.3203624801 | AG22: =(Results!$F$16-$N22)*$AH$2 -> 21.92551346 | AH22: =(1/SUMSQ(Results!$G$16,$O22))*$AH$2 -> 2316064.282 | AI22: 0.1417236566 | AJ22: =(Results!$F$17-$P22)*$AK$2 -> 22.01432113 | AK22: =(1/SUMSQ(Results!$G$17,$Q22))*$AK$2 -> 1557184.192 | AL22: 0.09528657706 | AM22: =(Results!$F$18-$R22)*$AN$2 -> 21.97765986 | AN22: =(1/SUMSQ(Results!$G$18,$S22))*$AN$2 -> 577776.2156 | AO22: 0.03535504546 | AP22: =(Results!$F$19-$T22)*$AQ$2 -> 21.84889648 | AQ22: =(1/SUMSQ(Results!$G$19,$U22))*$AQ$2 -> 201519.2288 | AR22: 0.01233128208 | AS22: =(Results!$F$20-$V22)*$AT$2 -> 21.903431 | AT22: =(1/SUMSQ(Results!$G$20,$W22))*$AT$2 -> 99889.49468 | AU22: 0.006112397031 | AV22: 21.82158516 | AW22: 0.04157800989 | AX22: 11.67810682 | AY22: 0.0416033482 | AZ22: 9.558138233 | BA22: 0.04157990236 | BB22: 9.741318183 | BC22: 0.0415803068 | BD22: 10.4640717 | BE22: 0.04158320182 | BF22: 10.79126403 | BG22: 0.04158573182 | BH22: 11.54092531 | BI22: 0.04159881825 | BJ22: 12.25768868 | BK22: 0.04163764177 | BL22: 12.70015416 | BM22: 0.04169822501 | BN22: =IF(MOD(ROW($BN22)-7,oBlockAvg)=0,AVERAGE(INDIRECT(ADDRESS((INT((ROW($BN22)-7)/oBlockAvg)*oBlockAvg)+7,COLUMN(Calculation!JDGraph))&":"&ADDRESS(((INT((ROW($BN22)-7)/oBlockAvg)+1)*oBlockAvg)+6,COLUMN(Calculation!JDGraph)))),#N/A) -> 3319.537943 | BO22: 11.68009598 | BP22: 0.0008646297557
B23: WASP-12b_00056_bdf.fits | C23: 2013-01-27 | D23: 00:52:39.130 | E23: 2456319.537 | F23: 3319.536564 | G23: 100 | H23: -10.13996437 | I23: 0.001455090219 | J23: -12.2623509 | K23: 0.0003969148176 | L23: -12.07988318 | M23: 0.0004375546467 | N23: -11.35597319 | O23: 0.0006584236146 | P23: -11.02676289 | Q23: 0.0008047097953 | R23: -10.27748196 | S23: 0.00132106169 | T23: -9.559333807 | U23: 0.002243620414 | V23: -9.119802787 | W23: 0.003180374785 | X23: Blank | Y23: Blank | Z23: 0 | AA23: =(Results!$F$14-$J23)*$AB$2 -> 21.7143509 | AB23: =(1/SUMSQ(Results!$G$14,$K23))*$AB$2 -> 6347538.965 | AC23: 0.3896060735 | AD23: =(Results!$F$15-$L23)*$AE$2 -> 21.82688318 | AE23: =(1/SUMSQ(Results!$G$15,$M23))*$AE$2 -> 5223184.892 | AF23: 0.3205942599 | AG23: =(Results!$F$16-$N23)*$AH$2 -> 21.92397319 | AH23: =(1/SUMSQ(Results!$G$16,$O23))*$AH$2 -> 2306689.84 | AI23: 0.1415824899 | AJ23: =(Results!$F$17-$P23)*$AK$2 -> 22.01076289 | AK23: =(1/SUMSQ(Results!$G$17,$Q23))*$AK$2 -> 1544263.563 | AL23: 0.09478546988 | AM23: =(Results!$F$18-$R23)*$AN$2 -> 21.97448196 | AN23: =(1/SUMSQ(Results!$G$18,$S23))*$AN$2 -> 572998.9193 | AO23: 0.03517014394 | AP23: =(Results!$F$19-$T23)*$AQ$2 -> 21.84433381 | AQ23: =(1/SUMSQ(Results!$G$19,$U23))*$AQ$2 -> 198655.7932 | AR23: 0.01219330893 | AS23: =(Results!$F$20-$V23)*$AT$2 -> 21.90180279 | AT23: =(1/SUMSQ(Results!$G$20,$W23))*$AT$2 -> 98865.1881 | AU23: 0.006068253847 | AV23: 21.82007377 | AW23: 0.04129340033 | AX23: 11.6801094 | AY23: 0.0413190295 | AZ23: 9.557722874 | BA23: 0.04129530787 | BB23: 9.740190594 | BC23: 0.04129571848 | BD23: 10.46410058 | BE23: 0.04129864928 | BF23: 10.79331088 | BG23: 0.04130124052 | BH23: 11.54259181 | BI23: 0.04131452668 | BJ23: 12.26073996 | BK23: 0.04135430744 | BL23: 12.70027098 | BM23: 0.04141569382 | BN23: =IF(MOD(ROW($BN23)-7,oBlockAvg)=0,AVERAGE(INDIRECT(ADDRESS((INT((ROW($BN23)-7)/oBlockAvg)*oBlockAvg)+7,COLUMN(Calculation!JDGraph))&":"&ADDRESS(((INT((ROW($BN23)-7)/oBlockAvg)+1)*oBlockAvg)+6,COLUMN(Calculation!JDGraph)))),#N/A) -> 
B24: WASP-12b_00057_bdf.fits | C24: 2013-01-27 | D24: 00:54:38.275 | E24: 2456319.538 | F24: 3319.537943 | G24: 100 | H24: -10.15546365 | I24: 0.001436218607 | J24: -12.27790625 | K24: 0.0003934089041 | L24: -12.09375013 | M24: 0.0004342028323 | N24: -11.37114892 | O24: 0.0006521613633 | P24: -11.04155622 | Q24: 0.0007965965194 | R24: -10.29211031 | S24: 0.001304705652 | T24: -9.580248584 | U24: 0.002199266648 | V24: -9.141777797 | W24: 0.003113522426 | X24: Blank | Y24: Blank | Z24: 0 | AA24: =(Results!$F$14-$J24)*$AB$2 -> 21.72990625 | AB24: =(1/SUMSQ(Results!$G$14,$K24))*$AB$2 -> 6461176.869 | AC24: 0.389467858 | AD24: =(Results!$F$15-$L24)*$AE$2 -> 21.84075013 | AE24: =(1/SUMSQ(Results!$G$15,$M24))*$AE$2 -> 5304136.55 | AF24: 0.3197235956 | AG24: =(Results!$F$16-$N24)*$AH$2 -> 21.93914892 | AH24: =(1/SUMSQ(Results!$G$16,$O24))*$AH$2 -> 2351201.598 | AI24: 0.1417261079 | AJ24: =(Results!$F$17-$P24)*$AK$2 -> 22.02555622 | AK24: =(1/SUMSQ(Results!$G$17,$Q24))*$AK$2 -> 1575880.171 | AL24: 0.0949911583 | AM24: =(Results!$F$18-$R24)*$AN$2 -> 21.98911031 | AN24: =(1/SUMSQ(Results!$G$18,$S24))*$AN$2 -> 587455.4167 | AO24: 0.03541073204 | AP24: =(Results!$F$19-$T24)*$AQ$2 -> 21.86524858 | AQ24: =(1/SUMSQ(Results!$G$19,$U24))*$AQ$2 -> 206749.3837 | AR24: 0.01246247258 | AS24: =(Results!$F$20-$V24)*$AT$2 -> 21.9237778 | AT24: =(1/SUMSQ(Results!$G$20,$W24))*$AT$2 -> 103156.3587 | AU24: 0.006218075572 | AV24: 21.83515575 | AW24: 0.04123127203 | AX24: 11.6796921 | AY24: 0.04125627852 | AZ24: 9.557249499 | BA24: 0.04123314885 | BB24: 9.741405618 | BC24: 0.04123355825 | BD24: 10.46400683 | BE24: 0.04123642938 | BF24: 10.79359953 | BG24: 0.04123896652 | BH24: 11.54304544 | BI24: 0.04125190966 | BJ24: 12.25490717 | BK24: 0.04128988456 | BL24: 12.69337795 | BM24: 0.04134866159 | BN24: =IF(MOD(ROW($BN24)-7,oBlockAvg)=0,AVERAGE(INDIRECT(ADDRESS((INT((ROW($BN24)-7)/oBlockAvg)*oBlockAvg)+7,COLUMN(Calculation!JDGraph))&":"&ADDRESS(((INT((ROW($BN24)-7)/oBlockAvg)+1)*oBlockAvg)+6,COLUMN(Calculation!JDGraph)))),#N/A) -> 
B25: WASP-12b_00058_bdf.fits | C25: 2013-01-27 | D25: 00:56:37.421 | E25: 2456319.539 | F25: 3319.539322 | G25: 100 | H25: -10.14035124 | I25: 0.001453753566 | J25: -12.26167353 | K25: 0.0003972319964 | L25: -12.07949724 | M25: 0.0004374242706 | N25: -11.3544958 | O25: 0.0006589025615 | P25: -11.02591115 | Q25: 0.0008044817194 | R25: -10.28014021 | S25: 0.001319139134 | T25: -9.560115305 | U25: 0.002233210166 | V25: -9.128927026 | W25: 0.003160295157 | X25: Blank | Y25: Blank | Z25: 0 | AA25: =(Results!$F$14-$J25)*$AB$2 -> 21.71367353 | AB25: =(1/SUMSQ(Results!$G$14,$K25))*$AB$2 -> 6337406.341 | AC25: 0.3890965535 | AD25: =(Results!$F$15-$L25)*$AE$2 -> 21.82649724 | AE25: =(1/SUMSQ(Results!$G$15,$M25))*$AE$2 -> 5226298.941 | AF25: 0.3208780999 | AG25: =(Results!$F$16-$N25)*$AH$2 -> 21.9224958 | AH25: =(1/SUMSQ(Results!$G$16,$O25))*$AH$2 -> 2303337.659 | AI25: 0.141417592 | AJ25: =(Results!$F$17-$P25)*$AK$2 -> 22.00991115 | AK25: =(1/SUMSQ(Results!$G$17,$Q25))*$AK$2 -> 1545139.305 | AL25: 0.09486662933 | AM25: =(Results!$F$18-$R25)*$AN$2 -> 21.97714021 | AN25: =(1/SUMSQ(Results!$G$18,$S25))*$AN$2 -> 574670.3511 | AO25: 0.03528292822 | AP25: =(Results!$F$19-$T25)*$AQ$2 -> 21.8451153 | AQ25: =(1/SUMSQ(Results!$G$19,$U25))*$AQ$2 -> 200512.2026 | AR25: 0.01231081026 | AS25: =(Results!$F$20-$V25)*$AT$2 -> 21.91092703 | AT25: =(1/SUMSQ(Results!$G$20,$W25))*$AT$2 -> 100125.5025 | AU25: 0.006147386779 | AV25: 21.81963702 | AW25: 0.04133045199 | AX25: 11.67928578 | AY25: 0.04135601119 | AZ25: 9.55796349 | BA25: 0.04133236087 | BB25: 9.74013978 | BC25: 0.04133276669 | BD25: 10.46514122 | BE25: 0.04133570387 | BF25: 10.79372586 | BG25: 0.04133828072 | BH25: 11.53949681 | BI25: 0.04135149804 | BJ25: 12.25952171 | BK25: 0.04139074159 | BL25: 12.69070999 | BM25: 0.04145110044 | BN25: =IF(MOD(ROW($BN25)-7,oBlockAvg)=0,AVERAGE(INDIRECT(ADDRESS((INT((ROW($BN25)-7)/oBlockAvg)*oBlockAvg)+7,COLUMN(Calculation!JDGraph))&":"&ADDRESS(((INT((ROW($BN25)-7)/oBlockAvg)+1)*oBlockAvg)+6,COLUMN(Calculation!JDGraph)))),#N/A) -> 
B26: WASP-12b_00059_bdf.fits | C26: 2013-01-27 | D26: 00:58:36.653 | E26: 2456319.541 | F26: 3319.540702 | G26: 100 | H26: -10.11013932 | I26: 0.001492728022 | J26: -12.23493356 | K26: 0.0004038903276 | L26: -12.0562529 | M26: 0.00044436443 | N26: -11.32569343 | O26: 0.0006727339586 | P26: -10.9989054 | Q26: 0.0008212722552 | R26: -10.25761289 | S26: 0.001348867218 | T26: -9.530790181 | U26: 0.002303600123 | V26: -9.094366892 | W26: 0.003269721002 | X26: Blank | Y26: Blank | Z26: 0 | AA26: =(Results!$F$14-$J26)*$AB$2 -> 21.68693356 | AB26: =(1/SUMSQ(Results!$G$14,$K26))*$AB$2 -> 6130178.131 | AC26: 0.3900024749 | AD26: =(Results!$F$15-$L26)*$AE$2 -> 21.8032529 | AE26: =(1/SUMSQ(Results!$G$15,$M26))*$AE$2 -> 5064323.321 | AF26: 0.3221926976 | AG26: =(Results!$F$16-$N26)*$AH$2 -> 21.89369343 | AH26: =(1/SUMSQ(Results!$G$16,$O26))*$AH$2 -> 2209598.154 | AI26: 0.14057483 | AJ26: =(Results!$F$17-$P26)*$AK$2 -> 21.9829054 | AK26: =(1/SUMSQ(Results!$G$17,$Q26))*$AK$2 -> 1482605.808 | AL26: 0.09432351263 | AM26: =(Results!$F$18-$R26)*$AN$2 -> 21.95461289 | AN26: =(1/SUMSQ(Results!$G$18,$S26))*$AN$2 -> 549618.8259 | AO26: 0.03496679831 | AP26: =(Results!$F$19-$T26)*$AQ$2 -> 21.81579018 | AQ26: =(1/SUMSQ(Results!$G$19,$U26))*$AQ$2 -> 188445.5185 | AR26: 0.01198892055 | AS26: =(Results!$F$20-$V26)*$AT$2 -> 21.87636689 | AT26: =(1/SUMSQ(Results!$G$20,$W26))*$AT$2 -> 93535.95963 | AU26: 0.005950766025 | AV26: 21.79342516 | AW26: 0.04124949533 | AX26: 11.68328584 | AY26: 0.04127649575 | AZ26: 9.558491591 | BA26: 0.0412514726 | BB26: 9.737172256 | BC26: 0.04125188874 | BD26: 10.46773172 | BE26: 0.04125498074 | BF26: 10.79451975 | BG26: 0.04125767023 | BH26: 11.53581226 | BI26: 0.04127154355 | BJ26: 12.26263497 | BK26: 0.04131376814 | BL26: 12.69905826 | BM26: 0.04137888278 | BN26: =IF(MOD(ROW($BN26)-7,oBlockAvg)=0,AVERAGE(INDIRECT(ADDRESS((INT((ROW($BN26)-7)/oBlockAvg)*oBlockAvg)+7,COLUMN(Calculation!JDGraph))&":"&ADDRESS(((INT((ROW($BN26)-7)/oBlockAvg)+1)*oBlockAvg)+6,COLUMN(Calculation!JDGraph)))),#N/A) -> 
B27: WASP-12b_00060_bdf.fits | C27: 2013-01-27 | D27: 01:00:35.798 | E27: 2456319.542 | F27: 3319.542081 | G27: 100 | H27: -10.14074956 | I27: 0.001466727563 | J27: -12.26401938 | K27: 0.0003976041038 | L27: -12.08331233 | M27: 0.0004377933473 | N27: -11.35505016 | O27: 0.0006631133664 | P27: -11.02761822 | Q27: 0.0008085977158 | R27: -10.28194952 | S27: 0.001325604483 | T27: -9.563045274 | U27: 0.002260592495 | V27: -9.126789492 | W27: 0.003198905608 | X27: Blank | Y27: Blank | Z27: 0 | AA27: =(Results!$F$14-$J27)*$AB$2 -> 21.71601938 | AB27: =(1/SUMSQ(Results!$G$14,$K27))*$AB$2 -> 6325549.862 | AC27: 0.3902455545 | AD27: =(Results!$F$15-$L27)*$AE$2 -> 21.83031233 | AE27: =(1/SUMSQ(Results!$G$15,$M27))*$AE$2 -> 5217490.711 | AF27: 0.3218854645 | AG27: =(Results!$F$16-$N27)*$AH$2 -> 21.92305016 | AH27: =(1/SUMSQ(Results!$G$16,$O27))*$AH$2 -> 2274177.905 | AI27: 0.1403020823 | AJ27: =(Results!$F$17-$P27)*$AK$2 -> 22.01161822 | AK27: =(1/SUMSQ(Results!$G$17,$Q27))*$AK$2 -> 1529448.929 | AL27: 0.09435711652 | AM27: =(Results!$F$18-$R27)*$AN$2 -> 21.97894952 | AN27: =(1/SUMSQ(Results!$G$18,$S27))*$AN$2 -> 569078.3603 | AO27: 0.03510845778 | AP27: =(Results!$F$19-$T27)*$AQ$2 -> 21.84804527 | AQ27: =(1/SUMSQ(Results!$G$19,$U27))*$AQ$2 -> 195684.054 | AR27: 0.01207244173 | AS27: =(Results!$F$20-$V27)*$AT$2 -> 21.90878949 | AT27: =(1/SUMSQ(Results!$G$20,$W27))*$AT$2 -> 97723.08065 | AU27: 0.006028882647 | AV27: 21.82173446 | AW27: 0.04112796989 | AX27: 11.6809849 | AY27: 0.04115411519 | AZ27: 9.557715076 | BA27: 0.04112989176 | BB27: 9.738422131 | BC27: 0.04113029991 | BD27: 10.4666843 | BE27: 0.04113331529 | BF27: 10.79411623 | BG27: 0.04113591785 | BH27: 11.53978494 | BI27: 0.04114932727 | BJ27: 12.25868918 | BK27: 0.0411900496 | BL27: 12.69494497 | BM27: 0.04125218666 | BN27: =IF(MOD(ROW($BN27)-7,oBlockAvg)=0,AVERAGE(INDIRECT(ADDRESS((INT((ROW($BN27)-7)/oBlockAvg)*oBlockAvg)+7,COLUMN(Calculation!JDGraph))&":"&ADDRESS(((INT((ROW($BN27)-7)/oBlockAvg)+1)*oBlockAvg)+6,COLUMN(Calculation!JDGraph)))),#N/A) -> 3319.544839 | BO27: 11.67984037 | BP27: 0.0006089959174
B28: WASP-12b_00061_bdf.fits | C28: 2013-01-27 | D28: 01:02:34.944 | E28: 2456319.543 | F28: 3319.54346 | G28: 100 | H28: -10.14302388 | I28: 0.001473706826 | J28: -12.26622321 | K28: 0.0003980327827 | L28: -12.08458908 | M28: 0.0004384892753 | N28: -11.35984182 | O28: 0.0006614744724 | P28: -11.03144087 | Q28: 0.0008099988998 | R28: -10.28272269 | S28: 0.001331314692 | T28: -9.567978963 | U28: 0.002259922206 | V28: -9.121006556 | W28: 0.003240698546 | X28: Blank | Y28: Blank | Z28: 0 | AA28: =(Results!$F$14-$J28)*$AB$2 -> 21.71822321 | AB28: =(1/SUMSQ(Results!$G$14,$K28))*$AB$2 -> 6311932.04 | AC28: 0.39016194 | AD28: =(Results!$F$15-$L28)*$AE$2 -> 21.83158908 | AE28: =(1/SUMSQ(Results!$G$15,$M28))*$AE$2 -> 5200942.453 | AF28: 0.3214879033 | AG28: =(Results!$F$16-$N28)*$AH$2 -> 21.92784182 | AH28: =(1/SUMSQ(Results!$G$16,$O28))*$AH$2 -> 2285461.043 | AI28: 0.1412721031 | AJ28: =(Results!$F$17-$P28)*$AK$2 -> 22.01544087 | AK28: =(1/SUMSQ(Results!$G$17,$Q28))*$AK$2 -> 1524162.043 | AL28: 0.0942136284 | AM28: =(Results!$F$18-$R28)*$AN$2 -> 21.97972269 | AN28: =(1/SUMSQ(Results!$G$18,$S28))*$AN$2 -> 564207.1042 | AO28: 0.03487555584 | AP28: =(Results!$F$19-$T28)*$AQ$2 -> 21.85297896 | AQ28: =(1/SUMSQ(Results!$G$19,$U28))*$AQ$2 -> 195800.1503 | AR28: 0.01210307177 | AS28: =(Results!$F$20-$V28)*$AT$2 -> 21.90300656 | AT28: =(1/SUMSQ(Results!$G$20,$W28))*$AT$2 -> 95218.80603 | AU28: 0.005885797542 | AV28: 21.82412268 | AW28: 0.04133760278 | AX28: 11.6810988 | AY28: 0.04136386364 | AZ28: 9.55789947 | BA28: 0.04133951903 | BB28: 9.739533597 | BC28: 0.04133992835 | BD28: 10.46428085 | BE28: 0.04134289482 | BF28: 10.79268181 | BG28: 0.04134553787 | BH28: 11.54139999 | BI28: 0.04135903532 | BJ28: 12.25614371 | BK28: 0.04139933154 | BL28: 12.70311612 | BM28: 0.04146443694 | BN28: =IF(MOD(ROW($BN28)-7,oBlockAvg)=0,AVERAGE(INDIRECT(ADDRESS((INT((ROW($BN28)-7)/oBlockAvg)*oBlockAvg)+7,COLUMN(Calculation!JDGraph))&":"&ADDRESS(((INT((ROW($BN28)-7)/oBlockAvg)+1)*oBlockAvg)+6,COLUMN(Calculation!JDGraph)))),#N/A) -> 
B29: WASP-12b_00062_bdf.fits | C29: 2013-01-27 | D29: 01:04:34.090 | E29: 2456319.545 | F29: 3319.544839 | G29: 100 | H29: -10.15191447 | I29: 0.001469032373 | J29: -12.27496108 | K29: 0.0003965506073 | L29: -12.09210064 | M29: 0.0004374092589 | N29: -11.36750185 | O29: 0.0006603689379 | P29: -11.04052411 | Q29: 0.0008064203335 | R29: -10.29096285 | S29: 0.001334219492 | T29: -9.56847609 | U29: 0.002272663152 | V29: -9.130955773 | W29: 0.003235432075 | X29: Blank | Y29: Blank | Z29: 0 | AA29: =(Results!$F$14-$J29)*$AB$2 -> 21.72696108 | AB29: =(1/SUMSQ(Results!$G$14,$K29))*$AB$2 -> 6359204.063 | AC29: 0.390912397 | AD29: =(Results!$F$15-$L29)*$AE$2 -> 21.83910064 | AE29: =(1/SUMSQ(Results!$G$15,$M29))*$AE$2 -> 5226657.675 | AF29: 0.3212926114 | AG29: =(Results!$F$16-$N29)*$AH$2 -> 21.93550185 | AH29: =(1/SUMSQ(Results!$G$16,$O29))*$AH$2 -> 2293119.704 | AI29: 0.1409624398 | AJ29: =(Results!$F$17-$P29)*$AK$2 -> 22.02452411 | AK29: =(1/SUMSQ(Results!$G$17,$Q29))*$AK$2 -> 1537719.283 | AL29: 0.09452653586 | AM29: =(Results!$F$18-$R29)*$AN$2 -> 21.98796285 | AN29: =(1/SUMSQ(Results!$G$18,$S29))*$AN$2 -> 561753.0486 | AO29: 0.03453203083 | AP29: =(Results!$F$19-$T29)*$AQ$2 -> 21.85347609 | AQ29: =(1/SUMSQ(Results!$G$19,$U29))*$AQ$2 -> 193610.9246 | AR29: 0.01190163264 | AS29: =(Results!$F$20-$V29)*$AT$2 -> 21.91295577 | AT29: =(1/SUMSQ(Results!$G$20,$W29))*$AT$2 -> 95529.04292 | AU29: 0.005872352386 | AV29: 21.83212559 | AW29: 0.04128536883 | AX29: 11.68021113 | AY29: 0.04131149641 | AZ29: 9.557164508 | BA29: 0.04128727324 | BB29: 9.740024958 | BC29: 0.04128768589 | BD29: 10.46462375 | BE29: 0.04129064987 | BF29: 10.79160148 | BG29: 0.04129324392 | BH29: 11.54116275 | BI29: 0.0413069222 | BJ29: 12.2636495 | BK29: 0.04134787392 | BL29: 12.70116982 | BM29: 0.04141195118 | BN29: =IF(MOD(ROW($BN29)-7,oBlockAvg)=0,AVERAGE(INDIRECT(ADDRESS((INT((ROW($BN29)-7)/oBlockAvg)*oBlockAvg)+7,COLUMN(Calculation!JDGraph))&":"&ADDRESS(((INT((ROW($BN29)-7)/oBlockAvg)+1)*oBlockAvg)+6,COLUMN(Calculation!JDGraph)))),#N/A) -> 
B30: WASP-12b_00063_bdf.fits | C30: 2013-01-27 | D30: 01:06:33.235 | E30: 2456319.546 | F30: 3319.546218 | G30: 100 | H30: -10.14907348 | I30: 0.001476012434 | J30: -12.26964237 | K30: 0.0003979492303 | L30: -12.08761045 | M30: 0.000438987699 | N30: -11.36082755 | O30: 0.0006647182827 | P30: -11.03624766 | Q30: 0.0008109073315 | R30: -10.2896667 | S30: 0.00133709594 | T30: -9.566230093 | U30: 0.002283340998 | V30: -9.12633715 | W30: 0.003265959804 | X30: Blank | Y30: Blank | Z30: 0 | AA30: =(Results!$F$14-$J30)*$AB$2 -> 21.72164237 | AB30: =(1/SUMSQ(Results!$G$14,$K30))*$AB$2 -> 6314582.795 | AC30: 0.3914181637 | AD30: =(Results!$F$15-$L30)*$AE$2 -> 21.83461045 | AE30: =(1/SUMSQ(Results!$G$15,$M30))*$AE$2 -> 5189138.928 | AF30: 0.3216559662 | AG30: =(Results!$F$16-$N30)*$AH$2 -> 21.92882755 | AH30: =(1/SUMSQ(Results!$G$16,$O30))*$AH$2 -> 2263209.472 | AI30: 0.1402881749 | AJ30: =(Results!$F$17-$P30)*$AK$2 -> 22.02024766 | AK30: =(1/SUMSQ(Results!$G$17,$Q30))*$AK$2 -> 1520749.023 | AL30: 0.09426573526 | AM30: =(Results!$F$18-$R30)*$AN$2 -> 21.9866667 | AN30: =(1/SUMSQ(Results!$G$18,$S30))*$AN$2 -> 559338.6888 | AO30: 0.03467138361 | AP30: =(Results!$F$19-$T30)*$AQ$2 -> 21.85123009 | AQ30: =(1/SUMSQ(Results!$G$19,$U30))*$AQ$2 -> 191804.3493 | AR30: 0.01188925834 | AS30: =(Results!$F$20-$V30)*$AT$2 -> 21.90833715 | AT30: =(1/SUMSQ(Results!$G$20,$W30))*$AT$2 -> 93751.5225 | AU30: 0.005811318018 | AV30: 21.82700751 | AW30: 0.04136772128 | AX30: 11.67793403 | AY30: 0.04139404518 | AZ30: 9.557365142 | BA30: 0.04136963533 | BB30: 9.739397056 | BC30: 0.04137005045 | BD30: 10.46617996 | BE30: 0.04137306145 | BF30: 10.79075985 | BG30: 0.04137566839 | BH30: 11.53734081 | BI30: 0.04138932458 | BJ30: 12.26077742 | BK30: 0.04143068923 | BL30: 12.70067036 | BM30: 0.04149644391 | BN30: =IF(MOD(ROW($BN30)-7,oBlockAvg)=0,AVERAGE(INDIRECT(ADDRESS((INT((ROW($BN30)-7)/oBlockAvg)*oBlockAvg)+7,COLUMN(Calculation!JDGraph))&":"&ADDRESS(((INT((ROW($BN30)-7)/oBlockAvg)+1)*oBlockAvg)+6,COLUMN(Calculation!JDGraph)))),#N/A) -> 
B31: WASP-12b_00064_bdf.fits | C31: 2013-01-27 | D31: 01:08:32.381 | E31: 2456319.548 | F31: 3319.547597 | G31: 100 | H31: -10.15596376 | I31: 0.001472262363 | J31: -12.27833343 | K31: 0.000396224705 | L31: -12.09357852 | M31: 0.0004379439438 | N31: -11.37053585 | O31: 0.0006613224394 | P31: -11.04579313 | Q31: 0.0008075827313 | R31: -10.2947037 | S31: 0.001339788649 | T31: -9.577967383 | U31: 0.002276017595 | V31: -9.141841573 | W31: 0.003238843246 | X31: Blank | Y31: Blank | Z31: 0 | AA31: =(Results!$F$14-$J31)*$AB$2 -> 21.73033343 | AB31: =(1/SUMSQ(Results!$G$14,$K31))*$AB$2 -> 6369669.494 | AC31: 0.3920076074 | AD31: =(Results!$F$15-$L31)*$AE$2 -> 21.84057852 | AE31: =(1/SUMSQ(Results!$G$15,$M31))*$AE$2 -> 5213903.034 | AF31: 0.3208784467 | AG31: =(Results!$F$16-$N31)*$AH$2 -> 21.93853585 | AH31: =(1/SUMSQ(Results!$G$16,$O31))*$AH$2 -> 2286511.984 | AI31: 0.1407184616 | AJ31: =(Results!$F$17-$P31)*$AK$2 -> 22.02979313 | AK31: =(1/SUMSQ(Results!$G$17,$Q31))*$AK$2 -> 1533295.823 | AL31: 0.09436339318 | AM31: =(Results!$F$18-$R31)*$AN$2 -> 21.9917037 | AN31: =(1/SUMSQ(Results!$G$18,$S31))*$AN$2 -> 557092.6286 | AO31: 0.03428506748 | AP31: =(Results!$F$19-$T31)*$AQ$2 -> 21.86296738 | AQ31: =(1/SUMSQ(Results!$G$19,$U31))*$AQ$2 -> 193040.6494 | AR31: 0.01188027152 | AS31: =(Results!$F$20-$V31)*$AT$2 -> 21.92384157 | AT31: =(1/SUMSQ(Results!$G$20,$W31))*$AT$2 -> 95327.92525 | AU31: 0.005866752102 | AV31: 21.83493675 | AW31: 0.04141452855 | AX31: 11.67897299 | AY31: 0.04144068932 | AZ31: 9.556603321 | BA31: 0.04141642391 | BB31: 9.741358229 | BC31: 0.04141684404 | BD31: 10.4644009 | BE31: 0.04141980834 | BF31: 10.78914362 | BG31: 0.04142240173 | BH31: 11.54023305 | BI31: 0.04143619443 | BJ31: 12.25696937 | BK31: 0.04147702293 | BL31: 12.69309518 | BM31: 0.04154098315 | BN31: =IF(MOD(ROW($BN31)-7,oBlockAvg)=0,AVERAGE(INDIRECT(ADDRESS((INT((ROW($BN31)-7)/oBlockAvg)*oBlockAvg)+7,COLUMN(Calculation!JDGraph))&":"&ADDRESS(((INT((ROW($BN31)-7)/oBlockAvg)+1)*oBlockAvg)+6,COLUMN(Calculation!JDGraph)))),#N/A) -> 
B32: WASP-12b_00065_bdf.fits | C32: 2013-01-27 | D32: 01:10:31.526 | E32: 2456319.549 | F32: 3319.548976 | G32: 100 | H32: -10.1877885 | I32: 0.001443731642 | J32: -12.30630956 | K32: 0.0003906900384 | L32: -12.11971565 | M32: 0.0004321335121 | N32: -11.39918232 | O32: 0.0006511049876 | P32: -11.06960383 | Q32: 0.0007975995605 | R32: -10.32082771 | S32: 0.001318568277 | T32: -9.606792669 | U32: 0.002232182123 | V32: -9.167488906 | W32: 0.003187719948 | X32: Blank | Y32: Blank | Z32: 0 | AA32: =(Results!$F$14-$J32)*$AB$2 -> 21.75830956 | AB32: =(1/SUMSQ(Results!$G$14,$K32))*$AB$2 -> 6551418.218 | AC32: 0.3920303756 | AD32: =(Results!$F$15-$L32)*$AE$2 -> 21.86671565 | AE32: =(1/SUMSQ(Results!$G$15,$M32))*$AE$2 -> 5355057.092 | AF32: 0.3204413111 | AG32: =(Results!$F$16-$N32)*$AH$2 -> 21.96718232 | AH32: =(1/SUMSQ(Results!$G$16,$O32))*$AH$2 -> 2358837.132 | AI32: 0.1411504771 | AJ32: =(Results!$F$17-$P32)*$AK$2 -> 22.05360383 | AK32: =(1/SUMSQ(Results!$G$17,$Q32))*$AK$2 -> 1571919.089 | AL32: 0.09406208098 | AM32: =(Results!$F$18-$R32)*$AN$2 -> 22.01782771 | AN32: =(1/SUMSQ(Results!$G$18,$S32))*$AN$2 -> 575168.0509 | AO32: 0.03441748634 | AP32: =(Results!$F$19-$T32)*$AQ$2 -> 21.89179267 | AQ32: =(1/SUMSQ(Results!$G$19,$U32))*$AQ$2 -> 200696.939 | AR32: 0.012009506 | AS32: =(Results!$F$20-$V32)*$AT$2 -> 21.94948891 | AT32: =(1/SUMSQ(Results!$G$20,$W32))*$AT$2 -> 98410.10149 | AU32: 0.005888762977 | AV32: 21.86196667 | AW32: 0.04108607305 | AX32: 11.67417817 | AY32: 0.04111143101 | AZ32: 9.555657112 | BA32: 0.04108793056 | BB32: 9.742251022 | BC32: 0.04108834553 | BD32: 10.46278435 | BE32: 0.04109123187 | BF32: 10.79236284 | BG32: 0.04109381418 | BH32: 11.54113896 | BI32: 0.0411072259 | BJ32: 12.255174 | BK32: 0.04114666494 | BL32: 12.69447776 | BM32: 0.04120954935 | BN32: =IF(MOD(ROW($BN32)-7,oBlockAvg)=0,AVERAGE(INDIRECT(ADDRESS((INT((ROW($BN32)-7)/oBlockAvg)*oBlockAvg)+7,COLUMN(Calculation!JDGraph))&":"&ADDRESS(((INT((ROW($BN32)-7)/oBlockAvg)+1)*oBlockAvg)+6,COLUMN(Calculation!JDGraph)))),#N/A) -> 3319.551735 | BO32: 11.67628239 | BP32: 0.0006242697256
B33: WASP-12b_00066_bdf.fits | C33: 2013-01-27 | D33: 01:12:30.758 | E33: 2456319.55 | F33: 3319.550356 | G33: 100 | H33: -10.18302474 | I33: 0.001452930224 | J33: -12.3049526 | K33: 0.0003913019854 | L33: -12.11902602 | M33: 0.0004324697157 | N33: -11.39928327 | O33: 0.000651731816 | P33: -11.0683588 | Q33: 0.0007980750632 | R33: -10.31817192 | S33: 0.001322297112 | T33: -9.60734233 | U33: 0.002228382252 | V33: -9.163530078 | W33: 0.00319449651 | X33: Blank | Y33: Blank | Z33: 0 | AA33: =(Results!$F$14-$J33)*$AB$2 -> 21.7569526 | AB33: =(1/SUMSQ(Results!$G$14,$K33))*$AB$2 -> 6530943.057 | AC33: 0.3916999948 | AD33: =(Results!$F$15-$L33)*$AE$2 -> 21.86602602 | AE33: =(1/SUMSQ(Results!$G$15,$M33))*$AE$2 -> 5346734.246 | AF33: 0.3206758592 | AG33: =(Results!$F$16-$N33)*$AH$2 -> 21.96728327 | AH33: =(1/SUMSQ(Results!$G$16,$O33))*$AH$2 -> 2354301.908 | AI33: 0.1412016667 | AJ33: =(Results!$F$17-$P33)*$AK$2 -> 22.0523588 | AK33: =(1/SUMSQ(Results!$G$17,$Q33))*$AK$2 -> 1570046.511 | AL33: 0.09416514654 | AM33: =(Results!$F$18-$R33)*$AN$2 -> 22.01517192 | AN33: =(1/SUMSQ(Results!$G$18,$S33))*$AN$2 -> 571928.7139 | AO33: 0.03430201003 | AP33: =(Results!$F$19-$T33)*$AQ$2 -> 21.89234233 | AQ33: =(1/SUMSQ(Results!$G$19,$U33))*$AQ$2 -> 201381.9854 | AR33: 0.0120780907 | AS33: =(Results!$F$20-$V33)*$AT$2 -> 21.94553008 | AT33: =(1/SUMSQ(Results!$G$20,$W33))*$AT$2 -> 97993.02495 | AU33: 0.005877231975 | AV33: 21.86104683 | AW33: 0.04115207981 | AX33: 11.67802208 | AY33: 0.04117772066 | AZ33: 9.556094228 | BA33: 0.04115394015 | BB33: 9.742020807 | BC33: 0.04115435217 | BD33: 10.46176356 | BE33: 0.04115724028 | BF33: 10.79268802 | BG33: 0.04115981774 | BH33: 11.5428749 | BI33: 0.04117331833 | BJ33: 12.2537045 | BK33: 0.04121236902 | BL33: 12.69751675 | BM33: 0.04127588256 | BN33: =IF(MOD(ROW($BN33)-7,oBlockAvg)=0,AVERAGE(INDIRECT(ADDRESS((INT((ROW($BN33)-7)/oBlockAvg)*oBlockAvg)+7,COLUMN(Calculation!JDGraph))&":"&ADDRESS(((INT((ROW($BN33)-7)/oBlockAvg)+1)*oBlockAvg)+6,COLUMN(Calculation!JDGraph)))),#N/A) -> 
B34: WASP-12b_00067_bdf.fits | C34: 2013-01-27 | D34: 01:14:29.904 | E34: 2456319.552 | F34: 3319.551735 | G34: 100 | H34: -10.16452717 | I34: 0.001478822149 | J34: -12.2839383 | K34: 0.0003961208837 | L34: -12.10061757 | M34: 0.0004375331334 | N34: -11.37725719 | O34: 0.0006618591337 | P34: -11.04952757 | Q34: 0.0008105264283 | R34: -10.30287996 | S34: 0.001344937559 | T34: -9.580657178 | U34: 0.002293613459 | V34: -9.145446595 | W34: 0.003269418446 | X34: Blank | Y34: Blank | Z34: 0 | AA34: =(Results!$F$14-$J34)*$AB$2 -> 21.7359383 | AB34: =(1/SUMSQ(Results!$G$14,$K34))*$AB$2 -> 6373008.85 | AC34: 0.3924708777 | AD34: =(Results!$F$15-$L34)*$AE$2 -> 21.84761757 | AE34: =(1/SUMSQ(Results!$G$15,$M34))*$AE$2 -> 5223698.548 | AF34: 0.3216925635 | AG34: =(Results!$F$16-$N34)*$AH$2 -> 21.94525719 | AH34: =(1/SUMSQ(Results!$G$16,$O34))*$AH$2 -> 2282805.272 | AI34: 0.1405826682 | AJ34: =(Results!$F$17-$P34)*$AK$2 -> 22.03352757 | AK34: =(1/SUMSQ(Results!$G$17,$Q34))*$AK$2 -> 1522178.697 | AL34: 0.09374077821 | AM34: =(Results!$F$18-$R34)*$AN$2 -> 21.99987996 | AN34: =(1/SUMSQ(Results!$G$18,$S34))*$AN$2 -> 552835.2871 | AO34: 0.03404541802 | AP34: =(Results!$F$19-$T34)*$AQ$2 -> 21.86565718 | AQ34: =(1/SUMSQ(Results!$G$19,$U34))*$AQ$2 -> 190090.1192 | AR34: 0.0117063757 | AS34: =(Results!$F$20-$V34)*$AT$2 -> 21.9274466 | AT34: =(1/SUMSQ(Results!$G$20,$W34))*$AT$2 -> 93553.2723 | AU34: 0.005761318673 | AV34: 21.84079543 | AW34: 0.04134901674 | AX34: 11.67626827 | AY34: 0.04137545287 | AZ34: 9.556857129 | BA34: 0.0413509141 | BB34: 9.740177861 | BC34: 0.04135133154 | BD34: 10.46353825 | BE34: 0.04135431347 | BF34: 10.79126786 | BG34: 0.04135695997 | BH34: 11.53791547 | BI34: 0.04137088399 | BJ34: 12.26013825 | BK34: 0.04141258079 | BL34: 12.69534884 | BM34: 0.04147806989 | BN34: =IF(MOD(ROW($BN34)-7,oBlockAvg)=0,AVERAGE(INDIRECT(ADDRESS((INT((ROW($BN34)-7)/oBlockAvg)*oBlockAvg)+7,COLUMN(Calculation!JDGraph))&":"&ADDRESS(((INT((ROW($BN34)-7)/oBlockAvg)+1)*oBlockAvg)+6,COLUMN(Calculation!JDGraph)))),#N/A) -> 
B35: WASP-12b_00068_bdf.fits | C35: 2013-01-27 | D35: 01:16:29.050 | E35: 2456319.553 | F35: 3319.553114 | G35: 100 | H35: -10.20151851 | I35: 0.001448489566 | J35: -12.32221693 | K35: 0.0003886961233 | L35: -12.13560499 | M35: 0.000429687239 | N35: -11.41793737 | O35: 0.0006468013261 | P35: -11.08681375 | Q35: 0.0007947291437 | R35: -10.33688723 | S35: 0.001318931467 | T35: -9.624783345 | U35: 0.002230481324 | V35: -9.184538999 | W35: 0.003188856872 | X35: Blank | Y35: Blank | Z35: 0 | AA35: =(Results!$F$14-$J35)*$AB$2 -> 21.77421693 | AB35: =(1/SUMSQ(Results!$G$14,$K35))*$AB$2 -> 6618804.929 | AC35: 0.3920435537 | AD35: =(Results!$F$15-$L35)*$AE$2 -> 21.88260499 | AE35: =(1/SUMSQ(Results!$G$15,$M35))*$AE$2 -> 5416204.928 | AF35: 0.3208114229 | AG35: =(Results!$F$16-$N35)*$AH$2 -> 21.98593737 | AH35: =(1/SUMSQ(Results!$G$16,$O35))*$AH$2 -> 2390331.841 | AI35: 0.1415835939 | AJ35: =(Results!$F$17-$P35)*$AK$2 -> 22.07081375 | AK35: =(1/SUMSQ(Results!$G$17,$Q35))*$AK$2 -> 1583294.566 | AL35: 0.0937813449 | AM35: =(Results!$F$18-$R35)*$AN$2 -> 22.03388723 | AN35: =(1/SUMSQ(Results!$G$18,$S35))*$AN$2 -> 574851.3303 | AO35: 0.03404946372 | AP35: =(Results!$F$19-$T35)*$AQ$2 -> 21.90978334 | AQ35: =(1/SUMSQ(Results!$G$19,$U35))*$AQ$2 -> 201003.1288 | AR35: 0.01190577177 | AS35: =(Results!$F$20-$V35)*$AT$2 -> 21.966539 | AT35: =(1/SUMSQ(Results!$G$20,$W35))*$AT$2 -> 98339.94166 | AU35: 0.005824849139 | AV35: 21.87835635 | AW35: 0.04133300826 | AX35: 11.67683784 | AY35: 0.04135838118 | AZ35: 9.55613942 | BA35: 0.04133483587 | BB35: 9.74275136 | BC35: 0.04133524166 | BD35: 10.46041899 | BE35: 0.0413380687 | BF35: 10.7915426 | BG35: 0.04134064787 | BH35: 11.54146912 | BI35: 0.04135404638 | BJ35: 12.25357301 | BK35: 0.041393147 | BL35: 12.69381735 | BM35: 0.0414558365 | BN35: =IF(MOD(ROW($BN35)-7,oBlockAvg)=0,AVERAGE(INDIRECT(ADDRESS((INT((ROW($BN35)-7)/oBlockAvg)*oBlockAvg)+7,COLUMN(Calculation!JDGraph))&":"&ADDRESS(((INT((ROW($BN35)-7)/oBlockAvg)+1)*oBlockAvg)+6,COLUMN(Calculation!JDGraph)))),#N/A) -> 
B36: WASP-12b_00069_bdf.fits | C36: 2013-01-27 | D36: 01:18:28.195 | E36: 2456319.554 | F36: 3319.554493 | G36: 100 | H36: -10.1939437 | I36: 0.00145954729 | J36: -12.31370483 | K36: 0.0003910752734 | L36: -12.12797364 | M36: 0.000432391184 | N36: -11.41007286 | O36: 0.0006522256683 | P36: -11.07913041 | Q36: 0.0008019678579 | R36: -10.32992316 | S36: 0.001332167176 | T36: -9.61508158 | U36: 0.002268917621 | V36: -9.167903995 | W36: 0.003253544644 | X36: Blank | Y36: Blank | Z36: 0 | AA36: =(Results!$F$14-$J36)*$AB$2 -> 21.76570483 | AB36: =(1/SUMSQ(Results!$G$14,$K36))*$AB$2 -> 6538517.416 | AC36: 0.3928222413 | AD36: =(Results!$F$15-$L36)*$AE$2 -> 21.87497364 | AE36: =(1/SUMSQ(Results!$G$15,$M36))*$AE$2 -> 5348676.589 | AF36: 0.3213387672 | AG36: =(Results!$F$16-$N36)*$AH$2 -> 21.97807286 | AH36: =(1/SUMSQ(Results!$G$16,$O36))*$AH$2 -> 2350737.996 | AI36: 0.1412280659 | AJ36: =(Results!$F$17-$P36)*$AK$2 -> 22.06313041 | AK36: =(1/SUMSQ(Results!$G$17,$Q36))*$AK$2 -> 1554841.325 | AL36: 0.09341204059 | AM36: =(Results!$F$18-$R36)*$AN$2 -> 22.02692316 | AN36: =(1/SUMSQ(Results!$G$18,$S36))*$AN$2 -> 563485.2376 | AO36: 0.03385316883 | AP36: =(Results!$F$19-$T36)*$AQ$2 -> 21.90008158 | AQ36: =(1/SUMSQ(Results!$G$19,$U36))*$AQ$2 -> 194250.6783 | AR36: 0.01167022767 | AS36: =(Results!$F$20-$V36)*$AT$2 -> 21.949904 | AT36: =(1/SUMSQ(Results!$G$20,$W36))*$AT$2 -> 94468.37816 | AU36: 0.005675488446 | AV36: 21.87004929 | AW36: 0.04142263126 | AX36: 11.67610559 | AY36: 0.04144833723 | AZ36: 9.556344456 | BA36: 0.04142447731 | BB36: 9.742075646 | BC36: 0.04142488797 | BD36: 10.45997643 | BE36: 0.0414277658 | BF36: 10.79091888 | BG36: 0.04143039383 | BH36: 11.54012613 | BI36: 0.04144404722 | BJ36: 12.25496771 | BK36: 0.04148472451 | BL36: 12.70214529 | BM36: 0.04155020979 | BN36: =IF(MOD(ROW($BN36)-7,oBlockAvg)=0,AVERAGE(INDIRECT(ADDRESS((INT((ROW($BN36)-7)/oBlockAvg)*oBlockAvg)+7,COLUMN(Calculation!JDGraph))&":"&ADDRESS(((INT((ROW($BN36)-7)/oBlockAvg)+1)*oBlockAvg)+6,COLUMN(Calculation!JDGraph)))),#N/A) -> 
B37: WASP-12b_00070_bdf.fits | C37: 2013-01-27 | D37: 01:20:27.341 | E37: 2456319.556 | F37: 3319.555872 | G37: 100 | H37: -10.17595238 | I37: 0.001484267811 | J37: -12.29428296 | K37: 0.0003955531856 | L37: -12.11187008 | M37: 0.000437169002 | N37: -11.38829107 | O37: 0.0006618066876 | P37: -11.06203353 | Q37: 0.0008121631231 | R37: -10.31145816 | S37: 0.001355061908 | T37: -9.5952602 | U37: 0.002310114533 | V37: -9.154063673 | W37: 0.00330522852 | X37: Blank | Y37: Blank | Z37: 0 | AA37: =(Results!$F$14-$J37)*$AB$2 -> 21.74628296 | AB37: =(1/SUMSQ(Results!$G$14,$K37))*$AB$2 -> 6391315.066 | AC37: 0.393397336 | AD37: =(Results!$F$15-$L37)*$AE$2 -> 21.85887008 | AE37: =(1/SUMSQ(Results!$G$15,$M37))*$AE$2 -> 5232404.129 | AF37: 0.3220642112 | AG37: =(Results!$F$16-$N37)*$AH$2 -> 21.95629107 | AH37: =(1/SUMSQ(Results!$G$16,$O37))*$AH$2 -> 2283167.097 | AI37: 0.1405331836 | AJ37: =(Results!$F$17-$P37)*$AK$2 -> 22.04603353 | AK37: =(1/SUMSQ(Results!$G$17,$Q37))*$AK$2 -> 1516049.801 | AL37: 0.09331568651 | AM37: =(Results!$F$18-$R37)*$AN$2 -> 22.00845816 | AN37: =(1/SUMSQ(Results!$G$18,$S37))*$AN$2 -> 544605.1274 | AO37: 0.03352145906 | AP37: =(Results!$F$19-$T37)*$AQ$2 -> 21.8802602 | AQ37: =(1/SUMSQ(Results!$G$19,$U37))*$AQ$2 -> 187384.2029 | AR37: 0.0115338464 | AS37: =(Results!$F$20-$V37)*$AT$2 -> 21.93606367 | AT37: =(1/SUMSQ(Results!$G$20,$W37))*$AT$2 -> 91537.0721 | AU37: 0.005634277131 | AV37: 21.85143083 | AW37: 0.04147870276 | AX37: 11.67547845 | AY37: 0.04150525067 | AZ37: 9.557147869 | BA37: 0.04148058877 | BB37: 9.739560743 | BC37: 0.04148100649 | BD37: 10.46313975 | BE37: 0.0414839821 | BF37: 10.78939729 | BG37: 0.04148665317 | BH37: 11.53997267 | BI37: 0.04150083102 | BJ37: 12.25617063 | BK37: 0.0415429827 | BL37: 12.69736715 | BM37: 0.04161018287 | BN37: =IF(MOD(ROW($BN37)-7,oBlockAvg)=0,AVERAGE(INDIRECT(ADDRESS((INT((ROW($BN37)-7)/oBlockAvg)*oBlockAvg)+7,COLUMN(Calculation!JDGraph))&":"&ADDRESS(((INT((ROW($BN37)-7)/oBlockAvg)+1)*oBlockAvg)+6,COLUMN(Calculation!JDGraph)))),#N/A) -> 3319.55863 | BO37: 11.67752142 | BP37: 0.001174099137
B38: WASP-12b_00071_bdf.fits | C38: 2013-01-27 | D38: 01:22:26.486 | E38: 2456319.557 | F38: 3319.557251 | G38: 100 | H38: -10.14893253 | I38: 0.001532415939 | J38: -12.27127468 | K38: 0.0004019455599 | L38: -12.08969369 | M38: 0.0004439182029 | N38: -11.36369274 | O38: 0.0006764358432 | P38: -11.03652363 | Q38: 0.0008303019181 | R38: -10.29160733 | S38: 0.001387652858 | T38: -9.576588162 | U38: 0.002370585518 | V38: -9.130485912 | W38: 0.003414652274 | X38: Blank | Y38: Blank | Z38: 0 | AA38: =(Results!$F$14-$J38)*$AB$2 -> 21.72327468 | AB38: =(1/SUMSQ(Results!$G$14,$K38))*$AB$2 -> 6189641.974 | AC38: 0.394667031 | AD38: =(Results!$F$15-$L38)*$AE$2 -> 21.83669369 | AE38: =(1/SUMSQ(Results!$G$15,$M38))*$AE$2 -> 5074509.767 | AF38: 0.3235634164 | AG38: =(Results!$F$16-$N38)*$AH$2 -> 21.93169274 | AH38: =(1/SUMSQ(Results!$G$16,$O38))*$AH$2 -> 2185479.695 | AI38: 0.1393516436 | AJ38: =(Results!$F$17-$P38)*$AK$2 -> 22.02052363 | AK38: =(1/SUMSQ(Results!$G$17,$Q38))*$AK$2 -> 1450534.015 | AL38: 0.09248967156 | AM38: =(Results!$F$18-$R38)*$AN$2 -> 21.98860733 | AN38: =(1/SUMSQ(Results!$G$18,$S38))*$AN$2 -> 519323.9252 | AO38: 0.03311339049 | AP38: =(Results!$F$19-$T38)*$AQ$2 -> 21.86158816 | AQ38: =(1/SUMSQ(Results!$G$19,$U38))*$AQ$2 -> 177946.2114 | AR38: 0.01134629486 | AS38: =(Results!$F$20-$V38)*$AT$2 -> 21.91248591 | AT38: =(1/SUMSQ(Results!$G$20,$W38))*$AT$2 -> 85764.39548 | AU38: 0.005468552054 | AV38: 21.8278989 | AW38: 0.04120152511 | AX38: 11.67896637 | AY38: 0.04123001298 | AZ38: 9.556624217 | BA38: 0.04120348568 | BB38: 9.738205214 | BC38: 0.0412039165 | BD38: 10.46420616 | BE38: 0.04120707751 | BF38: 10.79137527 | BG38: 0.04120989048 | BH38: 11.53629157 | BI38: 0.04122488632 | BJ38: 12.25131074 | BK38: 0.04126966619 | BL38: 12.69741299 | BM38: 0.04134278077 | BN38: =IF(MOD(ROW($BN38)-7,oBlockAvg)=0,AVERAGE(INDIRECT(ADDRESS((INT((ROW($BN38)-7)/oBlockAvg)*oBlockAvg)+7,COLUMN(Calculation!JDGraph))&":"&ADDRESS(((INT((ROW($BN38)-7)/oBlockAvg)+1)*oBlockAvg)+6,COLUMN(Calculation!JDGraph)))),#N/A) -> 
B39: WASP-12b_00072_bdf.fits | C39: 2013-01-27 | D39: 01:24:25.632 | E39: 2456319.559 | F39: 3319.55863 | G39: 100 | H39: -10.17449496 | I39: 0.001508911536 | J39: -12.29586062 | K39: 0.0003969176419 | L39: -12.10895524 | M39: 0.000439661142 | N39: -11.38707676 | O39: 0.0006675782127 | P39: -11.05937065 | Q39: 0.000819884437 | R39: -10.31238389 | S39: 0.001373061005 | T39: -9.597181348 | U39: 0.002343680727 | V39: -9.151559696 | W39: 0.003374635616 | X39: Blank | Y39: Blank | Z39: 0 | AA39: =(Results!$F$14-$J39)*$AB$2 -> 21.74786062 | AB39: =(1/SUMSQ(Results!$G$14,$K39))*$AB$2 -> 6347448.631 | AC39: 0.3954186127 | AD39: =(Results!$F$15-$L39)*$AE$2 -> 21.85595524 | AE39: =(1/SUMSQ(Results!$G$15,$M39))*$AE$2 -> 5173254.364 | AF39: 0.3222713854 | AG39: =(Results!$F$16-$N39)*$AH$2 -> 21.95507676 | AH39: =(1/SUMSQ(Results!$G$16,$O39))*$AH$2 -> 2243859.661 | AI39: 0.1397827577 | AJ39: =(Results!$F$17-$P39)*$AK$2 -> 22.04337065 | AK39: =(1/SUMSQ(Results!$G$17,$Q39))*$AK$2 -> 1487629.269 | AL39: 0.09267287316 | AM39: =(Results!$F$18-$R39)*$AN$2 -> 22.00938389 | AN39: =(1/SUMSQ(Results!$G$18,$S39))*$AN$2 -> 530420.5398 | AO39: 0.03304290688 | AP39: =(Results!$F$19-$T39)*$AQ$2 -> 21.88218135 | AQ39: =(1/SUMSQ(Results!$G$19,$U39))*$AQ$2 -> 182055.2062 | AR39: 0.01134125241 | AS39: =(Results!$F$20-$V39)*$AT$2 -> 21.9335597 | AT39: =(1/SUMSQ(Results!$G$20,$W39))*$AT$2 -> 87810.45521 | AU39: 0.005470211796 | AV39: 21.8502281 | AW39: 0.0408951956 | AX39: 11.67573314 | AY39: 0.04092302332 | AZ39: 9.55436748 | BA39: 0.04089712174 | BB39: 9.741272857 | BC39: 0.04089755892 | BD39: 10.46315133 | BE39: 0.04090064405 | BF39: 10.79085745 | BG39: 0.04090341347 | BH39: 11.5378442 | BI39: 0.04091823945 | BJ39: 12.25304675 | BK39: 0.04096229806 | BL39: 12.6986684 | BM39: 0.04103419536 | BN39: =IF(MOD(ROW($BN39)-7,oBlockAvg)=0,AVERAGE(INDIRECT(ADDRESS((INT((ROW($BN39)-7)/oBlockAvg)*oBlockAvg)+7,COLUMN(Calculation!JDGraph))&":"&ADDRESS(((INT((ROW($BN39)-7)/oBlockAvg)+1)*oBlockAvg)+6,COLUMN(Calculation!JDGraph)))),#N/A) -> 
B40: WASP-12b_00073_bdf.fits | C40: 2013-01-27 | D40: 01:26:24.778 | E40: 2456319.56 | F40: 3319.560009 | G40: 100 | H40: -10.14333979 | I40: 0.001551958782 | J40: -12.26373757 | K40: 0.0004045770635 | L40: -12.08002841 | M40: 0.0004477641435 | N40: -11.35891839 | O40: 0.0006821607577 | P40: -11.02706486 | Q40: 0.0008410782695 | R40: -10.28069427 | S40: 0.001410600865 | T40: -9.563325761 | U40: 0.002425961523 | V40: -9.123926636 | W40: 0.003481195071 | X40: Blank | Y40: Blank | Z40: 0 | AA40: =(Results!$F$14-$J40)*$AB$2 -> 21.71573757 | AB40: =(1/SUMSQ(Results!$G$14,$K40))*$AB$2 -> 6109384.86 | AC40: 0.3963363544 | AD40: =(Results!$F$15-$L40)*$AE$2 -> 21.82702841 | AE40: =(1/SUMSQ(Results!$G$15,$M40))*$AE$2 -> 4987712.068 | AF40: 0.3235696659 | AG40: =(Results!$F$16-$N40)*$AH$2 -> 21.92691839 | AH40: =(1/SUMSQ(Results!$G$16,$O40))*$AH$2 -> 2148951.111 | AI40: 0.1394096899 | AJ40: =(Results!$F$17-$P40)*$AK$2 -> 22.01106486 | AK40: =(1/SUMSQ(Results!$G$17,$Q40))*$AK$2 -> 1413602.078 | AL40: 0.09170512371 | AM40: =(Results!$F$18-$R40)*$AN$2 -> 21.97769427 | AN40: =(1/SUMSQ(Results!$G$18,$S40))*$AN$2 -> 502564.3852 | AO40: 0.03260304284 | AP40: =(Results!$F$19-$T40)*$AQ$2 -> 21.84832576 | AQ40: =(1/SUMSQ(Results!$G$19,$U40))*$AQ$2 -> 169915.1812 | AR40: 0.01102296958 | AS40: =(Results!$F$20-$V40)*$AT$2 -> 21.90592664 | AT40: =(1/SUMSQ(Results!$G$20,$W40))*$AT$2 -> 82516.97145 | AU40: 0.005353153614 | AV40: 21.8192918 | AW40: 0.04107812994 | AX40: 11.67595201 | AY40: 0.0411074365 | AZ40: 9.555554227 | BA40: 0.04108012222 | BB40: 9.739263394 | BC40: 0.04108057025 | BD40: 10.46037341 | BE40: 0.04108379367 | BF40: 10.79222694 | BG40: 0.04108673961 | BH40: 11.53859753 | BI40: 0.04110234244 | BJ40: 12.25596604 | BK40: 0.0411497029 | BL40: 12.69536516 | BM40: 0.04122537421 | BN40: =IF(MOD(ROW($BN40)-7,oBlockAvg)=0,AVERAGE(INDIRECT(ADDRESS((INT((ROW($BN40)-7)/oBlockAvg)*oBlockAvg)+7,COLUMN(Calculation!JDGraph))&":"&ADDRESS(((INT((ROW($BN40)-7)/oBlockAvg)+1)*oBlockAvg)+6,COLUMN(Calculation!JDGraph)))),#N/A) -> 
B41: WASP-12b_00074_bdf.fits | C41: 2013-01-27 | D41: 01:28:24.010 | E41: 2456319.561 | F41: 3319.561389 | G41: 100 | H41: -10.05719683 | I41: 0.0016706159 | J41: -12.18051658 | K41: 0.0004258479045 | L41: -12.00802664 | M41: 0.0004684257904 | N41: -11.27094695 | O41: 0.0007256137398 | P41: -10.94428841 | Q41: 0.0008936895514 | R41: -10.20628309 | S41: 0.001505739942 | T41: -9.483012602 | U41: 0.002618745674 | V41: -9.04301891 | W41: 0.003755715077 | X41: Blank | Y41: Blank | Z41: 0 | AA41: =(Results!$F$14-$J41)*$AB$2 -> 21.63251658 | AB41: =(1/SUMSQ(Results!$G$14,$K41))*$AB$2 -> 5514307.378 | AC41: 0.3972603248 | AD41: =(Results!$F$15-$L41)*$AE$2 -> 21.75502664 | AE41: =(1/SUMSQ(Results!$G$15,$M41))*$AE$2 -> 4557413.174 | AF41: 0.3283239967 | AG41: =(Results!$F$16-$N41)*$AH$2 -> 21.83894695 | AH41: =(1/SUMSQ(Results!$G$16,$O41))*$AH$2 -> 1899280.042 | AI41: 0.1368274481 | AJ41: =(Results!$F$17-$P41)*$AK$2 -> 21.92828841 | AK41: =(1/SUMSQ(Results!$G$17,$Q41))*$AK$2 -> 1252064.319 | AL41: 0.09020089809 | AM41: =(Results!$F$18-$R41)*$AN$2 -> 21.90328309 | AN41: =(1/SUMSQ(Results!$G$18,$S41))*$AN$2 -> 441062.4224 | AO41: 0.03177490647 | AP41: =(Results!$F$19-$T41)*$AQ$2 -> 21.7680126 | AQ41: =(1/SUMSQ(Results!$G$19,$U41))*$AQ$2 -> 145818.7443 | AR41: 0.01050503676 | AS41: =(Results!$F$20-$V41)*$AT$2 -> 21.82501891 | AT41: =(1/SUMSQ(Results!$G$20,$W41))*$AT$2 -> 70894.85601 | AU41: 0.005107389123 | AV41: 21.73867395 | AW41: 0.04101134561 | AX41: 11.68147712 | AY41: 0.04104535816 | AZ41: 9.558157377 | BA41: 0.04101355648 | BB41: 9.73064731 | BC41: 0.04101402067 | BD41: 10.467727 | BE41: 0.04101776425 | BF41: 10.79438555 | BG41: 0.04102108177 | BH41: 11.53239086 | BI41: 0.04103897807 | BJ41: 12.25566135 | BK41: 0.04109486948 | BL41: 12.69565504 | BM41: 0.04118295599 | BN41: =IF(MOD(ROW($BN41)-7,oBlockAvg)=0,AVERAGE(INDIRECT(ADDRESS((INT((ROW($BN41)-7)/oBlockAvg)*oBlockAvg)+7,COLUMN(Calculation!JDGraph))&":"&ADDRESS(((INT((ROW($BN41)-7)/oBlockAvg)+1)*oBlockAvg)+6,COLUMN(Calculation!JDGraph)))),#N/A) -> 
B42: WASP-12b_00075_bdf.fits | C42: 2013-01-27 | D42: 01:30:23.155 | E42: 2456319.563 | F42: 3319.562768 | G42: 100 | H42: -10.18506677 | I42: 0.001518830223 | J42: -12.30284416 | K42: 0.0003970663062 | L42: -12.11994479 | M42: 0.0004391930698 | N42: -11.39693533 | O42: 0.0006689764158 | P42: -11.06839242 | Q42: 0.0008241781779 | R42: -10.31937678 | S42: 0.001387502208 | T42: -9.605457159 | U42: 0.002371943527 | V42: -9.16474102 | W42: 0.003406670067 | X42: Blank | Y42: Blank | Z42: 0 | AA42: =(Results!$F$14-$J42)*$AB$2 -> 21.75484416 | AB42: =(1/SUMSQ(Results!$G$14,$K42))*$AB$2 -> 6342696.467 | AC42: 0.3959980596 | AD42: =(Results!$F$15-$L42)*$AE$2 -> 21.86694479 | AE42: =(1/SUMSQ(Results!$G$15,$M42))*$AE$2 -> 5184287.082 | AF42: 0.3236742662 | AG42: =(Results!$F$16-$N42)*$AH$2 -> 21.96493533 | AH42: =(1/SUMSQ(Results!$G$16,$O42))*$AH$2 -> 2234489.845 | AI42: 0.1395074866 | AJ42: =(Results!$F$17-$P42)*$AK$2 -> 22.05239242 | AK42: =(1/SUMSQ(Results!$G$17,$Q42))*$AK$2 -> 1472169.369 | AL42: 0.09191299262 | AM42: =(Results!$F$18-$R42)*$AN$2 -> 22.01637678 | AN42: =(1/SUMSQ(Results!$G$18,$S42))*$AN$2 -> 519436.7037 | AO42: 0.03243035952 | AP42: =(Results!$F$19-$T42)*$AQ$2 -> 21.89045716 | AQ42: =(1/SUMSQ(Results!$G$19,$U42))*$AQ$2 -> 177742.5106 | AR42: 0.01109712402 | AS42: =(Results!$F$20-$V42)*$AT$2 -> 21.94674102 | AT42: =(1/SUMSQ(Results!$G$20,$W42))*$AT$2 -> 86166.77739 | AU42: 0.005379711425 | AV42: 21.85880495 | AW42: 0.04118083015 | AX42: 11.67373818 | AY42: 0.04120882936 | AZ42: 9.55596079 | BA42: 0.04118274436 | BB42: 9.738860165 | BC42: 0.04118317208 | BD42: 10.46186962 | BE42: 0.0411862635 | BF42: 10.79041253 | BG42: 0.04118907672 | BH42: 11.53942817 | BI42: 0.04120419801 | BJ42: 12.25334779 | BK42: 0.04124908348 | BL42: 12.69406393 | BM42: 0.04132149771 | BN42: =IF(MOD(ROW($BN42)-7,oBlockAvg)=0,AVERAGE(INDIRECT(ADDRESS((INT((ROW($BN42)-7)/oBlockAvg)*oBlockAvg)+7,COLUMN(Calculation!JDGraph))&":"&ADDRESS(((INT((ROW($BN42)-7)/oBlockAvg)+1)*oBlockAvg)+6,COLUMN(Calculation!JDGraph)))),#N/A) -> 3319.565526 | BO42: 11.67420729 | BP42: 0.0004869795528
B43: WASP-12b_00076_bdf.fits | C43: 2013-01-27 | D43: 01:32:22.301 | E43: 2456319.564 | F43: 3319.564147 | G43: 100 | H43: -10.19070229 | I43: 0.001518371362 | J43: -12.31122498 | K43: 0.0003955237302 | L43: -12.12422861 | M43: 0.0004384137476 | N43: -11.40630567 | O43: 0.0006667082146 | P43: -11.07655103 | Q43: 0.0008226183231 | R43: -10.32838942 | S43: 0.00138215571 | T43: -9.610527972 | U43: 0.00237485711 | V43: -9.172153744 | W43: 0.003393893041 | X43: Blank | Y43: Blank | Z43: 0 | AA43: =(Results!$F$14-$J43)*$AB$2 -> 21.76322498 | AB43: =(1/SUMSQ(Results!$G$14,$K43))*$AB$2 -> 6392267.049 | AC43: 0.3967871552 | AD43: =(Results!$F$15-$L43)*$AE$2 -> 21.87122861 | AE43: =(1/SUMSQ(Results!$G$15,$M43))*$AE$2 -> 5202734.592 | AF43: 0.3229493139 | AG43: =(Results!$F$16-$N43)*$AH$2 -> 21.97430567 | AH43: =(1/SUMSQ(Results!$G$16,$O43))*$AH$2 -> 2249719.578 | AI43: 0.1396468302 | AJ43: =(Results!$F$17-$P43)*$AK$2 -> 22.06055103 | AK43: =(1/SUMSQ(Results!$G$17,$Q43))*$AK$2 -> 1477757.739 | AL43: 0.0917288475 | AM43: =(Results!$F$18-$R43)*$AN$2 -> 22.02538942 | AN43: =(1/SUMSQ(Results!$G$18,$S43))*$AN$2 -> 523463.0789 | AO43: 0.03249292064 | AP43: =(Results!$F$19-$T43)*$AQ$2 -> 21.89552797 | AQ43: =(1/SUMSQ(Results!$G$19,$U43))*$AQ$2 -> 177306.6529 | AR43: 0.01100595483 | AS43: =(Results!$F$20-$V43)*$AT$2 -> 21.95415374 | AT43: =(1/SUMSQ(Results!$G$20,$W43))*$AT$2 -> 86816.78464 | AU43: 0.005388977766 | AV43: 21.86585832 | AW43: 0.04120463432 | AX43: 11.67515604 | AY43: 0.04123260046 | AZ43: 9.554633347 | BA43: 0.04120653259 | BB43: 9.741629708 | BC43: 0.0412069666 | BD43: 10.45955265 | BE43: 0.04121002778 | BF43: 10.7893073 | BG43: 0.04121284497 | BH43: 11.53746891 | BI43: 0.04122780911 | BJ43: 12.25533035 | BK43: 0.04127301583 | BL43: 12.69370458 | BM43: 0.04134417008 | BN43: =IF(MOD(ROW($BN43)-7,oBlockAvg)=0,AVERAGE(INDIRECT(ADDRESS((INT((ROW($BN43)-7)/oBlockAvg)*oBlockAvg)+7,COLUMN(Calculation!JDGraph))&":"&ADDRESS(((INT((ROW($BN43)-7)/oBlockAvg)+1)*oBlockAvg)+6,COLUMN(Calculation!JDGraph)))),#N/A) -> 
B44: WASP-12b_00077_bdf.fits | C44: 2013-01-27 | D44: 01:34:21.446 | E44: 2456319.566 | F44: 3319.565526 | G44: 100 | H44: -10.17715872 | I44: 0.001533810242 | J44: -12.29678433 | K44: 0.0003993725279 | L44: -12.11128049 | M44: 0.0004424383496 | N44: -11.3889169 | O44: 0.0006743055635 | P44: -11.06074163 | Q44: 0.0008313301909 | R44: -10.30928104 | S44: 0.001402114189 | T44: -9.597466546 | U44: 0.002400979228 | V44: -9.159703758 | W44: 0.003452949291 | X44: Blank | Y44: Blank | Z44: 0 | AA44: =(Results!$F$14-$J44)*$AB$2 -> 21.74878433 | AB44: =(1/SUMSQ(Results!$G$14,$K44))*$AB$2 -> 6269654.739 | AC44: 0.3970539782 | AD44: =(Results!$F$15-$L44)*$AE$2 -> 21.85828049 | AE44: =(1/SUMSQ(Results!$G$15,$M44))*$AE$2 -> 5108512.646 | AF44: 0.3235194525 | AG44: =(Results!$F$16-$N44)*$AH$2 -> 21.9569169 | AH44: =(1/SUMSQ(Results!$G$16,$O44))*$AH$2 -> 2199310.331 | AI44: 0.1392811809 | AJ44: =(Results!$F$17-$P44)*$AK$2 -> 22.04474163 | AK44: =(1/SUMSQ(Results!$G$17,$Q44))*$AK$2 -> 1446947.902 | AL44: 0.09163445909 | AM44: =(Results!$F$18-$R44)*$AN$2 -> 22.00628104 | AN44: =(1/SUMSQ(Results!$G$18,$S44))*$AN$2 -> 508666.6109 | AO44: 0.03221359227 | AP44: =(Results!$F$19-$T44)*$AQ$2 -> 21.88246655 | AQ44: =(1/SUMSQ(Results!$G$19,$U44))*$AQ$2 -> 173469.5271 | AR44: 0.01098573505 | AS44: =(Results!$F$20-$V44)*$AT$2 -> 21.94170376 | AT44: =(1/SUMSQ(Results!$G$20,$W44))*$AT$2 -> 83872.50206 | AU44: 0.005311601992 | AV44: 21.85110551 | AW44: 0.04082274069 | AX44: 11.67394679 | AY44: 0.04085154503 | AZ44: 9.554321178 | BA44: 0.0408246942 | BB44: 9.739825017 | BC44: 0.0408251382 | BD44: 10.46218861 | BE44: 0.04082830937 | BF44: 10.79036388 | BG44: 0.04083120458 | BH44: 11.54182447 | BI44: 0.04084681238 | BJ44: 12.25363896 | BK44: 0.04089328623 | BL44: 12.69140175 | BM44: 0.0409685125 | BN44: =IF(MOD(ROW($BN44)-7,oBlockAvg)=0,AVERAGE(INDIRECT(ADDRESS((INT((ROW($BN44)-7)/oBlockAvg)*oBlockAvg)+7,COLUMN(Calculation!JDGraph))&":"&ADDRESS(((INT((ROW($BN44)-7)/oBlockAvg)+1)*oBlockAvg)+6,COLUMN(Calculation!JDGraph)))),#N/A) -> 
B45: WASP-12b_00078_bdf.fits | C45: 2013-01-27 | D45: 01:36:20.592 | E45: 2456319.567 | F45: 3319.566905 | G45: 100 | H45: -10.20570897 | I45: 0.001508073376 | J45: -12.32687003 | K45: 0.0003925022679 | L45: -12.13959223 | M45: 0.0004355873005 | N45: -11.42151322 | O45: 0.0006615043195 | P45: -11.09126043 | Q45: 0.0008161448298 | R45: -10.33920425 | S45: 0.001374288905 | T45: -9.627368185 | U45: 0.002356096762 | V45: -9.191772836 | W45: 0.003359041775 | X45: Blank | Y45: Blank | Z45: 0 | AA45: =(Results!$F$14-$J45)*$AB$2 -> 21.77887003 | AB45: =(1/SUMSQ(Results!$G$14,$K45))*$AB$2 -> 6491060.531 | AC45: 0.3970960473 | AD45: =(Results!$F$15-$L45)*$AE$2 -> 21.88659223 | AE45: =(1/SUMSQ(Results!$G$15,$M45))*$AE$2 -> 5270472.858 | AF45: 0.3224255774 | AG45: =(Results!$F$16-$N45)*$AH$2 -> 21.98951322 | AH45: =(1/SUMSQ(Results!$G$16,$O45))*$AH$2 -> 2285254.807 | AI45: 0.1398023708 | AJ45: =(Results!$F$17-$P45)*$AK$2 -> 22.07526043 | AK45: =(1/SUMSQ(Results!$G$17,$Q45))*$AK$2 -> 1501293.252 | AL45: 0.09184286809 | AM45: =(Results!$F$18-$R45)*$AN$2 -> 22.03620425 | AN45: =(1/SUMSQ(Results!$G$18,$S45))*$AN$2 -> 529473.1231 | AO45: 0.03239096036 | AP45: =(Results!$F$19-$T45)*$AQ$2 -> 21.91236818 | AQ45: =(1/SUMSQ(Results!$G$19,$U45))*$AQ$2 -> 180141.4918 | AR45: 0.01102030616 | AS45: =(Results!$F$20-$V45)*$AT$2 -> 21.97377284 | AT45: =(1/SUMSQ(Results!$G$20,$W45))*$AT$2 -> 88627.64101 | AU45: 0.005421869933 | AV45: 21.88113542 | AW45: 0.04103213262 | AX45: 11.67542644 | AY45: 0.04105983674 | AZ45: 9.554265386 | BA45: 0.04103400986 | BB45: 9.741543183 | BC45: 0.0410344446 | BD45: 10.45962219 | BE45: 0.04103746453 | BF45: 10.78987499 | BG45: 0.04104024853 | BH45: 11.54193116 | BI45: 0.04105514069 | BJ45: 12.25376723 | BK45: 0.0410997214 | BL45: 12.68936258 | BM45: 0.04116939481 | BN45: =IF(MOD(ROW($BN45)-7,oBlockAvg)=0,AVERAGE(INDIRECT(ADDRESS((INT((ROW($BN45)-7)/oBlockAvg)*oBlockAvg)+7,COLUMN(Calculation!JDGraph))&":"&ADDRESS(((INT((ROW($BN45)-7)/oBlockAvg)+1)*oBlockAvg)+6,COLUMN(Calculation!JDGraph)))),#N/A) -> 
B46: WASP-12b_00079_bdf.fits | C46: 2013-01-27 | D46: 01:38:19.738 | E46: 2456319.568 | F46: 3319.568284 | G46: 100 | H46: -10.21335228 | I46: 0.00149687126 | J46: -12.3319866 | K46: 0.0003916100136 | L46: -12.1426912 | M46: 0.0004347772589 | N46: -11.42858542 | O46: 0.0006581633059 | P46: -11.09640142 | Q46: 0.0008129830705 | R46: -10.3468523 | S46: 0.001372641162 | T46: -9.63846424 | U46: 0.00233159859 | V46: -9.190110873 | W46: 0.003371438675 | X46: Blank | Y46: Blank | Z46: 0 | AA46: =(Results!$F$14-$J46)*$AB$2 -> 21.7839866 | AB46: =(1/SUMSQ(Results!$G$14,$K46))*$AB$2 -> 6520673.025 | AC46: 0.396755755 | AD46: =(Results!$F$15-$L46)*$AE$2 -> 21.8896912 | AE46: =(1/SUMSQ(Results!$G$15,$M46))*$AE$2 -> 5290130.184 | AF46: 0.3218823559 | AG46: =(Results!$F$16-$N46)*$AH$2 -> 21.99658542 | AH46: =(1/SUMSQ(Results!$G$16,$O46))*$AH$2 -> 2308514.829 | AI46: 0.1404634982 | AJ46: =(Results!$F$17-$P46)*$AK$2 -> 22.08040142 | AK46: =(1/SUMSQ(Results!$G$17,$Q46))*$AK$2 -> 1512993.269 | AL46: 0.09205932956 | AM46: =(Results!$F$18-$R46)*$AN$2 -> 22.0438523 | AN46: =(1/SUMSQ(Results!$G$18,$S46))*$AN$2 -> 530745.0635 | AO46: 0.03229362331 | AP46: =(Results!$F$19-$T46)*$AQ$2 -> 21.92346424 | AQ46: =(1/SUMSQ(Results!$G$19,$U46))*$AQ$2 -> 183946.8826 | AR46: 0.01119240054 | AS46: =(Results!$F$20-$V46)*$AT$2 -> 21.97211087 | AT46: =(1/SUMSQ(Results!$G$20,$W46))*$AT$2 -> 87977.06537 | AU46: 0.005353037464 | AV46: 21.8861213 | AW46: 0.04121128749 | AX46: 11.67276902 | AY46: 0.04123846311 | AZ46: 9.5541347 | BA46: 0.04121314808 | BB46: 9.743430098 | BC46: 0.04121358086 | BD46: 10.45753588 | BE46: 0.04121654274 | BF46: 10.78971989 | BG46: 0.04121930565 | BH46: 11.539269 | BI46: 0.04123414071 | BJ46: 12.24765706 | BK46: 0.04127719187 | BL46: 12.69601043 | BM46: 0.04134896389 | BN46: =IF(MOD(ROW($BN46)-7,oBlockAvg)=0,AVERAGE(INDIRECT(ADDRESS((INT((ROW($BN46)-7)/oBlockAvg)*oBlockAvg)+7,COLUMN(Calculation!JDGraph))&":"&ADDRESS(((INT((ROW($BN46)-7)/oBlockAvg)+1)*oBlockAvg)+6,COLUMN(Calculation!JDGraph)))),#N/A) -> 
B47: WASP-12b_00080_bdf.fits | C47: 2013-01-27 | D47: 01:40:18.883 | E47: 2456319.57 | F47: 3319.569663 | G47: 100 | H47: -10.21018381 | I47: 0.001502130784 | J47: -12.32631623 | K47: 0.0003926893472 | L47: -12.13934752 | M47: 0.0004355691528 | N47: -11.42202791 | O47: 0.0006609256724 | P47: -11.09175387 | Q47: 0.0008154297025 | R47: -10.34126716 | S47: 0.001374211489 | T47: -9.627100173 | U47: 0.00235007595 | V47: -9.184678934 | W47: 0.00337756541 | X47: Blank | Y47: Blank | Z47: 0 | AA47: =(Results!$F$14-$J47)*$AB$2 -> 21.77831623 | AB47: =(1/SUMSQ(Results!$G$14,$K47))*$AB$2 -> 6484877.254 | AC47: 0.3966957444 | AD47: =(Results!$F$15-$L47)*$AE$2 -> 21.88634752 | AE47: =(1/SUMSQ(Results!$G$15,$M47))*$AE$2 -> 5270912.048 | AF47: 0.3224345345 | AG47: =(Results!$F$16-$N47)*$AH$2 -> 21.99002791 | AH47: =(1/SUMSQ(Results!$G$16,$O47))*$AH$2 -> 2289258.086 | AI47: 0.1400394957 | AJ47: =(Results!$F$17-$P47)*$AK$2 -> 22.07575387 | AK47: =(1/SUMSQ(Results!$G$17,$Q47))*$AK$2 -> 1503927.658 | AL47: 0.09199891971 | AM47: =(Results!$F$18-$R47)*$AN$2 -> 22.03826716 | AN47: =(1/SUMSQ(Results!$G$18,$S47))*$AN$2 -> 529532.7803 | AO47: 0.03239281057 | AP47: =(Results!$F$19-$T47)*$AQ$2 -> 21.91210017 | AQ47: =(1/SUMSQ(Results!$G$19,$U47))*$AQ$2 -> 181065.7066 | AR47: 0.0110762305 | AS47: =(Results!$F$20-$V47)*$AT$2 -> 21.96667893 | AT47: =(1/SUMSQ(Results!$G$20,$W47))*$AT$2 -> 87658.18283 | AU47: 0.005362264654 | AV47: 21.8810736 | AW47: 0.0412255982 | AX47: 11.67088979 | AY47: 0.04125295558 | AZ47: 9.554757373 | BA47: 0.04122746842 | BB47: 9.741726077 | BC47: 0.04122789914 | BD47: 10.45904569 | BE47: 0.04123089582 | BF47: 10.78931973 | BG47: 0.04123366189 | BH47: 11.53980645 | BI47: 0.04124849579 | BJ47: 12.25397343 | BK47: 0.04129252722 | BL47: 12.69639467 | BM47: 0.04136372681 | BN47: =IF(MOD(ROW($BN47)-7,oBlockAvg)=0,AVERAGE(INDIRECT(ADDRESS((INT((ROW($BN47)-7)/oBlockAvg)*oBlockAvg)+7,COLUMN(Calculation!JDGraph))&":"&ADDRESS(((INT((ROW($BN47)-7)/oBlockAvg)+1)*oBlockAvg)+6,COLUMN(Calculation!JDGraph)))),#N/A) -> 3319.572422 | BO47: 11.67165837 | BP47: 0.000733327014
B48: WASP-12b_00081_bdf.fits | C48: 2013-01-27 | D48: 01:42:18.115 | E48: 2456319.571 | F48: 3319.571043 | G48: 100 | H48: -10.20704444 | I48: 0.001505167885 | J48: -12.32258579 | K48: 0.0003935795529 | L48: -12.13589016 | M48: 0.0004363364081 | N48: -11.41871669 | O48: 0.0006636679483 | P48: -11.08669403 | Q48: 0.0008198196617 | R48: -10.33896601 | S48: 0.001375327992 | T48: -9.61927549 | U48: 0.002374192394 | V48: -9.179367809 | W48: 0.003387363111 | X48: Blank | Y48: Blank | Z48: 0 | AA48: =(Results!$F$14-$J48)*$AB$2 -> 21.77458579 | AB48: =(1/SUMSQ(Results!$G$14,$K48))*$AB$2 -> 6455575.192 | AC48: 0.3970354939 | AD48: =(Results!$F$15-$L48)*$AE$2 -> 21.88289016 | AE48: =(1/SUMSQ(Results!$G$15,$M48))*$AE$2 -> 5252391.569 | AF48: 0.3230364172 | AG48: =(Results!$F$16-$N48)*$AH$2 -> 21.98671669 | AH48: =(1/SUMSQ(Results!$G$16,$O48))*$AH$2 -> 2270378.743 | AI48: 0.1396344894 | AJ48: =(Results!$F$17-$P48)*$AK$2 -> 22.07069403 | AK48: =(1/SUMSQ(Results!$G$17,$Q48))*$AK$2 -> 1487864.358 | AL48: 0.09150771897 | AM48: =(Results!$F$18-$R48)*$AN$2 -> 22.03596601 | AN48: =(1/SUMSQ(Results!$G$18,$S48))*$AN$2 -> 528673.3706 | AO48: 0.03251485524 | AP48: =(Results!$F$19-$T48)*$AQ$2 -> 21.90427549 | AQ48: =(1/SUMSQ(Results!$G$19,$U48))*$AQ$2 -> 177405.95 | AR48: 0.01091095013 | AS48: =(Results!$F$20-$V48)*$AT$2 -> 21.96136781 | AT48: =(1/SUMSQ(Results!$G$20,$W48))*$AT$2 -> 87151.82634 | AU48: 0.005360075189 | AV48: 21.87720397 | AW48: 0.04114503132 | AX48: 11.67015953 | AY48: 0.04117255315 | AZ48: 9.554618179 | BA48: 0.0411469137 | BB48: 9.741313809 | BC48: 0.0411473449 | BD48: 10.45848727 | BE48: 0.04115038344 | BF48: 10.79050994 | BG48: 0.04115319801 | BH48: 11.53823796 | BI48: 0.041168011 | BJ48: 12.25792848 | BK48: 0.04121347343 | BL48: 12.69783616 | BM48: 0.04128423224 | BN48: =IF(MOD(ROW($BN48)-7,oBlockAvg)=0,AVERAGE(INDIRECT(ADDRESS((INT((ROW($BN48)-7)/oBlockAvg)*oBlockAvg)+7,COLUMN(Calculation!JDGraph))&":"&ADDRESS(((INT((ROW($BN48)-7)/oBlockAvg)+1)*oBlockAvg)+6,COLUMN(Calculation!JDGraph)))),#N/A) -> 
B49: WASP-12b_00082_bdf.fits | C49: 2013-01-27 | D49: 01:44:17.261 | E49: 2456319.572 | F49: 3319.572422 | G49: 100 | H49: -10.19866797 | I49: 0.001515131959 | J49: -12.31718794 | K49: 0.0003947222783 | L49: -12.13002726 | M49: 0.0004377795255 | N49: -11.41061552 | O49: 0.0006668656871 | P49: -11.08118193 | Q49: 0.0008211826395 | R49: -10.33238256 | S49: 0.001384634183 | T49: -9.618848133 | U49: 0.002366645587 | V49: -9.176452138 | W49: 0.003406246919 | X49: Blank | Y49: Blank | Z49: 0 | AA49: =(Results!$F$14-$J49)*$AB$2 -> 21.76918794 | AB49: =(1/SUMSQ(Results!$G$14,$K49))*$AB$2 -> 6418251.371 | AC49: 0.3973171213 | AD49: =(Results!$F$15-$L49)*$AE$2 -> 21.87702726 | AE49: =(1/SUMSQ(Results!$G$15,$M49))*$AE$2 -> 5217820.175 | AF49: 0.3230053127 | AG49: =(Results!$F$16-$N49)*$AH$2 -> 21.97861552 | AH49: =(1/SUMSQ(Results!$G$16,$O49))*$AH$2 -> 2248657.213 | AI49: 0.1392014677 | AJ49: =(Results!$F$17-$P49)*$AK$2 -> 22.06518193 | AK49: =(1/SUMSQ(Results!$G$17,$Q49))*$AK$2 -> 1482929.419 | AL49: 0.09179965288 | AM49: =(Results!$F$18-$R49)*$AN$2 -> 22.02938256 | AN49: =(1/SUMSQ(Results!$G$18,$S49))*$AN$2 -> 521590.7751 | AO49: 0.03228869255 | AP49: =(Results!$F$19-$T49)*$AQ$2 -> 21.90384813 | AQ49: =(1/SUMSQ(Results!$G$19,$U49))*$AQ$2 -> 178539.1853 | AR49: 0.01105233669 | AS49: =(Results!$F$20-$V49)*$AT$2 -> 21.95845214 | AT49: =(1/SUMSQ(Results!$G$20,$W49))*$AT$2 -> 86188.18724 | AU49: 0.005335416216 | AV49: 21.87124484 | AW49: 0.04096013605 | AX49: 11.67257687 | AY49: 0.04098814914 | AZ49: 9.554056903 | BA49: 0.04096203792 | BB49: 9.741217582 | BC49: 0.04096247546 | BD49: 10.46062932 | BE49: 0.04096556425 | BF49: 10.79006292 | BG49: 0.04096836689 | BH49: 11.53886228 | BI49: 0.04098353275 | BJ49: 12.25239671 | BK49: 0.04102845057 | BL49: 12.6947927 | BM49: 0.04110152385 | BN49: =IF(MOD(ROW($BN49)-7,oBlockAvg)=0,AVERAGE(INDIRECT(ADDRESS((INT((ROW($BN49)-7)/oBlockAvg)*oBlockAvg)+7,COLUMN(Calculation!JDGraph))&":"&ADDRESS(((INT((ROW($BN49)-7)/oBlockAvg)+1)*oBlockAvg)+6,COLUMN(Calculation!JDGraph)))),#N/A) -> 
B50: WASP-12b_00083_bdf.fits | C50: 2013-01-27 | D50: 01:46:16.406 | E50: 2456319.574 | F50: 3319.573801 | G50: 100 | H50: -10.21580211 | I50: 0.001499110691 | J50: -12.3349152 | K50: 0.0003912105337 | L50: -12.148863 | M50: 0.0004333237552 | N50: -11.42997053 | O50: 0.0006581466063 | P50: -11.09954151 | Q50: 0.0008120135822 | R50: -10.35032728 | S50: 0.001367209181 | T50: -9.635466804 | U50: 0.00233780685 | V50: -9.198047854 | W50: 0.003355794645 | X50: Blank | Y50: Blank | Z50: 0 | AA50: =(Results!$F$14-$J50)*$AB$2 -> 21.7869152 | AB50: =(1/SUMSQ(Results!$G$14,$K50))*$AB$2 -> 6533996.838 | AC50: 0.3962001293 | AD50: =(Results!$F$15-$L50)*$AE$2 -> 21.895863 | AE50: =(1/SUMSQ(Results!$G$15,$M50))*$AE$2 -> 5325679.216 | AF50: 0.3229317133 | AG50: =(Results!$F$16-$N50)*$AH$2 -> 21.99797053 | AH50: =(1/SUMSQ(Results!$G$16,$O50))*$AH$2 -> 2308631.981 | AI50: 0.1399878684 | AJ50: =(Results!$F$17-$P50)*$AK$2 -> 22.08354151 | AK50: =(1/SUMSQ(Results!$G$17,$Q50))*$AK$2 -> 1516608.246 | AL50: 0.09196214781 | AM50: =(Results!$F$18-$R50)*$AN$2 -> 22.04732728 | AN50: =(1/SUMSQ(Results!$G$18,$S50))*$AN$2 -> 534970.7876 | AO50: 0.03243887324 | AP50: =(Results!$F$19-$T50)*$AQ$2 -> 21.9204668 | AQ50: =(1/SUMSQ(Results!$G$19,$U50))*$AQ$2 -> 182971.2043 | AR50: 0.01109477347 | AS50: =(Results!$F$20-$V50)*$AT$2 -> 21.98004785 | AT50: =(1/SUMSQ(Results!$G$20,$W50))*$AT$2 -> 88799.23953 | AU50: 0.005384494522 | AV50: 21.8898906 | AW50: 0.04113971411 | AX50: 11.67408849 | AY50: 0.04116701847 | AZ50: 9.554975398 | BA50: 0.04114157414 | BB50: 9.741027598 | BC50: 0.04114199614 | BD50: 10.45992007 | BE50: 0.04114497824 | BF50: 10.79034909 | BG50: 0.04114772707 | BH50: 11.53956332 | BI50: 0.04116242629 | BJ50: 12.2544238 | BK50: 0.04120608472 | BL50: 12.69184274 | BM50: 0.04127635443 | BN50: =IF(MOD(ROW($BN50)-7,oBlockAvg)=0,AVERAGE(INDIRECT(ADDRESS((INT((ROW($BN50)-7)/oBlockAvg)*oBlockAvg)+7,COLUMN(Calculation!JDGraph))&":"&ADDRESS(((INT((ROW($BN50)-7)/oBlockAvg)+1)*oBlockAvg)+6,COLUMN(Calculation!JDGraph)))),#N/A) -> 
B51: WASP-12b_00084_bdf.fits | C51: 2013-01-27 | D51: 01:48:15.552 | E51: 2456319.575 | F51: 3319.57518 | G51: 100 | H51: -10.21896405 | I51: 0.001496669817 | J51: -12.33526077 | K51: 0.0003913156121 | L51: -12.14641271 | M51: 0.0004339043279 | N51: -11.43205044 | O51: 0.0006578538504 | P51: -11.09922534 | Q51: 0.0008119535428 | R51: -10.34900739 | S51: 0.001368874628 | T51: -9.640245092 | U51: 0.002333555846 | V51: -9.199226747 | W51: 0.003347606227 | X51: Blank | Y51: Blank | Z51: 0 | AA51: =(Results!$F$14-$J51)*$AB$2 -> 21.78726077 | AB51: =(1/SUMSQ(Results!$G$14,$K51))*$AB$2 -> 6530488.213 | AC51: 0.3963639958 | AD51: =(Results!$F$15-$L51)*$AE$2 -> 21.89341271 | AE51: =(1/SUMSQ(Results!$G$15,$M51))*$AE$2 -> 5311437.019 | AF51: 0.3223744277 | AG51: =(Results!$F$16-$N51)*$AH$2 -> 22.00005044 | AH51: =(1/SUMSQ(Results!$G$16,$O51))*$AH$2 -> 2310687.198 | AI51: 0.140245749 | AJ51: =(Results!$F$17-$P51)*$AK$2 -> 22.08322534 | AK51: =(1/SUMSQ(Results!$G$17,$Q51))*$AK$2 -> 1516832.543 | AL51: 0.09206322531 | AM51: =(Results!$F$18-$R51)*$AN$2 -> 22.04600739 | AN51: =(1/SUMSQ(Results!$G$18,$S51))*$AN$2 -> 533669.8311 | AO51: 0.03239076464 | AP51: =(Results!$F$19-$T51)*$AQ$2 -> 21.92524509 | AQ51: =(1/SUMSQ(Results!$G$19,$U51))*$AQ$2 -> 183638.4432 | AR51: 0.01114582322 | AS51: =(Results!$F$20-$V51)*$AT$2 -> 21.98122675 | AT51: =(1/SUMSQ(Results!$G$20,$W51))*$AT$2 -> 89234.18593 | AU51: 0.005416014445 | AV51: 21.88954121 | AW51: 0.04117111723 | AX51: 11.67057716 | AY51: 0.04119831203 | AZ51: 9.554280438 | BA51: 0.04117297684 | BB51: 9.743128506 | BC51: 0.04117340363 | BD51: 10.45749077 | BE51: 0.04117637266 | BF51: 10.79031588 | BG51: 0.0411791229 | BH51: 11.54053383 | BI51: 0.0411938674 | BJ51: 12.24929612 | BK51: 0.04123719652 | BL51: 12.69031447 | BM51: 0.04130698926 | BN51: =IF(MOD(ROW($BN51)-7,oBlockAvg)=0,AVERAGE(INDIRECT(ADDRESS((INT((ROW($BN51)-7)/oBlockAvg)*oBlockAvg)+7,COLUMN(Calculation!JDGraph))&":"&ADDRESS(((INT((ROW($BN51)-7)/oBlockAvg)+1)*oBlockAvg)+6,COLUMN(Calculation!JDGraph)))),#N/A) -> 
B52: WASP-12b_00085_bdf.fits | C52: 2013-01-27 | D52: 01:50:14.698 | E52: 2456319.577 | F52: 3319.576559 | G52: 100 | H52: -10.21108387 | I52: 0.001503948076 | J52: -12.33036087 | K52: 0.0003920033847 | L52: -12.14161501 | M52: 0.0004354722399 | N52: -11.42494814 | O52: 0.0006619640284 | P52: -11.09466425 | Q52: 0.000814685142 | R52: -10.34500661 | S52: 0.00137541913 | T52: -9.633334972 | U52: 0.002349036854 | V52: -9.187232655 | W52: 0.003382930031 | X52: Blank | Y52: Blank | Z52: 0 | AA52: =(Results!$F$14-$J52)*$AB$2 -> 21.78236087 | AB52: =(1/SUMSQ(Results!$G$14,$K52))*$AB$2 -> 6507592.743 | AC52: 0.397608855 | AD52: =(Results!$F$15-$L52)*$AE$2 -> 21.88861501 | AE52: =(1/SUMSQ(Results!$G$15,$M52))*$AE$2 -> 5273258.357 | AF52: 0.3221919841 | AG52: =(Results!$F$16-$N52)*$AH$2 -> 21.99294814 | AH52: =(1/SUMSQ(Results!$G$16,$O52))*$AH$2 -> 2282081.864 | AI52: 0.1394334269 | AJ52: =(Results!$F$17-$P52)*$AK$2 -> 22.07866425 | AK52: =(1/SUMSQ(Results!$G$17,$Q52))*$AK$2 -> 1506677.866 | AL52: 0.09205684572 | AM52: =(Results!$F$18-$R52)*$AN$2 -> 22.04200661 | AN52: =(1/SUMSQ(Results!$G$18,$S52))*$AN$2 -> 528603.311 | AO52: 0.03229725116 | AP52: =(Results!$F$19-$T52)*$AQ$2 -> 21.91833497 | AQ52: =(1/SUMSQ(Results!$G$19,$U52))*$AQ$2 -> 181225.9308 | AR52: 0.01107276341 | AS52: =(Results!$F$20-$V52)*$AT$2 -> 21.96923265 | AT52: =(1/SUMSQ(Results!$G$20,$W52))*$AT$2 -> 87380.38808 | AU52: 0.005338873747 | AV52: 21.8841239 | AW52: 0.04106088025 | AX52: 11.67304002 | AY52: 0.04108841378 | AZ52: 9.553763031 | BA52: 0.04106275141 | BB52: 9.74250889 | BC52: 0.04106318939 | BD52: 10.45917575 | BE52: 0.04106621584 | BF52: 10.78945965 | BG52: 0.0410689615 | BH52: 11.53911729 | BI52: 0.04108391005 | BJ52: 12.25078893 | BK52: 0.04112801796 | BL52: 12.69689124 | BM52: 0.04120000125 | BN52: =IF(MOD(ROW($BN52)-7,oBlockAvg)=0,AVERAGE(INDIRECT(ADDRESS((INT((ROW($BN52)-7)/oBlockAvg)*oBlockAvg)+7,COLUMN(Calculation!JDGraph))&":"&ADDRESS(((INT((ROW($BN52)-7)/oBlockAvg)+1)*oBlockAvg)+6,COLUMN(Calculation!JDGraph)))),#N/A) -> 3319.579317 | BO52: 11.67477479 | BP52: 0.0005212149127
B53: WASP-12b_00086_bdf.fits | C53: 2013-01-27 | D53: 01:52:13.843 | E53: 2456319.578 | F53: 3319.577938 | G53: 100 | H53: -10.20860462 | I53: 0.00150896057 | J53: -12.32966703 | K53: 0.0003920917177 | L53: -12.14158842 | M53: 0.0004348877919 | N53: -11.42287246 | O53: 0.000661660827 | P53: -11.09421313 | Q53: 0.0008146727257 | R53: -10.34489006 | S53: 0.001370196559 | T53: -9.628485522 | U53: 0.002350264044 | V53: -9.187719641 | W53: 0.003377493887 | X53: Blank | Y53: Blank | Z53: 0 | AA53: =(Results!$F$14-$J53)*$AB$2 -> 21.78166703 | AB53: =(1/SUMSQ(Results!$G$14,$K53))*$AB$2 -> 6504660.927 | AC53: 0.3970047776 | AD53: =(Results!$F$15-$L53)*$AE$2 -> 21.88858842 | AE53: =(1/SUMSQ(Results!$G$15,$M53))*$AE$2 -> 5287441.401 | AF53: 0.3227131316 | AG53: =(Results!$F$16-$N53)*$AH$2 -> 21.99087246 | AH53: =(1/SUMSQ(Results!$G$16,$O53))*$AH$2 -> 2284173.839 | AI53: 0.1394120212 | AJ53: =(Results!$F$17-$P53)*$AK$2 -> 22.07821313 | AK53: =(1/SUMSQ(Results!$G$17,$Q53))*$AK$2 -> 1506723.793 | AL53: 0.09196121842 | AM53: =(Results!$F$18-$R53)*$AN$2 -> 22.04189006 | AN53: =(1/SUMSQ(Results!$G$18,$S53))*$AN$2 -> 532640.5854 | AO53: 0.03250912838 | AP53: =(Results!$F$19-$T53)*$AQ$2 -> 21.91348552 | AQ53: =(1/SUMSQ(Results!$G$19,$U53))*$AQ$2 -> 181036.7261 | AR53: 0.01104937613 | AS53: =(Results!$F$20-$V53)*$AT$2 -> 21.96971964 | AT53: =(1/SUMSQ(Results!$G$20,$W53))*$AT$2 -> 87661.89541 | AU53: 0.005350346726 | AV53: 21.88353074 | AW53: 0.04099666261 | AX53: 11.67492612 | AY53: 0.0410244233 | AZ53: 9.553863713 | BA53: 0.04099853754 | BB53: 9.741942318 | BC53: 0.04099896916 | BD53: 10.46065829 | BE53: 0.04100200166 | BF53: 10.78931761 | BG53: 0.04100475627 | BH53: 11.53864068 | BI53: 0.04101955367 | BJ53: 12.25504522 | BK53: 0.04106397553 | BL53: 12.6958111 | BM53: 0.04113555408 | BN53: =IF(MOD(ROW($BN53)-7,oBlockAvg)=0,AVERAGE(INDIRECT(ADDRESS((INT((ROW($BN53)-7)/oBlockAvg)*oBlockAvg)+7,COLUMN(Calculation!JDGraph))&":"&ADDRESS(((INT((ROW($BN53)-7)/oBlockAvg)+1)*oBlockAvg)+6,COLUMN(Calculation!JDGraph)))),#N/A) -> 
B54: WASP-12b_00087_bdf.fits | C54: 2013-01-27 | D54: 01:54:12.989 | E54: 2456319.579 | F54: 3319.579317 | G54: 100 | H54: -10.21652672 | I54: 0.001498980049 | J54: -12.337811 | K54: 0.0003903175857 | L54: -12.14911599 | M54: 0.0004330439704 | N54: -11.4323873 | O54: 0.0006576005475 | P54: -11.10259169 | Q54: 0.0008110469965 | R54: -10.35118097 | S54: 0.001367093137 | T54: -9.637226036 | U54: 0.002336509696 | V54: -9.198464863 | W54: 0.00335766045 | X54: Blank | Y54: Blank | Z54: 0 | AA54: =(Results!$F$14-$J54)*$AB$2 -> 21.789811 | AB54: =(1/SUMSQ(Results!$G$14,$K54))*$AB$2 -> 6563927.3 | AC54: 0.3969448264 | AD54: =(Results!$F$15-$L54)*$AE$2 -> 21.89611599 | AE54: =(1/SUMSQ(Results!$G$15,$M54))*$AE$2 -> 5332563.161 | AF54: 0.3224797079 | AG54: =(Results!$F$16-$N54)*$AH$2 -> 22.0003873 | AH54: =(1/SUMSQ(Results!$G$16,$O54))*$AH$2 -> 2312467.66 | AI54: 0.1398434248 | AJ54: =(Results!$F$17-$P54)*$AK$2 -> 22.08659169 | AK54: =(1/SUMSQ(Results!$G$17,$Q54))*$AK$2 -> 1520225.312 | AL54: 0.09193361612 | AM54: =(Results!$F$18-$R54)*$AN$2 -> 22.04818097 | AN54: =(1/SUMSQ(Results!$G$18,$S54))*$AN$2 -> 535061.6119 | AO54: 0.03235714367 | AP54: =(Results!$F$19-$T54)*$AQ$2 -> 21.92222604 | AQ54: =(1/SUMSQ(Results!$G$19,$U54))*$AQ$2 -> 183174.4199 | AR54: 0.0110772309 | AS54: =(Results!$F$20-$V54)*$AT$2 -> 21.98046486 | AT54: =(1/SUMSQ(Results!$G$20,$W54))*$AT$2 -> 88700.57799 | AU54: 0.005364050198 | AV54: 21.89167362 | AW54: 0.04106065734 | AX54: 11.67514689 | AY54: 0.04108800948 | AZ54: 9.55386262 | BA54: 0.04106251246 | BB54: 9.742557625 | BC54: 0.04106294082 | BD54: 10.45928632 | BE54: 0.04106592286 | BF54: 10.78908193 | BG54: 0.04106866663 | BH54: 11.54049265 | BI54: 0.04108340937 | BJ54: 12.25444758 | BK54: 0.04112708182 | BL54: 12.69320875 | BM54: 0.04119771189 | BN54: =IF(MOD(ROW($BN54)-7,oBlockAvg)=0,AVERAGE(INDIRECT(ADDRESS((INT((ROW($BN54)-7)/oBlockAvg)*oBlockAvg)+7,COLUMN(Calculation!JDGraph))&":"&ADDRESS(((INT((ROW($BN54)-7)/oBlockAvg)+1)*oBlockAvg)+6,COLUMN(Calculation!JDGraph)))),#N/A) -> 
B55: WASP-12b_00088_bdf.fits | C55: 2013-01-27 | D55: 01:56:12.221 | E55: 2456319.581 | F55: 3319.580697 | G55: 100 | H55: -10.20849194 | I55: 0.00150566512 | J55: -12.32855711 | K55: 0.0003924155724 | L55: -12.14257966 | M55: 0.0004347382179 | N55: -11.42296464 | O55: 0.0006614927716 | P55: -11.09160427 | Q55: 0.0008165766618 | R55: -10.34137916 | S55: 0.001378904682 | T55: -9.628816685 | U55: 0.002348563482 | V55: -9.186954585 | W55: 0.003380678274 | X55: Blank | Y55: Blank | Z55: 0 | AA55: =(Results!$F$14-$J55)*$AB$2 -> 21.78055711 | AB55: =(1/SUMSQ(Results!$G$14,$K55))*$AB$2 -> 6493928.959 | AC55: 0.3968234837 | AD55: =(Results!$F$15-$L55)*$AE$2 -> 21.88957966 | AE55: =(1/SUMSQ(Results!$G$15,$M55))*$AE$2 -> 5291080.371 | AF55: 0.3233212064 | AG55: =(Results!$F$16-$N55)*$AH$2 -> 21.99096464 | AH55: =(1/SUMSQ(Results!$G$16,$O55))*$AH$2 -> 2285334.597 | AI55: 0.1396495776 | AJ55: =(Results!$F$17-$P55)*$AK$2 -> 22.07560427 | AK55: =(1/SUMSQ(Results!$G$17,$Q55))*$AK$2 -> 1499705.807 | AL55: 0.09164228418 | AM55: =(Results!$F$18-$R55)*$AN$2 -> 22.03837916 | AN55: =(1/SUMSQ(Results!$G$18,$S55))*$AN$2 -> 525934.3147 | AO55: 0.03213818449 | AP55: =(Results!$F$19-$T55)*$AQ$2 -> 21.91381669 | AQ55: =(1/SUMSQ(Results!$G$19,$U55))*$AQ$2 -> 181298.9932 | AR55: 0.01107860874 | AS55: =(Results!$F$20-$V55)*$AT$2 -> 21.96895458 | AT55: =(1/SUMSQ(Results!$G$20,$W55))*$AT$2 -> 87496.82919 | AU55: 0.005346654821 | AV55: 21.88299809 | AW55: 0.04088971023 | AX55: 11.67450615 | AY55: 0.04091742209 | AZ55: 9.554440982 | BA55: 0.04089159318 | BB55: 9.740418431 | BC55: 0.04089202123 | BD55: 10.46003345 | BE55: 0.04089506053 | BF55: 10.79139382 | BG55: 0.04089786303 | BH55: 11.54161893 | BI55: 0.0409129537 | BJ55: 12.2541814 | BK55: 0.04095710138 | BL55: 12.6960435 | BM55: 0.04102922603 | BN55: =IF(MOD(ROW($BN55)-7,oBlockAvg)=0,AVERAGE(INDIRECT(ADDRESS((INT((ROW($BN55)-7)/oBlockAvg)*oBlockAvg)+7,COLUMN(Calculation!JDGraph))&":"&ADDRESS(((INT((ROW($BN55)-7)/oBlockAvg)+1)*oBlockAvg)+6,COLUMN(Calculation!JDGraph)))),#N/A) -> 
B56: WASP-12b_00089_bdf.fits | C56: 2013-01-27 | D56: 01:58:11.366 | E56: 2456319.582 | F56: 3319.582076 | G56: 100 | H56: -10.19997658 | I56: 0.001515445863 | J56: -12.32125416 | K56: 0.0003943485668 | L56: -12.13546148 | M56: 0.0004367958095 | N56: -11.41682452 | O56: 0.0006639481347 | P56: -11.08578536 | Q56: 0.0008213136473 | R56: -10.33633437 | S56: 0.001383871263 | T56: -9.625022565 | U56: 0.002357018139 | V56: -9.186868564 | W56: 0.003373230172 | X56: Blank | Y56: Blank | Z56: 0 | AA56: =(Results!$F$14-$J56)*$AB$2 -> 21.77325416 | AB56: =(1/SUMSQ(Results!$G$14,$K56))*$AB$2 -> 6430421.877 | AC56: 0.3966276941 | AD56: =(Results!$F$15-$L56)*$AE$2 -> 21.88246148 | AE56: =(1/SUMSQ(Results!$G$15,$M56))*$AE$2 -> 5241348.94 | AF56: 0.3232858098 | AG56: =(Results!$F$16-$N56)*$AH$2 -> 21.98482452 | AH56: =(1/SUMSQ(Results!$G$16,$O56))*$AH$2 -> 2268462.946 | AI56: 0.139918538 | AJ56: =(Results!$F$17-$P56)*$AK$2 -> 22.06978536 | AK56: =(1/SUMSQ(Results!$G$17,$Q56))*$AK$2 -> 1482456.373 | AL56: 0.09143774142 | AM56: =(Results!$F$18-$R56)*$AN$2 -> 22.03333437 | AN56: =(1/SUMSQ(Results!$G$18,$S56))*$AN$2 -> 522166.0334 | AO56: 0.03220714188 | AP56: =(Results!$F$19-$T56)*$AQ$2 -> 21.91002256 | AQ56: =(1/SUMSQ(Results!$G$19,$U56))*$AQ$2 -> 180000.682 | AR56: 0.01110242171 | AS56: =(Results!$F$20-$V56)*$AT$2 -> 21.96886856 | AT56: =(1/SUMSQ(Results!$G$20,$W56))*$AT$2 -> 87883.64228 | AU56: 0.005420653116 | AV56: 21.87623136 | AW56: 0.04112613112 | AX56: 11.67625477 | AY56: 0.04115404278 | AZ56: 9.554977196 | BA56: 0.04112802173 | BB56: 9.740769872 | BC56: 0.04112845063 | BD56: 10.45940683 | BE56: 0.04113149022 | BF56: 10.79044599 | BG56: 0.04113433136 | BH56: 11.53989699 | BI56: 0.04114940778 | BJ56: 12.25120879 | BK56: 0.04119361838 | BL56: 12.68936279 | BM56: 0.04126423806 | BN56: =IF(MOD(ROW($BN56)-7,oBlockAvg)=0,AVERAGE(INDIRECT(ADDRESS((INT((ROW($BN56)-7)/oBlockAvg)*oBlockAvg)+7,COLUMN(Calculation!JDGraph))&":"&ADDRESS(((INT((ROW($BN56)-7)/oBlockAvg)+1)*oBlockAvg)+6,COLUMN(Calculation!JDGraph)))),#N/A) -> 
B57: WASP-12b_00090_bdf.fits | C57: 2013-01-27 | D57: 02:00:10.512 | E57: 2456319.583 | F57: 3319.583455 | G57: 100 | H57: -10.17333787 | I57: 0.001549988717 | J57: -12.29813478 | K57: 0.0003992148824 | L57: -12.11375326 | M57: 0.0004421545306 | N57: -11.39099177 | O57: 0.0006755801968 | P57: -11.06415822 | Q57: 0.0008309808648 | R57: -10.31539938 | S57: 0.001404674792 | T57: -9.599010441 | U57: 0.00240959138 | V57: -9.156912675 | W57: 0.003463821247 | X57: Blank | Y57: Blank | Z57: 0 | AA57: =(Results!$F$14-$J57)*$AB$2 -> 21.75013478 | AB57: =(1/SUMSQ(Results!$G$14,$K57))*$AB$2 -> 6274607.35 | AC57: 0.3973469305 | AD57: =(Results!$F$15-$L57)*$AE$2 -> 21.86075326 | AE57: =(1/SUMSQ(Results!$G$15,$M57))*$AE$2 -> 5115073.059 | AF57: 0.3239180503 | AG57: =(Results!$F$16-$N57)*$AH$2 -> 21.95899177 | AH57: =(1/SUMSQ(Results!$G$16,$O57))*$AH$2 -> 2191019.176 | AI57: 0.1387488803 | AJ57: =(Results!$F$17-$P57)*$AK$2 -> 22.04815822 | AK57: =(1/SUMSQ(Results!$G$17,$Q57))*$AK$2 -> 1448164.688 | AL57: 0.09170674138 | AM57: =(Results!$F$18-$R57)*$AN$2 -> 22.01239938 | AN57: =(1/SUMSQ(Results!$G$18,$S57))*$AN$2 -> 506813.7892 | AO57: 0.03209458253 | AP57: =(Results!$F$19-$T57)*$AQ$2 -> 21.88401044 | AQ57: =(1/SUMSQ(Results!$G$19,$U57))*$AQ$2 -> 172231.7436 | AR57: 0.01090677883 | AS57: =(Results!$F$20-$V57)*$AT$2 -> 21.93891268 | AT57: =(1/SUMSQ(Results!$G$20,$W57))*$AT$2 -> 83346.82419 | AU57: 0.005278036204 | AV57: 21.85314934 | AW57: 0.04111029562 | AX57: 11.67981147 | AY57: 0.041139505 | AZ57: 9.555014556 | BA57: 0.04111223393 | BB57: 9.739396078 | BC57: 0.04111267331 | BD57: 10.46215756 | BE57: 0.04111584627 | BF57: 10.78899111 | BG57: 0.04111869326 | BH57: 11.53774995 | BI57: 0.0411342864 | BJ57: 12.2541389 | BK57: 0.04118085158 | BL57: 12.69623666 | BM57: 0.04125596277 | BN57: =IF(MOD(ROW($BN57)-7,oBlockAvg)=0,AVERAGE(INDIRECT(ADDRESS((INT((ROW($BN57)-7)/oBlockAvg)*oBlockAvg)+7,COLUMN(Calculation!JDGraph))&":"&ADDRESS(((INT((ROW($BN57)-7)/oBlockAvg)+1)*oBlockAvg)+6,COLUMN(Calculation!JDGraph)))),#N/A) -> 3319.586214 | BO57: 11.68177148 | BP57: 0.000908559652
B58: WASP-12b_00091_bdf.fits | C58: 2013-01-27 | D58: 02:02:09.658 | E58: 2456319.585 | F58: 3319.584834 | G58: 100 | H58: -10.17508908 | I58: 0.001546160791 | J58: -12.30011879 | K58: 0.0003988906585 | L58: -12.11559424 | M58: 0.0004419763322 | N58: -11.3923333 | O58: 0.0006750339171 | P58: -11.06366234 | Q58: 0.0008323757868 | R58: -10.3152887 | S58: 0.001408242548 | T58: -9.600497165 | U58: 0.002409816603 | V58: -9.162665329 | W58: 0.003456886507 | X58: Blank | Y58: Blank | Z58: 0 | AA58: =(Results!$F$14-$J58)*$AB$2 -> 21.75211879 | AB58: =(1/SUMSQ(Results!$G$14,$K58))*$AB$2 -> 6284811.672 | AC58: 0.3977219879 | AD58: =(Results!$F$15-$L58)*$AE$2 -> 21.86259424 | AE58: =(1/SUMSQ(Results!$G$15,$M58))*$AE$2 -> 5119198.535 | AF58: 0.3239584452 | AG58: =(Results!$F$16-$N58)*$AH$2 -> 21.9603333 | AH58: =(1/SUMSQ(Results!$G$16,$O58))*$AH$2 -> 2194566.831 | AI58: 0.1388788603 | AJ58: =(Results!$F$17-$P58)*$AK$2 -> 22.04766234 | AK58: =(1/SUMSQ(Results!$G$17,$Q58))*$AK$2 -> 1443314.993 | AL58: 0.09133736032 | AM58: =(Results!$F$18-$R58)*$AN$2 -> 22.0122887 | AN58: =(1/SUMSQ(Results!$G$18,$S58))*$AN$2 -> 504249.0358 | AO58: 0.03191041186 | AP58: =(Results!$F$19-$T58)*$AQ$2 -> 21.88549716 | AQ58: =(1/SUMSQ(Results!$G$19,$U58))*$AQ$2 -> 172199.5513 | AR58: 0.01089731108 | AS58: =(Results!$F$20-$V58)*$AT$2 -> 21.94466533 | AT58: =(1/SUMSQ(Results!$G$20,$W58))*$AT$2 -> 83681.55793 | AU58: 0.00529562337 | AV58: 21.85459425 | AW58: 0.04082809038 | AX58: 11.67950518 | AY58: 0.04085735647 | AZ58: 9.554475466 | BA58: 0.04083003892 | BB58: 9.739000014 | BC58: 0.04083048257 | BD58: 10.46226095 | BE58: 0.04083367036 | BF58: 10.79093192 | BG58: 0.04083657446 | BH58: 11.53930555 | BI58: 0.04085236971 | BJ58: 12.25409709 | BK58: 0.04089914645 | BL58: 12.69192892 | BM58: 0.04097417514 | BN58: =IF(MOD(ROW($BN58)-7,oBlockAvg)=0,AVERAGE(INDIRECT(ADDRESS((INT((ROW($BN58)-7)/oBlockAvg)*oBlockAvg)+7,COLUMN(Calculation!JDGraph))&":"&ADDRESS(((INT((ROW($BN58)-7)/oBlockAvg)+1)*oBlockAvg)+6,COLUMN(Calculation!JDGraph)))),#N/A) -> 
B59: WASP-12b_00092_bdf.fits | C59: 2013-01-27 | D59: 02:04:08.890 | E59: 2456319.586 | F59: 3319.586214 | G59: 100 | H59: -10.20820554 | I59: 0.001507609554 | J59: -12.33562715 | K59: 0.0003912269819 | L59: -12.14909522 | M59: 0.0004330961799 | N59: -11.43026893 | O59: 0.0006595105049 | P59: -11.10039836 | Q59: 0.0008121221519 | R59: -10.35145 | S59: 0.001369574908 | T59: -9.636519233 | U59: 0.002341229713 | V59: -9.203200823 | W59: 0.003339958954 | X59: Blank | Y59: Blank | Z59: 0 | AA59: =(Results!$F$14-$J59)*$AB$2 -> 21.78762715 | AB59: =(1/SUMSQ(Results!$G$14,$K59))*$AB$2 -> 6533447.437 | AC59: 0.396321399 | AD59: =(Results!$F$15-$L59)*$AE$2 -> 21.89609522 | AE59: =(1/SUMSQ(Results!$G$15,$M59))*$AE$2 -> 5331277.562 | AF59: 0.3233973185 | AG59: =(Results!$F$16-$N59)*$AH$2 -> 21.99826893 | AH59: =(1/SUMSQ(Results!$G$16,$O59))*$AH$2 -> 2299093.137 | AI59: 0.1394638615 | AJ59: =(Results!$F$17-$P59)*$AK$2 -> 22.08439836 | AK59: =(1/SUMSQ(Results!$G$17,$Q59))*$AK$2 -> 1516202.773 | AL59: 0.09197343515 | AM59: =(Results!$F$18-$R59)*$AN$2 -> 22.04845 | AN59: =(1/SUMSQ(Results!$G$18,$S59))*$AN$2 -> 533124.2264 | AO59: 0.03233951774 | AP59: =(Results!$F$19-$T59)*$AQ$2 -> 21.92151923 | AQ59: =(1/SUMSQ(Results!$G$19,$U59))*$AQ$2 -> 182436.5898 | AR59: 0.01106667272 | AS59: =(Results!$F$20-$V59)*$AT$2 -> 21.98520082 | AT59: =(1/SUMSQ(Results!$G$20,$W59))*$AT$2 -> 89643.28039 | AU59: 0.005437795381 | AV59: 21.8903684 | AW59: 0.04112617617 | AX59: 11.68216287 | AY59: 0.04115379998 | AZ59: 9.554741257 | BA59: 0.04112803697 | BB59: 9.741273186 | BC59: 0.04112845655 | BD59: 10.46009948 | BE59: 0.04113146387 | BF59: 10.78997005 | BG59: 0.04113419391 | BH59: 11.5389184 | BI59: 0.04114897449 | BJ59: 12.25384917 | BK59: 0.04119276299 | BL59: 12.68716758 | BM59: 0.04126157646 | BN59: =IF(MOD(ROW($BN59)-7,oBlockAvg)=0,AVERAGE(INDIRECT(ADDRESS((INT((ROW($BN59)-7)/oBlockAvg)*oBlockAvg)+7,COLUMN(Calculation!JDGraph))&":"&ADDRESS(((INT((ROW($BN59)-7)/oBlockAvg)+1)*oBlockAvg)+6,COLUMN(Calculation!JDGraph)))),#N/A) -> 
B60: WASP-12b_00093_bdf.fits | C60: 2013-01-27 | D60: 02:06:08.035 | E60: 2456319.588 | F60: 3319.587593 | G60: 100 | H60: -10.21001453 | I60: 0.001503563928 | J60: -12.33955056 | K60: 0.0003899047294 | L60: -12.1507331 | M60: 0.0004325491633 | N60: -11.43480485 | O60: 0.0006557675637 | P60: -11.10431036 | Q60: 0.000809690753 | R60: -10.35289224 | S60: 0.001365544789 | T60: -9.643068245 | U60: 0.002325214069 | V60: -9.19951867 | W60: 0.003338072256 | X60: Blank | Y60: Blank | Z60: 0 | AA60: =(Results!$F$14-$J60)*$AB$2 -> 21.79155056 | AB60: =(1/SUMSQ(Results!$G$14,$K60))*$AB$2 -> 6577835.281 | AC60: 0.3966297866 | AD60: =(Results!$F$15-$L60)*$AE$2 -> 21.8977331 | AE60: =(1/SUMSQ(Results!$G$15,$M60))*$AE$2 -> 5344770.323 | AF60: 0.3222785342 | AG60: =(Results!$F$16-$N60)*$AH$2 -> 22.00280485 | AH60: =(1/SUMSQ(Results!$G$16,$O60))*$AH$2 -> 2325413.221 | AI60: 0.1402175807 | AJ60: =(Results!$F$17-$P60)*$AK$2 -> 22.08831036 | AK60: =(1/SUMSQ(Results!$G$17,$Q60))*$AK$2 -> 1525322.375 | AL60: 0.09197376679 | AM60: =(Results!$F$18-$R60)*$AN$2 -> 22.04989224 | AN60: =(1/SUMSQ(Results!$G$18,$S60))*$AN$2 -> 536275.6792 | AO60: 0.03233630809 | AP60: =(Results!$F$19-$T60)*$AQ$2 -> 21.92806824 | AQ60: =(1/SUMSQ(Results!$G$19,$U60))*$AQ$2 -> 184958.4239 | AR60: 0.01115260828 | AS60: =(Results!$F$20-$V60)*$AT$2 -> 21.98151867 | AT60: =(1/SUMSQ(Results!$G$20,$W60))*$AT$2 -> 89744.64284 | AU60: 0.005411415308 | AV60: 21.89359094 | AW60: 0.04110985787 | AX60: 11.68357641 | AY60: 0.04113734457 | AZ60: 9.554040375 | BA60: 0.04111170684 | BB60: 9.74285784 | BC60: 0.0411121334 | BD60: 10.45878608 | BE60: 0.0411150878 | BF60: 10.78928057 | BG60: 0.04111783084 | BH60: 11.5406987 | BI60: 0.04113253124 | BJ60: 12.25052269 | BK60: 0.04117556356 | BL60: 12.69407227 | BM60: 0.04124515899 | BN60: =IF(MOD(ROW($BN60)-7,oBlockAvg)=0,AVERAGE(INDIRECT(ADDRESS((INT((ROW($BN60)-7)/oBlockAvg)*oBlockAvg)+7,COLUMN(Calculation!JDGraph))&":"&ADDRESS(((INT((ROW($BN60)-7)/oBlockAvg)+1)*oBlockAvg)+6,COLUMN(Calculation!JDGraph)))),#N/A) -> 
B61: WASP-12b_00094_bdf.fits | C61: 2013-01-27 | D61: 02:08:07.181 | E61: 2456319.589 | F61: 3319.588972 | G61: 100 | H61: -10.21006464 | I61: 0.001499199502 | J61: -12.34020596 | K61: 0.0003894610989 | L61: -12.15167062 | M61: 0.0004318479553 | N61: -11.43420626 | O61: 0.0006557721199 | P61: -11.10367958 | Q61: 0.0008095824351 | R61: -10.35212582 | S61: 0.001364075546 | T61: -9.638518229 | U61: 0.002321855096 | V61: -9.199189493 | W61: 0.003327922851 | X61: Blank | Y61: Blank | Z61: 0 | AA61: =(Results!$F$14-$J61)*$AB$2 -> 21.79220596 | AB61: =(1/SUMSQ(Results!$G$14,$K61))*$AB$2 -> 6592829.285 | AC61: 0.3966971568 | AD61: =(Results!$F$15-$L61)*$AE$2 -> 21.89867062 | AE61: =(1/SUMSQ(Results!$G$15,$M61))*$AE$2 -> 5362141.431 | AF61: 0.3226454331 | AG61: =(Results!$F$16-$N61)*$AH$2 -> 22.00220626 | AH61: =(1/SUMSQ(Results!$G$16,$O61))*$AH$2 -> 2325380.908 | AI61: 0.1399205038 | AJ61: =(Results!$F$17-$P61)*$AK$2 -> 22.08767958 | AK61: =(1/SUMSQ(Results!$G$17,$Q61))*$AK$2 -> 1525730.563 | AL61: 0.09180473969 | AM61: =(Results!$F$18-$R61)*$AN$2 -> 22.04912582 | AN61: =(1/SUMSQ(Results!$G$18,$S61))*$AN$2 -> 537431.5438 | AO61: 0.03233779553 | AP61: =(Results!$F$19-$T61)*$AQ$2 -> 21.92351823 | AQ61: =(1/SUMSQ(Results!$G$19,$U61))*$AQ$2 -> 185493.961 | AR61: 0.01116135786 | AS61: =(Results!$F$20-$V61)*$AT$2 -> 21.98118949 | AT61: =(1/SUMSQ(Results!$G$20,$W61))*$AT$2 -> 90292.87895 | AU61: 0.005433013174 | AV61: 21.89386612 | AW61: 0.04088366176 | AX61: 11.68380148 | AY61: 0.04091114027 | AZ61: 9.553660159 | BA61: 0.04088551674 | BB61: 9.742195495 | BC61: 0.04088594247 | BD61: 10.45965986 | BE61: 0.0408889207 | BF61: 10.79018654 | BG61: 0.04089167669 | BH61: 11.5417403 | BI61: 0.04090641149 | BJ61: 12.25534789 | BK61: 0.0409495398 | BL61: 12.69467663 | BM61: 0.0410188843 | BN61: =IF(MOD(ROW($BN61)-7,oBlockAvg)=0,AVERAGE(INDIRECT(ADDRESS((INT((ROW($BN61)-7)/oBlockAvg)*oBlockAvg)+7,COLUMN(Calculation!JDGraph))&":"&ADDRESS(((INT((ROW($BN61)-7)/oBlockAvg)+1)*oBlockAvg)+6,COLUMN(Calculation!JDGraph)))),#N/A) -> 
B62: WASP-12b_00095_bdf.fits | C62: 2013-01-27 | D62: 02:10:06.413 | E62: 2456319.59 | F62: 3319.590352 | G62: 100 | H62: -10.20850895 | I62: 0.001499702981 | J62: -12.3398514 | K62: 0.0003896681684 | L62: -12.15185043 | M62: 0.0004321233169 | N62: -11.43511255 | O62: 0.0006556007528 | P62: -11.10497565 | Q62: 0.0008073036296 | R62: -10.35377547 | S62: 0.001366910316 | T62: -9.643517891 | U62: 0.00231791544 | V62: -9.196664718 | W62: 0.003342226667 | X62: Blank | Y62: Blank | Z62: 0 | AA62: =(Results!$F$14-$J62)*$AB$2 -> 21.7918514 | AB62: =(1/SUMSQ(Results!$G$14,$K62))*$AB$2 -> 6585824.291 | AC62: 0.3964274175 | AD62: =(Results!$F$15-$L62)*$AE$2 -> 21.89885043 | AE62: =(1/SUMSQ(Results!$G$15,$M62))*$AE$2 -> 5355309.781 | AF62: 0.3223577691 | AG62: =(Results!$F$16-$N62)*$AH$2 -> 22.00311255 | AH62: =(1/SUMSQ(Results!$G$16,$O62))*$AH$2 -> 2326596.727 | AI62: 0.140047273 | AJ62: =(Results!$F$17-$P62)*$AK$2 -> 22.08897565 | AK62: =(1/SUMSQ(Results!$G$17,$Q62))*$AK$2 -> 1534356.191 | AL62: 0.09235910878 | AM62: =(Results!$F$18-$R62)*$AN$2 -> 22.05077547 | AN62: =(1/SUMSQ(Results!$G$18,$S62))*$AN$2 -> 535204.748 | AO62: 0.0322161398 | AP62: =(Results!$F$19-$T62)*$AQ$2 -> 21.92851789 | AQ62: =(1/SUMSQ(Results!$G$19,$U62))*$AQ$2 -> 186125.0483 | AR62: 0.01120361992 | AS62: =(Results!$F$20-$V62)*$AT$2 -> 21.97866472 | AT62: =(1/SUMSQ(Results!$G$20,$W62))*$AT$2 -> 89521.67509 | AU62: 0.005388671926 | AV62: 21.89425142 | AW62: 0.04116267898 | AX62: 11.68574247 | AY62: 0.04118998968 | AZ62: 9.554400016 | BA62: 0.04116452334 | BB62: 9.742400985 | BC62: 0.04116494712 | BD62: 10.45913887 | BE62: 0.04116789955 | BF62: 10.78927577 | BG62: 0.04117059485 | BH62: 11.54047595 | BI62: 0.04118536857 | BJ62: 12.25073353 | BK62: 0.0412278895 | BL62: 12.6975867 | BM62: 0.04129814306 | BN62: =IF(MOD(ROW($BN62)-7,oBlockAvg)=0,AVERAGE(INDIRECT(ADDRESS((INT((ROW($BN62)-7)/oBlockAvg)*oBlockAvg)+7,COLUMN(Calculation!JDGraph))&":"&ADDRESS(((INT((ROW($BN62)-7)/oBlockAvg)+1)*oBlockAvg)+6,COLUMN(Calculation!JDGraph)))),#N/A) -> 3319.59311 | BO62: 11.68608574 | BP62: 0.0009056507253
B63: WASP-12b_00096_bdf.fits | C63: 2013-01-27 | D63: 02:12:05.558 | E63: 2456319.592 | F63: 3319.591731 | G63: 100 | H63: -10.21429805 | I63: 0.001494762049 | J63: -12.34325257 | K63: 0.0003890526616 | L63: -12.15538541 | M63: 0.0004313459065 | N63: -11.43947129 | O63: 0.0006539737129 | P63: -11.10797725 | Q63: 0.0008065535977 | R63: -10.35650649 | S63: 0.001363082771 | T63: -9.644826645 | U63: 0.002312216028 | V63: -9.206880844 | W63: 0.003313583689 | X63: Blank | Y63: Blank | Z63: 0 | AA63: =(Results!$F$14-$J63)*$AB$2 -> 21.79525257 | AB63: =(1/SUMSQ(Results!$G$14,$K63))*$AB$2 -> 6606679.189 | AC63: 0.3962491402 | AD63: =(Results!$F$15-$L63)*$AE$2 -> 21.90238541 | AE63: =(1/SUMSQ(Results!$G$15,$M63))*$AE$2 -> 5374630.821 | AF63: 0.3223545114 | AG63: =(Results!$F$16-$N63)*$AH$2 -> 22.00747129 | AH63: =(1/SUMSQ(Results!$G$16,$O63))*$AH$2 -> 2338187.941 | AI63: 0.1402376194 | AJ63: =(Results!$F$17-$P63)*$AK$2 -> 22.09197725 | AK63: =(1/SUMSQ(Results!$G$17,$Q63))*$AK$2 -> 1537211.181 | AL63: 0.09219739467 | AM63: =(Results!$F$18-$R63)*$AN$2 -> 22.05350649 | AN63: =(1/SUMSQ(Results!$G$18,$S63))*$AN$2 -> 538214.6851 | AO63: 0.03228053007 | AP63: =(Results!$F$19-$T63)*$AQ$2 -> 21.92982664 | AQ63: =(1/SUMSQ(Results!$G$19,$U63))*$AQ$2 -> 187043.7433 | AR63: 0.01121833229 | AS63: =(Results!$F$20-$V63)*$AT$2 -> 21.98888084 | AT63: =(1/SUMSQ(Results!$G$20,$W63))*$AT$2 -> 91076.03441 | AU63: 0.005462472038 | AV63: 21.89780958 | AW63: 0.04118293499 | AX63: 11.68351153 | AY63: 0.04121005275 | AZ63: 9.554557002 | BA63: 0.04118477263 | BB63: 9.742424164 | BC63: 0.04118519387 | BD63: 10.45833828 | BE63: 0.04118812712 | BF63: 10.78983233 | BG63: 0.04119083227 | BH63: 11.54130309 | BI63: 0.04120548664 | BJ63: 12.25298293 | BK63: 0.04124779361 | BL63: 12.69092873 | BM63: 0.0413160256 | BN63: =IF(MOD(ROW($BN63)-7,oBlockAvg)=0,AVERAGE(INDIRECT(ADDRESS((INT((ROW($BN63)-7)/oBlockAvg)*oBlockAvg)+7,COLUMN(Calculation!JDGraph))&":"&ADDRESS(((INT((ROW($BN63)-7)/oBlockAvg)+1)*oBlockAvg)+6,COLUMN(Calculation!JDGraph)))),#N/A) -> 
B64: WASP-12b_00097_bdf.fits | C64: 2013-01-27 | D64: 02:14:04.704 | E64: 2456319.593 | F64: 3319.59311 | G64: 100 | H64: -10.20418419 | I64: 0.001502561593 | J64: -12.33551911 | K64: 0.0003905701255 | L64: -12.14886759 | M64: 0.0004325913714 | N64: -11.43065686 | O64: 0.0006571422458 | P64: -11.0998449 | Q64: 0.0008111982271 | R64: -10.35014981 | S64: 0.001364797461 | T64: -9.635543332 | U64: 0.002332699384 | V64: -9.195534781 | W64: 0.003333559675 | X64: Blank | Y64: Blank | Z64: 0 | AA64: =(Results!$F$14-$J64)*$AB$2 -> 21.78751911 | AB64: =(1/SUMSQ(Results!$G$14,$K64))*$AB$2 -> 6555441.669 | AC64: 0.3962153988 | AD64: =(Results!$F$15-$L64)*$AE$2 -> 21.89586759 | AE64: =(1/SUMSQ(Results!$G$15,$M64))*$AE$2 -> 5343727.392 | AF64: 0.3229785553 | AG64: =(Results!$F$16-$N64)*$AH$2 -> 21.99865686 | AH64: =(1/SUMSQ(Results!$G$16,$O64))*$AH$2 -> 2315694.29 | AI64: 0.139962154 | AJ64: =(Results!$F$17-$P64)*$AK$2 -> 22.0838449 | AK64: =(1/SUMSQ(Results!$G$17,$Q64))*$AK$2 -> 1519658.538 | AL64: 0.09184920618 | AM64: =(Results!$F$18-$R64)*$AN$2 -> 22.04714981 | AN64: =(1/SUMSQ(Results!$G$18,$S64))*$AN$2 -> 536863.141 | AO64: 0.03244837712 | AP64: =(Results!$F$19-$T64)*$AQ$2 -> 21.92054333 | AQ64: =(1/SUMSQ(Results!$G$19,$U64))*$AQ$2 -> 183773.3156 | AR64: 0.01110738547 | AS64: =(Results!$F$20-$V64)*$AT$2 -> 21.97753478 | AT64: =(1/SUMSQ(Results!$G$20,$W64))*$AT$2 -> 89987.77881 | AU64: 0.005438923182 | AV64: 21.89021756 | AW64: 0.04108809776 | AX64: 11.68603337 | AY64: 0.04111556237 | AZ64: 9.554698444 | BA64: 0.04108995404 | BB64: 9.741349963 | BC64: 0.04109037494 | BD64: 10.4595607 | BE64: 0.04109335243 | BF64: 10.79037266 | BG64: 0.04109610468 | BH64: 11.54006775 | BI64: 0.04111075832 | BJ64: 12.25467422 | BK64: 0.0411542618 | BL64: 12.69468277 | BM64: 0.04122310515 | BN64: =IF(MOD(ROW($BN64)-7,oBlockAvg)=0,AVERAGE(INDIRECT(ADDRESS((INT((ROW($BN64)-7)/oBlockAvg)*oBlockAvg)+7,COLUMN(Calculation!JDGraph))&":"&ADDRESS(((INT((ROW($BN64)-7)/oBlockAvg)+1)*oBlockAvg)+6,COLUMN(Calculation!JDGraph)))),#N/A) -> 
B65: WASP-12b_00098_bdf.fits | C65: 2013-01-27 | D65: 02:16:03.850 | E65: 2456319.594 | F65: 3319.594489 | G65: 100 | H65: -10.20168305 | I65: 0.001508626054 | J65: -12.33641532 | K65: 0.000390171714 | L65: -12.14917553 | M65: 0.0004325584859 | N65: -11.43186689 | O65: 0.0006565361579 | P65: -11.10107541 | Q65: 0.0008109153784 | R65: -10.35009793 | S65: 0.001370512107 | T65: -9.636636535 | U65: 0.00233168312 | V65: -9.194495864 | W65: 0.003340429595 | X65: Blank | Y65: Blank | Z65: 0 | AA65: =(Results!$F$14-$J65)*$AB$2 -> 21.78841532 | AB65: =(1/SUMSQ(Results!$G$14,$K65))*$AB$2 -> 6568836.269 | AC65: 0.3966685277 | AD65: =(Results!$F$15-$L65)*$AE$2 -> 21.89617553 | AE65: =(1/SUMSQ(Results!$G$15,$M65))*$AE$2 -> 5344539.943 | AF65: 0.3227376515 | AG65: =(Results!$F$16-$N65)*$AH$2 -> 21.99986689 | AH65: =(1/SUMSQ(Results!$G$16,$O65))*$AH$2 -> 2319971.775 | AI65: 0.1400947978 | AJ65: =(Results!$F$17-$P65)*$AK$2 -> 22.08507541 | AK65: =(1/SUMSQ(Results!$G$17,$Q65))*$AK$2 -> 1520718.842 | AL65: 0.09183077174 | AM65: =(Results!$F$18-$R65)*$AN$2 -> 22.04709793 | AN65: =(1/SUMSQ(Results!$G$18,$S65))*$AN$2 -> 532395.3417 | AO65: 0.03214945049 | AP65: =(Results!$F$19-$T65)*$AQ$2 -> 21.92163653 | AQ65: =(1/SUMSQ(Results!$G$19,$U65))*$AQ$2 -> 183933.5456 | AR65: 0.01110708895 | AS65: =(Results!$F$20-$V65)*$AT$2 -> 21.97649586 | AT65: =(1/SUMSQ(Results!$G$20,$W65))*$AT$2 -> 89618.02208 | AU65: 0.005411711819 | AV65: 21.89087343 | AW65: 0.04110069786 | AX65: 11.68919037 | AY65: 0.04112837606 | AZ65: 9.554458109 | BA65: 0.04110254978 | BB65: 9.741697898 | BC65: 0.041102974 | BD65: 10.45900654 | BE65: 0.04110594123 | BF65: 10.78979802 | BG65: 0.04110869675 | BH65: 11.54077549 | BI65: 0.04112354153 | BJ65: 12.25423689 | BK65: 0.04116678407 | BL65: 12.69637756 | BM65: 0.04123621993 | BN65: =IF(MOD(ROW($BN65)-7,oBlockAvg)=0,AVERAGE(INDIRECT(ADDRESS((INT((ROW($BN65)-7)/oBlockAvg)*oBlockAvg)+7,COLUMN(Calculation!JDGraph))&":"&ADDRESS(((INT((ROW($BN65)-7)/oBlockAvg)+1)*oBlockAvg)+6,COLUMN(Calculation!JDGraph)))),#N/A) -> 
B66: WASP-12b_00099_bdf.fits | C66: 2013-01-27 | D66: 02:18:02.995 | E66: 2456319.596 | F66: 3319.595868 | G66: 100 | H66: -10.20565385 | I66: 0.001502740153 | J66: -12.33735457 | K66: 0.0003898956716 | L66: -12.14993157 | M66: 0.0004326309832 | N66: -11.43152517 | O66: 0.0006566104793 | P66: -11.10128902 | Q66: 0.0008092164804 | R66: -10.35076051 | S66: 0.001364433424 | T66: -9.637561111 | U66: 0.002333258186 | V66: -9.203082919 | W66: 0.003316473569 | X66: Blank | Y66: Blank | Z66: 0 | AA66: =(Results!$F$14-$J66)*$AB$2 -> 21.78935457 | AB66: =(1/SUMSQ(Results!$G$14,$K66))*$AB$2 -> 6578140.907 | AC66: 0.3967707168 | AD66: =(Results!$F$15-$L66)*$AE$2 -> 21.89693157 | AE66: =(1/SUMSQ(Results!$G$15,$M66))*$AE$2 -> 5342748.891 | AF66: 0.3222561415 | AG66: =(Results!$F$16-$N66)*$AH$2 -> 21.99952517 | AH66: =(1/SUMSQ(Results!$G$16,$O66))*$AH$2 -> 2319446.613 | AI66: 0.1399010006 | AJ66: =(Results!$F$17-$P66)*$AK$2 -> 22.08528902 | AK66: =(1/SUMSQ(Results!$G$17,$Q66))*$AK$2 -> 1527110.848 | AL66: 0.09211004661 | AM66: =(Results!$F$18-$R66)*$AN$2 -> 22.04776051 | AN66: =(1/SUMSQ(Results!$G$18,$S66))*$AN$2 -> 537149.6546 | AO66: 0.03239901007 | AP66: =(Results!$F$19-$T66)*$AQ$2 -> 21.92256111 | AQ66: =(1/SUMSQ(Results!$G$19,$U66))*$AQ$2 -> 183685.3008 | AR66: 0.01107926228 | AS66: =(Results!$F$20-$V66)*$AT$2 -> 21.98508292 | AT66: =(1/SUMSQ(Results!$G$20,$W66))*$AT$2 -> 90917.38145 | AU66: 0.005483822118 | AV66: 21.8916048 | AW66: 0.04100970431 | AX66: 11.68595095 | AY66: 0.04103722792 | AZ66: 9.55425023 | BA66: 0.04101155772 | BB66: 9.741673225 | BC66: 0.04101198626 | BD66: 10.46007963 | BE66: 0.0410149605 | BF66: 10.79031578 | BG66: 0.04101768739 | BH66: 11.54084429 | BI66: 0.04103239606 | BJ66: 12.25404369 | BK66: 0.04107602636 | BL66: 12.68852188 | BM66: 0.04114358814 | BN66: =IF(MOD(ROW($BN66)-7,oBlockAvg)=0,AVERAGE(INDIRECT(ADDRESS((INT((ROW($BN66)-7)/oBlockAvg)*oBlockAvg)+7,COLUMN(Calculation!JDGraph))&":"&ADDRESS(((INT((ROW($BN66)-7)/oBlockAvg)+1)*oBlockAvg)+6,COLUMN(Calculation!JDGraph)))),#N/A) -> 
B67: WASP-12b_00100_bdf.fits | C67: 2013-01-27 | D67: 02:20:02.141 | E67: 2456319.597 | F67: 3319.597247 | G67: 100 | H67: -10.19963434 | I67: 0.001509335452 | J67: -12.33227323 | K67: 0.0003909510184 | L67: -12.14594007 | M67: 0.0004332740858 | N67: -11.42558557 | O67: 0.0006584718466 | P67: -11.09735609 | Q67: 0.0008108057063 | R67: -10.3456191 | S67: 0.001371248948 | T67: -9.632799267 | U67: 0.002337101018 | V67: -9.194683325 | W67: 0.003336620792 | X67: Blank | Y67: Blank | Z67: 0 | AA67: =(Results!$F$14-$J67)*$AB$2 -> 21.78427323 | AB67: =(1/SUMSQ(Results!$G$14,$K67))*$AB$2 -> 6542674.317 | AC67: 0.3964828323 | AD67: =(Results!$F$15-$L67)*$AE$2 -> 21.89294007 | AE67: =(1/SUMSQ(Results!$G$15,$M67))*$AE$2 -> 5326900.33 | AF67: 0.3228075292 | AG67: =(Results!$F$16-$N67)*$AH$2 -> 21.99358557 | AH67: =(1/SUMSQ(Results!$G$16,$O67))*$AH$2 -> 2306351.93 | AI67: 0.1397637879 | AJ67: =(Results!$F$17-$P67)*$AK$2 -> 22.08135609 | AK67: =(1/SUMSQ(Results!$G$17,$Q67))*$AK$2 -> 1521130.264 | AL67: 0.09217974274 | AM67: =(Results!$F$18-$R67)*$AN$2 -> 22.0426191 | AN67: =(1/SUMSQ(Results!$G$18,$S67))*$AN$2 -> 531823.3301 | AO67: 0.03222823115 | AP67: =(Results!$F$19-$T67)*$AQ$2 -> 21.91779927 | AQ67: =(1/SUMSQ(Results!$G$19,$U67))*$AQ$2 -> 183081.7397 | AR67: 0.01109466301 | AS67: =(Results!$F$20-$V67)*$AT$2 -> 21.97668332 | AT67: =(1/SUMSQ(Results!$G$20,$W67))*$AT$2 -> 89822.73948 | AU67: 0.005443213651 | AV67: 21.8868458 | AW67: 0.04102836439 | AX67: 11.68721146 | AY67: 0.04105611743 | AZ67: 9.554572567 | BA67: 0.041030227 | BB67: 9.740905727 | BC67: 0.04103065209 | BD67: 10.46126023 | BE67: 0.04103364802 | BF67: 10.78948971 | BG67: 0.04103637521 | BH67: 11.5412267 | BI67: 0.04105127292 | BJ67: 12.25404653 | BK67: 0.04109487469 | BL67: 12.69216247 | BM67: 0.0411638157 | BN67: =IF(MOD(ROW($BN67)-7,oBlockAvg)=0,AVERAGE(INDIRECT(ADDRESS((INT((ROW($BN67)-7)/oBlockAvg)*oBlockAvg)+7,COLUMN(Calculation!JDGraph))&":"&ADDRESS(((INT((ROW($BN67)-7)/oBlockAvg)+1)*oBlockAvg)+6,COLUMN(Calculation!JDGraph)))),#N/A) -> 3319.600006 | BO67: 11.68920307 | BP67: 0.0005680737813
B68: WASP-12b_00101_bdf.fits | C68: 2013-01-27 | D68: 02:22:01.286 | E68: 2456319.599 | F68: 3319.598626 | G68: 100 | H68: -10.20265298 | I68: 0.00150525382 | J68: -12.33932548 | K68: 0.000389502981 | L68: -12.15063434 | M68: 0.0004321695574 | N68: -11.4357992 | O68: 0.0006551773317 | P68: -11.10367248 | Q68: 0.0008102828299 | R68: -10.3519801 | S68: 0.001366020849 | T68: -9.639621494 | U68: 0.002320358054 | V68: -9.198716098 | W68: 0.003325587413 | X68: Blank | Y68: Blank | Z68: 0 | AA68: =(Results!$F$14-$J68)*$AB$2 -> 21.79132548 | AB68: =(1/SUMSQ(Results!$G$14,$K68))*$AB$2 -> 6591411.546 | AC68: 0.3968260567 | AD68: =(Results!$F$15-$L68)*$AE$2 -> 21.89763434 | AE68: =(1/SUMSQ(Results!$G$15,$M68))*$AE$2 -> 5354163.849 | AF68: 0.3223394128 | AG68: =(Results!$F$16-$N68)*$AH$2 -> 22.0037992 | AH68: =(1/SUMSQ(Results!$G$16,$O68))*$AH$2 -> 2329604.916 | AI68: 0.1402503737 | AJ68: =(Results!$F$17-$P68)*$AK$2 -> 22.08767248 | AK68: =(1/SUMSQ(Results!$G$17,$Q68))*$AK$2 -> 1523094.071 | AL68: 0.09169559663 | AM68: =(Results!$F$18-$R68)*$AN$2 -> 22.0489801 | AN68: =(1/SUMSQ(Results!$G$18,$S68))*$AN$2 -> 535901.9588 | AO68: 0.03226317453 | AP68: =(Results!$F$19-$T68)*$AQ$2 -> 21.92462149 | AQ68: =(1/SUMSQ(Results!$G$19,$U68))*$AQ$2 -> 185733.3911 | AR68: 0.01118180054 | AS68: =(Results!$F$20-$V68)*$AT$2 -> 21.9807161 | AT68: =(1/SUMSQ(Results!$G$20,$W68))*$AT$2 -> 90419.7422 | AU68: 0.00544358511 | AV68: 21.89340046 | AW68: 0.04111742501 | AX68: 11.69074748 | AY68: 0.04114496845 | AZ68: 9.554074978 | BA68: 0.04111926984 | BB68: 9.742766118 | BC68: 0.04111969614 | BD68: 10.45760126 | BE68: 0.04112264458 | BF68: 10.78972798 | BG68: 0.04112540818 | BH68: 11.54142036 | BI68: 0.04114011002 | BJ68: 12.25377897 | BK68: 0.04118284474 | BL68: 12.69468436 | BM68: 0.04125169295 | BN68: =IF(MOD(ROW($BN68)-7,oBlockAvg)=0,AVERAGE(INDIRECT(ADDRESS((INT((ROW($BN68)-7)/oBlockAvg)*oBlockAvg)+7,COLUMN(Calculation!JDGraph))&":"&ADDRESS(((INT((ROW($BN68)-7)/oBlockAvg)+1)*oBlockAvg)+6,COLUMN(Calculation!JDGraph)))),#N/A) -> 
B69: WASP-12b_00102_bdf.fits | C69: 2013-01-27 | D69: 02:24:00.518 | E69: 2456319.6 | F69: 3319.600006 | G69: 100 | H69: -10.18897201 | I69: 0.001523604605 | J69: -12.32436824 | K69: 0.0003929415956 | L69: -12.13785228 | M69: 0.0004356748238 | N69: -11.41619792 | O69: 0.0006632327918 | P69: -11.08808531 | Q69: 0.0008177897978 | R69: -10.3389586 | S69: 0.001378610134 | T69: -9.627483933 | U69: 0.002355725882 | V69: -9.181727427 | W69: 0.003384272257 | X69: Blank | Y69: Blank | Z69: 0 | AA69: =(Results!$F$14-$J69)*$AB$2 -> 21.77636824 | AB69: =(1/SUMSQ(Results!$G$14,$K69))*$AB$2 -> 6476554.007 | AC69: 0.3971592537 | AD69: =(Results!$F$15-$L69)*$AE$2 -> 21.88485228 | AE69: =(1/SUMSQ(Results!$G$15,$M69))*$AE$2 -> 5268355.486 | AF69: 0.3230693562 | AG69: =(Results!$F$16-$N69)*$AH$2 -> 21.98419792 | AH69: =(1/SUMSQ(Results!$G$16,$O69))*$AH$2 -> 2273358.977 | AI69: 0.1394083263 | AJ69: =(Results!$F$17-$P69)*$AK$2 -> 22.07208531 | AK69: =(1/SUMSQ(Results!$G$17,$Q69))*$AK$2 -> 1495259.683 | AL69: 0.09169323981 | AM69: =(Results!$F$18-$R69)*$AN$2 -> 22.0359586 | AN69: =(1/SUMSQ(Results!$G$18,$S69))*$AN$2 -> 526159.0767 | AO69: 0.03226545258 | AP69: =(Results!$F$19-$T69)*$AQ$2 -> 21.91248393 | AQ69: =(1/SUMSQ(Results!$G$19,$U69))*$AQ$2 -> 180198.2184 | AR69: 0.01105022669 | AS69: =(Results!$F$20-$V69)*$AT$2 -> 21.96372743 | AT69: =(1/SUMSQ(Results!$G$20,$W69))*$AT$2 -> 87311.09048 | AU69: 0.005354144734 | AV69: 21.87838761 | AW69: 0.04082702154 | AX69: 11.6894156 | AY69: 0.040855441 | AZ69: 9.554019374 | BA69: 0.04082891244 | BB69: 9.740535327 | BC69: 0.04082934607 | BD69: 10.46218969 | BE69: 0.04083240828 | BF69: 10.7903023 | BG69: 0.04083521113 | BH69: 11.53942901 | BI69: 0.04085029074 | BJ69: 12.25090368 | BK69: 0.04089492795 | BL69: 12.69666018 | BM69: 0.04096704757 | BN69: =IF(MOD(ROW($BN69)-7,oBlockAvg)=0,AVERAGE(INDIRECT(ADDRESS((INT((ROW($BN69)-7)/oBlockAvg)*oBlockAvg)+7,COLUMN(Calculation!JDGraph))&":"&ADDRESS(((INT((ROW($BN69)-7)/oBlockAvg)+1)*oBlockAvg)+6,COLUMN(Calculation!JDGraph)))),#N/A) -> 
B70: WASP-12b_00103_bdf.fits | C70: 2013-01-27 | D70: 02:25:59.664 | E70: 2456319.601 | F70: 3319.601385 | G70: 100 | H70: -10.19947818 | I70: 0.001512987056 | J70: -12.33441947 | K70: 0.0003908272629 | L70: -12.14784452 | M70: 0.0004329107968 | N70: -11.42926876 | O70: 0.0006583772498 | P70: -11.09828558 | Q70: 0.0008120153786 | R70: -10.34862367 | S70: 0.001370702803 | T70: -9.63449236 | U70: 0.002334135668 | V70: -9.18846962 | W70: 0.003362824012 | X70: Blank | Y70: Blank | Z70: 0 | AA70: =(Results!$F$14-$J70)*$AB$2 -> 21.78641947 | AB70: =(1/SUMSQ(Results!$G$14,$K70))*$AB$2 -> 6546818.451 | AC70: 0.3965244925 | AD70: =(Results!$F$15-$L70)*$AE$2 -> 21.89484452 | AE70: =(1/SUMSQ(Results!$G$15,$M70))*$AE$2 -> 5335844.509 | AF70: 0.3231788161 | AG70: =(Results!$F$16-$N70)*$AH$2 -> 21.99726876 | AH70: =(1/SUMSQ(Results!$G$16,$O70))*$AH$2 -> 2307014.739 | AI70: 0.1397301385 | AJ70: =(Results!$F$17-$P70)*$AK$2 -> 22.08228558 | AK70: =(1/SUMSQ(Results!$G$17,$Q70))*$AK$2 -> 1516601.535 | AL70: 0.09185677878 | AM70: =(Results!$F$18-$R70)*$AN$2 -> 22.04562367 | AN70: =(1/SUMSQ(Results!$G$18,$S70))*$AN$2 -> 532247.2155 | AO70: 0.03223688859 | AP70: =(Results!$F$19-$T70)*$AQ$2 -> 21.91949236 | AQ70: =(1/SUMSQ(Results!$G$19,$U70))*$AQ$2 -> 183547.2194 | AR70: 0.01111699806 | AS70: =(Results!$F$20-$V70)*$AT$2 -> 21.97046962 | AT70: =(1/SUMSQ(Results!$G$20,$W70))*$AT$2 -> 88428.39047 | AU70: 0.005355887431 | AV70: 21.88892052 | AW70: 0.04100791515 | AX70: 11.68944234 | AY70: 0.04103581649 | AZ70: 9.554501046 | BA70: 0.0410097775 | BB70: 9.741075998 | BC70: 0.04101020015 | BD70: 10.45965176 | BE70: 0.04101319989 | BF70: 10.79063494 | BG70: 0.04101595389 | BH70: 11.54029685 | BI70: 0.04103081685 | BJ70: 12.25442816 | BK70: 0.04107428994 | BL70: 12.7004509 | BM70: 0.04114556708 | BN70: =IF(MOD(ROW($BN70)-7,oBlockAvg)=0,AVERAGE(INDIRECT(ADDRESS((INT((ROW($BN70)-7)/oBlockAvg)*oBlockAvg)+7,COLUMN(Calculation!JDGraph))&":"&ADDRESS(((INT((ROW($BN70)-7)/oBlockAvg)+1)*oBlockAvg)+6,COLUMN(Calculation!JDGraph)))),#N/A) -> 
B71: WASP-12b_00104_bdf.fits | C71: 2013-01-27 | D71: 02:27:58.810 | E71: 2456319.603 | F71: =E71-oJDOffset -> 3319.602764 | G71: 100 | H71: -10.19841637 | I71: 0.001513556937 | J71: -12.3325497 | K71: 0.000390880093 | L71: -12.14697262 | M71: 0.0004330507271 | N71: -11.42766073 | O71: 0.00065891855 | P71: -11.09778802 | Q71: 0.000812092582 | R71: -10.34632331 | S71: 0.001371967963 | T71: -9.638891204 | U71: 0.002328549103 | V71: -9.194369762 | W71: 0.003337146047 | X71: Blank | Y71: Blank | Z71: 0 | AA71: =(Results!$F$14-$J71)*$AB$2 -> 21.7845497 | AB71: =(1/SUMSQ(Results!$G$14,$K71))*$AB$2 -> 6545048.878 | AC71: 0.3966101564 | AD71: =(Results!$F$15-$L71)*$AE$2 -> 21.89397262 | AE71: =(1/SUMSQ(Results!$G$15,$M71))*$AE$2 -> 5332396.758 | AF71: 0.3231271074 | AG71: =(Results!$F$16-$N71)*$AH$2 -> 21.99566073 | AH71: =(1/SUMSQ(Results!$G$16,$O71))*$AH$2 -> 2303225.88 | AI71: 0.1395685187 | AJ71: =(Results!$F$17-$P71)*$AK$2 -> 22.08178802 | AK71: =(1/SUMSQ(Results!$G$17,$Q71))*$AK$2 -> 1516313.191 | AL71: 0.09188399093 | AM71: =(Results!$F$18-$R71)*$AN$2 -> 22.04332331 | AN71: =(1/SUMSQ(Results!$G$18,$S71))*$AN$2 -> 531266.045 | AO71: 0.03219311469 | AP71: =(Results!$F$19-$T71)*$AQ$2 -> 21.9238912 | AQ71: =(1/SUMSQ(Results!$G$19,$U71))*$AQ$2 -> 184428.9947 | AR71: 0.01117583899 | AS71: =(Results!$F$20-$V71)*$AT$2 -> 21.97636976 | AT71: =(1/SUMSQ(Results!$G$20,$W71))*$AT$2 -> 89794.46619 | AU71: 0.005441272929 | AV71: 21.88761484 | AW71: 0.04114557939 | AX71: 11.68919847 | AY71: 0.04117340839 | AZ71: 9.555065141 | BA71: 0.04114743602 | BB71: 9.740642218 | BC71: 0.04114785823 | BD71: 10.45995411 | BE71: 0.04115085512 | BF71: 10.78982682 | BG71: 0.04115359277 | BH71: 11.54129153 | BI71: 0.04116844665 | BJ71: 12.24872364 | BK71: 0.04121141643 | BL71: 12.69324508 | BM71: 0.04128068855 | BN71: =IF(MOD(ROW($BN71)-7,oBlockAvg)=0,AVERAGE(INDIRECT(ADDRESS((INT((ROW($BN71)-7)/oBlockAvg)*oBlockAvg)+7,COLUMN(Calculation!JDGraph))&":"&ADDRESS(((INT((ROW($BN71)-7)/oBlockAvg)+1)*oBlockAvg)+6,COLUMN(Calculation!JDGraph)))),#N/A) ->  | BO71: =IF(MOD(ROW($BO71)-7,oBlockAvg)=0,AVERAGE(INDIRECT(ADDRESS((INT((ROW($BO71)-7)/oBlockAvg)*oBlockAvg)+7,50)&":"&ADDRESS(((INT((ROW($BO71)-7)/oBlockAvg)+1)*oBlockAvg)+6,50))),#N/A) ->  | BP71: =IF(MOD(ROW($BP71)-7,oBlockAvg)=0,STDEV(INDIRECT(ADDRESS((INT((ROW($BP71)-7)/oBlockAvg)*oBlockAvg)+7,50)&":"&ADDRESS(((INT((ROW($BP71)-7)/oBlockAvg)+1)*oBlockAvg)+6,50)))/SQRT(COUNT(INDIRECT(ADDRESS((INT((ROW($BP71)-7)/oBlockAvg)*oBlockAvg)+7,50)&":"&ADDRESS(((INT((ROW($BP71)-7)/oBlockAvg)+1)*oBlockAvg)+6,50)))),#N/A) -> 
B72: WASP-12b_00105_bdf.fits | C72: 2013-01-27 | D72: 02:29:57.955 | E72: 2456319.604 | F72: 3319.604143 | G72: 100 | H72: -10.2036922 | I72: 0.001508454171 | J72: -12.34084389 | K72: 0.0003893897036 | L72: -12.15112953 | M72: 0.0004324238089 | N72: -11.43516298 | O72: 0.0006548617619 | P72: -11.10453036 | Q72: 0.0008082133251 | R72: -10.35584892 | S72: 0.001363479585 | T72: -9.638954713 | U72: 0.002329144512 | V72: -9.20244166 | W72: 0.003321552901 | X72: Blank | Y72: Blank | Z72: 0 | AA72: =(Results!$F$14-$J72)*$AB$2 -> 21.79284389 | AB72: =(1/SUMSQ(Results!$G$14,$K72))*$AB$2 -> 6595247.118 | AC72: =$AB72/SUM($AB72,$AE72,$AH72,$AK72,$AN72,$AQ72,$AT72) -> 0.3968558558 | AD72: =(Results!$F$15-$L72)*$AE$2 -> 21.89812953 | AE72: =(1/SUMSQ(Results!$G$15,$M72))*$AE$2 -> 5347869.542 | AF72: =$AE72/SUM($AB72,$AE72,$AH72,$AK72,$AN72,$AQ72,$AT72) -> 0.3217973953 | AG72: =(Results!$F$16-$N72)*$AH$2 -> 22.00316298 | AH72: =(1/SUMSQ(Results!$G$16,$O72))*$AH$2 -> 2331850.672 | AI72: =$AH72/SUM($AB72,$AE72,$AH72,$AK72,$AN72,$AQ72,$AT72) -> 0.1403144685 | AJ72: =(Results!$F$17-$P72)*$AK$2 -> 22.08853036 | AK72: =(1/SUMSQ(Results!$G$17,$Q72))*$AK$2 -> 1530904.103 | AL72: =$AK72/SUM($AB72,$AE72,$AH72,$AK72,$AN72,$AQ72,$AT72) -> 0.09211910445 | AM72: =(Results!$F$18-$R72)*$AN$2 -> 22.05284892 | AN72: =(1/SUMSQ(Results!$G$18,$S72))*$AN$2 -> 537901.4566 | AO72: =$AN72/SUM($AB72,$AE72,$AH72,$AK72,$AN72,$AQ72,$AT72) -> 0.03236714851 | AP72: =(Results!$F$19-$T72)*$AQ$2 -> 21.92395471 | AQ72: =(1/SUMSQ(Results!$G$19,$U72))*$AQ$2 -> 184334.714 | AR72: =$AQ72/SUM($AB72,$AE72,$AH72,$AK72,$AN72,$AQ72,$AT72) -> 0.01109197417 | AS72: =(Results!$F$20-$V72)*$AT$2 -> 21.98444166 | AT72: =(1/SUMSQ(Results!$G$20,$W72))*$AT$2 -> 90639.53165 | AU72: =$AT72/SUM($AB72,$AE72,$AH72,$AK72,$AN72,$AQ72,$AT72) -> 0.005454053239 | AV72: =SUM($AA72*$AC72,$AD72*$AF72,$AG72*$AI72,$AJ72*$AL72,$AM72*$AO72,$AP72*$AR72,$AS72*$AU72) -> 21.8943886 | AW72: =IF($AW$2>1,SQRT(SUM((($AA72-$AV72)^2)*$AC72,(($AD72-$AV72)^2)*$AF72,(($AG72-$AV72)^2)*$AI72,(($AJ72-$AV72)^2)*$AL72,(($AM72-$AV72)^2)*$AO72,(($AP72-$AV72)^2)*$AR72,(($AS72-$AV72)^2)*$AU72)/(IF($AW$2=1,1,$AW$2-1))),1/SQRT(SUM($AB72,$AE72,$AH72,$AK72,$AN72,$AQ72,$AT72))) -> 0.04101933245 | AX72: =$H72+$AV72 -> 11.6906964 | AY72: =SQRT(SUMSQ($I72,$AW72)) -> 0.0410470592 | AZ72: =$J72+$AV72 -> 9.553544711 | BA72: =SQRT(SUMSQ($K72,$AW72)) -> 0.04102118062 | BB72: =$L72+$AV72 -> 9.743259073 | BC72: =SQRT(SUMSQ($M72,$AW72)) -> 0.04102161168 | BD72: =$N72+$AV72 -> 10.45922563 | BE72: =SQRT(SUMSQ($O72,$AW72)) -> 0.04102455946 | BF72: =$P72+$AV72 -> 10.78985824 | BG72: =SQRT(SUMSQ($Q72,$AW72)) -> 0.04102729389 | BH72: =$R72+$AV72 -> 11.53853969 | BI72: =SQRT(SUMSQ($S72,$AW72)) -> 0.04104198718 | BJ72: =$T72+$AV72 -> 12.25543389 | BK72: =SQRT(SUMSQ($U72,$AW72)) -> 0.04108540555 | BL72: =$V72+$AV72 -> 12.69194694 | BM72: =SQRT(SUMSQ($W72,$AW72)) -> 0.0411535946 | BN72: =IF(MOD(ROW($BN72)-7,oBlockAvg)=0,AVERAGE(INDIRECT(ADDRESS((INT((ROW($BN72)-7)/oBlockAvg)*oBlockAvg)+7,COLUMN(Calculation!JDGraph))&":"&ADDRESS(((INT((ROW($BN72)-7)/oBlockAvg)+1)*oBlockAvg)+6,COLUMN(Calculation!JDGraph)))),#N/A) -> 3319.606902 | BO72: 11.68958591 | BP72: 0.0006997828136
B73: WASP-12b_00106_bdf.fits | C73: 2013-01-27 | D73: 02:31:57.101 | E73: 2456319.606 | F73: 3319.605522 | G73: 100 | H73: -10.2040766 | I73: 0.001507395332 | J73: -12.33937244 | K73: 0.0003894535279 | L73: -12.15091425 | M73: 0.0004318535502 | N73: -11.43367576 | O73: 0.000654685233 | P73: -11.10510028 | Q73: 0.0008072699875 | R73: -10.35207673 | S73: 0.00136664838 | T73: -9.639184034 | U73: 0.002320892239 | V73: -9.198734837 | W73: 0.003328638768 | X73: Blank | Y73: Blank | Z73: 0 | AA73: =(Results!$F$14-$J73)*$AB$2 -> 21.79137244 | AB73: =(1/SUMSQ(Results!$G$14,$K73))*$AB$2 -> 6593085.617 | AC73: 0.3963621872 | AD73: =(Results!$F$15-$L73)*$AE$2 -> 21.89791425 | AE73: =(1/SUMSQ(Results!$G$15,$M73))*$AE$2 -> 5362002.494 | AF73: 0.3223521064 | AG73: =(Results!$F$16-$N73)*$AH$2 -> 22.00167576 | AH73: =(1/SUMSQ(Results!$G$16,$O73))*$AH$2 -> 2333108.359 | AI73: 0.1402614778 | AJ73: =(Results!$F$17-$P73)*$AK$2 -> 22.08910028 | AK73: =(1/SUMSQ(Results!$G$17,$Q73))*$AK$2 -> 1534484.078 | AL73: 0.09224989645 | AM73: =(Results!$F$18-$R73)*$AN$2 -> 22.04907673 | AN73: =(1/SUMSQ(Results!$G$18,$S73))*$AN$2 -> 535409.9259 | AO73: 0.03218769808 | AP73: =(Results!$F$19-$T73)*$AQ$2 -> 21.92418403 | AQ73: =(1/SUMSQ(Results!$G$19,$U73))*$AQ$2 -> 185647.9028 | AR73: 0.01116075432 | AS73: =(Results!$F$20-$V73)*$AT$2 -> 21.98073484 | AT73: =(1/SUMSQ(Results!$G$20,$W73))*$AT$2 -> 90254.04307 | AU73: 0.005425879776 | AV73: 21.89348388 | AW73: 0.04111366007 | AX73: 11.68940728 | AY73: 0.04114128444 | AZ73: 9.554111434 | BA73: 0.0411155046 | BB73: 9.742569632 | BC73: 0.04111592808 | BD73: 10.45980812 | BE73: 0.04111887227 | BF73: 10.78838359 | BG73: 0.04112158471 | BH73: 11.54140714 | BI73: 0.041136368 | BJ73: 12.25429984 | BK73: 0.04117911589 | BL73: 12.69474904 | BM73: 0.04124818639 | BN73: =IF(MOD(ROW($BN73)-7,oBlockAvg)=0,AVERAGE(INDIRECT(ADDRESS((INT((ROW($BN73)-7)/oBlockAvg)*oBlockAvg)+7,COLUMN(Calculation!JDGraph))&":"&ADDRESS(((INT((ROW($BN73)-7)/oBlockAvg)+1)*oBlockAvg)+6,COLUMN(Calculation!JDGraph)))),#N/A) -> 
B74: WASP-12b_00107_bdf.fits | C74: 2013-01-27 | D74: 02:33:56.333 | E74: 2456319.607 | F74: 3319.606902 | G74: 100 | H74: -10.20721546 | I74: 0.001503412545 | J74: -12.34393246 | K74: 0.0003884088261 | L74: -12.15594996 | M74: 0.0004304597858 | N74: -11.44023117 | O74: 0.0006528590295 | P74: -11.10643768 | Q74: 0.0008064025639 | R74: -10.35868231 | S74: 0.00136014868 | T74: -9.647735758 | U74: 0.002304441833 | V74: -9.207966441 | W74: 0.003293183131 | X74: Blank | Y74: Blank | Z74: 0 | AA74: =(Results!$F$14-$J74)*$AB$2 -> 21.79593246 | AB74: =(1/SUMSQ(Results!$G$14,$K74))*$AB$2 -> 6628600.109 | AC74: 0.3962008682 | AD74: =(Results!$F$15-$L74)*$AE$2 -> 21.90294996 | AE74: =(1/SUMSQ(Results!$G$15,$M74))*$AE$2 -> 5396781.431 | AF74: 0.3225733116 | AG74: =(Results!$F$16-$N74)*$AH$2 -> 22.00823117 | AH74: =(1/SUMSQ(Results!$G$16,$O74))*$AH$2 -> 2346179.144 | AI74: 0.1402344686 | AJ74: =(Results!$F$17-$P74)*$AK$2 -> 22.09043768 | AK74: =(1/SUMSQ(Results!$G$17,$Q74))*$AK$2 -> 1537787.053 | AL74: 0.09191572209 | AM74: =(Results!$F$18-$R74)*$AN$2 -> 22.05568231 | AN74: =(1/SUMSQ(Results!$G$18,$S74))*$AN$2 -> 540539.2455 | AO74: 0.03230880047 | AP74: =(Results!$F$19-$T74)*$AQ$2 -> 21.93273576 | AQ74: =(1/SUMSQ(Results!$G$19,$U74))*$AQ$2 -> 188307.8821 | AR74: 0.01125543028 | AS74: =(Results!$F$20-$V74)*$AT$2 -> 21.98996644 | AT74: =(1/SUMSQ(Results!$G$20,$W74))*$AT$2 -> 92207.9222 | AU74: 0.005511398821 | AV74: 21.89829609 | AW74: 0.04104202136 | AX74: 11.69108064 | AY74: 0.04106954792 | AZ74: 9.554363628 | BA74: 0.04104385921 | BB74: 9.742346129 | BC74: 0.04104427869 | BD74: 10.45806493 | BE74: 0.04104721358 | BF74: 10.79185842 | BG74: 0.04104994278 | BH74: 11.53961379 | BI74: 0.04106455311 | BJ74: 12.25056034 | BK74: 0.04110666576 | BL74: 12.69032965 | BM74: 0.04117393074 | BN74: =IF(MOD(ROW($BN74)-7,oBlockAvg)=0,AVERAGE(INDIRECT(ADDRESS((INT((ROW($BN74)-7)/oBlockAvg)*oBlockAvg)+7,COLUMN(Calculation!JDGraph))&":"&ADDRESS(((INT((ROW($BN74)-7)/oBlockAvg)+1)*oBlockAvg)+6,COLUMN(Calculation!JDGraph)))),#N/A) -> 
B75: WASP-12b_00108_bdf.fits | C75: 2013-01-27 | D75: 02:35:55.478 | E75: 2456319.608 | F75: 3319.608281 | G75: 100 | H75: -10.19050504 | I75: 0.001519110226 | J75: -12.32509639 | K75: 0.0003927403028 | L75: -12.14009795 | M75: 0.0004350545678 | N75: -11.41919966 | O75: 0.000661039686 | P75: -11.08964752 | Q75: 0.0008150993591 | R75: -10.33892911 | S75: 0.001379812412 | T75: -9.628050697 | U75: 0.002344718871 | V75: -9.185124928 | W75: 0.003352397763 | X75: Blank | Y75: Blank | Z75: 0 | AA75: =(Results!$F$14-$J75)*$AB$2 -> 21.77709639 | AB75: =(1/SUMSQ(Results!$G$14,$K75))*$AB$2 -> 6483194.618 | AC75: 0.3963725889 | AD75: =(Results!$F$15-$L75)*$AE$2 -> 21.88709795 | AE75: =(1/SUMSQ(Results!$G$15,$M75))*$AE$2 -> 5283388.35 | AF75: 0.3230182713 | AG75: =(Results!$F$16-$N75)*$AH$2 -> 21.98719966 | AH75: =(1/SUMSQ(Results!$G$16,$O75))*$AH$2 -> 2288468.469 | AI75: 0.139913457 | AJ75: =(Results!$F$17-$P75)*$AK$2 -> 22.07364752 | AK75: =(1/SUMSQ(Results!$G$17,$Q75))*$AK$2 -> 1505146.929 | AL75: 0.09202237783 | AM75: =(Results!$F$18-$R75)*$AN$2 -> 22.03592911 | AN75: =(1/SUMSQ(Results!$G$18,$S75))*$AN$2 -> 525242.5551 | AO75: 0.03211252533 | AP75: =(Results!$F$19-$T75)*$AQ$2 -> 21.9130507 | AQ75: =(1/SUMSQ(Results!$G$19,$U75))*$AQ$2 -> 181894.0289 | AR75: 0.01112072232 | AS75: =(Results!$F$20-$V75)*$AT$2 -> 21.96712493 | AT75: =(1/SUMSQ(Results!$G$20,$W75))*$AT$2 -> 88979.28582 | AU75: 0.005440057249 | AV75: 21.88017197 | AW75: 0.04104134126 | AX75: 11.68966693 | AY75: 0.04106944592 | AZ75: 9.555075578 | BA75: 0.04104322036 | BB75: 9.740074018 | BC75: 0.04104364707 | BD75: 10.4609723 | BE75: 0.04104666449 | BF75: 10.79052444 | BG75: 0.04104943458 | BH75: 11.54124285 | BI75: 0.0410645294 | BJ75: 12.25212127 | BK75: 0.04110826437 | BL75: 12.69504704 | BM75: 0.04117803132 | BN75: =IF(MOD(ROW($BN75)-7,oBlockAvg)=0,AVERAGE(INDIRECT(ADDRESS((INT((ROW($BN75)-7)/oBlockAvg)*oBlockAvg)+7,COLUMN(Calculation!JDGraph))&":"&ADDRESS(((INT((ROW($BN75)-7)/oBlockAvg)+1)*oBlockAvg)+6,COLUMN(Calculation!JDGraph)))),#N/A) -> 
B76: WASP-12b_00109_bdf.fits | C76: 2013-01-27 | D76: 02:37:54.624 | E76: 2456319.61 | F76: 3319.60966 | G76: 100 | H76: -10.21015265 | I76: 0.001490768653 | J76: -12.34261956 | K76: 0.0003883097688 | L76: -12.15532992 | M76: 0.0004311132747 | N76: -11.43828069 | O76: 0.0006523836642 | P76: -11.10702851 | Q76: 0.0008040939162 | R76: -10.35528463 | S76: 0.001360769836 | T76: -9.643424095 | U76: 0.002310061295 | V76: -9.197857945 | W76: 0.003309339509 | X76: Blank | Y76: Blank | Z76: 0 | AA76: =(Results!$F$14-$J76)*$AB$2 -> 21.79461956 | AB76: =(1/SUMSQ(Results!$G$14,$K76))*$AB$2 -> 6631982.436 | AC76: 0.3964743533 | AD76: =(Results!$F$15-$L76)*$AE$2 -> 21.90232992 | AE76: =(1/SUMSQ(Results!$G$15,$M76))*$AE$2 -> 5380432.763 | AF76: 0.3216539882 | AG76: =(Results!$F$16-$N76)*$AH$2 -> 22.00628069 | AH76: =(1/SUMSQ(Results!$G$16,$O76))*$AH$2 -> 2349599.519 | AI76: 0.1404641763 | AJ76: =(Results!$F$17-$P76)*$AK$2 -> 22.09102851 | AK76: =(1/SUMSQ(Results!$G$17,$Q76))*$AK$2 -> 1546630.062 | AL76: 0.09246091342 | AM76: =(Results!$F$18-$R76)*$AN$2 -> 22.05228463 | AN76: =(1/SUMSQ(Results!$G$18,$S76))*$AN$2 -> 540045.8744 | AO76: 0.0322851185 | AP76: =(Results!$F$19-$T76)*$AQ$2 -> 21.9284241 | AQ76: =(1/SUMSQ(Results!$G$19,$U76))*$AQ$2 -> 187392.8398 | AR76: 0.01120275207 | AS76: =(Results!$F$20-$V76)*$AT$2 -> 21.97985795 | AT76: =(1/SUMSQ(Results!$G$20,$W76))*$AT$2 -> 91309.79158 | AU76: 0.005458698197 | AV76: 21.89723096 | AW76: 0.04113030867 | AX76: 11.68707831 | AY76: 0.04115731627 | AZ76: 9.554611402 | BA76: 0.04113214164 | BB76: 9.741901041 | BC76: 0.041132568 | BD76: 10.45895027 | BE76: 0.0411354822 | BF76: 10.79020246 | BG76: 0.0411381679 | BH76: 11.54194634 | BI76: 0.04115281261 | BJ76: 12.25380687 | BK76: 0.04119512926 | BL76: 12.69937302 | BM76: 0.04126322842 | BN76: =IF(MOD(ROW($BN76)-7,oBlockAvg)=0,AVERAGE(INDIRECT(ADDRESS((INT((ROW($BN76)-7)/oBlockAvg)*oBlockAvg)+7,COLUMN(Calculation!JDGraph))&":"&ADDRESS(((INT((ROW($BN76)-7)/oBlockAvg)+1)*oBlockAvg)+6,COLUMN(Calculation!JDGraph)))),#N/A) -> 
B77: WASP-12b_00110_bdf.fits | C77: 2013-01-27 | D77: 02:39:53.770 | E77: 2456319.611 | F77: 3319.611039 | G77: 100 | H77: -10.18100592 | I77: 0.001539467853 | J77: -12.31960866 | K77: 0.0003944549631 | L77: -12.13168273 | M77: 0.0004376860411 | N77: -11.41362615 | O77: 0.000665644981 | P77: -11.08706891 | Q77: 0.0008191852575 | R77: -10.33568248 | S77: 0.001392788641 | T77: -9.622820244 | U77: 0.002368288679 | V77: -9.174439239 | W77: 0.003415688046 | X77: Blank | Y77: Blank | Z77: 0 | AA77: =(Results!$F$14-$J77)*$AB$2 -> 21.77160866 | AB77: =(1/SUMSQ(Results!$G$14,$K77))*$AB$2 -> 6426953.392 | AC77: 0.3973733412 | AD77: =(Results!$F$15-$L77)*$AE$2 -> 21.87868273 | AE77: =(1/SUMSQ(Results!$G$15,$M77))*$AE$2 -> 5220049.338 | AF77: 0.3227514376 | AG77: =(Results!$F$16-$N77)*$AH$2 -> 21.98162615 | AH77: =(1/SUMSQ(Results!$G$16,$O77))*$AH$2 -> 2256912.264 | AI77: 0.1395430638 | AJ77: =(Results!$F$17-$P77)*$AK$2 -> 22.07106891 | AK77: =(1/SUMSQ(Results!$G$17,$Q77))*$AK$2 -> 1490169.754 | AL77: 0.09213599319 | AM77: =(Results!$F$18-$R77)*$AN$2 -> 22.03268248 | AN77: =(1/SUMSQ(Results!$G$18,$S77))*$AN$2 -> 515501.0655 | AO77: 0.03187301483 | AP77: =(Results!$F$19-$T77)*$AQ$2 -> 21.90782024 | AQ77: =(1/SUMSQ(Results!$G$19,$U77))*$AQ$2 -> 178291.5342 | AR77: 0.01102362167 | AS77: =(Results!$F$20-$V77)*$AT$2 -> 21.95643924 | AT77: =(1/SUMSQ(Results!$G$20,$W77))*$AT$2 -> 85712.38906 | AU77: 0.005299527839 | AV77: 21.87386679 | AW77: 0.04126923337 | AX77: 11.69286087 | AY77: 0.04129793681 | AZ77: 9.554258131 | BA77: 0.04127111845 | BB77: 9.74218406 | BC77: 0.04127155428 | BD77: 10.46024064 | BE77: 0.04127460123 | BF77: 10.78679788 | BG77: 0.0412773629 | BH77: 11.53818431 | BI77: 0.04129272918 | BJ77: 12.25104655 | BK77: 0.04133713118 | BL77: 12.69942755 | BM77: 0.04141034349 | BN77: =IF(MOD(ROW($BN77)-7,oBlockAvg)=0,AVERAGE(INDIRECT(ADDRESS((INT((ROW($BN77)-7)/oBlockAvg)*oBlockAvg)+7,COLUMN(Calculation!JDGraph))&":"&ADDRESS(((INT((ROW($BN77)-7)/oBlockAvg)+1)*oBlockAvg)+6,COLUMN(Calculation!JDGraph)))),#N/A) -> 3319.613797 | BO77: 11.69265206 | BP77: 0.001169148874
B78: WASP-12b_00111_bdf.fits | C78: 2013-01-27 | D78: 02:41:52.915 | E78: 2456319.612 | F78: 3319.612418 | G78: 100 | H78: -10.19964512 | I78: 0.001503046868 | J78: -12.33486641 | K78: 0.000389972711 | L78: -12.14767153 | M78: 0.0004320387324 | N78: -11.42819417 | O78: 0.0006557709091 | P78: -11.09943018 | Q78: 0.000808083923 | R78: -10.34863017 | S78: 0.001368867232 | T78: -9.631505986 | U78: 0.002325795228 | V78: -9.197412738 | W78: 0.003300587886 | X78: Blank | Y78: Blank | Z78: 0 | AA78: =(Results!$F$14-$J78)*$AB$2 -> 21.78686641 | AB78: =(1/SUMSQ(Results!$G$14,$K78))*$AB$2 -> 6575542.131 | AC78: 0.3961153437 | AD78: =(Results!$F$15-$L78)*$AE$2 -> 21.89467153 | AE78: =(1/SUMSQ(Results!$G$15,$M78))*$AE$2 -> 5357406.912 | AF78: 0.32273401 | AG78: =(Results!$F$16-$N78)*$AH$2 -> 21.99619417 | AH78: =(1/SUMSQ(Results!$G$16,$O78))*$AH$2 -> 2325389.496 | AI78: 0.1400831203 | AJ78: =(Results!$F$17-$P78)*$AK$2 -> 22.08343018 | AK78: =(1/SUMSQ(Results!$G$17,$Q78))*$AK$2 -> 1531394.444 | AL78: 0.09225229255 | AM78: =(Results!$F$18-$R78)*$AN$2 -> 22.04563017 | AN78: =(1/SUMSQ(Results!$G$18,$S78))*$AN$2 -> 533675.5975 | AO78: 0.03214899829 | AP78: =(Results!$F$19-$T78)*$AQ$2 -> 21.91650599 | AQ78: =(1/SUMSQ(Results!$G$19,$U78))*$AQ$2 -> 184866.0024 | AR78: 0.01113645972 | AS78: =(Results!$F$20-$V78)*$AT$2 -> 21.97941274 | AT78: =(1/SUMSQ(Results!$G$20,$W78))*$AT$2 -> 91794.65571 | AU78: 0.005529775472 | AV78: 21.88916822 | AW78: 0.04099133929 | AX78: 11.6895231 | AY78: 0.04101888647 | AZ78: 9.554301811 | BA78: 0.04099319426 | BB78: 9.741496696 | BC78: 0.04099361602 | BD78: 10.46097405 | BE78: 0.0409965844 | BF78: 10.78973804 | BG78: 0.04099930361 | BH78: 11.54053805 | BI78: 0.04101418894 | BJ78: 12.25766224 | BK78: 0.04105726757 | BL78: 12.69175548 | BM78: 0.04112400488 | BN78: =IF(MOD(ROW($BN78)-7,oBlockAvg)=0,AVERAGE(INDIRECT(ADDRESS((INT((ROW($BN78)-7)/oBlockAvg)*oBlockAvg)+7,COLUMN(Calculation!JDGraph))&":"&ADDRESS(((INT((ROW($BN78)-7)/oBlockAvg)+1)*oBlockAvg)+6,COLUMN(Calculation!JDGraph)))),#N/A) -> 
B79: WASP-12b_00112_bdf.fits | C79: 2013-01-27 | D79: 02:43:52.061 | E79: 2456319.614 | F79: 3319.613797 | G79: 100 | H79: -10.2021799 | I79: 0.001497657242 | J79: -12.33802068 | K79: 0.0003889446293 | L79: -12.15194421 | M79: 0.0004304659344 | N79: -11.43293805 | O79: 0.0006530996151 | P79: -11.10301889 | Q79: 0.0008045697904 | R79: -10.35296896 | S79: 0.001357375208 | T79: -9.639272479 | U79: 0.00230173678 | V79: -9.201312087 | W79: 0.00327510182 | X79: Blank | Y79: Blank | Z79: 0 | AA79: =(Results!$F$14-$J79)*$AB$2 -> 21.79002068 | AB79: =(1/SUMSQ(Results!$G$14,$K79))*$AB$2 -> 6610349.808 | AC79: 0.3953331731 | AD79: =(Results!$F$15-$L79)*$AE$2 -> 21.89894421 | AE79: =(1/SUMSQ(Results!$G$15,$M79))*$AE$2 -> 5396627.26 | AF79: 0.3227462753 | AG79: =(Results!$F$16-$N79)*$AH$2 -> 22.00093805 | AH79: =(1/SUMSQ(Results!$G$16,$O79))*$AH$2 -> 2344450.915 | AI79: 0.1402103135 | AJ79: =(Results!$F$17-$P79)*$AK$2 -> 22.08701889 | AK79: =(1/SUMSQ(Results!$G$17,$Q79))*$AK$2 -> 1544801.051 | AL79: 0.09238710795 | AM79: =(Results!$F$18-$R79)*$AN$2 -> 22.04996896 | AN79: =(1/SUMSQ(Results!$G$18,$S79))*$AN$2 -> 542750.4277 | AO79: 0.03245928809 | AP79: =(Results!$F$19-$T79)*$AQ$2 -> 21.92427248 | AQ79: =(1/SUMSQ(Results!$G$19,$U79))*$AQ$2 -> 188750.7497 | AR79: 0.01128827293 | AS79: =(Results!$F$20-$V79)*$AT$2 -> 21.98331209 | AT79: =(1/SUMSQ(Results!$G$20,$W79))*$AT$2 -> 93228.86292 | AU79: 0.005575569111 | AV79: 21.89321786 | AW79: 0.04117310181 | AX79: 11.69103796 | AY79: 0.04120033119 | AZ79: 9.555197175 | BA79: 0.04117493887 | BB79: 9.741273649 | BC79: 0.04117535202 | BD79: 10.46027981 | BE79: 0.04117828131 | BF79: 10.79019896 | BG79: 0.04118096217 | BH79: 11.54024889 | BI79: 0.04119547039 | BJ79: 12.25394538 | BK79: 0.04123738965 | BL79: 12.69190577 | BM79: 0.0413031549 | BN79: =IF(MOD(ROW($BN79)-7,oBlockAvg)=0,AVERAGE(INDIRECT(ADDRESS((INT((ROW($BN79)-7)/oBlockAvg)*oBlockAvg)+7,COLUMN(Calculation!JDGraph))&":"&ADDRESS(((INT((ROW($BN79)-7)/oBlockAvg)+1)*oBlockAvg)+6,COLUMN(Calculation!JDGraph)))),#N/A) -> 
B80: WASP-12b_00113_bdf.fits | C80: 2013-01-27 | D80: 02:45:51.206 | E80: 2456319.615 | F80: 3319.615176 | G80: 100 | H80: -10.17668682 | I80: 0.001527367705 | J80: -12.31716997 | K80: 0.0003933919782 | L80: -12.1326842 | M80: 0.0004352488437 | N80: -11.41120863 | O80: 0.000661581491 | P80: -11.08550781 | Q80: 0.0008136779557 | R80: -10.33626473 | S80: 0.001375691536 | T80: -9.617326356 | U80: 0.002345476125 | V80: -9.182230658 | W80: 0.003332744018 | X80: Blank | Y80: Blank | Z80: 0 | AA80: =(Results!$F$14-$J80)*$AB$2 -> 21.76916997 | AB80: =(1/SUMSQ(Results!$G$14,$K80))*$AB$2 -> 6461732.874 | AC80: 0.3955580137 | AD80: =(Results!$F$15-$L80)*$AE$2 -> 21.8796842 | AE80: =(1/SUMSQ(Results!$G$15,$M80))*$AE$2 -> 5278672.86 | AF80: 0.3231364391 | AG80: =(Results!$F$16-$N80)*$AH$2 -> 21.97920863 | AH80: =(1/SUMSQ(Results!$G$16,$O80))*$AH$2 -> 2284721.702 | AI80: 0.1398603124 | AJ80: =(Results!$F$17-$P80)*$AK$2 -> 22.06950781 | AK80: =(1/SUMSQ(Results!$G$17,$Q80))*$AK$2 -> 1510410.165 | AL80: 0.09246046785 | AM80: =(Results!$F$18-$R80)*$AN$2 -> 22.03326473 | AN80: =(1/SUMSQ(Results!$G$18,$S80))*$AN$2 -> 528393.9903 | AO80: 0.03234588636 | AP80: =(Results!$F$19-$T80)*$AQ$2 -> 21.90232636 | AQ80: =(1/SUMSQ(Results!$G$19,$U80))*$AQ$2 -> 181776.5962 | AR80: 0.01112753974 | AS80: =(Results!$F$20-$V80)*$AT$2 -> 21.96423066 | AT80: =(1/SUMSQ(Results!$G$20,$W80))*$AT$2 -> 90031.8315 | AU80: 0.005511340863 | AV80: 21.87312572 | AW80: 0.04145900624 | AX80: 11.69643891 | AY80: 0.04148713114 | AZ80: 9.555955752 | BA80: 0.04146087259 | BB80: 9.740441523 | BC80: 0.04146129086 | BD80: 10.46191709 | BE80: 0.04146428449 | BF80: 10.78761791 | BG80: 0.04146699013 | BH80: 11.53686099 | BI80: 0.04148182404 | BJ80: 12.25579937 | BK80: 0.041525299 | BL80: 12.69089507 | BM80: 0.04159274433 | BN80: =IF(MOD(ROW($BN80)-7,oBlockAvg)=0,AVERAGE(INDIRECT(ADDRESS((INT((ROW($BN80)-7)/oBlockAvg)*oBlockAvg)+7,COLUMN(Calculation!JDGraph))&":"&ADDRESS(((INT((ROW($BN80)-7)/oBlockAvg)+1)*oBlockAvg)+6,COLUMN(Calculation!JDGraph)))),#N/A) -> 
B81: WASP-12b_00114_bdf.fits | C81: 2013-01-27 | D81: 02:47:50.352 | E81: 2456319.617 | F81: 3319.616555 | G81: 100 | H81: -10.13682897 | I81: 0.001573976764 | J81: -12.27500956 | K81: 0.0004036355744 | L81: -12.09259012 | M81: 0.0004462759109 | N81: -11.3657448 | O81: 0.0006823863993 | P81: -11.04036281 | Q81: 0.0008403663854 | R81: -10.29191213 | S81: 0.001425689081 | T81: -9.569349429 | U81: 0.002443056437 | V81: -9.13546872 | W81: 0.003472609452 | X81: Blank | Y81: Blank | Z81: 0 | AA81: =(Results!$F$14-$J81)*$AB$2 -> 21.72700956 | AB81: =(1/SUMSQ(Results!$G$14,$K81))*$AB$2 -> 6137918.656 | AC81: 0.3968926343 | AD81: =(Results!$F$15-$L81)*$AE$2 -> 21.83959012 | AE81: =(1/SUMSQ(Results!$G$15,$M81))*$AE$2 -> 5021033.393 | AF81: 0.3246721375 | AG81: =(Results!$F$16-$N81)*$AH$2 -> 21.9337448 | AH81: =(1/SUMSQ(Results!$G$16,$O81))*$AH$2 -> 2147530.178 | AI81: 0.1388644844 | AJ81: =(Results!$F$17-$P81)*$AK$2 -> 22.02436281 | AK81: =(1/SUMSQ(Results!$G$17,$Q81))*$AK$2 -> 1415998.05 | AL81: 0.09156185145 | AM81: =(Results!$F$18-$R81)*$AN$2 -> 21.98891213 | AN81: =(1/SUMSQ(Results!$G$18,$S81))*$AN$2 -> 491983.291 | AO81: 0.03181282701 | AP81: =(Results!$F$19-$T81)*$AQ$2 -> 21.85434943 | AQ81: =(1/SUMSQ(Results!$G$19,$U81))*$AQ$2 -> 167545.5897 | AR81: 0.0108339022 | AS81: =(Results!$F$20-$V81)*$AT$2 -> 21.91746872 | AT81: =(1/SUMSQ(Results!$G$20,$W81))*$AT$2 -> 82925.50293 | AU81: 0.005362163161 | AV81: 21.83022845 | AW81: 0.04091454285 | AX81: 11.69339948 | AY81: 0.04094480699 | AZ81: 9.555218889 | BA81: 0.0409165338 | BB81: 9.737638329 | BC81: 0.04091697665 | BD81: 10.46448365 | BE81: 0.04092023299 | BF81: 10.78986564 | BG81: 0.04092317231 | BH81: 11.53831632 | BI81: 0.04093937476 | BJ81: 12.26087902 | BK81: 0.04098741686 | BL81: 12.69475973 | BM81: 0.04106164674 | BN81: =IF(MOD(ROW($BN81)-7,oBlockAvg)=0,AVERAGE(INDIRECT(ADDRESS((INT((ROW($BN81)-7)/oBlockAvg)*oBlockAvg)+7,COLUMN(Calculation!JDGraph))&":"&ADDRESS(((INT((ROW($BN81)-7)/oBlockAvg)+1)*oBlockAvg)+6,COLUMN(Calculation!JDGraph)))),#N/A) -> 
B82: WASP-12b_00115_bdf.fits | C82: 2013-01-27 | D82: 02:49:49.584 | E82: 2456319.618 | F82: 3319.617935 | G82: 100 | H82: -10.18038206 | I82: 0.001523421618 | J82: -12.31671745 | K82: 0.0003934199187 | L82: -12.13061022 | M82: 0.0004357124731 | N82: -11.40748071 | O82: 0.0006627895859 | P82: -11.07915971 | Q82: 0.0008176943459 | R82: -10.33476171 | S82: 0.001378110638 | T82: -9.615657021 | U82: 0.002343005019 | V82: -9.17895642 | W82: 0.003341791736 | X82: Blank | Y82: Blank | Z82: 0 | AA82: =(Results!$F$14-$J82)*$AB$2 -> 21.76871745 | AB82: =(1/SUMSQ(Results!$G$14,$K82))*$AB$2 -> 6460815.087 | AC82: 0.3964051359 | AD82: =(Results!$F$15-$L82)*$AE$2 -> 21.87761022 | AE82: =(1/SUMSQ(Results!$G$15,$M82))*$AE$2 -> 5267445.063 | AF82: 0.3231855808 | AG82: =(Results!$F$16-$N82)*$AH$2 -> 21.97548071 | AH82: =(1/SUMSQ(Results!$G$16,$O82))*$AH$2 -> 2276400.373 | AI82: 0.1396691884 | AJ82: =(Results!$F$17-$P82)*$AK$2 -> 22.06315971 | AK82: =(1/SUMSQ(Results!$G$17,$Q82))*$AK$2 -> 1495608.795 | AL82: 0.0917635004 | AM82: =(Results!$F$18-$R82)*$AN$2 -> 22.03176171 | AN82: =(1/SUMSQ(Results!$G$18,$S82))*$AN$2 -> 526540.5584 | AO82: 0.0323060448 | AP82: =(Results!$F$19-$T82)*$AQ$2 -> 21.90065702 | AQ82: =(1/SUMSQ(Results!$G$19,$U82))*$AQ$2 -> 182160.2284 | AR82: 0.0111764923 | AS82: =(Results!$F$20-$V82)*$AT$2 -> 21.96095642 | AT82: =(1/SUMSQ(Results!$G$20,$W82))*$AT$2 -> 89544.9789 | AU82: 0.005494057492 | AV82: 21.87083625 | AW82: 0.04075015354 | AX82: 11.69045418 | AY82: 0.04077861973 | AZ82: 9.554118794 | BA82: 0.04075205262 | BB82: 9.740226024 | BC82: 0.04075248286 | BD82: 10.46335554 | BE82: 0.04075554323 | BF82: 10.79167654 | BG82: 0.04075835666 | BH82: 11.53607454 | BI82: 0.04077344973 | BJ82: 12.25517922 | BK82: 0.04081745566 | BL82: 12.69187983 | BM82: 0.04088694884 | BN82: =IF(MOD(ROW($BN82)-7,oBlockAvg)=0,AVERAGE(INDIRECT(ADDRESS((INT((ROW($BN82)-7)/oBlockAvg)*oBlockAvg)+7,COLUMN(Calculation!JDGraph))&":"&ADDRESS(((INT((ROW($BN82)-7)/oBlockAvg)+1)*oBlockAvg)+6,COLUMN(Calculation!JDGraph)))),#N/A) -> 3319.620693 | BO82: 11.69242757 | BP82: 0.0007972769901
B83: WASP-12b_00116_bdf.fits | C83: 2013-01-27 | D83: 02:51:48.730 | E83: 2456319.619 | F83: 3319.619314 | G83: 100 | H83: -10.18503604 | I83: 0.001512904718 | J83: -12.32138104 | K83: 0.0003924346975 | L83: -12.1368691 | M83: 0.0004343207723 | N83: -11.41540936 | O83: 0.0006599860199 | P83: -11.08658207 | Q83: 0.0008134729456 | R83: -10.33698766 | S83: 0.00137345813 | T83: -9.623510007 | U83: 0.002329928478 | V83: -9.183255732 | W83: 0.003333214387 | X83: Blank | Y83: Blank | Z83: 0 | AA83: =(Results!$F$14-$J83)*$AB$2 -> 21.77338104 | AB83: =(1/SUMSQ(Results!$G$14,$K83))*$AB$2 -> 6493296.019 | AC83: 0.395791836 | AD83: =(Results!$F$15-$L83)*$AE$2 -> 21.8838691 | AE83: =(1/SUMSQ(Results!$G$15,$M83))*$AE$2 -> 5301256.259 | AF83: 0.3231323416 | AG83: =(Results!$F$16-$N83)*$AH$2 -> 21.98340936 | AH83: =(1/SUMSQ(Results!$G$16,$O83))*$AH$2 -> 2295781.371 | AI83: 0.1399368705 | AJ83: =(Results!$F$17-$P83)*$AK$2 -> 22.07058207 | AK83: =(1/SUMSQ(Results!$G$17,$Q83))*$AK$2 -> 1511171.563 | AL83: 0.09211182819 | AM83: =(Results!$F$18-$R83)*$AN$2 -> 22.03398766 | AN83: =(1/SUMSQ(Results!$G$18,$S83))*$AN$2 -> 530113.8504 | AO83: 0.0323125164 | AP83: =(Results!$F$19-$T83)*$AQ$2 -> 21.90851001 | AQ83: =(1/SUMSQ(Results!$G$19,$U83))*$AQ$2 -> 184210.6863 | AR83: 0.01122836315 | AS83: =(Results!$F$20-$V83)*$AT$2 -> 21.96525573 | AT83: =(1/SUMSQ(Results!$G$20,$W83))*$AT$2 -> 90006.42344 | AU83: 0.005486244194 | AV83: 21.87684055 | AW83: 0.04113255111 | AX83: 11.6918045 | AY83: 0.04116036493 | AZ83: 9.555459508 | BA83: 0.04113442312 | BB83: 9.739971444 | BC83: 0.04113484405 | BD83: 10.46143118 | BE83: 0.04113784562 | BF83: 10.79025848 | BG83: 0.04114059429 | BH83: 11.53985289 | BI83: 0.04115547531 | BJ83: 12.25333054 | BK83: 0.04119848696 | BL83: 12.69358481 | BM83: 0.04126738517 | BN83: =IF(MOD(ROW($BN83)-7,oBlockAvg)=0,AVERAGE(INDIRECT(ADDRESS((INT((ROW($BN83)-7)/oBlockAvg)*oBlockAvg)+7,COLUMN(Calculation!JDGraph))&":"&ADDRESS(((INT((ROW($BN83)-7)/oBlockAvg)+1)*oBlockAvg)+6,COLUMN(Calculation!JDGraph)))),#N/A) -> 
B84: WASP-12b_00117_bdf.fits | C84: 2013-01-27 | D84: 02:53:47.875 | E84: 2456319.621 | F84: 3319.620693 | G84: 100 | H84: -10.17978791 | I84: 0.001521327722 | J84: -12.31646648 | K84: 0.0003932014611 | L84: -12.13185041 | M84: 0.0004352762631 | N84: -11.40904753 | O84: 0.0006627293107 | P84: -11.08099256 | Q84: 0.0008156032025 | R84: -10.33043445 | S84: 0.00138223846 | T84: -9.617663734 | U84: 0.00233557743 | V84: -9.173241261 | W84: 0.003353830737 | X84: Blank | Y84: Blank | Z84: 0 | AA84: =(Results!$F$14-$J84)*$AB$2 -> 21.76846648 | AB84: =(1/SUMSQ(Results!$G$14,$K84))*$AB$2 -> 6467996.172 | AC84: 0.3962812698 | AD84: =(Results!$F$15-$L84)*$AE$2 -> 21.87885041 | AE84: =(1/SUMSQ(Results!$G$15,$M84))*$AE$2 -> 5278007.842 | AF84: 0.32337305 | AG84: =(Results!$F$16-$N84)*$AH$2 -> 21.97704753 | AH84: =(1/SUMSQ(Results!$G$16,$O84))*$AH$2 -> 2276814.469 | AI84: 0.1394958972 | AJ84: =(Results!$F$17-$P84)*$AK$2 -> 22.06499256 | AK84: =(1/SUMSQ(Results!$G$17,$Q84))*$AK$2 -> 1503287.877 | AL84: 0.09210346034 | AM84: =(Results!$F$18-$R84)*$AN$2 -> 22.02743445 | AN84: =(1/SUMSQ(Results!$G$18,$S84))*$AN$2 -> 523400.4048 | AO84: 0.0320677025 | AP84: =(Results!$F$19-$T84)*$AQ$2 -> 21.90266373 | AQ84: =(1/SUMSQ(Results!$G$19,$U84))*$AQ$2 -> 183320.6804 | AR84: 0.01123169372 | AS84: =(Results!$F$20-$V84)*$AT$2 -> 21.95524126 | AT84: =(1/SUMSQ(Results!$G$20,$W84))*$AT$2 -> 88903.26664 | AU84: 0.005446926445 | AV84: 21.87139807 | AW84: 0.04093798906 | AX84: 11.69161015 | AY84: 0.04096624691 | AZ84: 9.554931585 | BA84: 0.04093987733 | BB84: 9.739547654 | BC84: 0.04094030305 | BD84: 10.46235054 | BE84: 0.04094335304 | BF84: 10.79040551 | BG84: 0.04094611284 | BH84: 11.54096362 | BI84: 0.0409613175 | BJ84: 12.25373433 | BK84: 0.04100455914 | BL84: 12.6981568 | BM84: 0.04107514003 | BN84: =IF(MOD(ROW($BN84)-7,oBlockAvg)=0,AVERAGE(INDIRECT(ADDRESS((INT((ROW($BN84)-7)/oBlockAvg)*oBlockAvg)+7,COLUMN(Calculation!JDGraph))&":"&ADDRESS(((INT((ROW($BN84)-7)/oBlockAvg)+1)*oBlockAvg)+6,COLUMN(Calculation!JDGraph)))),#N/A) -> 
B85: WASP-12b_00118_bdf.fits | C85: 2013-01-27 | D85: 02:55:47.021 | E85: 2456319.622 | F85: 3319.622072 | G85: 100 | H85: -10.15591199 | I85: 0.001540354631 | J85: -12.29466398 | K85: 0.0003976625284 | L85: -12.11445162 | M85: 0.0004391231324 | N85: -11.38506227 | O85: 0.0006703595101 | P85: -11.06113489 | Q85: 0.000825604122 | R85: -10.31385436 | S85: 0.001395965659 | T85: -9.590569894 | U85: 0.002378689732 | V85: -9.158141145 | W85: 0.00338793896 | X85: Blank | Y85: Blank | Z85: 0 | AA85: =(Results!$F$14-$J85)*$AB$2 -> 21.74666398 | AB85: =(1/SUMSQ(Results!$G$14,$K85))*$AB$2 -> 6323691.297 | AC85: 0.3957498189 | AD85: =(Results!$F$15-$L85)*$AE$2 -> 21.86145162 | AE85: =(1/SUMSQ(Results!$G$15,$M85))*$AE$2 -> 5185938.576 | AF85: 0.3245468755 | AG85: =(Results!$F$16-$N85)*$AH$2 -> 21.95306227 | AH85: =(1/SUMSQ(Results!$G$16,$O85))*$AH$2 -> 2225278.901 | AI85: 0.1392626048 | AJ85: =(Results!$F$17-$P85)*$AK$2 -> 22.04513489 | AK85: =(1/SUMSQ(Results!$G$17,$Q85))*$AK$2 -> 1467088.439 | AL85: 0.09181346096 | AM85: =(Results!$F$18-$R85)*$AN$2 -> 22.01085436 | AN85: =(1/SUMSQ(Results!$G$18,$S85))*$AN$2 -> 513157.3225 | AO85: 0.03211445782 | AP85: =(Results!$F$19-$T85)*$AQ$2 -> 21.87556989 | AQ85: =(1/SUMSQ(Results!$G$19,$U85))*$AQ$2 -> 176735.7488 | AR85: 0.01106049256 | AS85: =(Results!$F$20-$V85)*$AT$2 -> 21.94014115 | AT85: =(1/SUMSQ(Results!$G$20,$W85))*$AT$2 -> 87122.20242 | AU85: 0.005452289526 | AV85: 21.85103014 | AW85: 0.0410795533 | AX85: 11.69511816 | AY85: 0.04110842239 | AZ85: 9.556366169 | BA85: 0.041081478 | BB85: 9.736578529 | BC85: 0.04108190025 | BD85: 10.46596787 | BE85: 0.04108502259 | BF85: 10.78989526 | BG85: 0.04108784883 | BH85: 11.53717579 | BI85: 0.04110326531 | BJ85: 12.26046025 | BK85: 0.04114836405 | BL85: 12.692889 | BM85: 0.04121902267 | BN85: =IF(MOD(ROW($BN85)-7,oBlockAvg)=0,AVERAGE(INDIRECT(ADDRESS((INT((ROW($BN85)-7)/oBlockAvg)*oBlockAvg)+7,COLUMN(Calculation!JDGraph))&":"&ADDRESS(((INT((ROW($BN85)-7)/oBlockAvg)+1)*oBlockAvg)+6,COLUMN(Calculation!JDGraph)))),#N/A) -> 
B86: WASP-12b_00119_bdf.fits | C86: 2013-01-27 | D86: 02:57:46.166 | E86: 2456319.623 | F86: 3319.623451 | G86: 100 | H86: -10.1585085 | I86: 0.001536916253 | J86: -12.2955016 | K86: 0.0003976802858 | L86: -12.11496739 | M86: 0.0004392205838 | N86: -11.38596494 | O86: 0.0006699404543 | P86: -11.0601354 | Q86: 0.000825558904 | R86: -10.31269129 | S86: 0.001393643415 | T86: -9.596526842 | U86: 0.002368372429 | V86: -9.161841246 | W86: 0.003368247252 | X86: Blank | Y86: Blank | Z86: 0 | AA86: =(Results!$F$14-$J86)*$AB$2 -> 21.7475016 | AB86: =(1/SUMSQ(Results!$G$14,$K86))*$AB$2 -> 6323126.575 | AC86: 0.3956066277 | AD86: =(Results!$F$15-$L86)*$AE$2 -> 21.86196739 | AE86: =(1/SUMSQ(Results!$G$15,$M86))*$AE$2 -> 5183637.587 | AF86: 0.3243144607 | AG86: =(Results!$F$16-$N86)*$AH$2 -> 21.95396494 | AH86: =(1/SUMSQ(Results!$G$16,$O86))*$AH$2 -> 2228063.649 | AI86: 0.1393988775 | AJ86: =(Results!$F$17-$P86)*$AK$2 -> 22.0441354 | AK86: =(1/SUMSQ(Results!$G$17,$Q86))*$AK$2 -> 1467249.156 | AL86: 0.091798493 | AM86: =(Results!$F$18-$R86)*$AN$2 -> 22.00969129 | AN86: =(1/SUMSQ(Results!$G$18,$S86))*$AN$2 -> 514868.9071 | AO86: 0.03221279056 | AP86: =(Results!$F$19-$T86)*$AQ$2 -> 21.88152684 | AQ86: =(1/SUMSQ(Results!$G$19,$U86))*$AQ$2 -> 178278.925 | AR86: 0.01115402697 | AS86: =(Results!$F$20-$V86)*$AT$2 -> 21.94384125 | AT86: =(1/SUMSQ(Results!$G$20,$W86))*$AT$2 -> 88143.86133 | AU86: 0.005514723661 | AV86: 21.85165935 | AW86: 0.04092167153 | AX86: 11.69315084 | AY86: 0.04095052274 | AZ86: 9.556157745 | BA86: 0.04092360383 | BB86: 9.736691957 | BC86: 0.04092402859 | BD86: 10.46569441 | BE86: 0.04092715506 | BF86: 10.79152395 | BG86: 0.04092999815 | BH86: 11.53896806 | BI86: 0.04094539587 | BJ86: 12.25513251 | BK86: 0.0409901499 | BL86: 12.6898181 | BM86: 0.04106005712 | BN86: =IF(MOD(ROW($BN86)-7,oBlockAvg)=0,AVERAGE(INDIRECT(ADDRESS((INT((ROW($BN86)-7)/oBlockAvg)*oBlockAvg)+7,COLUMN(Calculation!JDGraph))&":"&ADDRESS(((INT((ROW($BN86)-7)/oBlockAvg)+1)*oBlockAvg)+6,COLUMN(Calculation!JDGraph)))),#N/A) -> 
B87: WASP-12b_00120_bdf.fits | C87: 2013-01-27 | D87: 02:59:45.312 | E87: 2456319.625 | F87: 3319.62483 | G87: 100 | H87: -10.154386 | I87: 0.001539488405 | J87: -12.29294665 | K87: 0.0003978729844 | L87: -12.1130726 | M87: 0.0004393526189 | N87: -11.38414993 | O87: 0.0006706705018 | P87: -11.05606534 | Q87: 0.0008260518182 | R87: -10.3118308 | S87: 0.001392721456 | T87: -9.591301417 | U87: 0.002375942827 | V87: -9.150420899 | W87: 0.003390935522 | X87: Blank | Y87: Blank | Z87: 0 | AA87: =(Results!$F$14-$J87)*$AB$2 -> 21.74494665 | AB87: =(1/SUMSQ(Results!$G$14,$K87))*$AB$2 -> 6317003.2 | AC87: 0.3956558507 | AD87: =(Results!$F$15-$L87)*$AE$2 -> 21.8600726 | AE87: =(1/SUMSQ(Results!$G$15,$M87))*$AE$2 -> 5180522.46 | AF87: 0.3244741147 | AG87: =(Results!$F$16-$N87)*$AH$2 -> 21.95214993 | AH87: =(1/SUMSQ(Results!$G$16,$O87))*$AH$2 -> 2223215.644 | AI87: 0.1392477175 | AJ87: =(Results!$F$17-$P87)*$AK$2 -> 22.04006534 | AK87: =(1/SUMSQ(Results!$G$17,$Q87))*$AK$2 -> 1465498.631 | AL87: 0.09178926925 | AM87: =(Results!$F$18-$R87)*$AN$2 -> 22.0088308 | AN87: =(1/SUMSQ(Results!$G$18,$S87))*$AN$2 -> 515550.8025 | AO87: 0.03229073738 | AP87: =(Results!$F$19-$T87)*$AQ$2 -> 21.87630142 | AQ87: =(1/SUMSQ(Results!$G$19,$U87))*$AQ$2 -> 177144.6449 | AR87: 0.01109518437 | AS87: =(Results!$F$20-$V87)*$AT$2 -> 21.9324209 | AT87: =(1/SUMSQ(Results!$G$20,$W87))*$AT$2 -> 86968.2911 | AU87: 0.005447126131 | AV87: 21.84924297 | AW87: 0.04087998516 | AX87: 11.69485697 | AY87: 0.04090896248 | AZ87: 9.556296322 | BA87: 0.04088192131 | BB87: 9.736170368 | BC87: 0.04088234604 | BD87: 10.46509303 | BE87: 0.04088548625 | BF87: 10.79317762 | BG87: 0.04088833022 | BH87: 11.53741216 | BI87: 0.04090370227 | BJ87: 12.25794155 | BK87: 0.04094897179 | BL87: 12.69882207 | BM87: 0.04102038067 | BN87: =IF(MOD(ROW($BN87)-7,oBlockAvg)=0,AVERAGE(INDIRECT(ADDRESS((INT((ROW($BN87)-7)/oBlockAvg)*oBlockAvg)+7,COLUMN(Calculation!JDGraph))&":"&ADDRESS(((INT((ROW($BN87)-7)/oBlockAvg)+1)*oBlockAvg)+6,COLUMN(Calculation!JDGraph)))),#N/A) -> 3319.627589 | BO87: 11.69369595 | BP87: 0.0005620987788
B88: WASP-12b_00121_bdf.fits | C88: 2013-01-27 | D88: 03:01:44.458 | E88: 2456319.626 | F88: 3319.626209 | G88: 100 | H88: -10.18722593 | I88: 0.001502387545 | J88: -12.32641009 | K88: 0.000390820459 | L88: -12.14164193 | M88: 0.000432236326 | N88: -11.41998642 | O88: 0.0006555529033 | P88: -11.0925371 | Q88: 0.0008066771278 | R88: -10.34180321 | S88: 0.001364149668 | T88: -9.627101358 | U88: 0.002308582521 | V88: -9.181140262 | W88: 0.003298994158 | X88: Blank | Y88: Blank | Z88: 0 | AA88: =(Results!$F$14-$J88)*$AB$2 -> 21.77841009 | AB88: =(1/SUMSQ(Results!$G$14,$K88))*$AB$2 -> 6547046.403 | AC88: 0.3948732218 | AD88: =(Results!$F$15-$L88)*$AE$2 -> 21.88864193 | AE88: =(1/SUMSQ(Results!$G$15,$M88))*$AE$2 -> 5352509.835 | AF88: 0.3228269166 | AG88: =(Results!$F$16-$N88)*$AH$2 -> 21.98798642 | AH88: =(1/SUMSQ(Results!$G$16,$O88))*$AH$2 -> 2326936.381 | AI88: 0.1403449448 | AJ88: =(Results!$F$17-$P88)*$AK$2 -> 22.0765371 | AK88: =(1/SUMSQ(Results!$G$17,$Q88))*$AK$2 -> 1536740.417 | AL88: 0.09268570925 | AM88: =(Results!$F$18-$R88)*$AN$2 -> 22.03880321 | AN88: =(1/SUMSQ(Results!$G$18,$S88))*$AN$2 -> 537373.142 | AO88: 0.0324106858 | AP88: =(Results!$F$19-$T88)*$AQ$2 -> 21.91210136 | AQ88: =(1/SUMSQ(Results!$G$19,$U88))*$AQ$2 -> 187632.9877 | AR88: 0.01131674312 | AS88: =(Results!$F$20-$V88)*$AT$2 -> 21.96314026 | AT88: =(1/SUMSQ(Results!$G$20,$W88))*$AT$2 -> 91883.36825 | AU88: 0.0055417786 | AV88: 21.88201719 | AW88: 0.04118935248 | AX88: 11.69479126 | AY88: 0.04121674327 | AZ88: 9.555607101 | BA88: 0.04119120656 | BB88: 9.740375258 | BC88: 0.04119162033 | BD88: 10.46203077 | BE88: 0.0411945689 | BF88: 10.78948009 | BG88: 0.04119725094 | BH88: 11.54021398 | BI88: 0.04121193591 | BJ88: 12.25491583 | BK88: 0.04125399751 | BL88: 12.70087693 | BM88: 0.04132125506 | BN88: =IF(MOD(ROW($BN88)-7,oBlockAvg)=0,AVERAGE(INDIRECT(ADDRESS((INT((ROW($BN88)-7)/oBlockAvg)*oBlockAvg)+7,COLUMN(Calculation!JDGraph))&":"&ADDRESS(((INT((ROW($BN88)-7)/oBlockAvg)+1)*oBlockAvg)+6,COLUMN(Calculation!JDGraph)))),#N/A) -> 
B89: WASP-12b_00122_bdf.fits | C89: 2013-01-27 | D89: 03:03:43.690 | E89: 2456319.628 | F89: 3319.627589 | G89: 100 | H89: -10.20047163 | I89: 0.001482977696 | J89: -12.33961015 | K89: 0.0003874266154 | L89: -12.15318763 | M89: 0.0004290545783 | N89: -11.43176404 | O89: 0.0006493836716 | P89: -11.10224467 | Q89: 0.0008004915881 | R89: -10.35181525 | S89: 0.001347873239 | T89: -9.63685376 | U89: 0.002283007708 | V89: -9.197966588 | W89: 0.00324601307 | X89: Blank | Y89: Blank | Z89: 0 | AA89: =(Results!$F$14-$J89)*$AB$2 -> 21.79161015 | AB89: =(1/SUMSQ(Results!$G$14,$K89))*$AB$2 -> 6662252.599 | AC89: 0.3950675153 | AD89: =(Results!$F$15-$L89)*$AE$2 -> 21.90018763 | AE89: =(1/SUMSQ(Results!$G$15,$M89))*$AE$2 -> 5432189.59 | AF89: 0.3221255292 | AG89: =(Results!$F$16-$N89)*$AH$2 -> 21.99976404 | AH89: =(1/SUMSQ(Results!$G$16,$O89))*$AH$2 -> 2371358.806 | AI89: 0.1406201307 | AJ89: =(Results!$F$17-$P89)*$AK$2 -> 22.08624467 | AK89: =(1/SUMSQ(Results!$G$17,$Q89))*$AK$2 -> 1560581.502 | AL89: 0.09254153119 | AM89: =(Results!$F$18-$R89)*$AN$2 -> 22.04881525 | AN89: =(1/SUMSQ(Results!$G$18,$S89))*$AN$2 -> 550429.7497 | AO89: 0.03264014841 | AP89: =(Results!$F$19-$T89)*$AQ$2 -> 21.92185376 | AQ89: =(1/SUMSQ(Results!$G$19,$U89))*$AQ$2 -> 191860.3553 | AR89: 0.01137720204 | AS89: =(Results!$F$20-$V89)*$AT$2 -> 21.97996659 | AT89: =(1/SUMSQ(Results!$G$20,$W89))*$AT$2 -> 94907.26791 | AU89: 0.005627943096 | AV89: 21.89405936 | AW89: 0.04078389046 | AX89: 11.69358774 | AY89: 0.04081084346 | AZ89: 9.554449216 | BA89: 0.0407857306 | BB89: 9.740871736 | BC89: 0.04078614727 | BD89: 10.46229532 | BE89: 0.04078906006 | BF89: 10.79181469 | BG89: 0.04079174559 | BH89: 11.54224411 | BI89: 0.04080615742 | BJ89: 12.2572056 | BK89: 0.04084773979 | BL89: 12.69609277 | BM89: 0.04091286255 | BN89: =IF(MOD(ROW($BN89)-7,oBlockAvg)=0,AVERAGE(INDIRECT(ADDRESS((INT((ROW($BN89)-7)/oBlockAvg)*oBlockAvg)+7,COLUMN(Calculation!JDGraph))&":"&ADDRESS(((INT((ROW($BN89)-7)/oBlockAvg)+1)*oBlockAvg)+6,COLUMN(Calculation!JDGraph)))),#N/A) -> 
B90: WASP-12b_00123_bdf.fits | C90: 2013-01-27 | D90: 03:05:42.835 | E90: 2456319.629 | F90: 3319.628968 | G90: 100 | H90: -10.17648847 | I90: 0.001509837467 | J90: -12.3149436 | K90: 0.000392759233 | L90: -12.12992917 | M90: 0.0004342924395 | N90: -11.40769803 | O90: 0.0006595684133 | P90: -11.07810753 | Q90: 0.0008112367945 | R90: -10.32908856 | S90: 0.001369445832 | T90: -9.612303452 | U90: 0.002329397693 | V90: -9.171181595 | W90: 0.003313035344 | X90: Blank | Y90: Blank | Z90: 0 | AA90: =(Results!$F$14-$J90)*$AB$2 -> 21.7669436 | AB90: =(1/SUMSQ(Results!$G$14,$K90))*$AB$2 -> 6482569.678 | AC90: 0.3950053455 | AD90: =(Results!$F$15-$L90)*$AE$2 -> 21.87692917 | AE90: =(1/SUMSQ(Results!$G$15,$M90))*$AE$2 -> 5301947.978 | AF90: 0.3230659904 | AG90: =(Results!$F$16-$N90)*$AH$2 -> 21.97569803 | AH90: =(1/SUMSQ(Results!$G$16,$O90))*$AH$2 -> 2298689.445 | AI90: 0.140067082 | AJ90: =(Results!$F$17-$P90)*$AK$2 -> 22.06210753 | AK90: =(1/SUMSQ(Results!$G$17,$Q90))*$AK$2 -> 1519514.047 | AL90: 0.09258923563 | AM90: =(Results!$F$18-$R90)*$AN$2 -> 22.02608856 | AN90: =(1/SUMSQ(Results!$G$18,$S90))*$AN$2 -> 533224.7297 | AO90: 0.03249122325 | AP90: =(Results!$F$19-$T90)*$AQ$2 -> 21.89730345 | AQ90: =(1/SUMSQ(Results!$G$19,$U90))*$AQ$2 -> 184294.6458 | AR90: 0.01122970888 | AS90: =(Results!$F$20-$V90)*$AT$2 -> 21.9531816 | AT90: =(1/SUMSQ(Results!$G$20,$W90))*$AT$2 -> 91106.18514 | AU90: 0.005551414321 | AV90: 21.86996255 | AW90: 0.0408880043 | AX90: 11.69347408 | AY90: 0.04091587107 | AZ90: 9.555018949 | BA90: 0.04088989063 | BB90: 9.740033378 | BC90: 0.04089031066 | BD90: 10.46226452 | BE90: 0.04089332374 | BF90: 10.79185501 | BG90: 0.04089605117 | BH90: 11.54087398 | BI90: 0.04091093103 | BJ90: 12.25765909 | BK90: 0.04095430368 | BL90: 12.69878095 | BM90: 0.0410220075 | BN90: =IF(MOD(ROW($BN90)-7,oBlockAvg)=0,AVERAGE(INDIRECT(ADDRESS((INT((ROW($BN90)-7)/oBlockAvg)*oBlockAvg)+7,COLUMN(Calculation!JDGraph))&":"&ADDRESS(((INT((ROW($BN90)-7)/oBlockAvg)+1)*oBlockAvg)+6,COLUMN(Calculation!JDGraph)))),#N/A) -> 
B91: WASP-12b_00124_bdf.fits | C91: 2013-01-27 | D91: 03:07:41.981 | E91: 2456319.63 | F91: 3319.630347 | G91: 100 | H91: -10.18856904 | I91: 0.001497585405 | J91: -12.3255095 | K91: 0.0003902979527 | L91: -12.1404208 | M91: 0.0004316301673 | N91: -11.4173175 | O91: 0.0006559914183 | P91: -11.08877387 | Q91: 0.0008066008996 | R91: -10.33820603 | S91: 0.001361735892 | T91: -9.623846002 | U91: 0.002304395005 | V91: -9.188305507 | W91: 0.003272353102 | X91: Blank | Y91: Blank | Z91: 0 | AA91: =(Results!$F$14-$J91)*$AB$2 -> 21.7775095 | AB91: =(1/SUMSQ(Results!$G$14,$K91))*$AB$2 -> 6564587.683 | AC91: 0.3951243297 | AD91: =(Results!$F$15-$L91)*$AE$2 -> 21.8874208 | AE91: =(1/SUMSQ(Results!$G$15,$M91))*$AE$2 -> 5367553.956 | AF91: 0.323074542 | AG91: =(Results!$F$16-$N91)*$AH$2 -> 21.9853175 | AH91: =(1/SUMSQ(Results!$G$16,$O91))*$AH$2 -> 2323826.415 | AI91: 0.1398717481 | AJ91: =(Results!$F$17-$P91)*$AK$2 -> 22.07277387 | AK91: =(1/SUMSQ(Results!$G$17,$Q91))*$AK$2 -> 1537030.891 | AL91: 0.09251431009 | AM91: =(Results!$F$18-$R91)*$AN$2 -> 22.03520603 | AN91: =(1/SUMSQ(Results!$G$18,$S91))*$AN$2 -> 539279.8965 | AO91: 0.0324594046 | AP91: =(Results!$F$19-$T91)*$AQ$2 -> 21.908846 | AQ91: =(1/SUMSQ(Results!$G$19,$U91))*$AQ$2 -> 188315.5355 | AR91: 0.01133476363 | AS91: =(Results!$F$20-$V91)*$AT$2 -> 21.97030551 | AT91: =(1/SUMSQ(Results!$G$20,$W91))*$AT$2 -> 93385.54983 | AU91: 0.005620901809 | AV91: 21.88033872 | AW91: 0.0408141827 | AX91: 11.69176969 | AY91: 0.04084164873 | AZ91: 9.55482922 | BA91: 0.04081604882 | BB91: 9.739917925 | BC91: 0.04081646498 | BD91: 10.46302122 | BE91: 0.04081945411 | BF91: 10.79156486 | BG91: 0.04082215225 | BH91: 11.54213269 | BI91: 0.04083689305 | BJ91: 12.25649272 | BK91: 0.04087918475 | BL91: 12.69203322 | BM91: 0.04094515605 | BN91: =IF(MOD(ROW($BN91)-7,oBlockAvg)=0,AVERAGE(INDIRECT(ADDRESS((INT((ROW($BN91)-7)/oBlockAvg)*oBlockAvg)+7,COLUMN(Calculation!JDGraph))&":"&ADDRESS(((INT((ROW($BN91)-7)/oBlockAvg)+1)*oBlockAvg)+6,COLUMN(Calculation!JDGraph)))),#N/A) -> 
B92: WASP-12b_00125_bdf.fits | C92: 2013-01-27 | D92: 03:09:41.126 | E92: 2456319.632 | F92: 3319.631726 | G92: 100 | H92: -10.20897637 | I92: 0.001438139599 | J92: -12.34647374 | K92: 0.0003829211942 | L92: -12.1585001 | M92: 0.00042401041 | N92: -11.43991293 | O92: 0.0006373274128 | P92: -11.11063461 | Q92: 0.0007814932848 | R92: -10.35827139 | S92: 0.001307004457 | T92: -9.647955601 | U92: 0.002184657331 | V92: -9.203245484 | W92: 0.003119041552 | X92: Blank | Y92: Blank | Z92: 0 | AA92: =(Results!$F$14-$J92)*$AB$2 -> 21.79847374 | AB92: =(1/SUMSQ(Results!$G$14,$K92))*$AB$2 -> 6819950.002 | AC92: 0.3924210227 | AD92: =(Results!$F$15-$L92)*$AE$2 -> 21.9055001 | AE92: =(1/SUMSQ(Results!$G$15,$M92))*$AE$2 -> 5562204.621 | AF92: 0.3200501507 | AG92: =(Results!$F$16-$N92)*$AH$2 -> 22.00791293 | AH92: =(1/SUMSQ(Results!$G$16,$O92))*$AH$2 -> 2461924.909 | AI92: 0.1416595562 | AJ92: =(Results!$F$17-$P92)*$AK$2 -> 22.09463461 | AK92: =(1/SUMSQ(Results!$G$17,$Q92))*$AK$2 -> 1637380.066 | AL92: 0.09421511299 | AM92: =(Results!$F$18-$R92)*$AN$2 -> 22.05527139 | AN92: =(1/SUMSQ(Results!$G$18,$S92))*$AN$2 -> 585390.7596 | AO92: 0.03368347869 | AP92: =(Results!$F$19-$T92)*$AQ$2 -> 21.9329556 | AQ92: =(1/SUMSQ(Results!$G$19,$U92))*$AQ$2 -> 209523.7928 | AR92: 0.01205603282 | AS92: =(Results!$F$20-$V92)*$AT$2 -> 21.98524548 | AT92: =(1/SUMSQ(Results!$G$20,$W92))*$AT$2 -> 102791.6125 | AU92: 0.005914645958 | AV92: 21.90167528 | AW92: 0.04110700106 | AX92: 11.69269891 | AY92: 0.04113215022 | AZ92: 9.555201537 | BA92: 0.04110878452 | BB92: 9.743175183 | BC92: 0.04110918779 | BD92: 10.46176235 | BE92: 0.04111194136 | BF92: 10.79104067 | BG92: 0.04111442895 | BH92: 11.54340389 | BI92: 0.04112777403 | BJ92: 12.25371968 | BK92: 0.04116501262 | BL92: 12.6984298 | BM92: 0.04122516169 | BN92: =IF(MOD(ROW($BN92)-7,oBlockAvg)=0,AVERAGE(INDIRECT(ADDRESS((INT((ROW($BN92)-7)/oBlockAvg)*oBlockAvg)+7,COLUMN(Calculation!JDGraph))&":"&ADDRESS(((INT((ROW($BN92)-7)/oBlockAvg)+1)*oBlockAvg)+6,COLUMN(Calculation!JDGraph)))),#N/A) -> 3319.634484 | BO92: 11.69491472 | BP92: 0.00126365239
B93: WASP-12b_00126_bdf.fits | C93: 2013-01-27 | D93: 03:11:40.272 | E93: 2456319.633 | F93: 3319.633105 | G93: 100 | H93: -10.18542025 | I93: 0.001463224518 | J93: -12.32121772 | K93: 0.0003882953942 | L93: -12.13827496 | M93: 0.0004288582766 | N93: -11.41679731 | O93: 0.0006465012743 | P93: -11.08616286 | Q93: 0.0007938570071 | R93: -10.33935505 | S93: 0.001328033778 | T93: -9.622166258 | U93: 0.002238071492 | V93: -9.179529957 | W93: 0.003181781685 | X93: Blank | Y93: Blank | Z93: 0 | AA93: =(Results!$F$14-$J93)*$AB$2 -> 21.77321772 | AB93: =(1/SUMSQ(Results!$G$14,$K93))*$AB$2 -> 6632473.475 | AC93: 0.3921203602 | AD93: =(Results!$F$15-$L93)*$AE$2 -> 21.88527496 | AE93: =(1/SUMSQ(Results!$G$15,$M93))*$AE$2 -> 5437163.691 | AF93: 0.3214521088 | AG93: =(Results!$F$16-$N93)*$AH$2 -> 21.98479731 | AH93: =(1/SUMSQ(Results!$G$16,$O93))*$AH$2 -> 2392551.141 | AI93: 0.1414506999 | AJ93: =(Results!$F$17-$P93)*$AK$2 -> 22.07016286 | AK93: =(1/SUMSQ(Results!$G$17,$Q93))*$AK$2 -> 1586775.313 | AL93: 0.09381219683 | AM93: =(Results!$F$18-$R93)*$AN$2 -> 22.03635505 | AN93: =(1/SUMSQ(Results!$G$18,$S93))*$AN$2 -> 566998.3012 | AO93: 0.03352166864 | AP93: =(Results!$F$19-$T93)*$AQ$2 -> 21.90716626 | AQ93: =(1/SUMSQ(Results!$G$19,$U93))*$AQ$2 -> 199642.0816 | AR93: 0.01180309657 | AS93: =(Results!$F$20-$V93)*$AT$2 -> 21.96152996 | AT93: =(1/SUMSQ(Results!$G$20,$W93))*$AT$2 -> 98777.77625 | AU93: 0.005839869145 | AV93: 21.87852544 | AW93: 0.0414142537 | AX93: 11.69310519 | AY93: 0.04144009454 | AZ93: 9.557307719 | BA93: 0.04141607397 | BB93: 9.740250487 | BC93: 0.04141647412 | BD93: 10.46172813 | BE93: 0.04141929953 | BF93: 10.79236258 | BG93: 0.0414218616 | BH93: 11.53917039 | BI93: 0.0414355413 | BJ93: 12.25635918 | BK93: 0.04147468352 | BL93: 12.69899548 | BM93: 0.04153629911 | BN93: =IF(MOD(ROW($BN93)-7,oBlockAvg)=0,AVERAGE(INDIRECT(ADDRESS((INT((ROW($BN93)-7)/oBlockAvg)*oBlockAvg)+7,COLUMN(Calculation!JDGraph))&":"&ADDRESS(((INT((ROW($BN93)-7)/oBlockAvg)+1)*oBlockAvg)+6,COLUMN(Calculation!JDGraph)))),#N/A) -> 
B94: WASP-12b_00127_bdf.fits | C94: 2013-01-27 | D94: 03:13:39.418 | E94: 2456319.634 | F94: 3319.634484 | G94: 100 | H94: -10.17002 | I94: 0.001476423166 | J94: -12.30922259 | K94: 0.0003910896287 | L94: -12.12613692 | M94: 0.0004314380194 | N94: -11.40118329 | O94: 0.0006523626265 | P94: -11.0743858 | Q94: 0.000799195548 | R94: -10.32500392 | S94: 0.001338108481 | T94: -9.607292679 | U94: 0.002255291133 | V94: -9.169941684 | W94: 0.003198635946 | X94: Blank | Y94: Blank | Z94: 0 | AA94: =(Results!$F$14-$J94)*$AB$2 -> 21.76122259 | AB94: =(1/SUMSQ(Results!$G$14,$K94))*$AB$2 -> 6538037.419 | AC94: 0.3920013637 | AD94: =(Results!$F$15-$L94)*$AE$2 -> 21.87313692 | AE94: =(1/SUMSQ(Results!$G$15,$M94))*$AE$2 -> 5372336.075 | AF94: 0.322109363 | AG94: =(Results!$F$16-$N94)*$AH$2 -> 21.96918329 | AH94: =(1/SUMSQ(Results!$G$16,$O94))*$AH$2 -> 2349751.063 | AI94: 0.1408841159 | AJ94: =(Results!$F$17-$P94)*$AK$2 -> 22.0583858 | AK94: =(1/SUMSQ(Results!$G$17,$Q94))*$AK$2 -> 1565647.137 | AL94: 0.09387156625 | AM94: =(Results!$F$18-$R94)*$AN$2 -> 22.02200392 | AN94: =(1/SUMSQ(Results!$G$18,$S94))*$AN$2 -> 558492.5101 | AO94: 0.03348555714 | AP94: =(Results!$F$19-$T94)*$AQ$2 -> 21.89229268 | AQ94: =(1/SUMSQ(Results!$G$19,$U94))*$AQ$2 -> 196605.098 | AR94: 0.01178785951 | AS94: =(Results!$F$20-$V94)*$AT$2 -> 21.95194168 | AT94: =(1/SUMSQ(Results!$G$20,$W94))*$AT$2 -> 97739.55849 | AU94: 0.005860174509 | AV94: 21.86585987 | AW94: 0.04115143122 | AX94: 11.69583987 | AY94: 0.04117790811 | AZ94: 9.556637282 | BA94: 0.04115328957 | BB94: 9.739722948 | BC94: 0.04115369279 | BD94: 10.46467658 | BE94: 0.04115660176 | BF94: 10.79147407 | BG94: 0.04115919101 | BH94: 11.54085595 | BI94: 0.0411731809 | BJ94: 12.25856719 | BK94: 0.04121318514 | BL94: 12.69591819 | BM94: 0.04127555649 | BN94: =IF(MOD(ROW($BN94)-7,oBlockAvg)=0,AVERAGE(INDIRECT(ADDRESS((INT((ROW($BN94)-7)/oBlockAvg)*oBlockAvg)+7,COLUMN(Calculation!JDGraph))&":"&ADDRESS(((INT((ROW($BN94)-7)/oBlockAvg)+1)*oBlockAvg)+6,COLUMN(Calculation!JDGraph)))),#N/A) -> 
B95: WASP-12b_00128_bdf.fits | C95: 2013-01-27 | D95: 03:15:38.650 | E95: 2456319.636 | F95: 3319.635864 | G95: 100 | H95: -10.197149 | I95: 0.001429895864 | J95: -12.33419749 | K95: 0.0003844741811 | L95: -12.14833759 | M95: 0.0004250063462 | N95: -11.42858646 | O95: 0.0006389012927 | P95: -11.09852861 | Q95: 0.0007820337991 | R95: -10.34967741 | S95: 0.001302337476 | T95: -9.634851749 | U95: 0.002185710973 | V95: -9.190721593 | W95: 0.003100660178 | X95: Blank | Y95: Blank | Z95: 0 | AA95: =(Results!$F$14-$J95)*$AB$2 -> 21.78619749 | AB95: =(1/SUMSQ(Results!$G$14,$K95))*$AB$2 -> 6764966.32 | AC95: 0.3912875239 | AD95: =(Results!$F$15-$L95)*$AE$2 -> 21.89533759 | AE95: =(1/SUMSQ(Results!$G$15,$M95))*$AE$2 -> 5536166.843 | AF95: 0.3202134221 | AG95: =(Results!$F$16-$N95)*$AH$2 -> 21.99658646 | AH95: =(1/SUMSQ(Results!$G$16,$O95))*$AH$2 -> 2449810.357 | AI95: 0.1416977089 | AJ95: =(Results!$F$17-$P95)*$AK$2 -> 22.08252861 | AK95: =(1/SUMSQ(Results!$G$17,$Q95))*$AK$2 -> 1635117.449 | AL95: 0.09457564571 | AM95: =(Results!$F$18-$R95)*$AN$2 -> 22.04667741 | AN95: =(1/SUMSQ(Results!$G$18,$S95))*$AN$2 -> 589593.8219 | AO95: 0.03410226981 | AP95: =(Results!$F$19-$T95)*$AQ$2 -> 21.91985175 | AQ95: =(1/SUMSQ(Results!$G$19,$U95))*$AQ$2 -> 209321.8357 | AR95: 0.0121072329 | AS95: =(Results!$F$20-$V95)*$AT$2 -> 21.97272159 | AT95: =(1/SUMSQ(Results!$G$20,$W95))*$AT$2 -> 104013.9661 | AU95: 0.006016196584 | AV95: 21.89060626 | AW95: 0.04129043069 | AX95: 11.69345726 | AY95: 0.04131518206 | AZ95: 9.556408772 | BA95: 0.04129222066 | BB95: 9.742268671 | BC95: 0.04129261795 | BD95: 10.46201981 | BE95: 0.04129537336 | BF95: 10.79207765 | BG95: 0.04129783582 | BH95: 11.54092886 | BI95: 0.04131096403 | BJ95: 12.25575451 | BK95: 0.04134824058 | BL95: 12.69988467 | BM95: 0.04140668738 | BN95: =IF(MOD(ROW($BN95)-7,oBlockAvg)=0,AVERAGE(INDIRECT(ADDRESS((INT((ROW($BN95)-7)/oBlockAvg)*oBlockAvg)+7,COLUMN(Calculation!JDGraph))&":"&ADDRESS(((INT((ROW($BN95)-7)/oBlockAvg)+1)*oBlockAvg)+6,COLUMN(Calculation!JDGraph)))),#N/A) -> 
B96: WASP-12b_00129_bdf.fits | C96: 2013-01-27 | D96: 03:17:37.795 | E96: 2456319.637 | F96: 3319.637243 | G96: 100 | H96: -10.13605054 | I96: 0.001420560963 | J96: -12.27721701 | K96: 0.0003912917483 | L96: -12.0965963 | M96: 0.0004303332997 | N96: -11.36643424 | O96: 0.0006459083164 | P96: -11.0400343 | Q96: 0.0007845939624 | R96: -10.29106448 | S96: 0.001275339853 | T96: -9.574866744 | U96: 0.00214544259 | V96: -9.130100964 | W96: 0.003032292728 | X96: Blank | Y96: Blank | Z96: 0 | AA96: =(Results!$F$14-$J96)*$AB$2 -> 21.72921701 | AB96: =(1/SUMSQ(Results!$G$14,$K96))*$AB$2 -> 6531284.789 | AC96: 0.3866157187 | AD96: =(Results!$F$15-$L96)*$AE$2 -> 21.8435963 | AE96: =(1/SUMSQ(Results!$G$15,$M96))*$AE$2 -> 5399954.404 | AF96: 0.3196472548 | AG96: =(Results!$F$16-$N96)*$AH$2 -> 21.93443424 | AH96: =(1/SUMSQ(Results!$G$16,$O96))*$AH$2 -> 2396945.985 | AI96: 0.1418858654 | AJ96: =(Results!$F$17-$P96)*$AK$2 -> 22.0240343 | AK96: =(1/SUMSQ(Results!$G$17,$Q96))*$AK$2 -> 1624463.944 | AL96: 0.0961592268 | AM96: =(Results!$F$18-$R96)*$AN$2 -> 21.98806448 | AN96: =(1/SUMSQ(Results!$G$18,$S96))*$AN$2 -> 614820.2141 | AO96: 0.03639393575 | AP96: =(Results!$F$19-$T96)*$AQ$2 -> 21.85986674 | AQ96: =(1/SUMSQ(Results!$G$19,$U96))*$AQ$2 -> 217253.2112 | AR96: 0.01286018128 | AS96: =(Results!$F$20-$V96)*$AT$2 -> 21.91210096 | AT96: =(1/SUMSQ(Results!$G$20,$W96))*$AT$2 -> 108757.1332 | AU96: 0.00643781715 | AV96: 21.83552289 | AW96: 0.04100300676 | AX96: 11.69947236 | AY96: 0.04102760725 | AZ96: 9.558305887 | BA96: 0.04100487377 | BB96: 9.73892659 | BC96: 0.04100526491 | BD96: 10.46908865 | BE96: 0.04100809385 | BF96: 10.7954886 | BG96: 0.04101051269 | BH96: 11.54445841 | BI96: 0.04102283578 | BJ96: 12.26065615 | BK96: 0.0410590975 | BL96: 12.70542193 | BM96: 0.04111497735 | BN96: =IF(MOD(ROW($BN96)-7,oBlockAvg)=0,AVERAGE(INDIRECT(ADDRESS((INT((ROW($BN96)-7)/oBlockAvg)*oBlockAvg)+7,COLUMN(Calculation!JDGraph))&":"&ADDRESS(((INT((ROW($BN96)-7)/oBlockAvg)+1)*oBlockAvg)+6,COLUMN(Calculation!JDGraph)))),#N/A) -> 
B97: WASP-12b_00130_bdf.fits | C97: 2013-01-27 | D97: 03:19:36.941 | E97: 2456319.639 | F97: 3319.638622 | G97: 100 | H97: -10.14589021 | I97: 0.00140810622 | J97: -12.28581089 | K97: 0.0003893696434 | L97: -12.1054255 | M97: 0.0004278960347 | N97: -11.37714652 | O97: 0.0006405448183 | P97: -11.04856695 | Q97: 0.0007794330324 | R97: -10.30073557 | S97: 0.001265478764 | T97: -9.583451721 | U97: 0.002124739322 | V97: -9.148685615 | W97: 0.002984036428 | X97: Blank | Y97: Blank | Z97: 0 | AA97: =(Results!$F$14-$J97)*$AB$2 -> 21.73781089 | AB97: =(1/SUMSQ(Results!$G$14,$K97))*$AB$2 -> 6595926.708 | AC97: 0.3857464598 | AD97: =(Results!$F$15-$L97)*$AE$2 -> 21.8524255 | AE97: =(1/SUMSQ(Results!$G$15,$M97))*$AE$2 -> 5461645.101 | AF97: 0.3194108054 | AG97: =(Results!$F$16-$N97)*$AH$2 -> 21.94514652 | AH97: =(1/SUMSQ(Results!$G$16,$O97))*$AH$2 -> 2437254.918 | AI97: 0.1425368258 | AJ97: =(Results!$F$17-$P97)*$AK$2 -> 22.03256695 | AK97: =(1/SUMSQ(Results!$G$17,$Q97))*$AK$2 -> 1646047.583 | AL97: 0.09626502173 | AM97: =(Results!$F$18-$R97)*$AN$2 -> 21.99773557 | AN97: =(1/SUMSQ(Results!$G$18,$S97))*$AN$2 -> 624439.3699 | AO97: 0.03651879212 | AP97: =(Results!$F$19-$T97)*$AQ$2 -> 21.86845172 | AQ97: =(1/SUMSQ(Results!$G$19,$U97))*$AQ$2 -> 221507.6294 | AR97: 0.01295432585 | AS97: =(Results!$F$20-$V97)*$AT$2 -> 21.93068561 | AT97: =(1/SUMSQ(Results!$G$20,$W97))*$AT$2 -> 112303.1037 | AU97: 0.006567769262 | AV97: 21.84479895 | AW97: 0.04117675613 | AX97: 11.69890874 | AY97: 0.04120082533 | AZ97: 9.558988062 | BA97: 0.04117859704 | BB97: 9.739373453 | BC97: 0.04117897935 | BD97: 10.46765243 | BE97: 0.04118173798 | BF97: 10.796232 | BG97: 0.04118413239 | BH97: 11.54406338 | BI97: 0.04119619742 | BJ97: 12.26134723 | BK97: 0.04123153844 | BL97: 12.69611334 | BM97: 0.04128473954 | BN97: =IF(MOD(ROW($BN97)-7,oBlockAvg)=0,AVERAGE(INDIRECT(ADDRESS((INT((ROW($BN97)-7)/oBlockAvg)*oBlockAvg)+7,COLUMN(Calculation!JDGraph))&":"&ADDRESS(((INT((ROW($BN97)-7)/oBlockAvg)+1)*oBlockAvg)+6,COLUMN(Calculation!JDGraph)))),#N/A) -> 3319.64138 | BO97: 11.69909026 | BP97: 0.0006963312388
B98: WASP-12b_00131_bdf.fits | C98: 2013-01-27 | D98: 03:21:36.086 | E98: 2456319.64 | F98: 3319.640001 | G98: 100 | H98: -10.18859559 | I98: 0.001365939314 | J98: -12.32840857 | K98: 0.000380641896 | L98: -12.14281079 | M98: 0.0004196513449 | N98: -11.42198173 | O98: 0.0006241239457 | P98: -11.09118874 | Q98: 0.000760702575 | R98: -10.34073088 | S98: 0.001231066316 | T98: -9.624428126 | U98: 0.002063655102 | V98: -9.188864445 | W98: 0.002893261661 | X98: Blank | Y98: Blank | Z98: 0 | AA98: =(Results!$F$14-$J98)*$AB$2 -> 21.78040857 | AB98: =(1/SUMSQ(Results!$G$14,$K98))*$AB$2 -> 6901870.784 | AC98: 0.3858026858 | AD98: =(Results!$F$15-$L98)*$AE$2 -> 21.88981079 | AE98: =(1/SUMSQ(Results!$G$15,$M98))*$AE$2 -> 5678357.891 | AF98: 0.317410423 | AG98: =(Results!$F$16-$N98)*$AH$2 -> 21.98998173 | AH98: =(1/SUMSQ(Results!$G$16,$O98))*$AH$2 -> 2567191.754 | AI98: 0.1435015961 | AJ98: =(Results!$F$17-$P98)*$AK$2 -> 22.07518874 | AK98: =(1/SUMSQ(Results!$G$17,$Q98))*$AK$2 -> 1728105.4 | AL98: 0.09659811456 | AM98: =(Results!$F$18-$R98)*$AN$2 -> 22.03773088 | AN98: =(1/SUMSQ(Results!$G$18,$S98))*$AN$2 -> 659837.666 | AO98: 0.03688378871 | AP98: =(Results!$F$19-$T98)*$AQ$2 -> 21.90942813 | AQ98: =(1/SUMSQ(Results!$G$19,$U98))*$AQ$2 -> 234814.9636 | AR98: 0.01312575191 | AS98: =(Results!$F$20-$V98)*$AT$2 -> 21.97086445 | AT98: =(1/SUMSQ(Results!$G$20,$W98))*$AT$2 -> 119460.5681 | AU98: 0.006677639939 | AV98: 21.88613956 | AW98: 0.04127066225 | AX98: 11.69754397 | AY98: 0.04129326038 | AZ98: 9.557730991 | BA98: 0.04127241756 | BB98: 9.743328773 | BC98: 0.04127279576 | BD98: 10.46415784 | BE98: 0.0412753812 | BF98: 10.79495082 | BG98: 0.04127767231 | BH98: 11.54540868 | BI98: 0.04128901896 | BJ98: 12.26171144 | BK98: 0.04132222447 | BL98: 12.69727512 | BM98: 0.04137195337 | BN98: =IF(MOD(ROW($BN98)-7,oBlockAvg)=0,AVERAGE(INDIRECT(ADDRESS((INT((ROW($BN98)-7)/oBlockAvg)*oBlockAvg)+7,COLUMN(Calculation!JDGraph))&":"&ADDRESS(((INT((ROW($BN98)-7)/oBlockAvg)+1)*oBlockAvg)+6,COLUMN(Calculation!JDGraph)))),#N/A) -> 
B99: WASP-12b_00132_bdf.fits | C99: 2013-01-27 | D99: 03:23:35.232 | E99: 2456319.641 | F99: 3319.64138 | G99: 100 | H99: -10.18728343 | I99: 0.001367928622 | J99: -12.3283111 | K99: 0.0003808324854 | L99: -12.14159694 | M99: 0.0004199866485 | N99: -11.41944512 | O99: 0.0006259251183 | P99: -11.09059679 | Q99: 0.0007602994983 | R99: -10.33870398 | S99: 0.001234283492 | T99: -9.62257523 | U99: 0.002066821113 | V99: -9.179946493 | W99: 0.00292457244 | X99: Blank | Y99: Blank | Z99: 0 | AA99: =(Results!$F$14-$J99)*$AB$2 -> 21.7803111 | AB99: =(1/SUMSQ(Results!$G$14,$K99))*$AB$2 -> 6894964.363 | AC99: 0.386184884 | AD99: =(Results!$F$15-$L99)*$AE$2 -> 21.88859694 | AE99: =(1/SUMSQ(Results!$G$15,$M99))*$AE$2 -> 5669294.681 | AF99: 0.3175354931 | AG99: =(Results!$F$16-$N99)*$AH$2 -> 21.98744512 | AH99: =(1/SUMSQ(Results!$G$16,$O99))*$AH$2 -> 2552438.225 | AI99: 0.1429612987 | AJ99: =(Results!$F$17-$P99)*$AK$2 -> 22.07459679 | AK99: =(1/SUMSQ(Results!$G$17,$Q99))*$AK$2 -> 1729938.214 | AL99: 0.09689332 | AM99: =(Results!$F$18-$R99)*$AN$2 -> 22.03570398 | AN99: =(1/SUMSQ(Results!$G$18,$S99))*$AN$2 -> 656402.3975 | AO99: 0.03676490123 | AP99: =(Results!$F$19-$T99)*$AQ$2 -> 21.90757523 | AQ99: =(1/SUMSQ(Results!$G$19,$U99))*$AQ$2 -> 234096.1232 | AR99: 0.01311165358 | AS99: =(Results!$F$20-$V99)*$AT$2 -> 21.96194649 | AT99: =(1/SUMSQ(Results!$G$20,$W99))*$AT$2 -> 116916.346 | AU99: 0.006548449439 | AV99: 21.88506973 | AW99: 0.04102934656 | AX99: 11.6977863 | AY99: 0.04105214376 | AZ99: 9.556758629 | BA99: 0.04103111395 | BB99: 9.743472788 | BC99: 0.04103149604 | BD99: 10.46562462 | BE99: 0.04103412069 | BF99: 10.79447295 | BG99: 0.04103639036 | BH99: 11.54636575 | BI99: 0.0410479078 | BJ99: 12.2624945 | BK99: 0.04108137082 | BL99: 12.70512324 | BM99: 0.04113344628 | BN99: =IF(MOD(ROW($BN99)-7,oBlockAvg)=0,AVERAGE(INDIRECT(ADDRESS((INT((ROW($BN99)-7)/oBlockAvg)*oBlockAvg)+7,COLUMN(Calculation!JDGraph))&":"&ADDRESS(((INT((ROW($BN99)-7)/oBlockAvg)+1)*oBlockAvg)+6,COLUMN(Calculation!JDGraph)))),#N/A) -> 
B100: WASP-12b_00133_bdf.fits | C100: 2013-01-27 | D100: 03:25:34.378 | E100: 2456319.643 | F100: 3319.642759 | G100: 100 | H100: -10.14222072 | I100: 0.001413880815 | J100: -12.28601268 | K100: 0.0003895954784 | L100: -12.10345502 | M100: 0.0004287131188 | N100: -11.37435414 | O100: 0.0006421742477 | P100: -11.04798451 | Q100: 0.0007814859012 | R100: -10.29859671 | S100: 0.001271574431 | T100: -9.584981508 | U100: 0.002126127824 | V100: -9.145303619 | W100: 0.002998957599 | X100: Blank | Y100: Blank | Z100: 0 | AA100: =(Results!$F$14-$J100)*$AB$2 -> 21.73801268 | AB100: =(1/SUMSQ(Results!$G$14,$K100))*$AB$2 -> 6588282.062 | AC100: 0.3865837479 | AD100: =(Results!$F$15-$L100)*$AE$2 -> 21.85045502 | AE100: =(1/SUMSQ(Results!$G$15,$M100))*$AE$2 -> 5440846.247 | AF100: 0.319255113 | AG100: =(Results!$F$16-$N100)*$AH$2 -> 21.94235414 | AH100: =(1/SUMSQ(Results!$G$16,$O100))*$AH$2 -> 2424902.207 | AI100: 0.1422871356 | AJ100: =(Results!$F$17-$P100)*$AK$2 -> 22.03198451 | AK100: =(1/SUMSQ(Results!$G$17,$Q100))*$AK$2 -> 1637411.007 | AL100: 0.09607914139 | AM100: =(Results!$F$18-$R100)*$AN$2 -> 21.99559671 | AN100: =(1/SUMSQ(Results!$G$18,$S100))*$AN$2 -> 618466.8513 | AO100: 0.03629007245 | AP100: =(Results!$F$19-$T100)*$AQ$2 -> 21.86998151 | AQ100: =(1/SUMSQ(Results!$G$19,$U100))*$AQ$2 -> 221218.4056 | AR100: 0.01298053719 | AS100: =(Results!$F$20-$V100)*$AT$2 -> 21.92730362 | AT100: =(1/SUMSQ(Results!$G$20,$W100))*$AT$2 -> 111188.3663 | AU100: 0.006524252445 | AV100: 21.84352594 | AW100: 0.04085628297 | AX100: 11.70130523 | AY100: 0.04088074017 | AZ100: 9.557513265 | BA100: 0.04085814047 | BB100: 9.740070926 | BC100: 0.0408585322 | BD100: 10.46917181 | BE100: 0.04086132947 | BF100: 10.79554143 | BG100: 0.04086375629 | BH100: 11.54492924 | BI100: 0.04087606585 | BJ100: 12.25854444 | BK100: 0.04091156655 | BL100: 12.69822232 | BM100: 0.04096620076 | BN100: =IF(MOD(ROW($BN100)-7,oBlockAvg)=0,AVERAGE(INDIRECT(ADDRESS((INT((ROW($BN100)-7)/oBlockAvg)*oBlockAvg)+7,COLUMN(Calculation!JDGraph))&":"&ADDRESS(((INT((ROW($BN100)-7)/oBlockAvg)+1)*oBlockAvg)+6,COLUMN(Calculation!JDGraph)))),#N/A) -> 
B101: WASP-12b_00134_bdf.fits | C101: 2013-01-27 | D101: 03:27:33.523 | E101: 2456319.644 | F101: 3319.644138 | G101: 100 | H101: -10.16207698 | I101: 0.001395516195 | J101: -12.30365038 | K101: 0.0003858690222 | L101: -12.12130504 | M101: 0.0004246132643 | N101: -11.39522519 | O101: 0.0006352823531 | P101: -11.06735477 | Q101: 0.0007722833247 | R101: -10.31696435 | S101: 0.00125516737 | T101: -9.598173968 | U101: 0.00210430036 | V101: -9.162884717 | W101: 0.00295819516 | X101: Blank | Y101: Blank | Z101: 0 | AA101: =(Results!$F$14-$J101)*$AB$2 -> 21.75565038 | AB101: =(1/SUMSQ(Results!$G$14,$K101))*$AB$2 -> 6716146.655 | AC101: 0.3861656 | AD101: =(Results!$F$15-$L101)*$AE$2 -> 21.86830504 | AE101: =(1/SUMSQ(Results!$G$15,$M101))*$AE$2 -> 5546421.702 | AF101: 0.3189086502 | AG101: =(Results!$F$16-$N101)*$AH$2 -> 21.96322519 | AH101: =(1/SUMSQ(Results!$G$16,$O101))*$AH$2 -> 2477800.959 | AI101: 0.1424688207 | AJ101: =(Results!$F$17-$P101)*$AK$2 -> 22.05135477 | AK101: =(1/SUMSQ(Results!$G$17,$Q101))*$AK$2 -> 1676666.491 | AL101: 0.0964051196 | AM101: =(Results!$F$18-$R101)*$AN$2 -> 22.01396435 | AN101: =(1/SUMSQ(Results!$G$18,$S101))*$AN$2 -> 634741.2441 | AO101: 0.03649640872 | AP101: =(Results!$F$19-$T101)*$AQ$2 -> 21.88317397 | AQ101: =(1/SUMSQ(Results!$G$19,$U101))*$AQ$2 -> 225831.5114 | AR101: 0.01298488041 | AS101: =(Results!$F$20-$V101)*$AT$2 -> 21.94488472 | AT101: =(1/SUMSQ(Results!$G$20,$W101))*$AT$2 -> 114273.7174 | AU101: 0.006570520405 | AV101: 21.86198406 | AW101: 0.04121189396 | AX101: 11.69990708 | AY101: 0.04123551466 | AZ101: 9.558333679 | BA101: 0.04121370038 | BB101: 9.740679018 | BC101: 0.04121408133 | BD101: 10.46675888 | BE101: 0.04121679012 | BF101: 10.79462929 | BG101: 0.04121912936 | BH101: 11.54501971 | BI101: 0.04123100349 | BJ101: 12.26381009 | BK101: 0.04126558231 | BL101: 12.69909934 | BM101: 0.04131792737 | BN101: =IF(MOD(ROW($BN101)-7,oBlockAvg)=0,AVERAGE(INDIRECT(ADDRESS((INT((ROW($BN101)-7)/oBlockAvg)*oBlockAvg)+7,COLUMN(Calculation!JDGraph))&":"&ADDRESS(((INT((ROW($BN101)-7)/oBlockAvg)+1)*oBlockAvg)+6,COLUMN(Calculation!JDGraph)))),#N/A) -> 
B102: WASP-12b_00135_bdf.fits | C102: 2013-01-27 | D102: 03:29:32.755 | E102: 2456319.646 | F102: 3319.645518 | G102: 100 | H102: -10.18012211 | I102: 0.001374586618 | J102: -12.32234212 | K102: 0.0003818726793 | L102: -12.13671576 | M102: 0.0004207715554 | N102: -11.41340153 | O102: 0.0006271704755 | P102: -11.08428874 | Q102: 0.0007624408387 | R102: -10.33200682 | S102: 0.00123816826 | T102: -9.623964641 | U102: 0.00205762486 | V102: -9.182968746 | W102: 0.002897642589 | X102: Blank | Y102: Blank | Z102: 0 | AA102: =(Results!$F$14-$J102)*$AB$2 -> 21.77434212 | AB102: =(1/SUMSQ(Results!$G$14,$K102))*$AB$2 -> 6857452.743 | AC102: 0.3857758203 | AD102: =(Results!$F$15-$L102)*$AE$2 -> 21.88371576 | AE102: =(1/SUMSQ(Results!$G$15,$M102))*$AE$2 -> 5648163.414 | AF102: 0.317745518 | AG102: =(Results!$F$16-$N102)*$AH$2 -> 21.98140153 | AH102: =(1/SUMSQ(Results!$G$16,$O102))*$AH$2 -> 2542311.659 | AI102: 0.1430213816 | AJ102: =(Results!$F$17-$P102)*$AK$2 -> 22.06828874 | AK102: =(1/SUMSQ(Results!$G$17,$Q102))*$AK$2 -> 1720234.681 | AL102: 0.09677426446 | AM102: =(Results!$F$18-$R102)*$AN$2 -> 22.02900682 | AN102: =(1/SUMSQ(Results!$G$18,$S102))*$AN$2 -> 652289.9186 | AO102: 0.0366955031 | AP102: =(Results!$F$19-$T102)*$AQ$2 -> 21.90896464 | AQ102: =(1/SUMSQ(Results!$G$19,$U102))*$AQ$2 -> 236193.316 | AR102: 0.01328739309 | AS102: =(Results!$F$20-$V102)*$AT$2 -> 21.96496875 | AT102: =(1/SUMSQ(Results!$G$20,$W102))*$AT$2 -> 119099.6177 | AU102: 0.006700119483 | AV102: 21.87956655 | AW102: 0.04100122258 | AX102: 11.69944443 | AY102: 0.04102425796 | AZ102: 9.557224427 | BA102: 0.04100300086 | BB102: 9.742850788 | BC102: 0.04100338158 | BD102: 10.46616501 | BE102: 0.04100601902 | BF102: 10.79527781 | BG102: 0.04100831097 | BH102: 11.54755973 | BI102: 0.04101991362 | BJ102: 12.25560191 | BK102: 0.04105282052 | BL102: 12.6965978 | BM102: 0.04110348629 | BN102: =IF(MOD(ROW($BN102)-7,oBlockAvg)=0,AVERAGE(INDIRECT(ADDRESS((INT((ROW($BN102)-7)/oBlockAvg)*oBlockAvg)+7,COLUMN(Calculation!JDGraph))&":"&ADDRESS(((INT((ROW($BN102)-7)/oBlockAvg)+1)*oBlockAvg)+6,COLUMN(Calculation!JDGraph)))),#N/A) -> 3319.648276 | BO102: 11.69728153 | BP102: 0.000808936028
B103: WASP-12b_00136_bdf.fits | C103: 2013-01-27 | D103: 03:31:31.901 | E103: 2456319.647 | F103: 3319.646897 | G103: 100 | H103: -10.18858479 | I103: 0.001361077678 | J103: -12.32740645 | K103: 0.0003806029605 | L103: -12.14263367 | M103: 0.0004189641517 | N103: -11.42088704 | O103: 0.0006236610097 | P103: -11.09221754 | Q103: 0.0007581141651 | R103: -10.34060676 | S103: 0.001226639806 | T103: -9.625524508 | U103: 0.002049002117 | V103: -9.181480665 | W103: 0.002907331099 | X103: Blank | Y103: Blank | Z103: 0 | AA103: =(Results!$F$14-$J103)*$AB$2 -> 21.77940645 | AB103: =(1/SUMSQ(Results!$G$14,$K103))*$AB$2 -> 6903282.969 | AC103: 0.3849632876 | AD103: =(Results!$F$15-$L103)*$AE$2 -> 21.88963367 | AE103: =(1/SUMSQ(Results!$G$15,$M103))*$AE$2 -> 5697000.674 | AF103: 0.3176946562 | AG103: =(Results!$F$16-$N103)*$AH$2 -> 21.98888704 | AH103: =(1/SUMSQ(Results!$G$16,$O103))*$AH$2 -> 2571004.359 | AI103: 0.143372696 | AJ103: =(Results!$F$17-$P103)*$AK$2 -> 22.07621754 | AK103: =(1/SUMSQ(Results!$G$17,$Q103))*$AK$2 -> 1739925.997 | AL103: 0.09702740496 | AM103: =(Results!$F$18-$R103)*$AN$2 -> 22.03760676 | AN103: =(1/SUMSQ(Results!$G$18,$S103))*$AN$2 -> 664608.5009 | AO103: 0.03706205796 | AP103: =(Results!$F$19-$T103)*$AQ$2 -> 21.91052451 | AQ103: =(1/SUMSQ(Results!$G$19,$U103))*$AQ$2 -> 238185.4267 | AR103: 0.01328246942 | AS103: =(Results!$F$20-$V103)*$AT$2 -> 21.96348066 | AT103: =(1/SUMSQ(Results!$G$20,$W103))*$AT$2 -> 118307.1554 | AU103: 0.006597427878 | AV103: 21.88578308 | AW103: 0.04144483165 | AX103: 11.69719829 | AY103: 0.04146717501 | AZ103: 9.558376628 | BA103: 0.04144657922 | BB103: 9.743149406 | BC103: 0.04144694924 | BD103: 10.46489604 | BE103: 0.0414495238 | BF103: 10.79356554 | BG103: 0.04145176483 | BH103: 11.54517632 | BI103: 0.04146298006 | BJ103: 12.26025857 | BK103: 0.04149545132 | BL103: 12.70430242 | BM103: 0.04154668031 | BN103: =IF(MOD(ROW($BN103)-7,oBlockAvg)=0,AVERAGE(INDIRECT(ADDRESS((INT((ROW($BN103)-7)/oBlockAvg)*oBlockAvg)+7,COLUMN(Calculation!JDGraph))&":"&ADDRESS(((INT((ROW($BN103)-7)/oBlockAvg)+1)*oBlockAvg)+6,COLUMN(Calculation!JDGraph)))),#N/A) -> 
B104: WASP-12b_00137_bdf.fits | C104: 2013-01-27 | D104: 03:33:31.046 | E104: 2456319.648 | F104: 3319.648276 | G104: 100 | H104: -10.08276555 | I104: 0.0014314361 | J104: -12.22337898 | K104: 0.000399287016 | L104: -12.02162519 | M104: 0.0004436645095 | N104: -11.31664529 | O104: 0.0006550763688 | P104: -10.99432195 | Q104: 0.0007931028214 | R104: -10.24290736 | S104: 0.001283860287 | T104: -9.51944871 | U104: 0.002157268558 | V104: -9.070554101 | W104: 0.003051132513 | X104: Blank | Y104: Blank | Z104: 0 | AA104: =(Results!$F$14-$J104)*$AB$2 -> 21.67537898 | AB104: =(1/SUMSQ(Results!$G$14,$K104))*$AB$2 -> 6272340.463 | AC104: 0.3871395561 | AD104: =(Results!$F$15-$L104)*$AE$2 -> 21.76862519 | AE104: =(1/SUMSQ(Results!$G$15,$M104))*$AE$2 -> 5080314.772 | AF104: 0.3135656965 | AG104: =(Results!$F$16-$N104)*$AH$2 -> 21.88464529 | AH104: =(1/SUMSQ(Results!$G$16,$O104))*$AH$2 -> 2330323.067 | AI104: 0.143831516 | AJ104: =(Results!$F$17-$P104)*$AK$2 -> 21.97832195 | AK104: =(1/SUMSQ(Results!$G$17,$Q104))*$AK$2 -> 1589794.574 | AL104: 0.09812483382 | AM104: =(Results!$F$18-$R104)*$AN$2 -> 21.93990736 | AN104: =(1/SUMSQ(Results!$G$18,$S104))*$AN$2 -> 606686.6936 | AO104: 0.03744573794 | AP104: =(Results!$F$19-$T104)*$AQ$2 -> 21.80444871 | AQ104: =(1/SUMSQ(Results!$G$19,$U104))*$AQ$2 -> 214877.8118 | AR104: 0.0132626252 | AS104: =(Results!$F$20-$V104)*$AT$2 -> 21.8525541 | AT104: =(1/SUMSQ(Results!$G$20,$W104))*$AT$2 -> 107418.1975 | AU104: 0.006630034442 | AV104: 21.77723505 | AW104: 0.04223972679 | AX104: 11.6944695 | AY104: 0.04226397435 | AZ104: 9.553856071 | BA104: 0.04224161395 | BB104: 9.755609864 | BC104: 0.04224205673 | BD104: 10.46058976 | BE104: 0.04224480612 | BF104: 10.78291311 | BG104: 0.04224717187 | BH104: 11.53432769 | BI104: 0.0422592335 | BJ104: 12.25778634 | BK104: 0.04229477895 | BL104: 12.70668095 | BM104: 0.04234978074 | BN104: =IF(MOD(ROW($BN104)-7,oBlockAvg)=0,AVERAGE(INDIRECT(ADDRESS((INT((ROW($BN104)-7)/oBlockAvg)*oBlockAvg)+7,COLUMN(Calculation!JDGraph))&":"&ADDRESS(((INT((ROW($BN104)-7)/oBlockAvg)+1)*oBlockAvg)+6,COLUMN(Calculation!JDGraph)))),#N/A) -> 
B105: WASP-12b_00138_bdf.fits | C105: 2013-01-27 | D105: 03:35:30.192 | E105: 2456319.65 | F105: 3319.649655 | G105: 100 | H105: -10.13677916 | I105: 0.00143831008 | J105: -12.28136355 | K105: 0.0003917193355 | L105: -12.08767704 | M105: 0.0004342642388 | N105: -11.37042169 | O105: 0.0006480378709 | P105: -11.04446937 | Q105: 0.000789061319 | R105: -10.28863562 | S105: 0.001299187843 | T105: -9.574414643 | U105: 0.002182728329 | V105: -9.135857557 | W105: 0.003076422117 | X105: Blank | Y105: Blank | Z105: 0 | AA105: =(Results!$F$14-$J105)*$AB$2 -> 21.73336355 | AB105: =(1/SUMSQ(Results!$G$14,$K105))*$AB$2 -> 6517033.924 | AC105: 0.3898908731 | AD105: =(Results!$F$15-$L105)*$AE$2 -> 21.83467704 | AE105: =(1/SUMSQ(Results!$G$15,$M105))*$AE$2 -> 5302636.607 | AF105: 0.3172378172 | AG105: =(Results!$F$16-$N105)*$AH$2 -> 21.93842169 | AH105: =(1/SUMSQ(Results!$G$16,$O105))*$AH$2 -> 2381218.385 | AI105: 0.1424597947 | AJ105: =(Results!$F$17-$P105)*$AK$2 -> 22.02846937 | AK105: =(1/SUMSQ(Results!$G$17,$Q105))*$AK$2 -> 1606121.855 | AL105: 0.09608853654 | AM105: =(Results!$F$18-$R105)*$AN$2 -> 21.98563562 | AN105: =(1/SUMSQ(Results!$G$18,$S105))*$AN$2 -> 592456.0023 | AO105: 0.03544452748 | AP105: =(Results!$F$19-$T105)*$AQ$2 -> 21.85941464 | AQ105: =(1/SUMSQ(Results!$G$19,$U105))*$AQ$2 -> 209894.2927 | AR105: 0.01255722618 | AS105: =(Results!$F$20-$V105)*$AT$2 -> 21.91785756 | AT105: =(1/SUMSQ(Results!$G$20,$W105))*$AT$2 -> 105659.4025 | AU105: 0.006321224832 | AV105: 21.83476359 | AW105: 0.04083112332 | AX105: 11.69798443 | AY105: 0.0408564483 | AZ105: 9.553400044 | BA105: 0.04083300229 | BB105: 9.74708655 | BC105: 0.04083343259 | BD105: 10.4643419 | BE105: 0.04083626556 | BF105: 10.79029422 | BG105: 0.04083874691 | BH105: 11.54612797 | BI105: 0.04085178724 | BJ105: 12.26034895 | BK105: 0.04088942326 | BL105: 12.69890603 | BM105: 0.04094685586 | BN105: =IF(MOD(ROW($BN105)-7,oBlockAvg)=0,AVERAGE(INDIRECT(ADDRESS((INT((ROW($BN105)-7)/oBlockAvg)*oBlockAvg)+7,COLUMN(Calculation!JDGraph))&":"&ADDRESS(((INT((ROW($BN105)-7)/oBlockAvg)+1)*oBlockAvg)+6,COLUMN(Calculation!JDGraph)))),#N/A) -> 
B106: WASP-12b_00139_bdf.fits | C106: 2013-01-27 | D106: 03:37:29.338 | E106: 2456319.651 | F106: 3319.651034 | G106: 100 | H106: -10.18524146 | I106: 0.001370391059 | J106: -12.32544067 | K106: 0.0003812376935 | L106: -12.13905643 | M106: 0.000420131884 | N106: -11.41707826 | O106: 0.000626563771 | P106: -11.08851025 | Q106: 0.0007612283623 | R106: -10.33891774 | S106: 0.001231486342 | T106: -9.614103827 | U106: 0.002078300779 | V106: -9.179976821 | W106: 0.002903618154 | X106: Blank | Y106: Blank | Z106: 0 | AA106: =(Results!$F$14-$J106)*$AB$2 -> 21.77744067 | AB106: =(1/SUMSQ(Results!$G$14,$K106))*$AB$2 -> 6880315.179 | AC106: 0.3859239745 | AD106: =(Results!$F$15-$L106)*$AE$2 -> 21.88605643 | AE106: =(1/SUMSQ(Results!$G$15,$M106))*$AE$2 -> 5665375.717 | AF106: 0.317776767 | AG106: =(Results!$F$16-$N106)*$AH$2 -> 21.98507826 | AH106: =(1/SUMSQ(Results!$G$16,$O106))*$AH$2 -> 2547237.506 | AI106: 0.1428771788 | AJ106: =(Results!$F$17-$P106)*$AK$2 -> 22.07251025 | AK106: =(1/SUMSQ(Results!$G$17,$Q106))*$AK$2 -> 1725718.988 | AL106: 0.09679735788 | AM106: =(Results!$F$18-$R106)*$AN$2 -> 22.03591774 | AN106: =(1/SUMSQ(Results!$G$18,$S106))*$AN$2 -> 659387.638 | AO106: 0.03698573268 | AP106: =(Results!$F$19-$T106)*$AQ$2 -> 21.89910383 | AQ106: =(1/SUMSQ(Results!$G$19,$U106))*$AQ$2 -> 231517.1668 | AR106: 0.01298603666 | AS106: =(Results!$F$20-$V106)*$AT$2 -> 21.96197682 | AT106: =(1/SUMSQ(Results!$G$20,$W106))*$AT$2 -> 118609.9148 | AU106: 0.006652952449 | AV106: 21.88255246 | AW106: 0.04118643275 | AX106: 11.697311 | AY106: 0.04120922487 | AZ106: 9.557111791 | BA106: 0.04118819715 | BB106: 9.743496029 | BC106: 0.04118857552 | BD106: 10.4654742 | BE106: 0.04119119839 | BF106: 10.79404221 | BG106: 0.04119346685 | BH106: 11.54363472 | BI106: 0.04120483953 | BJ106: 12.26844863 | BK106: 0.04123883578 | BL106: 12.70257564 | BM106: 0.04128865753 | BN106: =IF(MOD(ROW($BN106)-7,oBlockAvg)=0,AVERAGE(INDIRECT(ADDRESS((INT((ROW($BN106)-7)/oBlockAvg)*oBlockAvg)+7,COLUMN(Calculation!JDGraph))&":"&ADDRESS(((INT((ROW($BN106)-7)/oBlockAvg)+1)*oBlockAvg)+6,COLUMN(Calculation!JDGraph)))),#N/A) -> 
B107: WASP-12b_00140_bdf.fits | C107: 2013-01-27 | D107: 03:39:28.483 | E107: 2456319.652 | F107: 3319.652413 | G107: 100 | H107: -10.18780449 | I107: 0.001368033425 | J107: -12.32623864 | K107: 0.0003809327083 | L107: -12.14047366 | M107: 0.0004199197394 | N107: -11.41893019 | O107: 0.0006256483077 | P107: -11.09134714 | Q107: 0.0007592322436 | R107: -10.3406534 | S107: 0.001231235338 | T107: -9.623151181 | U107: 0.002059385938 | V107: -9.179768132 | W107: 0.002913109158 | X107: Blank | Y107: Blank | Z107: 0 | AA107: =(Results!$F$14-$J107)*$AB$2 -> 21.77823864 | AB107: =(1/SUMSQ(Results!$G$14,$K107))*$AB$2 -> 6891336.73 | AC107: 0.3857402693 | AD107: =(Results!$F$15-$L107)*$AE$2 -> 21.88747366 | AE107: =(1/SUMSQ(Results!$G$15,$M107))*$AE$2 -> 5671101.489 | AF107: 0.3174380097 | AG107: =(Results!$F$16-$N107)*$AH$2 -> 21.98693019 | AH107: =(1/SUMSQ(Results!$G$16,$O107))*$AH$2 -> 2554697.316 | AI107: 0.1429983281 | AJ107: =(Results!$F$17-$P107)*$AK$2 -> 22.07534714 | AK107: =(1/SUMSQ(Results!$G$17,$Q107))*$AK$2 -> 1734805.189 | AL107: 0.0971051404 | AM107: =(Results!$F$18-$R107)*$AN$2 -> 22.0376534 | AN107: =(1/SUMSQ(Results!$G$18,$S107))*$AN$2 -> 659656.516 | AO107: 0.03692405292 | AP107: =(Results!$F$19-$T107)*$AQ$2 -> 21.90815118 | AQ107: =(1/SUMSQ(Results!$G$19,$U107))*$AQ$2 -> 235789.5286 | AR107: 0.01319824003 | AS107: =(Results!$F$20-$V107)*$AT$2 -> 21.96176813 | AT107: =(1/SUMSQ(Results!$G$20,$W107))*$AT$2 -> 117838.3039 | AU107: 0.006595959661 | AV107: 21.88411111 | AW107: 0.04144924742 | AX107: 11.69630662 | AY107: 0.04147181726 | AZ107: 9.557872469 | BA107: 0.04145099783 | BB107: 9.743637446 | BC107: 0.04145137445 | BD107: 10.46518092 | BE107: 0.04145396902 | BF107: 10.79276397 | BG107: 0.04145620032 | BH107: 11.5434577 | BI107: 0.04146753009 | BJ107: 12.26095992 | BK107: 0.04150037568 | BL107: 12.70434297 | BM107: 0.04155148994 | BN107: =IF(MOD(ROW($BN107)-7,oBlockAvg)=0,AVERAGE(INDIRECT(ADDRESS((INT((ROW($BN107)-7)/oBlockAvg)*oBlockAvg)+7,COLUMN(Calculation!JDGraph))&":"&ADDRESS(((INT((ROW($BN107)-7)/oBlockAvg)+1)*oBlockAvg)+6,COLUMN(Calculation!JDGraph)))),#N/A) -> 3319.655171 | BO107: 11.6976174 | BP107: 0.0008390709662
B108: WASP-12b_00141_bdf.fits | C108: 2013-01-27 | D108: 03:41:27.629 | E108: 2456319.654 | F108: 3319.653792 | G108: 100 | H108: -10.17166783 | I108: 0.001380100957 | J108: -12.31235168 | K108: 0.0003838949358 | L108: -12.12779357 | M108: 0.000422830599 | N108: -11.40390362 | O108: 0.0006305823043 | P108: -11.07730053 | Q108: 0.0007666597824 | R108: -10.32592969 | S108: 0.00124491017 | T108: -9.60626726 | U108: 0.002085884966 | V108: -9.172203616 | W108: 0.002917762583 | X108: Blank | Y108: Blank | Z108: 0 | AA108: =(Results!$F$14-$J108)*$AB$2 -> 21.76435168 | AB108: =(1/SUMSQ(Results!$G$14,$K108))*$AB$2 -> 6785396.551 | AC108: 0.3858088501 | AD108: =(Results!$F$15-$L108)*$AE$2 -> 21.87479357 | AE108: =(1/SUMSQ(Results!$G$15,$M108))*$AE$2 -> 5593288.019 | AF108: 0.3180271046 | AG108: =(Results!$F$16-$N108)*$AH$2 -> 21.97190362 | AH108: =(1/SUMSQ(Results!$G$16,$O108))*$AH$2 -> 2514875.219 | AI108: 0.1429925442 | AJ108: =(Results!$F$17-$P108)*$AK$2 -> 22.06130053 | AK108: =(1/SUMSQ(Results!$G$17,$Q108))*$AK$2 -> 1701353.806 | AL108: 0.09673677144 | AM108: =(Results!$F$18-$R108)*$AN$2 -> 22.02292969 | AN108: =(1/SUMSQ(Results!$G$18,$S108))*$AN$2 -> 645243.9936 | AO108: 0.03668773686 | AP108: =(Results!$F$19-$T108)*$AQ$2 -> 21.89126726 | AQ108: =(1/SUMSQ(Results!$G$19,$U108))*$AQ$2 -> 229836.6549 | AR108: 0.0130682142 | AS108: =(Results!$F$20-$V108)*$AT$2 -> 21.95420362 | AT108: =(1/SUMSQ(Results!$G$20,$W108))*$AT$2 -> 117462.7323 | AU108: 0.006678778655 | AV108: 21.87029263 | AW108: 0.04133159647 | AX108: 11.69862479 | AY108: 0.04135463149 | AZ108: 9.557940946 | BA108: 0.04133337928 | BB108: 9.742499062 | BC108: 0.04133375924 | BD108: 10.466389 | BE108: 0.04133640649 | BF108: 10.7929921 | BG108: 0.04133870625 | BH108: 11.54436294 | BI108: 0.04135034061 | BJ108: 12.26402537 | BK108: 0.04138419726 | BL108: 12.69808901 | BM108: 0.04143445674 | BN108: =IF(MOD(ROW($BN108)-7,oBlockAvg)=0,AVERAGE(INDIRECT(ADDRESS((INT((ROW($BN108)-7)/oBlockAvg)*oBlockAvg)+7,COLUMN(Calculation!JDGraph))&":"&ADDRESS(((INT((ROW($BN108)-7)/oBlockAvg)+1)*oBlockAvg)+6,COLUMN(Calculation!JDGraph)))),#N/A) -> 
B109: WASP-12b_00142_bdf.fits | C109: 2013-01-27 | D109: 03:43:26.774 | E109: 2456319.655 | F109: 3319.655171 | G109: 100 | H109: -10.16748104 | I109: 0.001385092391 | J109: -12.30885254 | K109: 0.0003846703148 | L109: -12.12374166 | M109: 0.0004237164699 | N109: -11.40071345 | O109: 0.000632387305 | P109: -11.07239527 | Q109: 0.0007680935662 | R109: -10.32476293 | S109: 0.001243674216 | T109: -9.606514323 | U109: 0.002086312743 | V109: -9.16844453 | W109: 0.00293172322 | X109: Blank | Y109: Blank | Z109: 0 | AA109: =(Results!$F$14-$J109)*$AB$2 -> 21.76085254 | AB109: =(1/SUMSQ(Results!$G$14,$K109))*$AB$2 -> 6758069.509 | AC109: 0.3858191752 | AD109: =(Results!$F$15-$L109)*$AE$2 -> 21.87074166 | AE109: =(1/SUMSQ(Results!$G$15,$M109))*$AE$2 -> 5569924.51 | AF109: 0.3179878037 | AG109: =(Results!$F$16-$N109)*$AH$2 -> 21.96871345 | AH109: =(1/SUMSQ(Results!$G$16,$O109))*$AH$2 -> 2500539.469 | AI109: 0.1427561635 | AJ109: =(Results!$F$17-$P109)*$AK$2 -> 22.05639527 | AK109: =(1/SUMSQ(Results!$G$17,$Q109))*$AK$2 -> 1695007.973 | AL109: 0.09676825271 | AM109: =(Results!$F$18-$R109)*$AN$2 -> 22.02176293 | AN109: =(1/SUMSQ(Results!$G$18,$S109))*$AN$2 -> 646527.1074 | AO109: 0.03691032698 | AP109: =(Results!$F$19-$T109)*$AQ$2 -> 21.89151432 | AQ109: =(1/SUMSQ(Results!$G$19,$U109))*$AQ$2 -> 229742.4132 | AR109: 0.01311602792 | AS109: =(Results!$F$20-$V109)*$AT$2 -> 21.95044453 | AT109: =(1/SUMSQ(Results!$G$20,$W109))*$AT$2 -> 116346.6991 | AU109: 0.006642250044 | AV109: 21.86667189 | AW109: 0.04130719218 | AX109: 11.69919085 | AY109: 0.04133040777 | AZ109: 9.557819351 | BA109: 0.04130898325 | BB109: 9.742930229 | BC109: 0.0413093653 | BD109: 10.46595843 | BE109: 0.04131203262 | BF109: 10.79427662 | BG109: 0.04131433279 | BH109: 11.54190895 | BI109: 0.04132591017 | BJ109: 12.26015756 | BK109: 0.04135984558 | BL109: 12.69822736 | BM109: 0.04141109908 | BN109: =IF(MOD(ROW($BN109)-7,oBlockAvg)=0,AVERAGE(INDIRECT(ADDRESS((INT((ROW($BN109)-7)/oBlockAvg)*oBlockAvg)+7,COLUMN(Calculation!JDGraph))&":"&ADDRESS(((INT((ROW($BN109)-7)/oBlockAvg)+1)*oBlockAvg)+6,COLUMN(Calculation!JDGraph)))),#N/A) -> 
B110: WASP-12b_00143_bdf.fits | C110: 2013-01-27 | D110: 03:45:26.006 | E110: 2456319.657 | F110: 3319.656551 | G110: 100 | H110: -10.18091077 | I110: 0.001372744822 | J110: -12.31865195 | K110: 0.0003824950101 | L110: -12.13173236 | M110: 0.0004217242471 | N110: -11.41163408 | O110: 0.000627717907 | P110: -11.08132512 | Q110: 0.0007652202951 | R110: -10.33307868 | S110: 0.001236322492 | T110: -9.61814433 | U110: 0.002065595816 | V110: -9.172479691 | W110: 0.002925296291 | X110: Blank | Y110: Blank | Z110: 0 | AA110: =(Results!$F$14-$J110)*$AB$2 -> 21.77065195 | AB110: =(1/SUMSQ(Results!$G$14,$K110))*$AB$2 -> 6835156.336 | AC110: 0.3859720477 | AD110: =(Results!$F$15-$L110)*$AE$2 -> 21.87873236 | AE110: =(1/SUMSQ(Results!$G$15,$M110))*$AE$2 -> 5622673.39 | AF110: 0.3175047732 | AG110: =(Results!$F$16-$N110)*$AH$2 -> 21.97963408 | AH110: =(1/SUMSQ(Results!$G$16,$O110))*$AH$2 -> 2537879.303 | AI110: 0.1433106169 | AJ110: =(Results!$F$17-$P110)*$AK$2 -> 22.06532512 | AK110: =(1/SUMSQ(Results!$G$17,$Q110))*$AK$2 -> 1707760.799 | AL110: 0.09643494608 | AM110: =(Results!$F$18-$R110)*$AN$2 -> 22.03007868 | AN110: =(1/SUMSQ(Results!$G$18,$S110))*$AN$2 -> 654239.0452 | AO110: 0.03694399536 | AP110: =(Results!$F$19-$T110)*$AQ$2 -> 21.90314433 | AQ110: =(1/SUMSQ(Results!$G$19,$U110))*$AQ$2 -> 234373.9339 | AR110: 0.01323477954 | AS110: =(Results!$F$20-$V110)*$AT$2 -> 21.95447969 | AT110: =(1/SUMSQ(Results!$G$20,$W110))*$AT$2 -> 116858.4924 | AU110: 0.006598841252 | AV110: 21.87588496 | AW110: 0.04124961357 | AX110: 11.6949742 | AY110: 0.04127244902 | AZ110: 9.557233011 | BA110: 0.04125138691 | BB110: 9.744152604 | BC110: 0.04125176931 | BD110: 10.46425089 | BE110: 0.04125438945 | BF110: 10.79455984 | BG110: 0.04125671075 | BH110: 11.54280628 | BI110: 0.04126813677 | BJ110: 12.25774063 | BK110: 0.04130129908 | BL110: 12.70340527 | BM110: 0.04135321001 | BN110: =IF(MOD(ROW($BN110)-7,oBlockAvg)=0,AVERAGE(INDIRECT(ADDRESS((INT((ROW($BN110)-7)/oBlockAvg)*oBlockAvg)+7,COLUMN(Calculation!JDGraph))&":"&ADDRESS(((INT((ROW($BN110)-7)/oBlockAvg)+1)*oBlockAvg)+6,COLUMN(Calculation!JDGraph)))),#N/A) -> 
B111: WASP-12b_00144_bdf.fits | C111: 2013-01-27 | D111: 03:47:25.152 | E111: 2456319.658 | F111: 3319.65793 | G111: 100 | H111: -10.17312605 | I111: 0.00137993555 | J111: -12.31504876 | K111: 0.0003831219601 | L111: -12.12930209 | M111: 0.0004224687405 | N111: -11.40501578 | O111: 0.0006305285622 | P111: -11.07763213 | Q111: 0.0007653689231 | R111: -10.32903529 | S111: 0.001238904118 | T111: -9.612010556 | U111: 0.002074531598 | V111: -9.167276224 | W111: 0.002931659992 | X111: Blank | Y111: Blank | Z111: 0 | AA111: =(Results!$F$14-$J111)*$AB$2 -> 21.76704876 | AB111: =(1/SUMSQ(Results!$G$14,$K111))*$AB$2 -> 6812804.211 | AC111: 0.3862504883 | AD111: =(Results!$F$15-$L111)*$AE$2 -> 21.87630209 | AE111: =(1/SUMSQ(Results!$G$15,$M111))*$AE$2 -> 5602873.796 | AF111: 0.3176537403 | AG111: =(Results!$F$16-$N111)*$AH$2 -> 21.97301578 | AH111: =(1/SUMSQ(Results!$G$16,$O111))*$AH$2 -> 2515303.941 | AI111: 0.1426046229 | AJ111: =(Results!$F$17-$P111)*$AK$2 -> 22.06163213 | AK111: =(1/SUMSQ(Results!$G$17,$Q111))*$AK$2 -> 1707097.599 | AL111: 0.09678353594 | AM111: =(Results!$F$18-$R111)*$AN$2 -> 22.02603529 | AN111: =(1/SUMSQ(Results!$G$18,$S111))*$AN$2 -> 651515.2815 | AO111: 0.03693752056 | AP111: =(Results!$F$19-$T111)*$AQ$2 -> 21.89701056 | AQ111: =(1/SUMSQ(Results!$G$19,$U111))*$AQ$2 -> 232359.2104 | AR111: 0.0131735561 | AS111: =(Results!$F$20-$V111)*$AT$2 -> 21.94927622 | AT111: =(1/SUMSQ(Results!$G$20,$W111))*$AT$2 -> 116351.7178 | AU111: 0.006596535935 | AV111: 21.87211661 | AW111: 0.04106884721 | AX111: 11.69899056 | AY111: 0.04109202396 | AZ111: 9.55706785 | BA111: 0.0410706342 | BB111: 9.742814515 | BC111: 0.04107102009 | BD111: 10.46710083 | BE111: 0.04107368717 | BF111: 10.79448447 | BG111: 0.04107597839 | BH111: 11.54308131 | BI111: 0.04108752967 | BJ111: 12.26010605 | BK111: 0.04112120977 | BL111: 12.70484038 | BM111: 0.04117335111 | BN111: =IF(MOD(ROW($BN111)-7,oBlockAvg)=0,AVERAGE(INDIRECT(ADDRESS((INT((ROW($BN111)-7)/oBlockAvg)*oBlockAvg)+7,COLUMN(Calculation!JDGraph))&":"&ADDRESS(((INT((ROW($BN111)-7)/oBlockAvg)+1)*oBlockAvg)+6,COLUMN(Calculation!JDGraph)))),#N/A) -> 
B112: WASP-12b_00145_bdf.fits | C112: 2013-01-27 | D112: 03:49:24.298 | E112: 2456319.659 | F112: 3319.659309 | G112: 100 | H112: -10.17302531 | I112: 0.001378802645 | J112: -12.31221049 | K112: 0.0003837486723 | L112: -12.12601083 | M112: 0.0004227959363 | N112: -11.40354135 | O112: 0.0006302270497 | P112: -11.07637734 | Q112: 0.0007653523997 | R112: -10.32473997 | S112: 0.001241560789 | T112: -9.607317673 | U112: 0.002076020692 | V112: -9.166620421 | W112: 0.002937302082 | X112: Blank | Y112: Blank | Z112: 0 | AA112: =(Results!$F$14-$J112)*$AB$2 -> 21.76421049 | AB112: =(1/SUMSQ(Results!$G$14,$K112))*$AB$2 -> 6790569.963 | AC112: 0.3856893648 | AD112: =(Results!$F$15-$L112)*$AE$2 -> 21.87301083 | AE112: =(1/SUMSQ(Results!$G$15,$M112))*$AE$2 -> 5594205.182 | AF112: 0.3177384895 | AG112: =(Results!$F$16-$N112)*$AH$2 -> 21.97154135 | AH112: =(1/SUMSQ(Results!$G$16,$O112))*$AH$2 -> 2517711.254 | AI112: 0.1430004344 | AJ112: =(Results!$F$17-$P112)*$AK$2 -> 22.06037734 | AK112: =(1/SUMSQ(Results!$G$17,$Q112))*$AK$2 -> 1707171.31 | AL112: 0.09696355705 | AM112: =(Results!$F$18-$R112)*$AN$2 -> 22.02173997 | AN112: =(1/SUMSQ(Results!$G$18,$S112))*$AN$2 -> 648730.0623 | AO112: 0.03684643366 | AP112: =(Results!$F$19-$T112)*$AQ$2 -> 21.89231767 | AQ112: =(1/SUMSQ(Results!$G$19,$U112))*$AQ$2 -> 232025.9953 | AR112: 0.01317856369 | AS112: =(Results!$F$20-$V112)*$AT$2 -> 21.94862042 | AT112: =(1/SUMSQ(Results!$G$20,$W112))*$AT$2 -> 115905.1608 | AU112: 0.00658315695 | AV112: 21.86953765 | AW112: 0.04123803407 | AX112: 11.69651234 | AY112: 0.04126107791 | AZ112: 9.557327164 | BA112: 0.04123981955 | BB112: 9.743526818 | BC112: 0.04124020138 | BD112: 10.4659963 | BE112: 0.04124284956 | BF112: 10.79316031 | BG112: 0.04124513569 | BH112: 11.54479768 | BI112: 0.04125671978 | BJ112: 12.26221998 | BK112: 0.04129025691 | BL112: 12.70291723 | BM112: 0.04134251077 | BN112: =IF(MOD(ROW($BN112)-7,oBlockAvg)=0,AVERAGE(INDIRECT(ADDRESS((INT((ROW($BN112)-7)/oBlockAvg)*oBlockAvg)+7,COLUMN(Calculation!JDGraph))&":"&ADDRESS(((INT((ROW($BN112)-7)/oBlockAvg)+1)*oBlockAvg)+6,COLUMN(Calculation!JDGraph)))),#N/A) -> 3319.662067 | BO112: 11.69912039 | BP112: 0.0008390687987
B113: WASP-12b_00146_bdf.fits | C113: 2013-01-27 | D113: 03:51:23.443 | E113: 2456319.661 | F113: 3319.660688 | G113: 100 | H113: -10.15345225 | I113: 0.001398985661 | J113: -12.2963331 | K113: 0.0003871397291 | L113: -12.11416846 | M113: 0.0004257630526 | N113: -11.38744113 | O113: 0.0006366278057 | P113: -11.05944949 | Q113: 0.0007737772347 | R113: -10.31159713 | S113: 0.001253424409 | T113: -9.590901829 | U113: 0.002104951093 | V113: -9.153540628 | W113: 0.002959674819 | X113: Blank | Y113: Blank | Z113: 0 | AA113: =(Results!$F$14-$J113)*$AB$2 -> 21.7483331 | AB113: =(1/SUMSQ(Results!$G$14,$K113))*$AB$2 -> 6672130.258 | AC113: 0.3856158238 | AD113: =(Results!$F$15-$L113)*$AE$2 -> 21.86116846 | AE113: =(1/SUMSQ(Results!$G$15,$M113))*$AE$2 -> 5516505.532 | AF113: 0.3188264832 | AG113: =(Results!$F$16-$N113)*$AH$2 -> 21.95544113 | AH113: =(1/SUMSQ(Results!$G$16,$O113))*$AH$2 -> 2467338.83 | AI113: 0.1425998682 | AJ113: =(Results!$F$17-$P113)*$AK$2 -> 22.04344949 | AK113: =(1/SUMSQ(Results!$G$17,$Q113))*$AK$2 -> 1670198.555 | AL113: 0.09652913939 | AM113: =(Results!$F$18-$R113)*$AN$2 -> 22.00859713 | AN113: =(1/SUMSQ(Results!$G$18,$S113))*$AN$2 -> 636507.7624 | AO113: 0.03678697143 | AP113: =(Results!$F$19-$T113)*$AQ$2 -> 21.87590183 | AQ113: =(1/SUMSQ(Results!$G$19,$U113))*$AQ$2 -> 225691.904 | AR113: 0.01304386547 | AS113: =(Results!$F$20-$V113)*$AT$2 -> 21.93554063 | AT113: =(1/SUMSQ(Results!$G$20,$W113))*$AT$2 -> 114159.4861 | AU113: 0.006597848448 | AV113: 21.85480239 | AW113: 0.04119589016 | AX113: 11.70135014 | AY113: 0.04121963764 | AZ113: 9.558469289 | BA113: 0.0411977092 | BB113: 9.740633935 | BC113: 0.04119809025 | BD113: 10.46736126 | BE113: 0.04120080899 | BF113: 10.7953529 | BG113: 0.0412031564 | BH113: 11.54320526 | BI113: 0.04121495407 | BJ113: 12.26390056 | BK113: 0.04124963255 | BL113: 12.70126176 | BM113: 0.04130207067 | BN113: =IF(MOD(ROW($BN113)-7,oBlockAvg)=0,AVERAGE(INDIRECT(ADDRESS((INT((ROW($BN113)-7)/oBlockAvg)*oBlockAvg)+7,COLUMN(Calculation!JDGraph))&":"&ADDRESS(((INT((ROW($BN113)-7)/oBlockAvg)+1)*oBlockAvg)+6,COLUMN(Calculation!JDGraph)))),#N/A) -> 
B114: WASP-12b_00147_bdf.fits | C114: 2013-01-27 | D114: 03:53:22.589 | E114: 2456319.662 | F114: 3319.662067 | G114: 100 | H114: -10.16284518 | I114: 0.001389700246 | J114: -12.30650181 | K114: 0.0003848956856 | L114: -12.12009235 | M114: 0.0004242757013 | N114: -11.39570288 | O114: 0.0006339782232 | P114: -11.06900205 | Q114: 0.0007698400218 | R114: -10.3182685 | S114: 0.001248376497 | T114: -9.599566386 | U114: 0.002090130239 | V114: -9.160664319 | W114: 0.002946691813 | X114: Blank | Y114: Blank | Z114: 0 | AA114: =(Results!$F$14-$J114)*$AB$2 -> 21.75850181 | AB114: =(1/SUMSQ(Results!$G$14,$K114))*$AB$2 -> 6750157.62 | AC114: 0.3864635933 | AD114: =(Results!$F$15-$L114)*$AE$2 -> 21.86709235 | AE114: =(1/SUMSQ(Results!$G$15,$M114))*$AE$2 -> 5555250.92 | AF114: 0.3180521631 | AG114: =(Results!$F$16-$N114)*$AH$2 -> 21.96370288 | AH114: =(1/SUMSQ(Results!$G$16,$O114))*$AH$2 -> 2488005.404 | AI114: 0.142444601 | AJ114: =(Results!$F$17-$P114)*$AK$2 -> 22.05300205 | AK114: =(1/SUMSQ(Results!$G$17,$Q114))*$AK$2 -> 1687326.121 | AL114: 0.09660368731 | AM114: =(Results!$F$18-$R114)*$AN$2 -> 22.0152685 | AN114: =(1/SUMSQ(Results!$G$18,$S114))*$AN$2 -> 641665.7117 | AO114: 0.03673698462 | AP114: =(Results!$F$19-$T114)*$AQ$2 -> 21.88456639 | AQ114: =(1/SUMSQ(Results!$G$19,$U114))*$AQ$2 -> 228903.9584 | AR114: 0.01310533047 | AS114: =(Results!$F$20-$V114)*$AT$2 -> 21.94266432 | AT114: =(1/SUMSQ(Results!$G$20,$W114))*$AT$2 -> 115167.6664 | AU114: 0.006593640136 | AV114: 21.86301811 | AW114: 0.04094138443 | AX114: 11.70017294 | AY114: 0.04096496339 | AZ114: 9.556516303 | BA114: 0.04094319362 | BB114: 9.742925761 | BC114: 0.04094358276 | BD114: 10.46731523 | BE114: 0.04094629272 | BF114: 10.79401607 | BG114: 0.04094862162 | BH114: 11.54474962 | BI114: 0.04096041263 | BJ114: 12.26345173 | BK114: 0.04099470214 | BL114: 12.7023538 | BM114: 0.04104728921 | BN114: =IF(MOD(ROW($BN114)-7,oBlockAvg)=0,AVERAGE(INDIRECT(ADDRESS((INT((ROW($BN114)-7)/oBlockAvg)*oBlockAvg)+7,COLUMN(Calculation!JDGraph))&":"&ADDRESS(((INT((ROW($BN114)-7)/oBlockAvg)+1)*oBlockAvg)+6,COLUMN(Calculation!JDGraph)))),#N/A) -> 
B115: WASP-12b_00148_bdf.fits | C115: 2013-01-27 | D115: 03:55:21.734 | E115: 2456319.663 | F115: 3319.663446 | G115: 100 | H115: -10.17211838 | I115: 0.001379868161 | J115: -12.31213549 | K115: 0.0003836638909 | L115: -12.12749638 | M115: 0.0004226252151 | N115: -11.40630482 | O115: 0.0006293511492 | P115: -11.07344859 | Q115: 0.000766453031 | R115: -10.32578048 | S115: 0.001238382096 | T115: -9.611007802 | U115: 0.002071087368 | V115: -9.169174759 | W115: 0.002921026855 | X115: Blank | Y115: Blank | Z115: 0 | AA115: =(Results!$F$14-$J115)*$AB$2 -> 21.76413549 | AB115: =(1/SUMSQ(Results!$G$14,$K115))*$AB$2 -> 6793571.433 | AC115: 0.385523245 | AD115: =(Results!$F$15-$L115)*$AE$2 -> 21.87449638 | AE115: =(1/SUMSQ(Results!$G$15,$M115))*$AE$2 -> 5598725.699 | AF115: 0.3177178485 | AG115: =(Results!$F$16-$N115)*$AH$2 -> 21.97430482 | AH115: =(1/SUMSQ(Results!$G$16,$O115))*$AH$2 -> 2524724.189 | AI115: 0.1432736627 | AJ115: =(Results!$F$17-$P115)*$AK$2 -> 22.05744859 | AK115: =(1/SUMSQ(Results!$G$17,$Q115))*$AK$2 -> 1702271.813 | AL115: 0.09660093514 | AM115: =(Results!$F$18-$R115)*$AN$2 -> 22.02278048 | AN115: =(1/SUMSQ(Results!$G$18,$S115))*$AN$2 -> 652064.6709 | AO115: 0.03700352463 | AP115: =(Results!$F$19-$T115)*$AQ$2 -> 21.8960078 | AQ115: =(1/SUMSQ(Results!$G$19,$U115))*$AQ$2 -> 233132.6822 | AR115: 0.01322987019 | AS115: =(Results!$F$20-$V115)*$AT$2 -> 21.95117476 | AT115: =(1/SUMSQ(Results!$G$20,$W115))*$AT$2 -> 117200.3478 | AU115: 0.00665091386 | AV115: 21.87020458 | AW115: 0.04122412158 | AX115: 11.6980862 | AY115: 0.04124720883 | AZ115: 9.558069084 | BA115: 0.04122590688 | BB115: 9.742708198 | BC115: 0.04122628787 | BD115: 10.46389976 | BE115: 0.04122892532 | BF115: 10.79675598 | BG115: 0.04123124604 | BH115: 11.5444241 | BI115: 0.04124271802 | BJ115: 12.25919677 | BK115: 0.04127611419 | BL115: 12.70102982 | BM115: 0.04132747993 | BN115: =IF(MOD(ROW($BN115)-7,oBlockAvg)=0,AVERAGE(INDIRECT(ADDRESS((INT((ROW($BN115)-7)/oBlockAvg)*oBlockAvg)+7,COLUMN(Calculation!JDGraph))&":"&ADDRESS(((INT((ROW($BN115)-7)/oBlockAvg)+1)*oBlockAvg)+6,COLUMN(Calculation!JDGraph)))),#N/A) -> 
B116: WASP-12b_00149_bdf.fits | C116: 2013-01-27 | D116: 03:57:20.880 | E116: 2456319.665 | F116: 3319.664825 | G116: 100 | H116: -10.15676677 | I116: 0.001397580852 | J116: -12.29856818 | K116: 0.00038693325 | L116: -12.114697 | M116: 0.0004257071032 | N116: -11.38880415 | O116: 0.0006363942266 | P116: -11.06086296 | Q116: 0.0007734622843 | R116: -10.31175685 | S116: 0.001254696382 | T116: -9.598092973 | U116: 0.0020967742 | V116: -9.155436814 | W116: 0.002966171215 | X116: Blank | Y116: Blank | Z116: 0 | AA116: =(Results!$F$14-$J116)*$AB$2 -> 21.75056818 | AB116: =(1/SUMSQ(Results!$G$14,$K116))*$AB$2 -> 6679253.054 | AC116: 0.385766201 | AD116: =(Results!$F$15-$L116)*$AE$2 -> 21.861697 | AE116: =(1/SUMSQ(Results!$G$15,$M116))*$AE$2 -> 5517955.663 | AF116: 0.3186944372 | AG116: =(Results!$F$16-$N116)*$AH$2 -> 21.95680415 | AH116: =(1/SUMSQ(Results!$G$16,$O116))*$AH$2 -> 2469150.363 | AI116: 0.1426079754 | AJ116: =(Results!$F$17-$P116)*$AK$2 -> 22.04486296 | AK116: =(1/SUMSQ(Results!$G$17,$Q116))*$AK$2 -> 1671559.027 | AL116: 0.09654237835 | AM116: =(Results!$F$18-$R116)*$AN$2 -> 22.00875685 | AN116: =(1/SUMSQ(Results!$G$18,$S116))*$AN$2 -> 635217.8722 | AO116: 0.03668757321 | AP116: =(Results!$F$19-$T116)*$AQ$2 -> 21.88309297 | AQ116: =(1/SUMSQ(Results!$G$19,$U116))*$AQ$2 -> 227455.6199 | AR116: 0.01313690164 | AS116: =(Results!$F$20-$V116)*$AT$2 -> 21.93743681 | AT116: =(1/SUMSQ(Results!$G$20,$W116))*$AT$2 -> 113659.9781 | AU116: 0.00656453313 | AV116: 21.85624712 | AW116: 0.041029213 | AX116: 11.69948035 | AY116: 0.04105300904 | AZ116: 9.557678934 | BA116: 0.04103103748 | BB116: 9.741550118 | BC116: 0.04103142144 | BD116: 10.46744296 | BE116: 0.04103414818 | BF116: 10.79538415 | BG116: 0.04103650281 | BH116: 11.54449027 | BI116: 0.04104839317 | BJ116: 12.25815414 | BK116: 0.04108275528 | BL116: 12.7008103 | BM116: 0.04113629165 | BN116: =IF(MOD(ROW($BN116)-7,oBlockAvg)=0,AVERAGE(INDIRECT(ADDRESS((INT((ROW($BN116)-7)/oBlockAvg)*oBlockAvg)+7,COLUMN(Calculation!JDGraph))&":"&ADDRESS(((INT((ROW($BN116)-7)/oBlockAvg)+1)*oBlockAvg)+6,COLUMN(Calculation!JDGraph)))),#N/A) -> 
B117: WASP-12b_00150_bdf.fits | C117: 2013-01-27 | D117: 03:59:20.026 | E117: 2456319.666 | F117: 3319.666204 | G117: 100 | H117: -10.17257484 | I117: 0.001380374668 | J117: -12.31516239 | K117: 0.0003830451965 | L117: -12.12420217 | M117: 0.0004237085933 | N117: -11.40257121 | O117: 0.0006310423174 | P117: -11.07459843 | Q117: 0.0007665241619 | R117: -10.32409028 | S117: 0.001246099527 | T117: -9.602092924 | U117: 0.002095724778 | V117: -9.163709448 | W117: 0.002943918707 | X117: Blank | Y117: Blank | Z117: 0 | AA117: =(Results!$F$14-$J117)*$AB$2 -> 21.76716239 | AB117: =(1/SUMSQ(Results!$G$14,$K117))*$AB$2 -> 6815535.104 | AC117: 0.3875564973 | AD117: =(Results!$F$15-$L117)*$AE$2 -> 21.87120217 | AE117: =(1/SUMSQ(Results!$G$15,$M117))*$AE$2 -> 5570131.598 | AF117: 0.3167382545 | AG117: =(Results!$F$16-$N117)*$AH$2 -> 21.97057121 | AH117: =(1/SUMSQ(Results!$G$16,$O117))*$AH$2 -> 2511210.002 | AI117: 0.1427966752 | AJ117: =(Results!$F$17-$P117)*$AK$2 -> 22.05859843 | AK117: =(1/SUMSQ(Results!$G$17,$Q117))*$AK$2 -> 1701955.897 | AL117: 0.09677949803 | AM117: =(Results!$F$18-$R117)*$AN$2 -> 22.02109028 | AN117: =(1/SUMSQ(Results!$G$18,$S117))*$AN$2 -> 644012.8566 | AO117: 0.03662094951 | AP117: =(Results!$F$19-$T117)*$AQ$2 -> 21.88709292 | AQ117: =(1/SUMSQ(Results!$G$19,$U117))*$AQ$2 -> 227683.4711 | AR117: 0.01294692305 | AS117: =(Results!$F$20-$V117)*$AT$2 -> 21.94570945 | AT117: =(1/SUMSQ(Results!$G$20,$W117))*$AT$2 -> 115384.7394 | AU117: 0.006561202425 | AV117: 21.8693902 | AW117: 0.04054383413 | AX117: 11.69681536 | AY117: 0.04056732577 | AZ117: 9.554227812 | BA117: 0.04054564353 | BB117: 9.74518803 | BC117: 0.04054604808 | BD117: 10.46681899 | BE117: 0.04054874474 | BF117: 10.79479176 | BG117: 0.04055107946 | BH117: 11.54529992 | BI117: 0.04056297881 | BJ117: 12.26729727 | BK117: 0.04059796236 | BL117: 12.70568075 | BM117: 0.04065057371 | BN117: =IF(MOD(ROW($BN117)-7,oBlockAvg)=0,AVERAGE(INDIRECT(ADDRESS((INT((ROW($BN117)-7)/oBlockAvg)*oBlockAvg)+7,COLUMN(Calculation!JDGraph))&":"&ADDRESS(((INT((ROW($BN117)-7)/oBlockAvg)+1)*oBlockAvg)+6,COLUMN(Calculation!JDGraph)))),#N/A) -> 3319.668963 | BO117: 11.69751704 | BP117: 0.0006173920896
B118: WASP-12b_00151_bdf.fits | C118: 2013-01-27 | D118: 04:01:19.258 | E118: 2456319.668 | F118: 3319.667584 | G118: 100 | H118: -10.18116273 | I118: 0.00137133315 | J118: -12.31967786 | K118: 0.0003819547333 | L118: -12.13291544 | M118: 0.0004213231068 | N118: -11.4123005 | O118: 0.0006269018346 | P118: -11.08606874 | Q118: 0.000760913305 | R118: -10.33356486 | S118: 0.001233466587 | T118: -9.615169459 | U118: 0.002065476228 | V118: -9.176074215 | W118: 0.002902024556 | X118: Blank | Y118: Blank | Z118: 0 | AA118: =(Results!$F$14-$J118)*$AB$2 -> 21.77167786 | AB118: =(1/SUMSQ(Results!$G$14,$K118))*$AB$2 -> 6854506.734 | AC118: 0.3857359641 | AD118: =(Results!$F$15-$L118)*$AE$2 -> 21.87991544 | AE118: =(1/SUMSQ(Results!$G$15,$M118))*$AE$2 -> 5633385.143 | AF118: 0.3170175964 | AG118: =(Results!$F$16-$N118)*$AH$2 -> 21.9803005 | AH118: =(1/SUMSQ(Results!$G$16,$O118))*$AH$2 -> 2544490.996 | AI118: 0.1431907102 | AJ118: =(Results!$F$17-$P118)*$AK$2 -> 22.07006874 | AK118: =(1/SUMSQ(Results!$G$17,$Q118))*$AK$2 -> 1727148.357 | AL118: 0.09719492046 | AM118: =(Results!$F$18-$R118)*$AN$2 -> 22.03056486 | AN118: =(1/SUMSQ(Results!$G$18,$S118))*$AN$2 -> 657272.135 | AO118: 0.03698785493 | AP118: =(Results!$F$19-$T118)*$AQ$2 -> 21.90016946 | AQ118: =(1/SUMSQ(Results!$G$19,$U118))*$AQ$2 -> 234401.0745 | AR118: 0.01319087251 | AS118: =(Results!$F$20-$V118)*$AT$2 -> 21.95807422 | AT118: =(1/SUMSQ(Results!$G$20,$W118))*$AT$2 -> 118740.2159 | AU118: 0.006682081355 | AV118: 21.87738209 | AW118: 0.04154447106 | AX118: 11.69621935 | AY118: 0.04156709793 | AZ118: 9.557704224 | BA118: 0.04154622684 | BB118: 9.744466645 | BC118: 0.04154660742 | BD118: 10.46508159 | BE118: 0.04154920073 | BF118: 10.79131335 | BG118: 0.04155143878 | BH118: 11.54381722 | BI118: 0.041562778 | BJ118: 12.26221263 | BK118: 0.04159578425 | BL118: 12.70130787 | BM118: 0.04164570592 | BN118: =IF(MOD(ROW($BN118)-7,oBlockAvg)=0,AVERAGE(INDIRECT(ADDRESS((INT((ROW($BN118)-7)/oBlockAvg)*oBlockAvg)+7,COLUMN(Calculation!JDGraph))&":"&ADDRESS(((INT((ROW($BN118)-7)/oBlockAvg)+1)*oBlockAvg)+6,COLUMN(Calculation!JDGraph)))),#N/A) -> 
B119: WASP-12b_00152_bdf.fits | C119: 2013-01-27 | D119: 04:03:18.403 | E119: 2456319.669 | F119: 3319.668963 | G119: 100 | H119: -10.16513775 | I119: 0.001382573257 | J119: -12.30588903 | K119: 0.0003848233269 | L119: -12.12356631 | M119: 0.0004235841272 | N119: -11.39731861 | O119: 0.0006322381544 | P119: -11.06864164 | Q119: 0.0007686158744 | R119: -10.32329954 | S119: 0.001241915146 | T119: -9.604975944 | U119: 0.002080963272 | V119: -9.161816213 | W119: 0.002945889201 | X119: Blank | Y119: Blank | Z119: 0 | AA119: =(Results!$F$14-$J119)*$AB$2 -> 21.75788903 | AB119: =(1/SUMSQ(Results!$G$14,$K119))*$AB$2 -> 6752696.335 | AC119: 0.3855369803 | AD119: =(Results!$F$15-$L119)*$AE$2 -> 21.87056631 | AE119: =(1/SUMSQ(Results!$G$15,$M119))*$AE$2 -> 5573405.538 | AF119: 0.3182068072 | AG119: =(Results!$F$16-$N119)*$AH$2 -> 21.96531861 | AH119: =(1/SUMSQ(Results!$G$16,$O119))*$AH$2 -> 2501719.408 | AI119: 0.1428326254 | AJ119: =(Results!$F$17-$P119)*$AK$2 -> 22.05264164 | AK119: =(1/SUMSQ(Results!$G$17,$Q119))*$AK$2 -> 1692705.091 | AL119: 0.09664293742 | AM119: =(Results!$F$18-$R119)*$AN$2 -> 22.02029954 | AN119: =(1/SUMSQ(Results!$G$18,$S119))*$AN$2 -> 648359.909 | AO119: 0.03701732005 | AP119: =(Results!$F$19-$T119)*$AQ$2 -> 21.88997594 | AQ119: =(1/SUMSQ(Results!$G$19,$U119))*$AQ$2 -> 230925.1157 | AR119: 0.01318438848 | AS119: =(Results!$F$20-$V119)*$AT$2 -> 21.94381621 | AT119: =(1/SUMSQ(Results!$G$20,$W119))*$AT$2 -> 115230.4302 | AU119: 0.006578941195 | AV119: 21.8645356 | AW119: 0.0412611041 | AX119: 11.69939785 | AY119: 0.04128426117 | AZ119: 9.558646572 | BA119: 0.04126289859 | BB119: 9.740969287 | BC119: 0.04126327828 | BD119: 10.46721699 | BE119: 0.04126594766 | BF119: 10.79589396 | BG119: 0.0412682624 | BH119: 11.54123606 | BI119: 0.04127979002 | BJ119: 12.25955966 | BK119: 0.04131354644 | BL119: 12.70271939 | BM119: 0.04136613318 | BN119: =IF(MOD(ROW($BN119)-7,oBlockAvg)=0,AVERAGE(INDIRECT(ADDRESS((INT((ROW($BN119)-7)/oBlockAvg)*oBlockAvg)+7,COLUMN(Calculation!JDGraph))&":"&ADDRESS(((INT((ROW($BN119)-7)/oBlockAvg)+1)*oBlockAvg)+6,COLUMN(Calculation!JDGraph)))),#N/A) -> 
B120: WASP-12b_00153_bdf.fits | C120: 2013-01-27 | D120: 04:05:17.549 | E120: 2456319.67 | F120: 3319.670342 | G120: 100 | H120: -10.16619821 | I120: 0.001384421673 | J120: -12.3052232 | K120: 0.0003850836941 | L120: -12.12404048 | M120: 0.0004235569128 | N120: -11.39780252 | O120: 0.0006319513252 | P120: -11.06993547 | Q120: 0.0007671950137 | R120: -10.32370369 | S120: 0.001241795138 | T120: -9.60349322 | U120: 0.002086519815 | V120: -9.160772753 | W120: 0.002943737282 | X120: Blank | Y120: Blank | Z120: 0 | AA120: =(Results!$F$14-$J120)*$AB$2 -> 21.7572232 | AB120: =(1/SUMSQ(Results!$G$14,$K120))*$AB$2 -> 6743568.002 | AC120: 0.385033383 | AD120: =(Results!$F$15-$L120)*$AE$2 -> 21.87104048 | AE120: =(1/SUMSQ(Results!$G$15,$M120))*$AE$2 -> 5574121.766 | AF120: 0.3182622256 | AG120: =(Results!$F$16-$N120)*$AH$2 -> 21.96580252 | AH120: =(1/SUMSQ(Results!$G$16,$O120))*$AH$2 -> 2503990.876 | AI120: 0.1429688376 | AJ120: =(Results!$F$17-$P120)*$AK$2 -> 22.05393547 | AK120: =(1/SUMSQ(Results!$G$17,$Q120))*$AK$2 -> 1698980.745 | AL120: 0.09700566582 | AM120: =(Results!$F$18-$R120)*$AN$2 -> 22.02070369 | AN120: =(1/SUMSQ(Results!$G$18,$S120))*$AN$2 -> 648485.2315 | AO120: 0.03702616515 | AP120: =(Results!$F$19-$T120)*$AQ$2 -> 21.88849322 | AQ120: =(1/SUMSQ(Results!$G$19,$U120))*$AQ$2 -> 229696.815 | AR120: 0.01311485874 | AS120: =(Results!$F$20-$V120)*$AT$2 -> 21.94277275 | AT120: =(1/SUMSQ(Results!$G$20,$W120))*$AT$2 -> 115398.9623 | AU120: 0.006588864062 | AV120: 21.86474987 | AW120: 0.04152163752 | AX120: 11.69855166 | AY120: 0.04154471092 | AZ120: 9.559526679 | BA120: 0.04152342317 | BB120: 9.740709397 | BC120: 0.04152379778 | BD120: 10.46694735 | BE120: 0.04152644633 | BF120: 10.7948144 | BG120: 0.04152872464 | BH120: 11.54104618 | BI120: 0.04154020266 | BJ120: 12.26125665 | BK120: 0.04157402972 | BL120: 12.70397712 | BM120: 0.041625857 | BN120: =IF(MOD(ROW($BN120)-7,oBlockAvg)=0,AVERAGE(INDIRECT(ADDRESS((INT((ROW($BN120)-7)/oBlockAvg)*oBlockAvg)+7,COLUMN(Calculation!JDGraph))&":"&ADDRESS(((INT((ROW($BN120)-7)/oBlockAvg)+1)*oBlockAvg)+6,COLUMN(Calculation!JDGraph)))),#N/A) -> 
B121: WASP-12b_00154_bdf.fits | C121: 2013-01-27 | D121: 04:07:16.694 | E121: 2456319.672 | F121: 3319.671721 | G121: 100 | H121: -10.17650406 | I121: 0.00137511301 | J121: -12.31551399 | K121: 0.0003828089776 | L121: -12.13094144 | M121: 0.0004217059851 | N121: -11.40547314 | O121: 0.0006294201956 | P121: -11.07825277 | Q121: 0.0007632848822 | R121: -10.32823411 | S121: 0.001235610935 | T121: -9.613323547 | U121: 0.002062452494 | V121: -9.173616385 | W121: 0.002905465194 | X121: Blank | Y121: Blank | Z121: 0 | AA121: =(Results!$F$14-$J121)*$AB$2 -> 21.76751399 | AB121: =(1/SUMSQ(Results!$G$14,$K121))*$AB$2 -> 6823948.985 | AC121: 0.3856154783 | AD121: =(Results!$F$15-$L121)*$AE$2 -> 21.87794144 | AE121: =(1/SUMSQ(Results!$G$15,$M121))*$AE$2 -> 5623160.381 | AF121: 0.3177599488 | AG121: =(Results!$F$16-$N121)*$AH$2 -> 21.97347314 | AH121: =(1/SUMSQ(Results!$G$16,$O121))*$AH$2 -> 2524170.302 | AI121: 0.1426386892 | AJ121: =(Results!$F$17-$P121)*$AK$2 -> 22.06225277 | AK121: =(1/SUMSQ(Results!$G$17,$Q121))*$AK$2 -> 1716432.3 | AL121: 0.09699411058 | AM121: =(Results!$F$18-$R121)*$AN$2 -> 22.02523411 | AN121: =(1/SUMSQ(Results!$G$18,$S121))*$AN$2 -> 654992.7811 | AO121: 0.03701307779 | AP121: =(Results!$F$19-$T121)*$AQ$2 -> 21.89832355 | AQ121: =(1/SUMSQ(Results!$G$19,$U121))*$AQ$2 -> 235088.8829 | AR121: 0.01328467024 | AS121: =(Results!$F$20-$V121)*$AT$2 -> 21.95561638 | AT121: =(1/SUMSQ(Results!$G$20,$W121))*$AT$2 -> 118459.1591 | AU121: 0.00669402503 | AV121: 21.87310502 | AW121: 0.04107821621 | AX121: 11.69660096 | AY121: 0.04110122605 | AZ121: 9.557591032 | BA121: 0.04107999988 | BB121: 9.742163577 | BC121: 0.04108038076 | BD121: 10.46763188 | BE121: 0.04108303807 | BF121: 10.79485225 | BG121: 0.041085307 | BH121: 11.54487091 | BI121: 0.04109679527 | BJ121: 12.25978147 | BK121: 0.04112995937 | BL121: 12.69948863 | BM121: 0.04118083991 | BN121: =IF(MOD(ROW($BN121)-7,oBlockAvg)=0,AVERAGE(INDIRECT(ADDRESS((INT((ROW($BN121)-7)/oBlockAvg)*oBlockAvg)+7,COLUMN(Calculation!JDGraph))&":"&ADDRESS(((INT((ROW($BN121)-7)/oBlockAvg)+1)*oBlockAvg)+6,COLUMN(Calculation!JDGraph)))),#N/A) -> 
B122: WASP-12b_00155_bdf.fits | C122: 2013-01-27 | D122: 04:09:15.840 | E122: 2456319.673 | F122: 3319.6731 | G122: 100 | H122: -10.18839466 | I122: 0.001358748038 | J122: -12.32684271 | K122: 0.0003804287977 | L122: -12.13984684 | M122: 0.0004195976046 | N122: -11.41867114 | O122: 0.0006240459008 | P122: -11.09078393 | Q122: 0.0007569442598 | R122: -10.33895584 | S122: 0.001227635008 | T122: -9.61926937 | U122: 0.002051997402 | V122: -9.182393924 | W122: 0.002884169038 | X122: Blank | Y122: Blank | Z122: 0 | AA122: =(Results!$F$14-$J122)*$AB$2 -> 21.77884271 | AB122: =(1/SUMSQ(Results!$G$14,$K122))*$AB$2 -> 6909605.156 | AC122: 0.3854989629 | AD122: =(Results!$F$15-$L122)*$AE$2 -> 21.88684684 | AE122: =(1/SUMSQ(Results!$G$15,$M122))*$AE$2 -> 5679812.505 | AF122: 0.3168866788 | AG122: =(Results!$F$16-$N122)*$AH$2 -> 21.98667114 | AH122: =(1/SUMSQ(Results!$G$16,$O122))*$AH$2 -> 2567833.914 | AI122: 0.1432639476 | AJ122: =(Results!$F$17-$P122)*$AK$2 -> 22.07478393 | AK122: =(1/SUMSQ(Results!$G$17,$Q122))*$AK$2 -> 1745308.486 | AL122: 0.09737381456 | AM122: =(Results!$F$18-$R122)*$AN$2 -> 22.03595584 | AN122: =(1/SUMSQ(Results!$G$18,$S122))*$AN$2 -> 663531.387 | AO122: 0.0370195772 | AP122: =(Results!$F$19-$T122)*$AQ$2 -> 21.90426937 | AQ122: =(1/SUMSQ(Results!$G$19,$U122))*$AQ$2 -> 237490.5792 | AR122: 0.013250015 | AS122: =(Results!$F$20-$V122)*$AT$2 -> 21.96439392 | AT122: =(1/SUMSQ(Results!$G$20,$W122))*$AT$2 -> 120214.9775 | AU122: 0.006707003959 | AV122: 21.88408364 | AW122: 0.0412784949 | AX122: 11.69568899 | AY122: 0.04130085153 | AZ122: 9.557240935 | BA122: 0.0412802479 | BB122: 9.744236802 | BC122: 0.04128062745 | BD122: 10.4654125 | BE122: 0.04128321177 | BF122: 10.79329972 | BG122: 0.04128543454 | BH122: 11.5451278 | BI122: 0.04129674598 | BJ122: 12.26481427 | BK122: 0.0413294669 | BL122: 12.70168972 | BM122: 0.04137913208 | BN122: =IF(MOD(ROW($BN122)-7,oBlockAvg)=0,AVERAGE(INDIRECT(ADDRESS((INT((ROW($BN122)-7)/oBlockAvg)*oBlockAvg)+7,COLUMN(Calculation!JDGraph))&":"&ADDRESS(((INT((ROW($BN122)-7)/oBlockAvg)+1)*oBlockAvg)+6,COLUMN(Calculation!JDGraph)))),#N/A) -> 3319.675858 | BO122: 11.69610583 | BP122: 0.0007473503107
B123: WASP-12b_00156_bdf.fits | C123: 2013-01-27 | D123: 04:11:14.986 | E123: 2456319.674 | F123: 3319.674479 | G123: 100 | H123: -10.1863043 | I123: 0.00136559033 | J123: -12.32630731 | K123: 0.0003811095683 | L123: -12.13970841 | M123: 0.0004201416201 | N123: -11.41912691 | O123: 0.0006251231062 | P123: -11.08794752 | Q123: 0.0007611722268 | R123: -10.33658597 | S123: 0.001235174798 | T123: -9.623674287 | U123: 0.00205739779 | V123: -9.181675469 | W123: 0.002913278306 | X123: Blank | Y123: Blank | Z123: 0 | AA123: =(Results!$F$14-$J123)*$AB$2 -> 21.77830731 | AB123: =(1/SUMSQ(Results!$G$14,$K123))*$AB$2 -> 6884942.144 | AC123: 0.3858289302 | AD123: =(Results!$F$15-$L123)*$AE$2 -> 21.88670841 | AE123: =(1/SUMSQ(Results!$G$15,$M123))*$AE$2 -> 5665113.15 | AF123: 0.3174702852 | AG123: =(Results!$F$16-$N123)*$AH$2 -> 21.98712691 | AH123: =(1/SUMSQ(Results!$G$16,$O123))*$AH$2 -> 2558991.812 | AI123: 0.1434047015 | AJ123: =(Results!$F$17-$P123)*$AK$2 -> 22.07194752 | AK123: =(1/SUMSQ(Results!$G$17,$Q123))*$AK$2 -> 1725973.537 | AL123: 0.09672274789 | AM123: =(Results!$F$18-$R123)*$AN$2 -> 22.03358597 | AN123: =(1/SUMSQ(Results!$G$18,$S123))*$AN$2 -> 655455.4157 | AO123: 0.03673141422 | AP123: =(Results!$F$19-$T123)*$AQ$2 -> 21.90867429 | AQ123: =(1/SUMSQ(Results!$G$19,$U123))*$AQ$2 -> 236245.4549 | AR123: 0.01323908454 | AS123: =(Results!$F$20-$V123)*$AT$2 -> 21.96367547 | AT123: =(1/SUMSQ(Results!$G$20,$W123))*$AT$2 -> 117824.6207 | AU123: 0.006602836509 | AV123: 21.88339548 | AW123: 0.04108062386 | AX123: 11.69709118 | AY123: 0.04110331488 | AZ123: 9.557088167 | BA123: 0.04108239162 | BB123: 9.743687072 | BC123: 0.04108277225 | BD123: 10.46426857 | BE123: 0.04108537983 | BF123: 10.79544796 | BG123: 0.04108767504 | BH123: 11.54680952 | BI123: 0.04109918872 | BJ123: 12.25972119 | BK123: 0.04113211085 | BL123: 12.70172001 | BM123: 0.0411837935 | BN123: =IF(MOD(ROW($BN123)-7,oBlockAvg)=0,AVERAGE(INDIRECT(ADDRESS((INT((ROW($BN123)-7)/oBlockAvg)*oBlockAvg)+7,COLUMN(Calculation!JDGraph))&":"&ADDRESS(((INT((ROW($BN123)-7)/oBlockAvg)+1)*oBlockAvg)+6,COLUMN(Calculation!JDGraph)))),#N/A) -> 
B124: WASP-12b_00157_bdf.fits | C124: 2013-01-27 | D124: 04:13:14.131 | E124: 2456319.676 | F124: 3319.675858 | G124: 100 | H124: -10.15249005 | I124: 0.001446925343 | J124: -12.29176236 | K124: 0.0003911763603 | L124: -12.10264738 | M124: 0.0004330153378 | N124: -11.38273625 | O124: 0.000650307798 | P124: -11.05724609 | Q124: 0.0007917340255 | R124: -10.30437836 | S124: 0.00130174734 | T124: -9.589599311 | U124: 0.002200813074 | V124: -9.145442088 | W124: 0.003131589639 | X124: Blank | Y124: Blank | Z124: 0 | AA124: =(Results!$F$14-$J124)*$AB$2 -> 21.74376236 | AB124: =(1/SUMSQ(Results!$G$14,$K124))*$AB$2 -> 6535138.516 | AC124: 0.3906967042 | AD124: =(Results!$F$15-$L124)*$AE$2 -> 21.84964738 | AE124: =(1/SUMSQ(Results!$G$15,$M124))*$AE$2 -> 5333268.401 | AF124: 0.3188441044 | AG124: =(Results!$F$16-$N124)*$AH$2 -> 21.95073625 | AH124: =(1/SUMSQ(Results!$G$16,$O124))*$AH$2 -> 2364623.909 | AI124: 0.1413666697 | AJ124: =(Results!$F$17-$P124)*$AK$2 -> 22.04124609 | AK124: =(1/SUMSQ(Results!$G$17,$Q124))*$AK$2 -> 1595296.384 | AL124: 0.09537319494 | AM124: =(Results!$F$18-$R124)*$AN$2 -> 22.00137836 | AN124: =(1/SUMSQ(Results!$G$18,$S124))*$AN$2 -> 590128.5173 | AO124: 0.03528024176 | AP124: =(Results!$F$19-$T124)*$AQ$2 -> 21.87459931 | AQ124: =(1/SUMSQ(Results!$G$19,$U124))*$AQ$2 -> 206458.9362 | AR124: 0.01234294051 | AS124: =(Results!$F$20-$V124)*$AT$2 -> 21.92744209 | AT124: =(1/SUMSQ(Results!$G$20,$W124))*$AT$2 -> 101969.5036 | AU124: 0.006096144539 | AV124: 21.84697776 | AW124: 0.04118213694 | AX124: 11.69448771 | AY124: 0.0412075478 | AZ124: 9.555215406 | BA124: 0.04118399473 | BB124: 9.74433038 | BC124: 0.04118441338 | BD124: 10.46424152 | BE124: 0.04118727113 | BF124: 10.78973167 | BG124: 0.04118974685 | BH124: 11.5425994 | BI124: 0.0412027056 | BJ124: 12.25737845 | BK124: 0.0412409018 | BL124: 12.70153568 | BM124: 0.04130103215 | BN124: =IF(MOD(ROW($BN124)-7,oBlockAvg)=0,AVERAGE(INDIRECT(ADDRESS((INT((ROW($BN124)-7)/oBlockAvg)*oBlockAvg)+7,COLUMN(Calculation!JDGraph))&":"&ADDRESS(((INT((ROW($BN124)-7)/oBlockAvg)+1)*oBlockAvg)+6,COLUMN(Calculation!JDGraph)))),#N/A) -> 
B125: WASP-12b_00158_bdf.fits | C125: 2013-01-27 | D125: 04:15:13.363 | E125: 2456319.677 | F125: 3319.677238 | G125: 100 | H125: -10.1865414 | I125: 0.001368997922 | J125: -12.32818865 | K125: 0.0003806667049 | L125: -12.14122096 | M125: 0.0004200541347 | N125: -11.41964539 | O125: 0.0006268399415 | P125: -11.09030569 | Q125: 0.0007606949986 | R125: -10.34166615 | S125: 0.001229515504 | T125: -9.627118218 | U125: 0.002055285479 | V125: -9.180224124 | W125: 0.002926255089 | X125: Blank | Y125: Blank | Z125: 0 | AA125: =(Results!$F$14-$J125)*$AB$2 -> 21.78018865 | AB125: =(1/SUMSQ(Results!$G$14,$K125))*$AB$2 -> 6900971.192 | AC125: 0.3864662618 | AD125: =(Results!$F$15-$L125)*$AE$2 -> 21.88822096 | AE125: =(1/SUMSQ(Results!$G$15,$M125))*$AE$2 -> 5667473.162 | AF125: 0.3173882495 | AG125: =(Results!$F$16-$N125)*$AH$2 -> 21.98764539 | AH125: =(1/SUMSQ(Results!$G$16,$O125))*$AH$2 -> 2544993.498 | AI125: 0.1425240153 | AJ125: =(Results!$F$17-$P125)*$AK$2 -> 22.07430569 | AK125: =(1/SUMSQ(Results!$G$17,$Q125))*$AK$2 -> 1728139.824 | AL125: 0.09677880387 | AM125: =(Results!$F$18-$R125)*$AN$2 -> 22.03866615 | AN125: =(1/SUMSQ(Results!$G$18,$S125))*$AN$2 -> 661503.2482 | AO125: 0.0370453202 | AP125: =(Results!$F$19-$T125)*$AQ$2 -> 21.91211822 | AQ125: =(1/SUMSQ(Results!$G$19,$U125))*$AQ$2 -> 236731.3049 | AR125: 0.01325736044 | AS125: =(Results!$F$20-$V125)*$AT$2 -> 21.96222412 | AT125: =(1/SUMSQ(Results!$G$20,$W125))*$AT$2 -> 116781.9267 | AU125: 0.006539988851 | AV125: 21.88502363 | AW125: 0.04111400817 | AX125: 11.69848223 | AY125: 0.04113679403 | AZ125: 9.556834976 | BA125: 0.04111577039 | BB125: 9.743802669 | BC125: 0.04111615392 | BD125: 10.46537824 | BE125: 0.04111878641 | BF125: 10.79471794 | BG125: 0.04112104479 | BH125: 11.54335748 | BI125: 0.04113238841 | BJ125: 12.25790541 | BK125: 0.04116534788 | BL125: 12.70479951 | BM125: 0.04121801349 | BN125: =IF(MOD(ROW($BN125)-7,oBlockAvg)=0,AVERAGE(INDIRECT(ADDRESS((INT((ROW($BN125)-7)/oBlockAvg)*oBlockAvg)+7,COLUMN(Calculation!JDGraph))&":"&ADDRESS(((INT((ROW($BN125)-7)/oBlockAvg)+1)*oBlockAvg)+6,COLUMN(Calculation!JDGraph)))),#N/A) -> 
